Workbook

Sheet Ooien
A1: Neknummer | B1: Ooinummer | C1: ras | D1: geboortedatum | E1: leeftijd | K1: 2
A2: 5 | B2: BE519886427 | C2: ZB | D2: 2018-03-01 | E2: =IF(Opzoek_ooi[[#This Row],[geboortedatum]]="","",(TODAY()-Opzoek_ooi[[#This Row],[geboortedatum]])/365) -> 1.460273973 | K2: 2
A3: 15 | B3: BE527620141 | C3: VL | D3: 2011-02-15 | E3: =IF(Opzoek_ooi[[#This Row],[geboortedatum]]="","",(TODAY()-Opzoek_ooi[[#This Row],[geboortedatum]])/365) -> 8.504109589 | K3: 2
A4: 17 | B4: BE127620112 | C4: VL | D4: 2010-02-27 | E4: =IF(Opzoek_ooi[[#This Row],[geboortedatum]]="","",(TODAY()-Opzoek_ooi[[#This Row],[geboortedatum]])/365) -> 9.471232877 | K4: 3
A5: 80 | B5: BE127620113 | C5: VL | D5: 2010-02-27 | E5: =IF(Opzoek_ooi[[#This Row],[geboortedatum]]="","",(TODAY()-Opzoek_ooi[[#This Row],[geboortedatum]])/365) -> 9.471232877 | K5: 5
A6: 87 | B6: BE677340126 | C6: VL | D6: 2016-03-10 | E6: =IF(Opzoek_ooi[[#This Row],[geboortedatum]]="","",(TODAY()-Opzoek_ooi[[#This Row],[geboortedatum]])/365) -> 3.435616438 | K6: 5
A7: 77 | B7: BE577340068 | C7: VL | D7: 2014-02-26 | E7: =IF(Opzoek_ooi[[#This Row],[geboortedatum]]="","",(TODAY()-Opzoek_ooi[[#This Row],[geboortedatum]])/365) -> 5.471232877 | K7: 5
A8: 82 | B8: BE977340164 | C8: VL | D8: 2017-04-13 | E8: =IF(Opzoek_ooi[[#This Row],[geboortedatum]]="","",(TODAY()-Opzoek_ooi[[#This Row],[geboortedatum]])/365) -> 2.342465753 | K8: 2 | N8: =SUM(1/COUNTIF(B2:B28,B2:B28)) -> 27
A9: 81 | B9: BE077340163 | C9: VL | D9: 2017-03-27 | E9: =IF(Opzoek_ooi[[#This Row],[geboortedatum]]="","",(TODAY()-Opzoek_ooi[[#This Row],[geboortedatum]])/365) -> 2.389041096 | K9: 2
A10: 21 | B10: BE119886429 | C10: ZB | D10: 2018-03-01 | E10: =IF(Opzoek_ooi[[#This Row],[geboortedatum]]="","",(TODAY()-Opzoek_ooi[[#This Row],[geboortedatum]])/365) -> 1.460273973 | K10: 2
A11: 22 | B11: BE276710026 | C11: VL | D11: 2014-03-01 | E11: =IF(Opzoek_ooi[[#This Row],[geboortedatum]]="","",(TODAY()-Opzoek_ooi[[#This Row],[geboortedatum]])/365) -> 5.463013699 | K11: 2
A12: 78 | B12: BE977340083 | C12: VL | D12: 2015-03-12 | E12: =IF(Opzoek_ooi[[#This Row],[geboortedatum]]="","",(TODAY()-Opzoek_ooi[[#This Row],[geboortedatum]])/365) -> 4.432876712
A13: 23 | B13: BE919886425 | C13: ZB | D13: 2018-03-01 | E13: =IF(Opzoek_ooi[[#This Row],[geboortedatum]]="","",(TODAY()-Opzoek_ooi[[#This Row],[geboortedatum]])/365) -> 1.460273973
A14: 24 | B14: BE519886430 | C14: ZB | D14: 2018-03-01 | E14: =IF(Opzoek_ooi[[#This Row],[geboortedatum]]="","",(TODAY()-Opzoek_ooi[[#This Row],[geboortedatum]])/365) -> 1.460273973
B15: BE719886426 | C15: ZB | D15: 2018-03-01 | E15: =IF(Opzoek_ooi[[#This Row],[geboortedatum]]="","",(TODAY()-Opzoek_ooi[[#This Row],[geboortedatum]])/365) -> 1.460273973
A16: 83 | B16: BE777340165 | C16: VL | D16: 2017-03-30 | E16: =IF(Opzoek_ooi[[#This Row],[geboortedatum]]="","",(TODAY()-Opzoek_ooi[[#This Row],[geboortedatum]])/365) -> 2.380821918
A17: 13 | B17: BE227620120 | C17: VL | D17: 2010-03-01 | E17: =IF(Opzoek_ooi[[#This Row],[geboortedatum]]="","",(TODAY()-Opzoek_ooi[[#This Row],[geboortedatum]])/365) -> 9.465753425
A18: 79 | B18: BE277340095 | C18: VL | D18: 2015-03-13 | E18: =IF(Opzoek_ooi[[#This Row],[geboortedatum]]="","",(TODAY()-Opzoek_ooi[[#This Row],[geboortedatum]])/365) -> 4.430136986
A19: 84 | B19: BE277340162 | C19: VL | D19: 2017-03-31 | E19: =IF(Opzoek_ooi[[#This Row],[geboortedatum]]="","",(TODAY()-Opzoek_ooi[[#This Row],[geboortedatum]])/365) -> 2.378082192
A20: 14 | B20: BE876710023 | C20: VL | D20: 2014-03-01 | E20: =IF(Opzoek_ooi[[#This Row],[geboortedatum]]="","",(TODAY()-Opzoek_ooi[[#This Row],[geboortedatum]])/365) -> 5.463013699
A21: 85 | B21: BE477340161 | C21: VL | D21: 2017-03-24 | E21: =IF(Opzoek_ooi[[#This Row],[geboortedatum]]="","",(TODAY()-Opzoek_ooi[[#This Row],[geboortedatum]])/365) -> 2.397260274
A22: 76 | B22: BE577340135 | C22: VL | D22: 2016-03-05 | E22: =IF(Opzoek_ooi[[#This Row],[geboortedatum]]="","",(TODAY()-Opzoek_ooi[[#This Row],[geboortedatum]])/365) -> 3.449315068
A23: 8 | B23: BE176710022 | C23: VL | D23: 2014-03-01 | E23: =IF(Opzoek_ooi[[#This Row],[geboortedatum]]="","",(TODAY()-Opzoek_ooi[[#This Row],[geboortedatum]])/365) -> 5.463013699
A24: 9 | B24: BE120 | C24: ZB | D24: 2014-03-04 | E24: =IF(Opzoek_ooi[[#This Row],[geboortedatum]]="","",(TODAY()-Opzoek_ooi[[#This Row],[geboortedatum]])/365) -> 5.454794521
A25: 19 | B25: BE377340167 | C25: ZB | D25: 2014-03-04 | E25: =IF(Opzoek_ooi[[#This Row],[geboortedatum]]="","",(TODAY()-Opzoek_ooi[[#This Row],[geboortedatum]])/365) -> 5.454794521
A26: 88 | B26: BE477340175 | C26: VL | D26: 2018-02-16 | E26: =IF(Opzoek_ooi[[#This Row],[geboortedatum]]="","",(TODAY()-Opzoek_ooi[[#This Row],[geboortedatum]])/365) -> 1.495890411
B27: BE577340166 | C27: ZB/VL | D27: 2017-03-24 | E27: =IF(Opzoek_ooi[[#This Row],[geboortedatum]]="","",(TODAY()-Opzoek_ooi[[#This Row],[geboortedatum]])/365) -> 2.397260274
A28: 86 | B28: BE177340138 | C28: VL | D28: 2016-03-11 | E28: =IF(Opzoek_ooi[[#This Row],[geboortedatum]]="","",(TODAY()-Opzoek_ooi[[#This Row],[geboortedatum]])/365) -> 3.432876712
E29: =IF(Opzoek_ooi[[#This Row],[geboortedatum]]="","",(TODAY()-Opzoek_ooi[[#This Row],[geboortedatum]])/365) -> 
E30: =IF(Opzoek_ooi[[#This Row],[geboortedatum]]="","",(TODAY()-Opzoek_ooi[[#This Row],[geboortedatum]])/365) -> 
E31: =IF(Opzoek_ooi[[#This Row],[geboortedatum]]="","",(TODAY()-Opzoek_ooi[[#This Row],[geboortedatum]])/365) -> 
E32: =IF(Opzoek_ooi[[#This Row],[geboortedatum]]="","",(TODAY()-Opzoek_ooi[[#This Row],[geboortedatum]])/365) -> 
E33: =IF(Opzoek_ooi[[#This Row],[geboortedatum]]="","",(TODAY()-Opzoek_ooi[[#This Row],[geboortedatum]])/365) -> 
E34: =IF(Opzoek_ooi[[#This Row],[geboortedatum]]="","",(TODAY()-Opzoek_ooi[[#This Row],[geboortedatum]])/365) -> 
E35: =IF(Opzoek_ooi[[#This Row],[geboortedatum]]="","",(TODAY()-Opzoek_ooi[[#This Row],[geboortedatum]])/365) -> 
E36: =IF(Opzoek_ooi[[#This Row],[geboortedatum]]="","",(TODAY()-Opzoek_ooi[[#This Row],[geboortedatum]])/365) -> 
E37: =IF(Opzoek_ooi[[#This Row],[geboortedatum]]="","",(TODAY()-Opzoek_ooi[[#This Row],[geboortedatum]])/365) -> 
E38: =IF(Opzoek_ooi[[#This Row],[geboortedatum]]="","",(TODAY()-Opzoek_ooi[[#This Row],[geboortedatum]])/365) -> 
E39: =IF(Opzoek_ooi[[#This Row],[geboortedatum]]="","",(TODAY()-Opzoek_ooi[[#This Row],[geboortedatum]])/365) -> 
E40: =IF(Opzoek_ooi[[#This Row],[geboortedatum]]="","",(TODAY()-Opzoek_ooi[[#This Row],[geboortedatum]])/365) -> 
E41: =IF(Opzoek_ooi[[#This Row],[geboortedatum]]="","",(TODAY()-Opzoek_ooi[[#This Row],[geboortedatum]])/365) -> 
E42: =IF(Opzoek_ooi[[#This Row],[geboortedatum]]="","",(TODAY()-Opzoek_ooi[[#This Row],[geboortedatum]])/365) -> 
E43: =IF(Opzoek_ooi[[#This Row],[geboortedatum]]="","",(TODAY()-Opzoek_ooi[[#This Row],[geboortedatum]])/365) -> 
E44: =IF(Opzoek_ooi[[#This Row],[geboortedatum]]="","",(TODAY()-Opzoek_ooi[[#This Row],[geboortedatum]])/365) -> 
E45: =IF(Opzoek_ooi[[#This Row],[geboortedatum]]="","",(TODAY()-Opzoek_ooi[[#This Row],[geboortedatum]])/365) -> 
E46: =IF(Opzoek_ooi[[#This Row],[geboortedatum]]="","",(TODAY()-Opzoek_ooi[[#This Row],[geboortedatum]])/365) -> 
E47: =IF(Opzoek_ooi[[#This Row],[geboortedatum]]="","",(TODAY()-Opzoek_ooi[[#This Row],[geboortedatum]])/365) -> 
E48: =IF(Opzoek_ooi[[#This Row],[geboortedatum]]="","",(TODAY()-Opzoek_ooi[[#This Row],[geboortedatum]])/365) -> 
E49: =IF(Opzoek_ooi[[#This Row],[geboortedatum]]="","",(TODAY()-Opzoek_ooi[[#This Row],[geboortedatum]])/365) -> 
E50: =IF(Opzoek_ooi[[#This Row],[geboortedatum]]="","",(TODAY()-Opzoek_ooi[[#This Row],[geboortedatum]])/365) -> 
E51: =IF(Opzoek_ooi[[#This Row],[geboortedatum]]="","",(TODAY()-Opzoek_ooi[[#This Row],[geboortedatum]])/365) -> 
E52: =IF(Opzoek_ooi[[#This Row],[geboortedatum]]="","",(TODAY()-Opzoek_ooi[[#This Row],[geboortedatum]])/365) -> 
E53: =IF(Opzoek_ooi[[#This Row],[geboortedatum]]="","",(TODAY()-Opzoek_ooi[[#This Row],[geboortedatum]])/365) -> 
E54: =IF(Opzoek_ooi[[#This Row],[geboortedatum]]="","",(TODAY()-Opzoek_ooi[[#This Row],[geboortedatum]])/365) -> 
E55: =IF(Opzoek_ooi[[#This Row],[geboortedatum]]="","",(TODAY()-Opzoek_ooi[[#This Row],[geboortedatum]])/365) -> 
E56: =IF(Opzoek_ooi[[#This Row],[geboortedatum]]="","",(TODAY()-Opzoek_ooi[[#This Row],[geboortedatum]])/365) -> 
E57: =IF(Opzoek_ooi[[#This Row],[geboortedatum]]="","",(TODAY()-Opzoek_ooi[[#This Row],[geboortedatum]])/365) -> 
E58: =IF(Opzoek_ooi[[#This Row],[geboortedatum]]="","",(TODAY()-Opzoek_ooi[[#This Row],[geboortedatum]])/365) -> 
E59: =IF(Opzoek_ooi[[#This Row],[geboortedatum]]="","",(TODAY()-Opzoek_ooi[[#This Row],[geboortedatum]])/365) -> 
E60: =IF(Opzoek_ooi[[#This Row],[geboortedatum]]="","",(TODAY()-Opzoek_ooi[[#This Row],[geboortedatum]])/365) -> 
E61: =IF(Opzoek_ooi[[#This Row],[geboortedatum]]="","",(TODAY()-Opzoek_ooi[[#This Row],[geboortedatum]])/365) -> 
E62: =IF(Opzoek_ooi[[#This Row],[geboortedatum]]="","",(TODAY()-Opzoek_ooi[[#This Row],[geboortedatum]])/365) -> 
E63: =IF(Opzoek_ooi[[#This Row],[geboortedatum]]="","",(TODAY()-Opzoek_ooi[[#This Row],[geboortedatum]])/365) -> 
E64: =IF(Opzoek_ooi[[#This Row],[geboortedatum]]="","",(TODAY()-Opzoek_ooi[[#This Row],[geboortedatum]])/365) -> 
E65: =IF(Opzoek_ooi[[#This Row],[geboortedatum]]="","",(TODAY()-Opzoek_ooi[[#This Row],[geboortedatum]])/365) -> 
E66: =IF(Opzoek_ooi[[#This Row],[geboortedatum]]="","",(TODAY()-Opzoek_ooi[[#This Row],[geboortedatum]])/365) -> 
E67: =IF(Opzoek_ooi[[#This Row],[geboortedatum]]="","",(TODAY()-Opzoek_ooi[[#This Row],[geboortedatum]])/365) -> 
E68: =IF(Opzoek_ooi[[#This Row],[geboortedatum]]="","",(TODAY()-Opzoek_ooi[[#This Row],[geboortedatum]])/365) -> 
E69: =IF(Opzoek_ooi[[#This Row],[geboortedatum]]="","",(TODAY()-Opzoek_ooi[[#This Row],[geboortedatum]])/365) -> 
E70: =IF(Opzoek_ooi[[#This Row],[geboortedatum]]="","",(TODAY()-Opzoek_ooi[[#This Row],[geboortedatum]])/365) -> 
E71: =IF(Opzoek_ooi[[#This Row],[geboortedatum]]="","",(TODAY()-Opzoek_ooi[[#This Row],[geboortedatum]])/365) -> 
E72: =IF(Opzoek_ooi[[#This Row],[geboortedatum]]="","",(TODAY()-Opzoek_ooi[[#This Row],[geboortedatum]])/365) -> 
E73: =IF(Opzoek_ooi[[#This Row],[geboortedatum]]="","",(TODAY()-Opzoek_ooi[[#This Row],[geboortedatum]])/365) -> 
E74: =IF(Opzoek_ooi[[#This Row],[geboortedatum]]="","",(TODAY()-Opzoek_ooi[[#This Row],[geboortedatum]])/365) -> 
E75: =IF(Opzoek_ooi[[#This Row],[geboortedatum]]="","",(TODAY()-Opzoek_ooi[[#This Row],[geboortedatum]])/365) -> 
E76: =IF(Opzoek_ooi[[#This Row],[geboortedatum]]="","",(TODAY()-Opzoek_ooi[[#This Row],[geboortedatum]])/365) -> 
E77: =IF(Opzoek_ooi[[#This Row],[geboortedatum]]="","",(TODAY()-Opzoek_ooi[[#This Row],[geboortedatum]])/365) -> 
E78: =IF(Opzoek_ooi[[#This Row],[geboortedatum]]="","",(TODAY()-Opzoek_ooi[[#This Row],[geboortedatum]])/365) -> 
E79: =IF(Opzoek_ooi[[#This Row],[geboortedatum]]="","",(TODAY()-Opzoek_ooi[[#This Row],[geboortedatum]])/365) -> 
E80: =IF(Opzoek_ooi[[#This Row],[geboortedatum]]="","",(TODAY()-Opzoek_ooi[[#This Row],[geboortedatum]])/365) -> 
E81: =IF(Opzoek_ooi[[#This Row],[geboortedatum]]="","",(TODAY()-Opzoek_ooi[[#This Row],[geboortedatum]])/365) -> 
E82: =IF(Opzoek_ooi[[#This Row],[geboortedatum]]="","",(TODAY()-Opzoek_ooi[[#This Row],[geboortedatum]])/365) -> 
E83: =IF(Opzoek_ooi[[#This Row],[geboortedatum]]="","",(TODAY()-Opzoek_ooi[[#This Row],[geboortedatum]])/365) -> 
E84: =IF(Opzoek_ooi[[#This Row],[geboortedatum]]="","",(TODAY()-Opzoek_ooi[[#This Row],[geboortedatum]])/365) -> 
E85: =IF(Opzoek_ooi[[#This Row],[geboortedatum]]="","",(TODAY()-Opzoek_ooi[[#This Row],[geboortedatum]])/365) -> 
E86: =IF(Opzoek_ooi[[#This Row],[geboortedatum]]="","",(TODAY()-Opzoek_ooi[[#This Row],[geboortedatum]])/365) -> 
E87: =IF(Opzoek_ooi[[#This Row],[geboortedatum]]="","",(TODAY()-Opzoek_ooi[[#This Row],[geboortedatum]])/365) -> 
E88: =IF(Opzoek_ooi[[#This Row],[geboortedatum]]="","",(TODAY()-Opzoek_ooi[[#This Row],[geboortedatum]])/365) -> 
E89: =IF(Opzoek_ooi[[#This Row],[geboortedatum]]="","",(TODAY()-Opzoek_ooi[[#This Row],[geboortedatum]])/365) -> 
E90: =IF(Opzoek_ooi[[#This Row],[geboortedatum]]="","",(TODAY()-Opzoek_ooi[[#This Row],[geboortedatum]])/365) -> 
E91: =IF(Opzoek_ooi[[#This Row],[geboortedatum]]="","",(TODAY()-Opzoek_ooi[[#This Row],[geboortedatum]])/365) -> 
E92: =IF(Opzoek_ooi[[#This Row],[geboortedatum]]="","",(TODAY()-Opzoek_ooi[[#This Row],[geboortedatum]])/365) -> 
E93: =IF(Opzoek_ooi[[#This Row],[geboortedatum]]="","",(TODAY()-Opzoek_ooi[[#This Row],[geboortedatum]])/365) -> 
E94: =IF(Opzoek_ooi[[#This Row],[geboortedatum]]="","",(TODAY()-Opzoek_ooi[[#This Row],[geboortedatum]])/365) -> 
E95: =IF(Opzoek_ooi[[#This Row],[geboortedatum]]="","",(TODAY()-Opzoek_ooi[[#This Row],[geboortedatum]])/365) -> 
E96: =IF(Opzoek_ooi[[#This Row],[geboortedatum]]="","",(TODAY()-Opzoek_ooi[[#This Row],[geboortedatum]])/365) -> 
E97: =IF(Opzoek_ooi[[#This Row],[geboortedatum]]="","",(TODAY()-Opzoek_ooi[[#This Row],[geboortedatum]])/365) -> 
E98: =IF(Opzoek_ooi[[#This Row],[geboortedatum]]="","",(TODAY()-Opzoek_ooi[[#This Row],[geboortedatum]])/365) -> 
E99: =IF(Opzoek_ooi[[#This Row],[geboortedatum]]="","",(TODAY()-Opzoek_ooi[[#This Row],[geboortedatum]])/365) -> 
E100: =IF(Opzoek_ooi[[#This Row],[geboortedatum]]="","",(TODAY()-Opzoek_ooi[[#This Row],[geboortedatum]])/365) -> 
E101: =IF(Opzoek_ooi[[#This Row],[geboortedatum]]="","",(TODAY()-Opzoek_ooi[[#This Row],[geboortedatum]])/365) -> 
E102: =IF(Opzoek_ooi[[#This Row],[geboortedatum]]="","",(TODAY()-Opzoek_ooi[[#This Row],[geboortedatum]])/365) -> 
E103: =IF(Opzoek_ooi[[#This Row],[geboortedatum]]="","",(TODAY()-Opzoek_ooi[[#This Row],[geboortedatum]])/365) -> 
E104: =IF(Opzoek_ooi[[#This Row],[geboortedatum]]="","",(TODAY()-Opzoek_ooi[[#This Row],[geboortedatum]])/365) -> 
E105: =IF(Opzoek_ooi[[#This Row],[geboortedatum]]="","",(TODAY()-Opzoek_ooi[[#This Row],[geboortedatum]])/365) -> 
E106: =IF(Opzoek_ooi[[#This Row],[geboortedatum]]="","",(TODAY()-Opzoek_ooi[[#This Row],[geboortedatum]])/365) -> 
E107: =IF(Opzoek_ooi[[#This Row],[geboortedatum]]="","",(TODAY()-Opzoek_ooi[[#This Row],[geboortedatum]])/365) -> 
E108: =IF(Opzoek_ooi[[#This Row],[geboortedatum]]="","",(TODAY()-Opzoek_ooi[[#This Row],[geboortedatum]])/365) -> 
E109: =IF(Opzoek_ooi[[#This Row],[geboortedatum]]="","",(TODAY()-Opzoek_ooi[[#This Row],[geboortedatum]])/365) -> 
E110: =IF(Opzoek_ooi[[#This Row],[geboortedatum]]="","",(TODAY()-Opzoek_ooi[[#This Row],[geboortedatum]])/365) -> 
E111: =IF(Opzoek_ooi[[#This Row],[geboortedatum]]="","",(TODAY()-Opzoek_ooi[[#This Row],[geboortedatum]])/365) -> 
E112: =IF(Opzoek_ooi[[#This Row],[geboortedatum]]="","",(TODAY()-Opzoek_ooi[[#This Row],[geboortedatum]])/365) -> 
E113: =IF(Opzoek_ooi[[#This Row],[geboortedatum]]="","",(TODAY()-Opzoek_ooi[[#This Row],[geboortedatum]])/365) -> 
E114: =IF(Opzoek_ooi[[#This Row],[geboortedatum]]="","",(TODAY()-Opzoek_ooi[[#This Row],[geboortedatum]])/365) -> 
E115: =IF(Opzoek_ooi[[#This Row],[geboortedatum]]="","",(TODAY()-Opzoek_ooi[[#This Row],[geboortedatum]])/365) -> 
E116: =IF(Opzoek_ooi[[#This Row],[geboortedatum]]="","",(TODAY()-Opzoek_ooi[[#This Row],[geboortedatum]])/365) -> 
E117: =IF(Opzoek_ooi[[#This Row],[geboortedatum]]="","",(TODAY()-Opzoek_ooi[[#This Row],[geboortedatum]])/365) -> 
E118: =IF(Opzoek_ooi[[#This Row],[geboortedatum]]="","",(TODAY()-Opzoek_ooi[[#This Row],[geboortedatum]])/365) -> 
E119: =IF(Opzoek_ooi[[#This Row],[geboortedatum]]="","",(TODAY()-Opzoek_ooi[[#This Row],[geboortedatum]])/365) -> 
E120: =IF(Opzoek_ooi[[#This Row],[geboortedatum]]="","",(TODAY()-Opzoek_ooi[[#This Row],[geboortedatum]])/365) -> 
E121: =IF(Opzoek_ooi[[#This Row],[geboortedatum]]="","",(TODAY()-Opzoek_ooi[[#This Row],[geboortedatum]])/365) -> 
E122: =IF(Opzoek_ooi[[#This Row],[geboortedatum]]="","",(TODAY()-Opzoek_ooi[[#This Row],[geboortedatum]])/365) -> 
E123: =IF(Opzoek_ooi[[#This Row],[geboortedatum]]="","",(TODAY()-Opzoek_ooi[[#This Row],[geboortedatum]])/365) -> 
E124: =IF(Opzoek_ooi[[#This Row],[geboortedatum]]="","",(TODAY()-Opzoek_ooi[[#This Row],[geboortedatum]])/365) -> 
E125: =IF(Opzoek_ooi[[#This Row],[geboortedatum]]="","",(TODAY()-Opzoek_ooi[[#This Row],[geboortedatum]])/365) -> 
E126: =IF(Opzoek_ooi[[#This Row],[geboortedatum]]="","",(TODAY()-Opzoek_ooi[[#This Row],[geboortedatum]])/365) -> 
E127: =IF(Opzoek_ooi[[#This Row],[geboortedatum]]="","",(TODAY()-Opzoek_ooi[[#This Row],[geboortedatum]])/365) -> 
E128: =IF(Opzoek_ooi[[#This Row],[geboortedatum]]="","",(TODAY()-Opzoek_ooi[[#This Row],[geboortedatum]])/365) -> 
E129: =IF(Opzoek_ooi[[#This Row],[geboortedatum]]="","",(TODAY()-Opzoek_ooi[[#This Row],[geboortedatum]])/365) -> 
E130: =IF(Opzoek_ooi[[#This Row],[geboortedatum]]="","",(TODAY()-Opzoek_ooi[[#This Row],[geboortedatum]])/365) -> 
E131: =IF(Opzoek_ooi[[#This Row],[geboortedatum]]="","",(TODAY()-Opzoek_ooi[[#This Row],[geboortedatum]])/365) -> 
E132: =IF(Opzoek_ooi[[#This Row],[geboortedatum]]="","",(TODAY()-Opzoek_ooi[[#This Row],[geboortedatum]])/365) -> 
E133: =IF(Opzoek_ooi[[#This Row],[geboortedatum]]="","",(TODAY()-Opzoek_ooi[[#This Row],[geboortedatum]])/365) -> 
E134: =IF(Opzoek_ooi[[#This Row],[geboortedatum]]="","",(TODAY()-Opzoek_ooi[[#This Row],[geboortedatum]])/365) -> 
E135: =IF(Opzoek_ooi[[#This Row],[geboortedatum]]="","",(TODAY()-Opzoek_ooi[[#This Row],[geboortedatum]])/365) -> 
E136: =IF(Opzoek_ooi[[#This Row],[geboortedatum]]="","",(TODAY()-Opzoek_ooi[[#This Row],[geboortedatum]])/365) -> 
E137: =IF(Opzoek_ooi[[#This Row],[geboortedatum]]="","",(TODAY()-Opzoek_ooi[[#This Row],[geboortedatum]])/365) -> 
E138: =IF(Opzoek_ooi[[#This Row],[geboortedatum]]="","",(TODAY()-Opzoek_ooi[[#This Row],[geboortedatum]])/365) -> 
E139: =IF(Opzoek_ooi[[#This Row],[geboortedatum]]="","",(TODAY()-Opzoek_ooi[[#This Row],[geboortedatum]])/365) -> 
E140: =IF(Opzoek_ooi[[#This Row],[geboortedatum]]="","",(TODAY()-Opzoek_ooi[[#This Row],[geboortedatum]])/365) -> 
E141: =IF(Opzoek_ooi[[#This Row],[geboortedatum]]="","",(TODAY()-Opzoek_ooi[[#This Row],[geboortedatum]])/365) -> 
E142: =IF(Opzoek_ooi[[#This Row],[geboortedatum]]="","",(TODAY()-Opzoek_ooi[[#This Row],[geboortedatum]])/365) -> 
E143: =IF(Opzoek_ooi[[#This Row],[geboortedatum]]="","",(TODAY()-Opzoek_ooi[[#This Row],[geboortedatum]])/365) -> 
E144: =IF(Opzoek_ooi[[#This Row],[geboortedatum]]="","",(TODAY()-Opzoek_ooi[[#This Row],[geboortedatum]])/365) -> 
E145: =IF(Opzoek_ooi[[#This Row],[geboortedatum]]="","",(TODAY()-Opzoek_ooi[[#This Row],[geboortedatum]])/365) -> 
E146: =IF(Opzoek_ooi[[#This Row],[geboortedatum]]="","",(TODAY()-Opzoek_ooi[[#This Row],[geboortedatum]])/365) -> 
E147: =IF(Opzoek_ooi[[#This Row],[geboortedatum]]="","",(TODAY()-Opzoek_ooi[[#This Row],[geboortedatum]])/365) -> 
E148: =IF(Opzoek_ooi[[#This Row],[geboortedatum]]="","",(TODAY()-Opzoek_ooi[[#This Row],[geboortedatum]])/365) -> 
E149: =IF(Opzoek_ooi[[#This Row],[geboortedatum]]="","",(TODAY()-Opzoek_ooi[[#This Row],[geboortedatum]])/365) -> 
E150: =IF(Opzoek_ooi[[#This Row],[geboortedatum]]="","",(TODAY()-Opzoek_ooi[[#This Row],[geboortedatum]])/365) -> 
E151: =IF(Opzoek_ooi[[#This Row],[geboortedatum]]="","",(TODAY()-Opzoek_ooi[[#This Row],[geboortedatum]])/365) -> 
E152: =IF(Opzoek_ooi[[#This Row],[geboortedatum]]="","",(TODAY()-Opzoek_ooi[[#This Row],[geboortedatum]])/365) -> 
E153: =IF(Opzoek_ooi[[#This Row],[geboortedatum]]="","",(TODAY()-Opzoek_ooi[[#This Row],[geboortedatum]])/365) -> 
E154: =IF(Opzoek_ooi[[#This Row],[geboortedatum]]="","",(TODAY()-Opzoek_ooi[[#This Row],[geboortedatum]])/365) -> 
E155: =IF(Opzoek_ooi[[#This Row],[geboortedatum]]="","",(TODAY()-Opzoek_ooi[[#This Row],[geboortedatum]])/365) -> 
E156: =IF(Opzoek_ooi[[#This Row],[geboortedatum]]="","",(TODAY()-Opzoek_ooi[[#This Row],[geboortedatum]])/365) -> 
E157: =IF(Opzoek_ooi[[#This Row],[geboortedatum]]="","",(TODAY()-Opzoek_ooi[[#This Row],[geboortedatum]])/365) -> 
E158: =IF(Opzoek_ooi[[#This Row],[geboortedatum]]="","",(TODAY()-Opzoek_ooi[[#This Row],[geboortedatum]])/365) -> 
E159: =IF(Opzoek_ooi[[#This Row],[geboortedatum]]="","",(TODAY()-Opzoek_ooi[[#This Row],[geboortedatum]])/365) -> 
E160: =IF(Opzoek_ooi[[#This Row],[geboortedatum]]="","",(TODAY()-Opzoek_ooi[[#This Row],[geboortedatum]])/365) -> 
E161: =IF(Opzoek_ooi[[#This Row],[geboortedatum]]="","",(TODAY()-Opzoek_ooi[[#This Row],[geboortedatum]])/365) -> 
E162: =IF(Opzoek_ooi[[#This Row],[geboortedatum]]="","",(TODAY()-Opzoek_ooi[[#This Row],[geboortedatum]])/365) -> 
E163: =IF(Opzoek_ooi[[#This Row],[geboortedatum]]="","",(TODAY()-Opzoek_ooi[[#This Row],[geboortedatum]])/365) -> 
E164: =IF(Opzoek_ooi[[#This Row],[geboortedatum]]="","",(TODAY()-Opzoek_ooi[[#This Row],[geboortedatum]])/365) -> 
E165: =IF(Opzoek_ooi[[#This Row],[geboortedatum]]="","",(TODAY()-Opzoek_ooi[[#This Row],[geboortedatum]])/365) -> 
E166: =IF(Opzoek_ooi[[#This Row],[geboortedatum]]="","",(TODAY()-Opzoek_ooi[[#This Row],[geboortedatum]])/365) -> 
E167: =IF(Opzoek_ooi[[#This Row],[geboortedatum]]="","",(TODAY()-Opzoek_ooi[[#This Row],[geboortedatum]])/365) -> 
E168: =IF(Opzoek_ooi[[#This Row],[geboortedatum]]="","",(TODAY()-Opzoek_ooi[[#This Row],[geboortedatum]])/365) -> 
E169: =IF(Opzoek_ooi[[#This Row],[geboortedatum]]="","",(TODAY()-Opzoek_ooi[[#This Row],[geboortedatum]])/365) -> 
E170: =IF(Opzoek_ooi[[#This Row],[geboortedatum]]="","",(TODAY()-Opzoek_ooi[[#This Row],[geboortedatum]])/365) -> 
E171: =IF(Opzoek_ooi[[#This Row],[geboortedatum]]="","",(TODAY()-Opzoek_ooi[[#This Row],[geboortedatum]])/365) -> 
E172: =IF(Opzoek_ooi[[#This Row],[geboortedatum]]="","",(TODAY()-Opzoek_ooi[[#This Row],[geboortedatum]])/365) -> 
E173: =IF(Opzoek_ooi[[#This Row],[geboortedatum]]="","",(TODAY()-Opzoek_ooi[[#This Row],[geboortedatum]])/365) -> 
E174: =IF(Opzoek_ooi[[#This Row],[geboortedatum]]="","",(TODAY()-Opzoek_ooi[[#This Row],[geboortedatum]])/365) -> 
E175: =IF(Opzoek_ooi[[#This Row],[geboortedatum]]="","",(TODAY()-Opzoek_ooi[[#This Row],[geboortedatum]])/365) -> 
E176: =IF(Opzoek_ooi[[#This Row],[geboortedatum]]="","",(TODAY()-Opzoek_ooi[[#This Row],[geboortedatum]])/365) -> 
E177: =IF(Opzoek_ooi[[#This Row],[geboortedatum]]="","",(TODAY()-Opzoek_ooi[[#This Row],[geboortedatum]])/365) -> 
E178: =IF(Opzoek_ooi[[#This Row],[geboortedatum]]="","",(TODAY()-Opzoek_ooi[[#This Row],[geboortedatum]])/365) -> 
E179: =IF(Opzoek_ooi[[#This Row],[geboortedatum]]="","",(TODAY()-Opzoek_ooi[[#This Row],[geboortedatum]])/365) -> 
E180: =IF(Opzoek_ooi[[#This Row],[geboortedatum]]="","",(TODAY()-Opzoek_ooi[[#This Row],[geboortedatum]])/365) -> 
E181: =IF(Opzoek_ooi[[#This Row],[geboortedatum]]="","",(TODAY()-Opzoek_ooi[[#This Row],[geboortedatum]])/365) -> 
E182: =IF(Opzoek_ooi[[#This Row],[geboortedatum]]="","",(TODAY()-Opzoek_ooi[[#This Row],[geboortedatum]])/365) -> 
E183: =IF(Opzoek_ooi[[#This Row],[geboortedatum]]="","",(TODAY()-Opzoek_ooi[[#This Row],[geboortedatum]])/365) -> 
E184: =IF(Opzoek_ooi[[#This Row],[geboortedatum]]="","",(TODAY()-Opzoek_ooi[[#This Row],[geboortedatum]])/365) -> 
E185: =IF(Opzoek_ooi[[#This Row],[geboortedatum]]="","",(TODAY()-Opzoek_ooi[[#This Row],[geboortedatum]])/365) -> 
E186: =IF(Opzoek_ooi[[#This Row],[geboortedatum]]="","",(TODAY()-Opzoek_ooi[[#This Row],[geboortedatum]])/365) -> 
E187: =IF(Opzoek_ooi[[#This Row],[geboortedatum]]="","",(TODAY()-Opzoek_ooi[[#This Row],[geboortedatum]])/365) -> 
E188: =IF(Opzoek_ooi[[#This Row],[geboortedatum]]="","",(TODAY()-Opzoek_ooi[[#This Row],[geboortedatum]])/365) -> 
E189: =IF(Opzoek_ooi[[#This Row],[geboortedatum]]="","",(TODAY()-Opzoek_ooi[[#This Row],[geboortedatum]])/365) -> 
E190: =IF(Opzoek_ooi[[#This Row],[geboortedatum]]="","",(TODAY()-Opzoek_ooi[[#This Row],[geboortedatum]])/365) -> 
E191: =IF(Opzoek_ooi[[#This Row],[geboortedatum]]="","",(TODAY()-Opzoek_ooi[[#This Row],[geboortedatum]])/365) -> 
E192: =IF(Opzoek_ooi[[#This Row],[geboortedatum]]="","",(TODAY()-Opzoek_ooi[[#This Row],[geboortedatum]])/365) -> 
E193: =IF(Opzoek_ooi[[#This Row],[geboortedatum]]="","",(TODAY()-Opzoek_ooi[[#This Row],[geboortedatum]])/365) -> 
E194: =IF(Opzoek_ooi[[#This Row],[geboortedatum]]="","",(TODAY()-Opzoek_ooi[[#This Row],[geboortedatum]])/365) -> 
E195: =IF(Opzoek_ooi[[#This Row],[geboortedatum]]="","",(TODAY()-Opzoek_ooi[[#This Row],[geboortedatum]])/365) -> 
E196: =IF(Opzoek_ooi[[#This Row],[geboortedatum]]="","",(TODAY()-Opzoek_ooi[[#This Row],[geboortedatum]])/365) -> 
E197: =IF(Opzoek_ooi[[#This Row],[geboortedatum]]="","",(TODAY()-Opzoek_ooi[[#This Row],[geboortedatum]])/365) -> 
E198: =IF(Opzoek_ooi[[#This Row],[geboortedatum]]="","",(TODAY()-Opzoek_ooi[[#This Row],[geboortedatum]])/365) -> 
E199: =IF(Opzoek_ooi[[#This Row],[geboortedatum]]="","",(TODAY()-Opzoek_ooi[[#This Row],[geboortedatum]])/365) -> 
E200: =IF(Opzoek_ooi[[#This Row],[geboortedatum]]="","",(TODAY()-Opzoek_ooi[[#This Row],[geboortedatum]])/365) -> 
... 20 more rows

Sheet Rammen
A1: Ramnummer | B1: geboortedatum | C1: RAS | D1: leeftijd
A2: BE277340193 | B2: 2018-03-01 | C2: FT | D2: =IF(B2="","",(TODAY()-Tabel5[[#This Row],[geboortedatum]])/365) -> 1.460273973
A3: BE79560447 | B3: 2015-03-21 | C3: VL | D3: =IF(B3="","",(TODAY()-Tabel5[[#This Row],[geboortedatum]])/365) -> 4.408219178
D4: =IF(B4="","",(TODAY()-Tabel5[[#This Row],[geboortedatum]])/365) -> 
D5: =IF(B5="","",(TODAY()-Tabel5[[#This Row],[geboortedatum]])/365) -> 
D6: =IF(B6="","",(TODAY()-Tabel5[[#This Row],[geboortedatum]])/365) -> 

Sheet Registratie dekkingen
A1: Ooi | B1: Dekdatum | C1: Ram | D1: Herdekdatum | E1: Ram2 | F1: Verwachte aflamdatum | G1: Datum vaccinatie | H1: Aflamdatum | I1: Draagtijd
A2: =Opzoek_ooi[[#This Row],[Ooinummer]] -> BE519886427 | B2: 2018-10-20 | C2: BE277340193 | E2: BE79560447 | F2: =IF(Table6[[#This Row],[Herdekdatum]]>Table6[[#This Row],[Dekdatum]],Table6[[#This Row],[Herdekdatum]]+145,Table6[[#This Row],[Dekdatum]]+145) -> 2019-03-14 | G2: =Table6[[#This Row],[Verwachte aflamdatum]]-25 -> 2019-02-17 | H2: 2019-03-14 | I2: =Table6[[#This Row],[Aflamdatum]]-Table6[[#This Row],[Dekdatum]] -> 145
A3: =Opzoek_ooi[[#This Row],[Ooinummer]] -> BE527620141 | B3: 2018-10-22 | C3: BE277340193 | E3: BE79560447 | F3: =IF(Table6[[#This Row],[Herdekdatum]]>Table6[[#This Row],[Dekdatum]],Table6[[#This Row],[Herdekdatum]]+145,Table6[[#This Row],[Dekdatum]]+145) -> 2019-03-16 | G3: =Table6[[#This Row],[Verwachte aflamdatum]]-25 -> 2019-02-19 | H3: 2019-03-16 | I3: =Table6[[#This Row],[Aflamdatum]]-Table6[[#This Row],[Dekdatum]] -> 145
A4: =Opzoek_ooi[[#This Row],[Ooinummer]] -> BE127620112 | B4: 2018-10-20 | C4: BE277340193 | E4: BE79560447 | F4: =IF(Table6[[#This Row],[Herdekdatum]]>Table6[[#This Row],[Dekdatum]],Table6[[#This Row],[Herdekdatum]]+145,Table6[[#This Row],[Dekdatum]]+145) -> 2019-03-14 | G4: =Table6[[#This Row],[Verwachte aflamdatum]]-25 -> 2019-02-17 | H4: 2019-03-14 | I4: =Table6[[#This Row],[Aflamdatum]]-Table6[[#This Row],[Dekdatum]] -> 145
A5: =Opzoek_ooi[[#This Row],[Ooinummer]] -> BE127620113 | B5: 2018-10-05 | C5: BE79560447 | E5: BE79560447 | F5: =IF(Table6[[#This Row],[Herdekdatum]]>Table6[[#This Row],[Dekdatum]],Table6[[#This Row],[Herdekdatum]]+145,Table6[[#This Row],[Dekdatum]]+145) -> 2019-02-27 | G5: =Table6[[#This Row],[Verwachte aflamdatum]]-25 -> 2019-02-02 | H5: 2019-02-25 | I5: =Table6[[#This Row],[Aflamdatum]]-Table6[[#This Row],[Dekdatum]] -> 143
A6: =Opzoek_ooi[[#This Row],[Ooinummer]] -> BE677340126 | B6: 2018-10-05 | C6: BE79560447 | E6: BE79560447 | F6: =IF(Table6[[#This Row],[Herdekdatum]]>Table6[[#This Row],[Dekdatum]],Table6[[#This Row],[Herdekdatum]]+145,Table6[[#This Row],[Dekdatum]]+145) -> 2019-02-27 | G6: =Table6[[#This Row],[Verwachte aflamdatum]]-25 -> 2019-02-02 | H6: 2019-03-12 | I6: =Table6[[#This Row],[Aflamdatum]]-Table6[[#This Row],[Dekdatum]] -> 158
A7: =Opzoek_ooi[[#This Row],[Ooinummer]] -> BE577340068 | B7: 2018-10-06 | C7: BE79560447 | E7: BE79560447 | F7: =IF(Table6[[#This Row],[Herdekdatum]]>Table6[[#This Row],[Dekdatum]],Table6[[#This Row],[Herdekdatum]]+145,Table6[[#This Row],[Dekdatum]]+145) -> 2019-02-28 | G7: =Table6[[#This Row],[Verwachte aflamdatum]]-25 -> 2019-02-03 | H7: 2019-02-26 | I7: =Table6[[#This Row],[Aflamdatum]]-Table6[[#This Row],[Dekdatum]] -> 143
A8: =Opzoek_ooi[[#This Row],[Ooinummer]] -> BE977340164 | B8: 2018-10-07 | C8: BE79560447 | E8: BE79560447 | F8: =IF(Table6[[#This Row],[Herdekdatum]]>Table6[[#This Row],[Dekdatum]],Table6[[#This Row],[Herdekdatum]]+145,Table6[[#This Row],[Dekdatum]]+145) -> 2019-03-01 | G8: =Table6[[#This Row],[Verwachte aflamdatum]]-25 -> 2019-02-04 | H8: 2019-02-28 | I8: =Table6[[#This Row],[Aflamdatum]]-Table6[[#This Row],[Dekdatum]] -> 144
A9: =Opzoek_ooi[[#This Row],[Ooinummer]] -> BE077340163 | B9: 2018-10-10 | C9: BE79560447 | E9: BE79560447 | F9: =IF(Table6[[#This Row],[Herdekdatum]]>Table6[[#This Row],[Dekdatum]],Table6[[#This Row],[Herdekdatum]]+145,Table6[[#This Row],[Dekdatum]]+145) -> 2019-03-04 | G9: =Table6[[#This Row],[Verwachte aflamdatum]]-25 -> 2019-02-07 | H9: 2019-03-02 | I9: =Table6[[#This Row],[Aflamdatum]]-Table6[[#This Row],[Dekdatum]] -> 143
A10: =Opzoek_ooi[[#This Row],[Ooinummer]] -> BE119886429 | B10: 2018-10-11 | C10: BE277340193 | E10: BE79560447 | F10: =IF(Table6[[#This Row],[Herdekdatum]]>Table6[[#This Row],[Dekdatum]],Table6[[#This Row],[Herdekdatum]]+145,Table6[[#This Row],[Dekdatum]]+145) -> 2019-03-05 | G10: =Table6[[#This Row],[Verwachte aflamdatum]]-25 -> 2019-02-08 | H10: 2019-03-01 | I10: =Table6[[#This Row],[Aflamdatum]]-Table6[[#This Row],[Dekdatum]] -> 141
A11: =Opzoek_ooi[[#This Row],[Ooinummer]] -> BE276710026 | B11: 2018-10-11 | C11: BE277340193 | E11: BE79560447 | F11: =IF(Table6[[#This Row],[Herdekdatum]]>Table6[[#This Row],[Dekdatum]],Table6[[#This Row],[Herdekdatum]]+145,Table6[[#This Row],[Dekdatum]]+145) -> 2019-03-05 | G11: =Table6[[#This Row],[Verwachte aflamdatum]]-25 -> 2019-02-08 | H11: 2019-03-07 | I11: =Table6[[#This Row],[Aflamdatum]]-Table6[[#This Row],[Dekdatum]] -> 147
A12: =Opzoek_ooi[[#This Row],[Ooinummer]] -> BE977340083 | B12: 2018-10-14 | C12: BE79560447 | E12: BE79560447 | F12: =IF(Table6[[#This Row],[Herdekdatum]]>Table6[[#This Row],[Dekdatum]],Table6[[#This Row],[Herdekdatum]]+145,Table6[[#This Row],[Dekdatum]]+145) -> 2019-03-08 | G12: =Table6[[#This Row],[Verwachte aflamdatum]]-25 -> 2019-02-11 | H12: 2019-03-10 | I12: =Table6[[#This Row],[Aflamdatum]]-Table6[[#This Row],[Dekdatum]] -> 147
A13: =Opzoek_ooi[[#This Row],[Ooinummer]] -> BE919886425 | B13: 2018-10-15 | C13: BE277340193 | E13: BE79560447 | F13: =IF(Table6[[#This Row],[Herdekdatum]]>Table6[[#This Row],[Dekdatum]],Table6[[#This Row],[Herdekdatum]]+145,Table6[[#This Row],[Dekdatum]]+145) -> 2019-03-09 | G13: =Table6[[#This Row],[Verwachte aflamdatum]]-25 -> 2019-02-12 | H13: 2019-03-07 | I13: =Table6[[#This Row],[Aflamdatum]]-Table6[[#This Row],[Dekdatum]] -> 143
A14: =Opzoek_ooi[[#This Row],[Ooinummer]] -> BE519886430 | B14: 2018-10-15 | C14: BE277340193 | E14: BE79560447 | F14: =IF(Table6[[#This Row],[Herdekdatum]]>Table6[[#This Row],[Dekdatum]],Table6[[#This Row],[Herdekdatum]]+145,Table6[[#This Row],[Dekdatum]]+145) -> 2019-03-09 | G14: =Table6[[#This Row],[Verwachte aflamdatum]]-25 -> 2019-02-12 | H14: 2019-03-05 | I14: =Table6[[#This Row],[Aflamdatum]]-Table6[[#This Row],[Dekdatum]] -> 141
A15: =Opzoek_ooi[[#This Row],[Ooinummer]] -> BE719886426 | B15: 2018-10-16 | C15: BE277340193 | E15: BE79560447 | F15: =IF(Table6[[#This Row],[Herdekdatum]]>Table6[[#This Row],[Dekdatum]],Table6[[#This Row],[Herdekdatum]]+145,Table6[[#This Row],[Dekdatum]]+145) -> 2019-03-10 | G15: =Table6[[#This Row],[Verwachte aflamdatum]]-25 -> 2019-02-13 | H15: 2019-03-15 | I15: =Table6[[#This Row],[Aflamdatum]]-Table6[[#This Row],[Dekdatum]] -> 150
A16: =Opzoek_ooi[[#This Row],[Ooinummer]] -> BE777340165 | B16: 2018-10-16 | C16: BE79560447 | E16: BE79560447 | F16: =IF(Table6[[#This Row],[Herdekdatum]]>Table6[[#This Row],[Dekdatum]],Table6[[#This Row],[Herdekdatum]]+145,Table6[[#This Row],[Dekdatum]]+145) -> 2019-03-10 | G16: =Table6[[#This Row],[Verwachte aflamdatum]]-25 -> 2019-02-13 | H16: 2019-03-07 | I16: =Table6[[#This Row],[Aflamdatum]]-Table6[[#This Row],[Dekdatum]] -> 142
A17: =Opzoek_ooi[[#This Row],[Ooinummer]] -> BE227620120 | B17: 2018-10-17 | C17: BE277340193 | E17: BE79560447 | F17: =IF(Table6[[#This Row],[Herdekdatum]]>Table6[[#This Row],[Dekdatum]],Table6[[#This Row],[Herdekdatum]]+145,Table6[[#This Row],[Dekdatum]]+145) -> 2019-03-11 | G17: =Table6[[#This Row],[Verwachte aflamdatum]]-25 -> 2019-02-14 | H17: 2019-03-12 | I17: =Table6[[#This Row],[Aflamdatum]]-Table6[[#This Row],[Dekdatum]] -> 146
A18: =Opzoek_ooi[[#This Row],[Ooinummer]] -> BE277340095 | B18: 2018-10-19 | C18: BE79560447 | E18: BE79560447 | F18: =IF(Table6[[#This Row],[Herdekdatum]]>Table6[[#This Row],[Dekdatum]],Table6[[#This Row],[Herdekdatum]]+145,Table6[[#This Row],[Dekdatum]]+145) -> 2019-03-13 | G18: =Table6[[#This Row],[Verwachte aflamdatum]]-25 -> 2019-02-16 | H18: 2019-03-17 | I18: =Table6[[#This Row],[Aflamdatum]]-Table6[[#This Row],[Dekdatum]] -> 149
A19: =Opzoek_ooi[[#This Row],[Ooinummer]] -> BE277340162 | B19: 2018-10-19 | C19: BE79560447 | D19: 2019-01-24 | E19: BE79560447 | F19: =IF(Table6[[#This Row],[Herdekdatum]]>Table6[[#This Row],[Dekdatum]],Table6[[#This Row],[Herdekdatum]]+145,Table6[[#This Row],[Dekdatum]]+145) -> 2019-06-18 | G19: =Table6[[#This Row],[Verwachte aflamdatum]]-25 -> 2019-05-24 | H19: 2019-05-21 | I19: =Table6[[#This Row],[Aflamdatum]]-Table6[[#This Row],[Dekdatum]] -> 214
A20: =Opzoek_ooi[[#This Row],[Ooinummer]] -> BE876710023 | B20: 2018-10-20 | C20: BE277340193 | E20: BE79560447 | F20: =IF(Table6[[#This Row],[Herdekdatum]]>Table6[[#This Row],[Dekdatum]],Table6[[#This Row],[Herdekdatum]]+145,Table6[[#This Row],[Dekdatum]]+145) -> 2019-03-14 | G20: =Table6[[#This Row],[Verwachte aflamdatum]]-25 -> 2019-02-17 | H20: 2019-03-16 | I20: =Table6[[#This Row],[Aflamdatum]]-Table6[[#This Row],[Dekdatum]] -> 147
A21: =Opzoek_ooi[[#This Row],[Ooinummer]] -> BE477340161 | B21: 2018-10-22 | C21: BE79560447 | E21: BE79560447 | F21: =IF(Table6[[#This Row],[Herdekdatum]]>Table6[[#This Row],[Dekdatum]],Table6[[#This Row],[Herdekdatum]]+145,Table6[[#This Row],[Dekdatum]]+145) -> 2019-03-16 | G21: =Table6[[#This Row],[Verwachte aflamdatum]]-25 -> 2019-02-19 | H21: 2019-03-16 | I21: =Table6[[#This Row],[Aflamdatum]]-Table6[[#This Row],[Dekdatum]] -> 145
A22: =Opzoek_ooi[[#This Row],[Ooinummer]] -> BE577340135 | B22: 2018-10-23 | C22: BE79560447 | E22: BE79560447 | F22: =IF(Table6[[#This Row],[Herdekdatum]]>Table6[[#This Row],[Dekdatum]],Table6[[#This Row],[Herdekdatum]]+145,Table6[[#This Row],[Dekdatum]]+145) -> 2019-03-17 | G22: =Table6[[#This Row],[Verwachte aflamdatum]]-25 -> 2019-02-20 | H22: 2019-03-27 | I22: =Table6[[#This Row],[Aflamdatum]]-Table6[[#This Row],[Dekdatum]] -> 155
A23: =Opzoek_ooi[[#This Row],[Ooinummer]] -> BE176710022 | B23: 2018-10-25 | C23: BE277340193 | E23: BE79560447 | F23: =IF(Table6[[#This Row],[Herdekdatum]]>Table6[[#This Row],[Dekdatum]],Table6[[#This Row],[Herdekdatum]]+145,Table6[[#This Row],[Dekdatum]]+145) -> 2019-03-19 | G23: =Table6[[#This Row],[Verwachte aflamdatum]]-25 -> 2019-02-22 | H23: 2019-03-22 | I23: =Table6[[#This Row],[Aflamdatum]]-Table6[[#This Row],[Dekdatum]] -> 148
A24: =Opzoek_ooi[[#This Row],[Ooinummer]] -> BE120 | B24: 2018-10-25 | C24: BE277340193 | E24: BE79560447 | F24: =IF(Table6[[#This Row],[Herdekdatum]]>Table6[[#This Row],[Dekdatum]],Table6[[#This Row],[Herdekdatum]]+145,Table6[[#This Row],[Dekdatum]]+145) -> 2019-03-19 | G24: =Table6[[#This Row],[Verwachte aflamdatum]]-25 -> 2019-02-22 | H24: 2019-03-20 | I24: =Table6[[#This Row],[Aflamdatum]]-Table6[[#This Row],[Dekdatum]] -> 146
A25: =Opzoek_ooi[[#This Row],[Ooinummer]] -> BE377340167 | B25: 2018-10-25 | C25: BE277340193 | E25: BE79560447 | F25: =IF(Table6[[#This Row],[Herdekdatum]]>Table6[[#This Row],[Dekdatum]],Table6[[#This Row],[Herdekdatum]]+145,Table6[[#This Row],[Dekdatum]]+145) -> 2019-03-19 | G25: =Table6[[#This Row],[Verwachte aflamdatum]]-25 -> 2019-02-22 | H25: 2019-03-19 | I25: =Table6[[#This Row],[Aflamdatum]]-Table6[[#This Row],[Dekdatum]] -> 145
A26: =Opzoek_ooi[[#This Row],[Ooinummer]] -> BE477340175 | B26: 2018-10-25 | C26: BE79560447 | E26: BE79560447 | F26: =IF(Table6[[#This Row],[Herdekdatum]]>Table6[[#This Row],[Dekdatum]],Table6[[#This Row],[Herdekdatum]]+145,Table6[[#This Row],[Dekdatum]]+145) -> 2019-03-19 | G26: =Table6[[#This Row],[Verwachte aflamdatum]]-25 -> 2019-02-22 | H26: 2019-03-19 | I26: =Table6[[#This Row],[Aflamdatum]]-Table6[[#This Row],[Dekdatum]] -> 145
A27: =Opzoek_ooi[[#This Row],[Ooinummer]] -> BE577340166 | B27: 2018-10-26 | C27: BE277340193 | E27: BE79560447 | F27: =IF(Table6[[#This Row],[Herdekdatum]]>Table6[[#This Row],[Dekdatum]],Table6[[#This Row],[Herdekdatum]]+145,Table6[[#This Row],[Dekdatum]]+145) -> 2019-03-20 | G27: =Table6[[#This Row],[Verwachte aflamdatum]]-25 -> 2019-02-23 | H27: 2019-03-20 | I27: =Table6[[#This Row],[Aflamdatum]]-Table6[[#This Row],[Dekdatum]] -> 145
A28: =Opzoek_ooi[[#This Row],[Ooinummer]] -> BE177340138 | B28: 2018-11-01 | C28: BE79560447 | E28: BE79560447 | F28: =IF(Table6[[#This Row],[Herdekdatum]]>Table6[[#This Row],[Dekdatum]],Table6[[#This Row],[Herdekdatum]]+145,Table6[[#This Row],[Dekdatum]]+145) -> 2019-03-26 | G28: =Table6[[#This Row],[Verwachte aflamdatum]]-25 -> 2019-03-01 | H28: 2019-03-20 | I28: =Table6[[#This Row],[Aflamdatum]]-Table6[[#This Row],[Dekdatum]] -> 139

Sheet Registratie lammeren
A1: Ooi | B1: Werp-datum | C1: Lam-nummer | D1: geslacht | E1: Ras | F1: geboorte-gewicht | G1: Opfok met kunstmelk | H1: Dood in geboorte | I1: Dood na geboorte | J1: Speen-datum | K1: Speen-gewicht | L1: groei tot spenen (g/dag) | M1: Verkoop-datum | N1: Verkoop-gewicht | O1: groei tot verkoop (g/dag) | P1: Verkoop-prijs | Q1: Opmerkingen
A2: BE127620113 | B2: 2019-02-25 | C2: 222 | D2: R | E2: VL/FT | F2: 4 | J2: 2019-07-31 | K2: 55 | L2: =IF(lammering[[#This Row],[Speen-gewicht]]="","",Berekeningen!J2*1000) -> 326.9230769 | M2: 2019-08-09 | N2: 50 | O2: =IF(lammering[[#This Row],[Verkoop-gewicht]]="","",Berekeningen!L2*1000) -> 278.7878788
A3: BE577340068 | B3: 2019-02-26 | C3: 210 | D3: R | E3: VL/VL | F3: 2.4 | J3: 2019-07-31 | K3: 39 | L3: =IF(lammering[[#This Row],[Speen-gewicht]]="","",Berekeningen!J3*1000) -> 236.1290323 | M3: 2019-08-09 | N3: 45 | O3: =IF(lammering[[#This Row],[Verkoop-gewicht]]="","",Berekeningen!L3*1000) -> 259.7560976
A4: BE577340068 | B4: 2019-02-26 | C4: GESTOLEN | D4: O | E4: VL/VL | F4: 3 | L4: =IF(lammering[[#This Row],[Speen-gewicht]]="","",Berekeningen!J4*1000) ->  | O4: =IF(lammering[[#This Row],[Verkoop-gewicht]]="","",Berekeningen!L4*1000) -> 
A5: BE577340068 | B5: 2019-02-26 | D5: R | E5: VL/VL | F5: 2.5 | H5: Ja | L5: =IF(lammering[[#This Row],[Speen-gewicht]]="","",Berekeningen!J5*1000) ->  | O5: =IF(lammering[[#This Row],[Verkoop-gewicht]]="","",Berekeningen!L5*1000) -> 
A6: BE977340164 | B6: 2019-02-28 | C6: 209 | D6: O | E6: VL/VL | F6: 2.2 | J6: 2019-07-31 | K6: 39 | L6: =IF(lammering[[#This Row],[Speen-gewicht]]="","",Berekeningen!J6*1000) -> 240.5228758 | M6: 2019-07-31 | N6: 39 | O6: =IF(lammering[[#This Row],[Verkoop-gewicht]]="","",Berekeningen!L6*1000) -> 240.5228758 | P6: 100
A7: BE977340164 | B7: 2019-02-28 | C7: 208 | D7: O | E7: VL/VL | F7: 3 | J7: 2019-07-31 | K7: 40 | L7: =IF(lammering[[#This Row],[Speen-gewicht]]="","",Berekeningen!J7*1000) -> 241.8300654 | M7: 2019-07-31 | N7: 40 | O7: =IF(lammering[[#This Row],[Verkoop-gewicht]]="","",Berekeningen!L7*1000) -> 241.8300654 | P7: 100
A8: BE077340163 | B8: 2019-03-02 | C8: 203 | D8: O | E8: VL/VL | F8: 3.4 | J8: 2019-07-27 | K8: 42 | L8: =IF(lammering[[#This Row],[Speen-gewicht]]="","",Berekeningen!J8*1000) -> 262.585034 | O8: =IF(lammering[[#This Row],[Verkoop-gewicht]]="","",Berekeningen!L8*1000) -> 
A9: BE077340163 | B9: 2019-03-02 | C9: 213 | D9: O | E9: VL/VL | F9: 2.6 | J9: 2019-07-27 | K9: 41 | L9: =IF(lammering[[#This Row],[Speen-gewicht]]="","",Berekeningen!J9*1000) -> 261.2244898 | O9: =IF(lammering[[#This Row],[Verkoop-gewicht]]="","",Berekeningen!L9*1000) -> 
A10: BE077340163 | B10: 2019-03-02 | C10: 94 | D10: R | E10: VL/VL | F10: 3 | J10: 2019-07-27 | K10: 48 | L10: =IF(lammering[[#This Row],[Speen-gewicht]]="","",Berekeningen!J10*1000) -> 306.122449 | M10: 2019-07-27 | N10: 48 | O10: =IF(lammering[[#This Row],[Verkoop-gewicht]]="","",Berekeningen!L10*1000) -> 306.122449
A11: BE519886430 | B11: 2019-03-05 | C11: 239 | D11: O | E11: ZB/FT | F11: 4.8 | J11: 2019-08-09 | K11: 55 | L11: =IF(lammering[[#This Row],[Speen-gewicht]]="","",Berekeningen!J11*1000) -> 319.7452229 | O11: =IF(lammering[[#This Row],[Verkoop-gewicht]]="","",Berekeningen!L11*1000) -> 
A12: BE519886430 | B12: 2019-03-05 | C12: 236 | D12: R | E12: ZB/FT | F12: 4 | J12: 2019-08-09 | K12: 45 | L12: =IF(lammering[[#This Row],[Speen-gewicht]]="","",Berekeningen!J12*1000) -> 261.1464968 | O12: =IF(lammering[[#This Row],[Verkoop-gewicht]]="","",Berekeningen!L12*1000) -> 
A13: BE119886429 | B13: 2019-03-07 | C13: 227 | D13: O | E13: ZB/FT | F13: 2.9 | J13: 2019-07-31 | K13: 37 | L13: =IF(lammering[[#This Row],[Speen-gewicht]]="","",Berekeningen!J13*1000) -> 233.5616438 | M13: 2019-07-31 | N13: 37 | O13: =IF(lammering[[#This Row],[Verkoop-gewicht]]="","",Berekeningen!L13*1000) -> 233.5616438 | P13: 80
A14: BE119886429 | B14: 2019-03-07 | C14: 225 | D14: R | E14: ZB/FT | F14: 3.5 | J14: 2019-07-31 | K14: 43 | L14: =IF(lammering[[#This Row],[Speen-gewicht]]="","",Berekeningen!J14*1000) -> 270.5479452 | M14: 2019-07-31 | N14: 43 | O14: =IF(lammering[[#This Row],[Verkoop-gewicht]]="","",Berekeningen!L14*1000) -> 270.5479452 | P14: 80
A15: BE119886429 | B15: 2019-03-07 | C15: 90 | D15: R | E15: ZB/FT | F15: 4.2 | J15: 2019-07-27 | K15: 52 | L15: =IF(lammering[[#This Row],[Speen-gewicht]]="","",Berekeningen!J15*1000) -> 336.6197183 | M15: 2019-07-27 | N15: 52 | O15: =IF(lammering[[#This Row],[Verkoop-gewicht]]="","",Berekeningen!L15*1000) -> 336.6197183
A16: BE276710026 | B16: 2019-03-07 | C16: 27 | D16: O | E16: VL/FT | F16: 4 | J16: 2019-07-27 | K16: 46 | L16: =IF(lammering[[#This Row],[Speen-gewicht]]="","",Berekeningen!J16*1000) -> 295.7746479 | O16: =IF(lammering[[#This Row],[Verkoop-gewicht]]="","",Berekeningen!L16*1000) -> 
A17: BE276710026 | B17: 2019-03-07 | C17: GESTOLEN | D17: O | E17: VL/FT | F17: 3.9 | L17: =IF(lammering[[#This Row],[Speen-gewicht]]="","",Berekeningen!J17*1000) ->  | O17: =IF(lammering[[#This Row],[Verkoop-gewicht]]="","",Berekeningen!L17*1000) -> 
A18: BE919886425 | B18: 2019-03-07 | C18: 238 | D18: O | E18: ZB/FT | F18: 4 | J18: 2019-08-09 | K18: 56 | L18: =IF(lammering[[#This Row],[Speen-gewicht]]="","",Berekeningen!J18*1000) -> 335.483871 | O18: =IF(lammering[[#This Row],[Verkoop-gewicht]]="","",Berekeningen!L18*1000) -> 
A19: BE919886425 | B19: 2019-03-07 | C19: 237 | D19: R | E19: ZB/FT | F19: 3 | J19: 2019-08-09 | K19: 63 | L19: =IF(lammering[[#This Row],[Speen-gewicht]]="","",Berekeningen!J19*1000) -> 387.0967742 | M19: 2019-08-09 | N19: 63 | O19: =IF(lammering[[#This Row],[Verkoop-gewicht]]="","",Berekeningen!L19*1000) -> 387.0967742
A20: BE919886425 | B20: 2019-03-07 | D20: R | E20: ZB/FT | F20: 3 | H20: Ja | L20: =IF(lammering[[#This Row],[Speen-gewicht]]="","",Berekeningen!J20*1000) ->  | O20: =IF(lammering[[#This Row],[Verkoop-gewicht]]="","",Berekeningen!L20*1000) -> 
A21: BE777340165 | B21: 2019-03-07 | D21: O | E21: VL/VL | F21: 2.8 | I21: Ja | L21: =IF(lammering[[#This Row],[Speen-gewicht]]="","",Berekeningen!J21*1000) ->  | O21: =IF(lammering[[#This Row],[Verkoop-gewicht]]="","",Berekeningen!L21*1000) -> 
A22: BE777340165 | B22: 2019-03-07 | C22: 220 | D22: R | E22: VL/VL | F22: 2.5 | J22: 2019-07-31 | K22: 44 | L22: =IF(lammering[[#This Row],[Speen-gewicht]]="","",Berekeningen!J22*1000) -> 284.2465753 | M22: 2019-07-31 | N22: 44 | O22: =IF(lammering[[#This Row],[Verkoop-gewicht]]="","",Berekeningen!L22*1000) -> 284.2465753 | P22: 80
A23: BE977340083 | B23: 2019-03-10 | C23: 218 | D23: O | E23: VL/VL | F23: 5 | J23: 2019-07-31 | K23: 50 | L23: =IF(lammering[[#This Row],[Speen-gewicht]]="","",Berekeningen!J23*1000) -> 314.6853147 | M23: 2019-07-31 | N23: 50 | O23: =IF(lammering[[#This Row],[Verkoop-gewicht]]="","",Berekeningen!L23*1000) -> 314.6853147 | P23: 100
A24: BE677340126 | B24: 2019-03-12 | C24: 215 | D24: O | E24: VL/VL | F24: 2.9 | J24: 2019-07-27 | K24: 43 | L24: =IF(lammering[[#This Row],[Speen-gewicht]]="","",Berekeningen!J24*1000) -> 292.7007299 | O24: =IF(lammering[[#This Row],[Verkoop-gewicht]]="","",Berekeningen!L24*1000) -> 
A25: BE677340126 | B25: 2019-03-12 | C25: 205 | D25: O | E25: VL/VL | F25: 3.2 | J25: 2019-07-27 | K25: 44 | L25: =IF(lammering[[#This Row],[Speen-gewicht]]="","",Berekeningen!J25*1000) -> 297.810219 | O25: =IF(lammering[[#This Row],[Verkoop-gewicht]]="","",Berekeningen!L25*1000) -> 
A26: BE677340126 | B26: 2019-03-12 | C26: 201 | D26: R | E26: VL/VL | F26: 2.6 | J26: 2019-07-27 | K26: 54 | L26: =IF(lammering[[#This Row],[Speen-gewicht]]="","",Berekeningen!J26*1000) -> 375.1824818 | M26: 2019-08-09 | N26: 53 | O26: =IF(lammering[[#This Row],[Verkoop-gewicht]]="","",Berekeningen!L26*1000) -> 336
A27: BE227620120 | B27: 2019-03-12 | C27: 229 | D27: O | E27: VL/FT | F27: 4 | J27: 2019-07-31 | K27: 38 | L27: =IF(lammering[[#This Row],[Speen-gewicht]]="","",Berekeningen!J27*1000) -> 241.1347518 | M27: 2019-07-31 | N27: 38 | O27: =IF(lammering[[#This Row],[Verkoop-gewicht]]="","",Berekeningen!L27*1000) -> 241.1347518 | P27: 100
A28: BE227620120 | B28: 2019-03-12 | C28: 234 | D28: O | E28: VL/FT | F28: 5 | G28: Ja | J28: 2019-07-31 | K28: 46 | L28: =IF(lammering[[#This Row],[Speen-gewicht]]="","",Berekeningen!J28*1000) -> 290.7801418 | M28: 2019-07-31 | N28: 46 | O28: =IF(lammering[[#This Row],[Verkoop-gewicht]]="","",Berekeningen!L28*1000) -> 290.7801418 | P28: 80
A29: BE227620120 | B29: 2019-03-12 | C29: 230 | D29: R | E29: VL/FT | F29: 4.6 | G29: Ja | J29: 2019-07-31 | K29: 42 | L29: =IF(lammering[[#This Row],[Speen-gewicht]]="","",Berekeningen!J29*1000) -> 265.248227 | M29: 2019-07-31 | N29: 42 | O29: =IF(lammering[[#This Row],[Verkoop-gewicht]]="","",Berekeningen!L29*1000) -> 265.248227 | P29: 80
A30: BE127620112 | B30: 2019-03-14 | C30: GESTOLEN | D30: O | E30: VL/FT | F30: 4.8 | L30: =IF(lammering[[#This Row],[Speen-gewicht]]="","",Berekeningen!J30*1000) ->  | O30: =IF(lammering[[#This Row],[Verkoop-gewicht]]="","",Berekeningen!L30*1000) -> 
A31: BE127620112 | B31: 2019-03-14 | C31: GESTOLEN | D31: R | E31: VL/FT | F31: 4.9 | L31: =IF(lammering[[#This Row],[Speen-gewicht]]="","",Berekeningen!J31*1000) ->  | O31: =IF(lammering[[#This Row],[Verkoop-gewicht]]="","",Berekeningen!L31*1000) -> 
A32: BE719886426 | B32: 2019-03-15 | C32: 199 | D32: R | E32: ZB/FT | F32: 1.8 | J32: 2019-07-31 | K32: 48 | L32: =IF(lammering[[#This Row],[Speen-gewicht]]="","",Berekeningen!J32*1000) -> 334.7826087 | M32: 2019-07-31 | N32: 48 | O32: =IF(lammering[[#This Row],[Verkoop-gewicht]]="","",Berekeningen!L32*1000) -> 334.7826087 | P32: 80
A33: BE719886426 | B33: 2019-03-15 | C33: 212 | D33: R | E33: ZB/FT | F33: 2 | J33: 2019-07-31 | K33: 46 | L33: =IF(lammering[[#This Row],[Speen-gewicht]]="","",Berekeningen!J33*1000) -> 318.8405797 | M33: 2019-07-31 | N33: 46 | O33: =IF(lammering[[#This Row],[Verkoop-gewicht]]="","",Berekeningen!L33*1000) -> 318.8405797 | P33: 80
A34: BE719886426 | B34: 2019-03-15 | C34: 211 | D34: R | E34: ZB/FT | F34: 3.5 | J34: 2019-07-31 | K34: 57 | L34: =IF(lammering[[#This Row],[Speen-gewicht]]="","",Berekeningen!J34*1000) -> 387.6811594 | M34: 2019-07-31 | N34: 57 | O34: =IF(lammering[[#This Row],[Verkoop-gewicht]]="","",Berekeningen!L34*1000) -> 387.6811594 | P34: 80
A35: BE876710023 | B35: 2019-03-16 | C35: 221 | D35: R | E35: ZB/FT | F35: 6.5 | J35: 2019-07-31 | K35: 56 | L35: =IF(lammering[[#This Row],[Speen-gewicht]]="","",Berekeningen!J35*1000) -> 361.3138686 | M35: 2019-08-09 | N35: 55 | O35: =IF(lammering[[#This Row],[Verkoop-gewicht]]="","",Berekeningen!L35*1000) -> 332.1917808
A36: BE477340161 | B36: 2019-03-16 | C36: 207 | D36: O | E36: VL/VL | F36: 3.8 | J36: 2019-07-27 | K36: 40 | L36: =IF(lammering[[#This Row],[Speen-gewicht]]="","",Berekeningen!J36*1000) -> 272.1804511 | O36: =IF(lammering[[#This Row],[Verkoop-gewicht]]="","",Berekeningen!L36*1000) -> 
A37: BE477340161 | B37: 2019-03-16 | C37: 85 | D37: R | E37: VL/VL | F37: 3.8 | J37: 2019-07-27 | K37: 45 | L37: =IF(lammering[[#This Row],[Speen-gewicht]]="","",Berekeningen!J37*1000) -> 309.7744361 | M37: 2019-07-27 | N37: 45 | O37: =IF(lammering[[#This Row],[Verkoop-gewicht]]="","",Berekeningen!L37*1000) -> 309.7744361
A38: BE527620141 | B38: 2019-03-16 | C38: 233 | D38: O | E38: VL/FT | F38: 3.9 | J38: 2019-07-31 | K38: 34 | L38: =IF(lammering[[#This Row],[Speen-gewicht]]="","",Berekeningen!J38*1000) -> 219.7080292 | M38: 2019-07-31 | N38: 34 | O38: =IF(lammering[[#This Row],[Verkoop-gewicht]]="","",Berekeningen!L38*1000) -> 219.7080292 | P38: 80
A39: BE527620141 | B39: 2019-03-16 | C39: 232 | D39: O | E39: VL/FT | F39: 4.9 | J39: 2019-07-31 | K39: 48 | L39: =IF(lammering[[#This Row],[Speen-gewicht]]="","",Berekeningen!J39*1000) -> 314.5985401 | M39: 2019-07-31 | N39: 48 | O39: =IF(lammering[[#This Row],[Verkoop-gewicht]]="","",Berekeningen!L39*1000) -> 314.5985401 | P39: 80
A40: BE277340095 | B40: 2019-03-17 | C40: 223 | D40: R | E40: VL/FT | F40: 4.3 | J40: 2019-07-31 | K40: 51 | L40: =IF(lammering[[#This Row],[Speen-gewicht]]="","",Berekeningen!J40*1000) -> 343.3823529 | M40: 2019-08-09 | N40: 51 | O40: =IF(lammering[[#This Row],[Verkoop-gewicht]]="","",Berekeningen!L40*1000) -> 322.0689655
A41: BE277340095 | B41: 2019-03-17 | D41: R | E41: VL/VL | F41: 2.8 | H41: Ja | L41: =IF(lammering[[#This Row],[Speen-gewicht]]="","",Berekeningen!J41*1000) ->  | O41: =IF(lammering[[#This Row],[Verkoop-gewicht]]="","",Berekeningen!L41*1000) -> 
A42: BE277340095 | B42: 2019-03-17 | D42: O | E42: VL/VL | F42: 3.8 | H42: Ja | L42: =IF(lammering[[#This Row],[Speen-gewicht]]="","",Berekeningen!J42*1000) ->  | O42: =IF(lammering[[#This Row],[Verkoop-gewicht]]="","",Berekeningen!L42*1000) -> 
A43: BE377340167 | B43: 2019-03-19 | C43: 244 | D43: O | E43: VL/FT | F43: 4.5 | J43: 2019-08-09 | K43: 35 | L43: =IF(lammering[[#This Row],[Speen-gewicht]]="","",Berekeningen!J43*1000) -> 213.2867133 | O43: =IF(lammering[[#This Row],[Verkoop-gewicht]]="","",Berekeningen!L43*1000) -> 
A44: BE377340167 | B44: 2019-03-19 | C44: 243 | D44: O | E44: VL/FT | F44: 4.7 | J44: 2019-08-09 | K44: 49 | L44: =IF(lammering[[#This Row],[Speen-gewicht]]="","",Berekeningen!J44*1000) -> 309.7902098 | O44: =IF(lammering[[#This Row],[Verkoop-gewicht]]="","",Berekeningen!L44*1000) -> 
A45: BE377340167 | B45: 2019-03-19 | D45: R | E45: VL/FT | F45: 4.2 | H45: Ja | L45: =IF(lammering[[#This Row],[Speen-gewicht]]="","",Berekeningen!J45*1000) ->  | O45: =IF(lammering[[#This Row],[Verkoop-gewicht]]="","",Berekeningen!L45*1000) -> 
A46: BE477340175 | B46: 2019-03-19 | C46: GESTOLEN | D46: O | E46: VL/VL | F46: 2.4 | L46: =IF(lammering[[#This Row],[Speen-gewicht]]="","",Berekeningen!J46*1000) ->  | O46: =IF(lammering[[#This Row],[Verkoop-gewicht]]="","",Berekeningen!L46*1000) -> 
A47: BE477340175 | B47: 2019-03-19 | C47: 206 | D47: R | E47: VL/VL | F47: 3 | J47: 2019-07-31 | K47: 38 | L47: =IF(lammering[[#This Row],[Speen-gewicht]]="","",Berekeningen!J47*1000) -> 261.1940299 | M47: 2019-07-31 | N47: 38 | O47: =IF(lammering[[#This Row],[Verkoop-gewicht]]="","",Berekeningen!L47*1000) -> 261.1940299 | P47: 80
A48: BE577340166 | B48: 2019-03-20 | C48: 242 | D48: O | E48: VL/FT | F48: 4.1 | J48: 2019-08-09 | K48: 49 | L48: =IF(lammering[[#This Row],[Speen-gewicht]]="","",Berekeningen!J48*1000) -> 316.1971831 | O48: =IF(lammering[[#This Row],[Verkoop-gewicht]]="","",Berekeningen!L48*1000) -> 
A49: BE577340166 | B49: 2019-03-20 | C49: 235 | D49: R | E49: VL/FT | F49: 5 | J49: 2019-08-09 | K49: 61 | L49: =IF(lammering[[#This Row],[Speen-gewicht]]="","",Berekeningen!J49*1000) -> 394.3661972 | O49: =IF(lammering[[#This Row],[Verkoop-gewicht]]="","",Berekeningen!L49*1000) -> 
A50: BE177340138 | B50: 2019-03-20 | C50: 200 | D50: O | E50: VL/VL | F50: 2.1 | J50: 2019-07-27 | K50: 36 | L50: =IF(lammering[[#This Row],[Speen-gewicht]]="","",Berekeningen!J50*1000) -> 262.7906977 | O50: =IF(lammering[[#This Row],[Verkoop-gewicht]]="","",Berekeningen!L50*1000) -> 
A51: BE177340138 | B51: 2019-03-20 | C51: 204 | D51: O | E51: VL/VL | F51: 2.9 | J51: 2019-07-31 | K51: 38 | L51: =IF(lammering[[#This Row],[Speen-gewicht]]="","",Berekeningen!J51*1000) -> 263.9097744 | M51: 2019-07-31 | N51: 38 | O51: =IF(lammering[[#This Row],[Verkoop-gewicht]]="","",Berekeningen!L51*1000) -> 263.9097744 | P51: 100
A52: BE177340138 | B52: 2019-03-20 | C52: 202 | D52: O | E52: VL/VL | F52: 2.8 | J52: 2019-07-31 | K52: 36 | L52: =IF(lammering[[#This Row],[Speen-gewicht]]="","",Berekeningen!J52*1000) -> 249.6240602 | M52: 2019-07-31 | N52: 36 | O52: =IF(lammering[[#This Row],[Verkoop-gewicht]]="","",Berekeningen!L52*1000) -> 249.6240602 | P52: 90
A53: BE177340138 | B53: 2019-03-20 | C53: 197 | D53: R | E53: VL/VL | F53: 3.1 | J53: 2019-07-27 | K53: 36 | L53: =IF(lammering[[#This Row],[Speen-gewicht]]="","",Berekeningen!J53*1000) -> 255.0387597 | O53: =IF(lammering[[#This Row],[Verkoop-gewicht]]="","",Berekeningen!L53*1000) -> 
A54: BE120 | B54: 2019-03-20 | C54: 226 | D54: O | E54: ZB/FT | F54: 3.8 | J54: 2019-07-31 | K54: 30 | L54: =IF(lammering[[#This Row],[Speen-gewicht]]="","",Berekeningen!J54*1000) -> 196.9924812 | M54: 2019-07-31 | N54: 30 | O54: =IF(lammering[[#This Row],[Verkoop-gewicht]]="","",Berekeningen!L54*1000) -> 196.9924812 | P54: 70
A55: BE120 | B55: 2019-03-20 | C55: 228 | D55: O | E55: ZB/FT | F55: 5 | J55: 2019-07-31 | K55: 45 | L55: =IF(lammering[[#This Row],[Speen-gewicht]]="","",Berekeningen!J55*1000) -> 300.7518797 | M55: 2019-07-31 | N55: 45 | O55: =IF(lammering[[#This Row],[Verkoop-gewicht]]="","",Berekeningen!L55*1000) -> 300.7518797 | P55: 80
A56: BE120 | B56: 2019-03-20 | C56: 217 | D56: O | E56: ZB/FT | F56: 5.1 | J56: 2019-07-31 | K56: 32 | L56: =IF(lammering[[#This Row],[Speen-gewicht]]="","",Berekeningen!J56*1000) -> 202.2556391 | M56: 2019-07-31 | N56: 32 | O56: =IF(lammering[[#This Row],[Verkoop-gewicht]]="","",Berekeningen!L56*1000) -> 202.2556391 | P56: 70
A57: BE176710022 | B57: 2019-03-22 | C57: 214 | D57: O | E57: ZB/FT | F57: 1.8 | J57: 2019-07-31 | K57: 36 | L57: =IF(lammering[[#This Row],[Speen-gewicht]]="","",Berekeningen!J57*1000) -> 261.0687023 | M57: 2019-07-31 | N57: 36 | O57: =IF(lammering[[#This Row],[Verkoop-gewicht]]="","",Berekeningen!L57*1000) -> 261.0687023 | P57: 90
A58: BE176710022 | B58: 2019-03-22 | C58: 216 | D58: O | E58: VL/FT | F58: 3.6 | J58: 2019-07-31 | K58: 40 | L58: =IF(lammering[[#This Row],[Speen-gewicht]]="","",Berekeningen!J58*1000) -> 277.8625954 | M58: 2019-07-31 | N58: 40 | O58: =IF(lammering[[#This Row],[Verkoop-gewicht]]="","",Berekeningen!L58*1000) -> 277.8625954 | P58: 80
A59: BE176710022 | B59: 2019-03-22 | C59: 198 | D59: R | E59: VL/FT | F59: 4.6 | J59: 2019-07-31 | K59: 50 | L59: =IF(lammering[[#This Row],[Speen-gewicht]]="","",Berekeningen!J59*1000) -> 346.5648855 | M59: 2019-07-31 | N59: 50 | O59: =IF(lammering[[#This Row],[Verkoop-gewicht]]="","",Berekeningen!L59*1000) -> 346.5648855 | P59: 80
A60: BE577340135 | B60: 2019-03-27 | C60: 219 | D60: O | E60: VL/VL | F60: 3.9 | J60: 2019-07-31 | K60: 38 | L60: =IF(lammering[[#This Row],[Speen-gewicht]]="","",Berekeningen!J60*1000) -> 270.6349206 | M60: 2019-07-31 | N60: 38 | O60: =IF(lammering[[#This Row],[Verkoop-gewicht]]="","",Berekeningen!L60*1000) -> 270.6349206 | P60: 90
A61: BE577340135 | B61: 2019-03-27 | C61: 231 | D61: R | E61: VL/VL | F61: 3.2 | G61: Ja | J61: 2019-07-31 | K61: 31 | L61: =IF(lammering[[#This Row],[Speen-gewicht]]="","",Berekeningen!J61*1000) -> 220.6349206 | M61: 2019-07-31 | N61: 31 | O61: =IF(lammering[[#This Row],[Verkoop-gewicht]]="","",Berekeningen!L61*1000) -> 220.6349206 | P61: 70
A62: BE519886427 | B62: 2019-03-14 | C62: 241 | D62: O | E62: ZB/FT | F62: 3.1 | J62: 2019-08-09 | K62: 47 | L62: =IF(lammering[[#This Row],[Speen-gewicht]]="","",Berekeningen!J62*1000) -> 296.6216216 | O62: =IF(lammering[[#This Row],[Verkoop-gewicht]]="","",Berekeningen!L62*1000) -> 
A63: BE519886427 | B63: 2019-03-14 | C63: 240 | D63: O | E63: ZB/FT | F63: 5.1 | J63: 2019-08-09 | K63: 55 | L63: =IF(lammering[[#This Row],[Speen-gewicht]]="","",Berekeningen!J63*1000) -> 337.1621622 | O63: =IF(lammering[[#This Row],[Verkoop-gewicht]]="","",Berekeningen!L63*1000) -> 
A64: BE277340162 | B64: 2019-05-21 | C64: 224 | D64: R | E64: VL/FT | F64: 3 | J64: 2019-07-31 | K64: 32 | L64: =IF(lammering[[#This Row],[Speen-gewicht]]="","",Berekeningen!J64*1000) -> 408.4507042 | M64: 2019-07-31 | N64: 32 | O64: =IF(lammering[[#This Row],[Verkoop-gewicht]]="","",Berekeningen!L64*1000) -> 408.4507042 | P64: 70
L65: =IF(lammering[[#This Row],[Speen-gewicht]]="","",Berekeningen!J65*1000) ->  | O65: =IF(lammering[[#This Row],[Verkoop-gewicht]]="","",Berekeningen!L65*1000) -> 
L66: =IF(lammering[[#This Row],[Speen-gewicht]]="","",Berekeningen!J66*1000) ->  | O66: =IF(lammering[[#This Row],[Verkoop-gewicht]]="","",Berekeningen!L66*1000) -> 
L67: =IF(lammering[[#This Row],[Speen-gewicht]]="","",Berekeningen!J67*1000) ->  | O67: =IF(lammering[[#This Row],[Verkoop-gewicht]]="","",Berekeningen!L67*1000) -> 
L68: =IF(lammering[[#This Row],[Speen-gewicht]]="","",Berekeningen!J68*1000) ->  | O68: =IF(lammering[[#This Row],[Verkoop-gewicht]]="","",Berekeningen!L68*1000) -> 
L69: =IF(lammering[[#This Row],[Speen-gewicht]]="","",Berekeningen!J69*1000) ->  | O69: =IF(lammering[[#This Row],[Verkoop-gewicht]]="","",Berekeningen!L69*1000) -> 
L70: =IF(lammering[[#This Row],[Speen-gewicht]]="","",Berekeningen!J70*1000) ->  | O70: =IF(lammering[[#This Row],[Verkoop-gewicht]]="","",Berekeningen!L70*1000) -> 
L71: =IF(lammering[[#This Row],[Speen-gewicht]]="","",Berekeningen!J71*1000) ->  | O71: =IF(lammering[[#This Row],[Verkoop-gewicht]]="","",Berekeningen!L71*1000) -> 
L72: =IF(lammering[[#This Row],[Speen-gewicht]]="","",Berekeningen!J72*1000) ->  | O72: =IF(lammering[[#This Row],[Verkoop-gewicht]]="","",Berekeningen!L72*1000) -> 
L73: =IF(lammering[[#This Row],[Speen-gewicht]]="","",Berekeningen!J73*1000) ->  | O73: =IF(lammering[[#This Row],[Verkoop-gewicht]]="","",Berekeningen!L73*1000) -> 
L74: =IF(lammering[[#This Row],[Speen-gewicht]]="","",Berekeningen!J74*1000) ->  | O74: =IF(lammering[[#This Row],[Verkoop-gewicht]]="","",Berekeningen!L74*1000) -> 
L75: =IF(lammering[[#This Row],[Speen-gewicht]]="","",Berekeningen!J75*1000) ->  | O75: =IF(lammering[[#This Row],[Verkoop-gewicht]]="","",Berekeningen!L75*1000) -> 
L76: =IF(lammering[[#This Row],[Speen-gewicht]]="","",Berekeningen!J76*1000) ->  | O76: =IF(lammering[[#This Row],[Verkoop-gewicht]]="","",Berekeningen!L76*1000) -> 
L77: =IF(lammering[[#This Row],[Speen-gewicht]]="","",Berekeningen!J77*1000) ->  | O77: =IF(lammering[[#This Row],[Verkoop-gewicht]]="","",Berekeningen!L77*1000) -> 
L78: =IF(lammering[[#This Row],[Speen-gewicht]]="","",Berekeningen!J78*1000) ->  | O78: =IF(lammering[[#This Row],[Verkoop-gewicht]]="","",Berekeningen!L78*1000) -> 
L79: =IF(lammering[[#This Row],[Speen-gewicht]]="","",Berekeningen!J79*1000) ->  | O79: =IF(lammering[[#This Row],[Verkoop-gewicht]]="","",Berekeningen!L79*1000) -> 
L80: =IF(lammering[[#This Row],[Speen-gewicht]]="","",Berekeningen!J80*1000) ->  | O80: =IF(lammering[[#This Row],[Verkoop-gewicht]]="","",Berekeningen!L80*1000) -> 
L81: =IF(lammering[[#This Row],[Speen-gewicht]]="","",Berekeningen!J81*1000) ->  | O81: =IF(lammering[[#This Row],[Verkoop-gewicht]]="","",Berekeningen!L81*1000) -> 
L82: =IF(lammering[[#This Row],[Speen-gewicht]]="","",Berekeningen!J82*1000) ->  | O82: =IF(lammering[[#This Row],[Verkoop-gewicht]]="","",Berekeningen!L82*1000) -> 
L83: =IF(lammering[[#This Row],[Speen-gewicht]]="","",Berekeningen!J83*1000) ->  | O83: =IF(lammering[[#This Row],[Verkoop-gewicht]]="","",Berekeningen!L83*1000) -> 
L84: =IF(lammering[[#This Row],[Speen-gewicht]]="","",Berekeningen!J84*1000) ->  | O84: =IF(lammering[[#This Row],[Verkoop-gewicht]]="","",Berekeningen!L84*1000) -> 
L85: =IF(lammering[[#This Row],[Speen-gewicht]]="","",Berekeningen!J85*1000) ->  | O85: =IF(lammering[[#This Row],[Verkoop-gewicht]]="","",Berekeningen!L85*1000) -> 
L86: =IF(lammering[[#This Row],[Speen-gewicht]]="","",Berekeningen!J86*1000) ->  | O86: =IF(lammering[[#This Row],[Verkoop-gewicht]]="","",Berekeningen!L86*1000) -> 
L87: =IF(lammering[[#This Row],[Speen-gewicht]]="","",Berekeningen!J87*1000) ->  | O87: =IF(lammering[[#This Row],[Verkoop-gewicht]]="","",Berekeningen!L87*1000) -> 
L88: =IF(lammering[[#This Row],[Speen-gewicht]]="","",Berekeningen!J88*1000) ->  | O88: =IF(lammering[[#This Row],[Verkoop-gewicht]]="","",Berekeningen!L88*1000) -> 
L89: =IF(lammering[[#This Row],[Speen-gewicht]]="","",Berekeningen!J89*1000) ->  | O89: =IF(lammering[[#This Row],[Verkoop-gewicht]]="","",Berekeningen!L89*1000) -> 
L90: =IF(lammering[[#This Row],[Speen-gewicht]]="","",Berekeningen!J90*1000) ->  | O90: =IF(lammering[[#This Row],[Verkoop-gewicht]]="","",Berekeningen!L90*1000) -> 
L91: =IF(lammering[[#This Row],[Speen-gewicht]]="","",Berekeningen!J91*1000) ->  | O91: =IF(lammering[[#This Row],[Verkoop-gewicht]]="","",Berekeningen!L91*1000) -> 
L92: =IF(lammering[[#This Row],[Speen-gewicht]]="","",Berekeningen!J92*1000) ->  | O92: =IF(lammering[[#This Row],[Verkoop-gewicht]]="","",Berekeningen!L92*1000) -> 
L93: =IF(lammering[[#This Row],[Speen-gewicht]]="","",Berekeningen!J93*1000) ->  | O93: =IF(lammering[[#This Row],[Verkoop-gewicht]]="","",Berekeningen!L93*1000) -> 
L94: =IF(lammering[[#This Row],[Speen-gewicht]]="","",Berekeningen!J94*1000) ->  | O94: =IF(lammering[[#This Row],[Verkoop-gewicht]]="","",Berekeningen!L94*1000) -> 
L95: =IF(lammering[[#This Row],[Speen-gewicht]]="","",Berekeningen!J95*1000) ->  | O95: =IF(lammering[[#This Row],[Verkoop-gewicht]]="","",Berekeningen!L95*1000) -> 
L96: =IF(lammering[[#This Row],[Speen-gewicht]]="","",Berekeningen!J96*1000) ->  | O96: =IF(lammering[[#This Row],[Verkoop-gewicht]]="","",Berekeningen!L96*1000) -> 
L97: =IF(lammering[[#This Row],[Speen-gewicht]]="","",Berekeningen!J97*1000) ->  | O97: =IF(lammering[[#This Row],[Verkoop-gewicht]]="","",Berekeningen!L97*1000) -> 
L98: =IF(lammering[[#This Row],[Speen-gewicht]]="","",Berekeningen!J98*1000) ->  | O98: =IF(lammering[[#This Row],[Verkoop-gewicht]]="","",Berekeningen!L98*1000) -> 
L99: =IF(lammering[[#This Row],[Speen-gewicht]]="","",Berekeningen!J99*1000) ->  | O99: =IF(lammering[[#This Row],[Verkoop-gewicht]]="","",Berekeningen!L99*1000) -> 
L100: =IF(lammering[[#This Row],[Speen-gewicht]]="","",Berekeningen!J100*1000) ->  | O100: =IF(lammering[[#This Row],[Verkoop-gewicht]]="","",Berekeningen!L100*1000) -> 
L101: =IF(lammering[[#This Row],[Speen-gewicht]]="","",Berekeningen!J101*1000) ->  | O101: =IF(lammering[[#This Row],[Verkoop-gewicht]]="","",Berekeningen!L101*1000) -> 
L102: =IF(lammering[[#This Row],[Speen-gewicht]]="","",Berekeningen!J102*1000) ->  | O102: =IF(lammering[[#This Row],[Verkoop-gewicht]]="","",Berekeningen!L102*1000) -> 
L103: =IF(lammering[[#This Row],[Speen-gewicht]]="","",Berekeningen!J103*1000) ->  | O103: =IF(lammering[[#This Row],[Verkoop-gewicht]]="","",Berekeningen!L103*1000) -> 
L104: =IF(lammering[[#This Row],[Speen-gewicht]]="","",Berekeningen!J104*1000) ->  | O104: =IF(lammering[[#This Row],[Verkoop-gewicht]]="","",Berekeningen!L104*1000) -> 
L105: =IF(lammering[[#This Row],[Speen-gewicht]]="","",Berekeningen!J105*1000) ->  | O105: =IF(lammering[[#This Row],[Verkoop-gewicht]]="","",Berekeningen!L105*1000) -> 
L106: =IF(lammering[[#This Row],[Speen-gewicht]]="","",Berekeningen!J106*1000) ->  | O106: =IF(lammering[[#This Row],[Verkoop-gewicht]]="","",Berekeningen!L106*1000) -> 
L107: =IF(lammering[[#This Row],[Speen-gewicht]]="","",Berekeningen!J107*1000) ->  | O107: =IF(lammering[[#This Row],[Verkoop-gewicht]]="","",Berekeningen!L107*1000) -> 
L108: =IF(lammering[[#This Row],[Speen-gewicht]]="","",Berekeningen!J108*1000) ->  | O108: =IF(lammering[[#This Row],[Verkoop-gewicht]]="","",Berekeningen!L108*1000) -> 
L109: =IF(lammering[[#This Row],[Speen-gewicht]]="","",Berekeningen!J109*1000) ->  | O109: =IF(lammering[[#This Row],[Verkoop-gewicht]]="","",Berekeningen!L109*1000) -> 
L110: =IF(lammering[[#This Row],[Speen-gewicht]]="","",Berekeningen!J110*1000) ->  | O110: =IF(lammering[[#This Row],[Verkoop-gewicht]]="","",Berekeningen!L110*1000) -> 
L111: =IF(lammering[[#This Row],[Speen-gewicht]]="","",Berekeningen!J111*1000) ->  | O111: =IF(lammering[[#This Row],[Verkoop-gewicht]]="","",Berekeningen!L111*1000) -> 
L112: =IF(lammering[[#This Row],[Speen-gewicht]]="","",Berekeningen!J112*1000) ->  | O112: =IF(lammering[[#This Row],[Verkoop-gewicht]]="","",Berekeningen!L112*1000) -> 
L113: =IF(lammering[[#This Row],[Speen-gewicht]]="","",Berekeningen!J113*1000) ->  | O113: =IF(lammering[[#This Row],[Verkoop-gewicht]]="","",Berekeningen!L113*1000) -> 
L114: =IF(lammering[[#This Row],[Speen-gewicht]]="","",Berekeningen!J114*1000) ->  | O114: =IF(lammering[[#This Row],[Verkoop-gewicht]]="","",Berekeningen!L114*1000) -> 
L115: =IF(lammering[[#This Row],[Speen-gewicht]]="","",Berekeningen!J115*1000) ->  | O115: =IF(lammering[[#This Row],[Verkoop-gewicht]]="","",Berekeningen!L115*1000) -> 
L116: =IF(lammering[[#This Row],[Speen-gewicht]]="","",Berekeningen!J116*1000) ->  | O116: =IF(lammering[[#This Row],[Verkoop-gewicht]]="","",Berekeningen!L116*1000) -> 
L117: =IF(lammering[[#This Row],[Speen-gewicht]]="","",Berekeningen!J117*1000) ->  | O117: =IF(lammering[[#This Row],[Verkoop-gewicht]]="","",Berekeningen!L117*1000) -> 
L118: =IF(lammering[[#This Row],[Speen-gewicht]]="","",Berekeningen!J118*1000) ->  | O118: =IF(lammering[[#This Row],[Verkoop-gewicht]]="","",Berekeningen!L118*1000) -> 
L119: =IF(lammering[[#This Row],[Speen-gewicht]]="","",Berekeningen!J119*1000) ->  | O119: =IF(lammering[[#This Row],[Verkoop-gewicht]]="","",Berekeningen!L119*1000) -> 
L120: =IF(lammering[[#This Row],[Speen-gewicht]]="","",Berekeningen!J120*1000) ->  | O120: =IF(lammering[[#This Row],[Verkoop-gewicht]]="","",Berekeningen!L120*1000) -> 
L121: =IF(lammering[[#This Row],[Speen-gewicht]]="","",Berekeningen!J121*1000) ->  | O121: =IF(lammering[[#This Row],[Verkoop-gewicht]]="","",Berekeningen!L121*1000) -> 
L122: =IF(lammering[[#This Row],[Speen-gewicht]]="","",Berekeningen!J122*1000) ->  | O122: =IF(lammering[[#This Row],[Verkoop-gewicht]]="","",Berekeningen!L122*1000) -> 
L123: =IF(lammering[[#This Row],[Speen-gewicht]]="","",Berekeningen!J123*1000) ->  | O123: =IF(lammering[[#This Row],[Verkoop-gewicht]]="","",Berekeningen!L123*1000) -> 
L124: =IF(lammering[[#This Row],[Speen-gewicht]]="","",Berekeningen!J124*1000) ->  | O124: =IF(lammering[[#This Row],[Verkoop-gewicht]]="","",Berekeningen!L124*1000) -> 
L125: =IF(lammering[[#This Row],[Speen-gewicht]]="","",Berekeningen!J125*1000) ->  | O125: =IF(lammering[[#This Row],[Verkoop-gewicht]]="","",Berekeningen!L125*1000) -> 
L126: =IF(lammering[[#This Row],[Speen-gewicht]]="","",Berekeningen!J126*1000) ->  | O126: =IF(lammering[[#This Row],[Verkoop-gewicht]]="","",Berekeningen!L126*1000) -> 
L127: =IF(lammering[[#This Row],[Speen-gewicht]]="","",Berekeningen!J127*1000) ->  | O127: =IF(lammering[[#This Row],[Verkoop-gewicht]]="","",Berekeningen!L127*1000) -> 
L128: =IF(lammering[[#This Row],[Speen-gewicht]]="","",Berekeningen!J128*1000) ->  | O128: =IF(lammering[[#This Row],[Verkoop-gewicht]]="","",Berekeningen!L128*1000) -> 
L129: =IF(lammering[[#This Row],[Speen-gewicht]]="","",Berekeningen!J129*1000) ->  | O129: =IF(lammering[[#This Row],[Verkoop-gewicht]]="","",Berekeningen!L129*1000) -> 
L130: =IF(lammering[[#This Row],[Speen-gewicht]]="","",Berekeningen!J130*1000) ->  | O130: =IF(lammering[[#This Row],[Verkoop-gewicht]]="","",Berekeningen!L130*1000) -> 
L131: =IF(lammering[[#This Row],[Speen-gewicht]]="","",Berekeningen!J131*1000) ->  | O131: =IF(lammering[[#This Row],[Verkoop-gewicht]]="","",Berekeningen!L131*1000) -> 
L132: =IF(lammering[[#This Row],[Speen-gewicht]]="","",Berekeningen!J132*1000) ->  | O132: =IF(lammering[[#This Row],[Verkoop-gewicht]]="","",Berekeningen!L132*1000) -> 
L133: =IF(lammering[[#This Row],[Speen-gewicht]]="","",Berekeningen!J133*1000) ->  | O133: =IF(lammering[[#This Row],[Verkoop-gewicht]]="","",Berekeningen!L133*1000) -> 
L134: =IF(lammering[[#This Row],[Speen-gewicht]]="","",Berekeningen!J134*1000) ->  | O134: =IF(lammering[[#This Row],[Verkoop-gewicht]]="","",Berekeningen!L134*1000) -> 
L135: =IF(lammering[[#This Row],[Speen-gewicht]]="","",Berekeningen!J135*1000) ->  | O135: =IF(lammering[[#This Row],[Verkoop-gewicht]]="","",Berekeningen!L135*1000) -> 
L136: =IF(lammering[[#This Row],[Speen-gewicht]]="","",Berekeningen!J136*1000) ->  | O136: =IF(lammering[[#This Row],[Verkoop-gewicht]]="","",Berekeningen!L136*1000) -> 
L137: =IF(lammering[[#This Row],[Speen-gewicht]]="","",Berekeningen!J137*1000) ->  | O137: =IF(lammering[[#This Row],[Verkoop-gewicht]]="","",Berekeningen!L137*1000) -> 
L138: =IF(lammering[[#This Row],[Speen-gewicht]]="","",Berekeningen!J138*1000) ->  | O138: =IF(lammering[[#This Row],[Verkoop-gewicht]]="","",Berekeningen!L138*1000) -> 
L139: =IF(lammering[[#This Row],[Speen-gewicht]]="","",Berekeningen!J139*1000) ->  | O139: =IF(lammering[[#This Row],[Verkoop-gewicht]]="","",Berekeningen!L139*1000) -> 
L140: =IF(lammering[[#This Row],[Speen-gewicht]]="","",Berekeningen!J140*1000) ->  | O140: =IF(lammering[[#This Row],[Verkoop-gewicht]]="","",Berekeningen!L140*1000) -> 
L141: =IF(lammering[[#This Row],[Speen-gewicht]]="","",Berekeningen!J141*1000) ->  | O141: =IF(lammering[[#This Row],[Verkoop-gewicht]]="","",Berekeningen!L141*1000) -> 
L142: =IF(lammering[[#This Row],[Speen-gewicht]]="","",Berekeningen!J142*1000) ->  | O142: =IF(lammering[[#This Row],[Verkoop-gewicht]]="","",Berekeningen!L142*1000) -> 
L143: =IF(lammering[[#This Row],[Speen-gewicht]]="","",Berekeningen!J143*1000) ->  | O143: =IF(lammering[[#This Row],[Verkoop-gewicht]]="","",Berekeningen!L143*1000) -> 
L144: =IF(lammering[[#This Row],[Speen-gewicht]]="","",Berekeningen!J144*1000) ->  | O144: =IF(lammering[[#This Row],[Verkoop-gewicht]]="","",Berekeningen!L144*1000) -> 
L145: =IF(lammering[[#This Row],[Speen-gewicht]]="","",Berekeningen!J145*1000) ->  | O145: =IF(lammering[[#This Row],[Verkoop-gewicht]]="","",Berekeningen!L145*1000) -> 
L146: =IF(lammering[[#This Row],[Speen-gewicht]]="","",Berekeningen!J146*1000) ->  | O146: =IF(lammering[[#This Row],[Verkoop-gewicht]]="","",Berekeningen!L146*1000) -> 
L147: =IF(lammering[[#This Row],[Speen-gewicht]]="","",Berekeningen!J147*1000) ->  | O147: =IF(lammering[[#This Row],[Verkoop-gewicht]]="","",Berekeningen!L147*1000) -> 
L148: =IF(lammering[[#This Row],[Speen-gewicht]]="","",Berekeningen!J148*1000) ->  | O148: =IF(lammering[[#This Row],[Verkoop-gewicht]]="","",Berekeningen!L148*1000) -> 
L149: =IF(lammering[[#This Row],[Speen-gewicht]]="","",Berekeningen!J149*1000) ->  | O149: =IF(lammering[[#This Row],[Verkoop-gewicht]]="","",Berekeningen!L149*1000) -> 
L150: =IF(lammering[[#This Row],[Speen-gewicht]]="","",Berekeningen!J150*1000) ->  | O150: =IF(lammering[[#This Row],[Verkoop-gewicht]]="","",Berekeningen!L150*1000) -> 
L151: =IF(lammering[[#This Row],[Speen-gewicht]]="","",Berekeningen!J151*1000) ->  | O151: =IF(lammering[[#This Row],[Verkoop-gewicht]]="","",Berekeningen!L151*1000) -> 
L152: =IF(lammering[[#This Row],[Speen-gewicht]]="","",Berekeningen!J152*1000) ->  | O152: =IF(lammering[[#This Row],[Verkoop-gewicht]]="","",Berekeningen!L152*1000) -> 
L153: =IF(lammering[[#This Row],[Speen-gewicht]]="","",Berekeningen!J153*1000) ->  | O153: =IF(lammering[[#This Row],[Verkoop-gewicht]]="","",Berekeningen!L153*1000) -> 
L154: =IF(lammering[[#This Row],[Speen-gewicht]]="","",Berekeningen!J154*1000) ->  | O154: =IF(lammering[[#This Row],[Verkoop-gewicht]]="","",Berekeningen!L154*1000) -> 
L155: =IF(lammering[[#This Row],[Speen-gewicht]]="","",Berekeningen!J155*1000) ->  | O155: =IF(lammering[[#This Row],[Verkoop-gewicht]]="","",Berekeningen!L155*1000) -> 
L156: =IF(lammering[[#This Row],[Speen-gewicht]]="","",Berekeningen!J156*1000) ->  | O156: =IF(lammering[[#This Row],[Verkoop-gewicht]]="","",Berekeningen!L156*1000) -> 
L157: =IF(lammering[[#This Row],[Speen-gewicht]]="","",Berekeningen!J157*1000) ->  | O157: =IF(lammering[[#This Row],[Verkoop-gewicht]]="","",Berekeningen!L157*1000) -> 
L158: =IF(lammering[[#This Row],[Speen-gewicht]]="","",Berekeningen!J158*1000) ->  | O158: =IF(lammering[[#This Row],[Verkoop-gewicht]]="","",Berekeningen!L158*1000) -> 
L159: =IF(lammering[[#This Row],[Speen-gewicht]]="","",Berekeningen!J159*1000) ->  | O159: =IF(lammering[[#This Row],[Verkoop-gewicht]]="","",Berekeningen!L159*1000) -> 
L160: =IF(lammering[[#This Row],[Speen-gewicht]]="","",Berekeningen!J160*1000) ->  | O160: =IF(lammering[[#This Row],[Verkoop-gewicht]]="","",Berekeningen!L160*1000) -> 
L161: =IF(lammering[[#This Row],[Speen-gewicht]]="","",Berekeningen!J161*1000) ->  | O161: =IF(lammering[[#This Row],[Verkoop-gewicht]]="","",Berekeningen!L161*1000) -> 
L162: =IF(lammering[[#This Row],[Speen-gewicht]]="","",Berekeningen!J162*1000) ->  | O162: =IF(lammering[[#This Row],[Verkoop-gewicht]]="","",Berekeningen!L162*1000) -> 
L163: =IF(lammering[[#This Row],[Speen-gewicht]]="","",Berekeningen!J163*1000) ->  | O163: =IF(lammering[[#This Row],[Verkoop-gewicht]]="","",Berekeningen!L163*1000) -> 
L164: =IF(lammering[[#This Row],[Speen-gewicht]]="","",Berekeningen!J164*1000) ->  | O164: =IF(lammering[[#This Row],[Verkoop-gewicht]]="","",Berekeningen!L164*1000) -> 
L165: =IF(lammering[[#This Row],[Speen-gewicht]]="","",Berekeningen!J165*1000) ->  | O165: =IF(lammering[[#This Row],[Verkoop-gewicht]]="","",Berekeningen!L165*1000) -> 
L166: =IF(lammering[[#This Row],[Speen-gewicht]]="","",Berekeningen!J166*1000) ->  | O166: =IF(lammering[[#This Row],[Verkoop-gewicht]]="","",Berekeningen!L166*1000) -> 
L167: =IF(lammering[[#This Row],[Speen-gewicht]]="","",Berekeningen!J167*1000) ->  | O167: =IF(lammering[[#This Row],[Verkoop-gewicht]]="","",Berekeningen!L167*1000) -> 
L168: =IF(lammering[[#This Row],[Speen-gewicht]]="","",Berekeningen!J168*1000) ->  | O168: =IF(lammering[[#This Row],[Verkoop-gewicht]]="","",Berekeningen!L168*1000) -> 
L169: =IF(lammering[[#This Row],[Speen-gewicht]]="","",Berekeningen!J169*1000) ->  | O169: =IF(lammering[[#This Row],[Verkoop-gewicht]]="","",Berekeningen!L169*1000) -> 
L170: =IF(lammering[[#This Row],[Speen-gewicht]]="","",Berekeningen!J170*1000) ->  | O170: =IF(lammering[[#This Row],[Verkoop-gewicht]]="","",Berekeningen!L170*1000) -> 
L171: =IF(lammering[[#This Row],[Speen-gewicht]]="","",Berekeningen!J171*1000) ->  | O171: =IF(lammering[[#This Row],[Verkoop-gewicht]]="","",Berekeningen!L171*1000) -> 
L172: =IF(lammering[[#This Row],[Speen-gewicht]]="","",Berekeningen!J172*1000) ->  | O172: =IF(lammering[[#This Row],[Verkoop-gewicht]]="","",Berekeningen!L172*1000) -> 
L173: =IF(lammering[[#This Row],[Speen-gewicht]]="","",Berekeningen!J173*1000) ->  | O173: =IF(lammering[[#This Row],[Verkoop-gewicht]]="","",Berekeningen!L173*1000) -> 
L174: =IF(lammering[[#This Row],[Speen-gewicht]]="","",Berekeningen!J174*1000) ->  | O174: =IF(lammering[[#This Row],[Verkoop-gewicht]]="","",Berekeningen!L174*1000) -> 
L175: =IF(lammering[[#This Row],[Speen-gewicht]]="","",Berekeningen!J175*1000) ->  | O175: =IF(lammering[[#This Row],[Verkoop-gewicht]]="","",Berekeningen!L175*1000) -> 
L176: =IF(lammering[[#This Row],[Speen-gewicht]]="","",Berekeningen!J176*1000) ->  | O176: =IF(lammering[[#This Row],[Verkoop-gewicht]]="","",Berekeningen!L176*1000) -> 
L177: =IF(lammering[[#This Row],[Speen-gewicht]]="","",Berekeningen!J177*1000) ->  | O177: =IF(lammering[[#This Row],[Verkoop-gewicht]]="","",Berekeningen!L177*1000) -> 
L178: =IF(lammering[[#This Row],[Speen-gewicht]]="","",Berekeningen!J178*1000) ->  | O178: =IF(lammering[[#This Row],[Verkoop-gewicht]]="","",Berekeningen!L178*1000) -> 
L179: =IF(lammering[[#This Row],[Speen-gewicht]]="","",Berekeningen!J179*1000) ->  | O179: =IF(lammering[[#This Row],[Verkoop-gewicht]]="","",Berekeningen!L179*1000) -> 
L180: =IF(lammering[[#This Row],[Speen-gewicht]]="","",Berekeningen!J180*1000) ->  | O180: =IF(lammering[[#This Row],[Verkoop-gewicht]]="","",Berekeningen!L180*1000) -> 
L181: =IF(lammering[[#This Row],[Speen-gewicht]]="","",Berekeningen!J181*1000) ->  | O181: =IF(lammering[[#This Row],[Verkoop-gewicht]]="","",Berekeningen!L181*1000) -> 
L182: =IF(lammering[[#This Row],[Speen-gewicht]]="","",Berekeningen!J182*1000) ->  | O182: =IF(lammering[[#This Row],[Verkoop-gewicht]]="","",Berekeningen!L182*1000) -> 
L183: =IF(lammering[[#This Row],[Speen-gewicht]]="","",Berekeningen!J183*1000) ->  | O183: =IF(lammering[[#This Row],[Verkoop-gewicht]]="","",Berekeningen!L183*1000) -> 
L184: =IF(lammering[[#This Row],[Speen-gewicht]]="","",Berekeningen!J184*1000) ->  | O184: =IF(lammering[[#This Row],[Verkoop-gewicht]]="","",Berekeningen!L184*1000) -> 
L185: =IF(lammering[[#This Row],[Speen-gewicht]]="","",Berekeningen!J185*1000) ->  | O185: =IF(lammering[[#This Row],[Verkoop-gewicht]]="","",Berekeningen!L185*1000) -> 
L186: =IF(lammering[[#This Row],[Speen-gewicht]]="","",Berekeningen!J186*1000) ->  | O186: =IF(lammering[[#This Row],[Verkoop-gewicht]]="","",Berekeningen!L186*1000) -> 
L187: =IF(lammering[[#This Row],[Speen-gewicht]]="","",Berekeningen!J187*1000) ->  | O187: =IF(lammering[[#This Row],[Verkoop-gewicht]]="","",Berekeningen!L187*1000) -> 
L188: =IF(lammering[[#This Row],[Speen-gewicht]]="","",Berekeningen!J188*1000) ->  | O188: =IF(lammering[[#This Row],[Verkoop-gewicht]]="","",Berekeningen!L188*1000) -> 
L189: =IF(lammering[[#This Row],[Speen-gewicht]]="","",Berekeningen!J189*1000) ->  | O189: =IF(lammering[[#This Row],[Verkoop-gewicht]]="","",Berekeningen!L189*1000) -> 
L190: =IF(lammering[[#This Row],[Speen-gewicht]]="","",Berekeningen!J190*1000) ->  | O190: =IF(lammering[[#This Row],[Verkoop-gewicht]]="","",Berekeningen!L190*1000) -> 
L191: =IF(lammering[[#This Row],[Speen-gewicht]]="","",Berekeningen!J191*1000) ->  | O191: =IF(lammering[[#This Row],[Verkoop-gewicht]]="","",Berekeningen!L191*1000) -> 
L192: =IF(lammering[[#This Row],[Speen-gewicht]]="","",Berekeningen!J192*1000) ->  | O192: =IF(lammering[[#This Row],[Verkoop-gewicht]]="","",Berekeningen!L192*1000) -> 
L193: =IF(lammering[[#This Row],[Speen-gewicht]]="","",Berekeningen!J193*1000) ->  | O193: =IF(lammering[[#This Row],[Verkoop-gewicht]]="","",Berekeningen!L193*1000) -> 
L194: =IF(lammering[[#This Row],[Speen-gewicht]]="","",Berekeningen!J194*1000) ->  | O194: =IF(lammering[[#This Row],[Verkoop-gewicht]]="","",Berekeningen!L194*1000) -> 
L195: =IF(lammering[[#This Row],[Speen-gewicht]]="","",Berekeningen!J195*1000) ->  | O195: =IF(lammering[[#This Row],[Verkoop-gewicht]]="","",Berekeningen!L195*1000) -> 
L196: =IF(lammering[[#This Row],[Speen-gewicht]]="","",Berekeningen!J196*1000) ->  | O196: =IF(lammering[[#This Row],[Verkoop-gewicht]]="","",Berekeningen!L196*1000) -> 
L197: =IF(lammering[[#This Row],[Speen-gewicht]]="","",Berekeningen!J197*1000) ->  | O197: =IF(lammering[[#This Row],[Verkoop-gewicht]]="","",Berekeningen!L197*1000) -> 
L198: =IF(lammering[[#This Row],[Speen-gewicht]]="","",Berekeningen!J198*1000) ->  | O198: =IF(lammering[[#This Row],[Verkoop-gewicht]]="","",Berekeningen!L198*1000) -> 
L199: =IF(lammering[[#This Row],[Speen-gewicht]]="","",Berekeningen!J199*1000) ->  | O199: =IF(lammering[[#This Row],[Verkoop-gewicht]]="","",Berekeningen!L199*1000) -> 
L200: =IF(lammering[[#This Row],[Speen-gewicht]]="","",Berekeningen!J200*1000) ->  | O200: =IF(lammering[[#This Row],[Verkoop-gewicht]]="","",Berekeningen!L200*1000) -> 
... 301 more rows

Sheet Berekeningen (hidden)
A1: Ooien - nr | B1: aantal lammeringen | C1: nummer ooi per lammering | D1: aantal lammeren | E1: aantal dode lammeren bij geboorte | F1: aantal levende lammeren bij geboorte | G1: aantal levende lammeren bij verkoop | H1: kunstmelk | I1: vrouwelijke lammeren | J1: groei per dag geboorte tot spenen | K1: groei per dag spenen tot verkoop | L1: groei per dag geboorte tot verkoop | M1: groei ooien per dag geboorte tot spenen | N1: groei ooien per dag spenen tot verkoop | O1: groei ooien per dag geboorte tot verkoop | P1: groei rammen per dag geboorte tot spenen | Q1: groei rammen per dag spenen tot verkoop | R1: groei rammen per dag geboorte tot verkoop | S1: groei | T1: groei ooien | U1: groei rammen | V1: ooien | W1: lammering per ooi | X1: lammeringen per ooi als gelammerd
A2: =lammering[[#This Row],[Ooi]] -> BE127620113 | B2: =IF(A2=0,0,IF(A2=A1,0,1)) -> 1 | C2: =IF(B2=1,A2,0) -> BE127620113 | D2: =IF(lammering[[#This Row],[Lam-nummer]]="",0,1) -> 1 | E2: =IF(lammering[[#This Row],[Dood in geboorte]]="ja",1,0) -> 0 | F2: =IF(lammering[[#This Row],[Ooi]]="",0,IF(Berekeningen!E2=0,1,0)) -> 1 | G2: =IF(lammering[[#This Row],[Dood in geboorte]]="Ja",0,IF(lammering[[#This Row],[Dood na geboorte]]="ja",0,1)) -> 1 | H2: =IF(lammering[[#This Row],[Opfok met kunstmelk]]="Ja",1,0) -> 0 | I2: =IF(lammering[[#This Row],[geslacht]]="O",1,0) -> 0 | J2: =IF(lammering[[#This Row],[Speen-datum]]="","",(lammering[[#This Row],[Speen-gewicht]]-lammering[[#This Row],[geboorte-gewicht]])/(lammering[[#This Row],[Speen-datum]]-lammering[[#This Row],[Werp-datum]])) -> 0.3269230769 | K2: =IF(lammering[[#This Row],[Verkoop-datum]]="","",(lammering[[#This Row],[Verkoop-gewicht]]-lammering[[#This Row],[Speen-gewicht]])/(lammering[[#This Row],[Verkoop-datum]]-lammering[[#This Row],[Speen-datum]])) -> -0.5555555556 | L2: =IF(lammering[[#This Row],[Verkoop-datum]]="","",(lammering[[#This Row],[Verkoop-gewicht]]-lammering[[#This Row],[geboorte-gewicht]])/(lammering[[#This Row],[Verkoop-datum]]-lammering[[#This Row],[Werp-datum]])) -> 0.2787878788 | M2: =IF($I2=1,J2,"") ->  | N2: =IF($I2=1,K2,"") ->  | O2: =IF($I2=1,L2,"") ->  | P2: =IF($I2=0,J2,"") -> 0.3269230769 | Q2: =IF($I2=0,K2,"") -> -0.5555555556 | R2: =IF($I2=0,L2,"") -> 0.2787878788 | S2: =IF(lammering[[#This Row],[Verkoop-gewicht]]="","",lammering[[#This Row],[Verkoop-gewicht]]-lammering[[#This Row],[geboorte-gewicht]]) -> 46 | T2: =IF(I2=1,S2,"") ->  | U2: =IF(I2=0,S2,"") -> 46 | V2: =Opzoek_ooi[[#This Row],[Ooinummer]] -> BE519886427 | W2: =IF(V2=0,"",COUNTIF(C$2:C$500,V2)) -> 1 | X2: =IF(W2>0,W2,"") -> 1
A3: =lammering[[#This Row],[Ooi]] -> BE577340068 | B3: =IF(A3=0,0,IF(A3=A2,0,1)) -> 1 | C3: =IF(B3=1,A3,0) -> BE577340068 | D3: =IF(lammering[[#This Row],[Lam-nummer]]="",0,1) -> 1 | E3: =IF(lammering[[#This Row],[Dood in geboorte]]="ja",1,0) -> 0 | F3: =IF(lammering[[#This Row],[Ooi]]="",0,IF(Berekeningen!E3=0,1,0)) -> 1 | G3: =IF(lammering[[#This Row],[Dood in geboorte]]="Ja",0,IF(lammering[[#This Row],[Dood na geboorte]]="ja",0,1)) -> 1 | H3: =IF(lammering[[#This Row],[Opfok met kunstmelk]]="Ja",1,0) -> 0 | I3: =IF(lammering[[#This Row],[geslacht]]="O",1,0) -> 0 | J3: =IF(lammering[[#This Row],[Speen-datum]]="","",(lammering[[#This Row],[Speen-gewicht]]-lammering[[#This Row],[geboorte-gewicht]])/(lammering[[#This Row],[Speen-datum]]-lammering[[#This Row],[Werp-datum]])) -> 0.2361290323 | K3: =IF(lammering[[#This Row],[Verkoop-datum]]="","",(lammering[[#This Row],[Verkoop-gewicht]]-lammering[[#This Row],[Speen-gewicht]])/(lammering[[#This Row],[Verkoop-datum]]-lammering[[#This Row],[Speen-datum]])) -> 0.6666666667 | L3: =IF(lammering[[#This Row],[Verkoop-datum]]="","",(lammering[[#This Row],[Verkoop-gewicht]]-lammering[[#This Row],[geboorte-gewicht]])/(lammering[[#This Row],[Verkoop-datum]]-lammering[[#This Row],[Werp-datum]])) -> 0.2597560976 | M3: =IF($I3=1,J3,"") ->  | N3: =IF($I3=1,K3,"") ->  | O3: =IF($I3=1,L3,"") ->  | P3: =IF($I3=0,J3,"") -> 0.2361290323 | Q3: =IF($I3=0,K3,"") -> 0.6666666667 | R3: =IF($I3=0,L3,"") -> 0.2597560976 | S3: =IF(lammering[[#This Row],[Verkoop-gewicht]]="","",lammering[[#This Row],[Verkoop-gewicht]]-lammering[[#This Row],[geboorte-gewicht]]) -> 42.6 | T3: =IF(I3=1,S3,"") ->  | U3: =IF(I3=0,S3,"") -> 42.6 | V3: =Opzoek_ooi[[#This Row],[Ooinummer]] -> BE527620141 | W3: 1 | X3: =IF(W3>0,W3,"") -> 1
A4: =lammering[[#This Row],[Ooi]] -> BE577340068 | B4: 0 | C4: 0 | D4: =IF(lammering[[#This Row],[Lam-nummer]]="",0,1) -> 1 | E4: =IF(lammering[[#This Row],[Dood in geboorte]]="ja",1,0) -> 0 | F4: =IF(lammering[[#This Row],[Ooi]]="",0,IF(Berekeningen!E4=0,1,0)) -> 1 | G4: =IF(lammering[[#This Row],[Dood in geboorte]]="Ja",0,IF(lammering[[#This Row],[Dood na geboorte]]="ja",0,1)) -> 1 | H4: =IF(lammering[[#This Row],[Opfok met kunstmelk]]="Ja",1,0) -> 0 | I4: =IF(lammering[[#This Row],[geslacht]]="O",1,0) -> 1 | J4: =IF(lammering[[#This Row],[Speen-datum]]="","",(lammering[[#This Row],[Speen-gewicht]]-lammering[[#This Row],[geboorte-gewicht]])/(lammering[[#This Row],[Speen-datum]]-lammering[[#This Row],[Werp-datum]])) ->  | K4: =IF(lammering[[#This Row],[Verkoop-datum]]="","",(lammering[[#This Row],[Verkoop-gewicht]]-lammering[[#This Row],[Speen-gewicht]])/(lammering[[#This Row],[Verkoop-datum]]-lammering[[#This Row],[Speen-datum]])) ->  | L4: =IF(lammering[[#This Row],[Verkoop-datum]]="","",(lammering[[#This Row],[Verkoop-gewicht]]-lammering[[#This Row],[geboorte-gewicht]])/(lammering[[#This Row],[Verkoop-datum]]-lammering[[#This Row],[Werp-datum]])) ->  | S4: =IF(lammering[[#This Row],[Verkoop-gewicht]]="","",lammering[[#This Row],[Verkoop-gewicht]]-lammering[[#This Row],[geboorte-gewicht]]) ->  | V4: =Opzoek_ooi[[#This Row],[Ooinummer]] -> BE127620112 | W4: 1 | X4: 1
A5: =lammering[[#This Row],[Ooi]] -> BE577340068 | B5: 0 | C5: 0 | D5: =IF(lammering[[#This Row],[Lam-nummer]]="",0,1) -> 0 | E5: =IF(lammering[[#This Row],[Dood in geboorte]]="ja",1,0) -> 1 | F5: =IF(lammering[[#This Row],[Ooi]]="",0,IF(Berekeningen!E5=0,1,0)) -> 0 | G5: =IF(lammering[[#This Row],[Dood in geboorte]]="Ja",0,IF(lammering[[#This Row],[Dood na geboorte]]="ja",0,1)) -> 0 | H5: =IF(lammering[[#This Row],[Opfok met kunstmelk]]="Ja",1,0) -> 0 | I5: =IF(lammering[[#This Row],[geslacht]]="O",1,0) -> 0 | J5: =IF(lammering[[#This Row],[Speen-datum]]="","",(lammering[[#This Row],[Speen-gewicht]]-lammering[[#This Row],[geboorte-gewicht]])/(lammering[[#This Row],[Speen-datum]]-lammering[[#This Row],[Werp-datum]])) ->  | K5: =IF(lammering[[#This Row],[Verkoop-datum]]="","",(lammering[[#This Row],[Verkoop-gewicht]]-lammering[[#This Row],[Speen-gewicht]])/(lammering[[#This Row],[Verkoop-datum]]-lammering[[#This Row],[Speen-datum]])) ->  | L5: =IF(lammering[[#This Row],[Verkoop-datum]]="","",(lammering[[#This Row],[Verkoop-gewicht]]-lammering[[#This Row],[geboorte-gewicht]])/(lammering[[#This Row],[Verkoop-datum]]-lammering[[#This Row],[Werp-datum]])) ->  | S5: =IF(lammering[[#This Row],[Verkoop-gewicht]]="","",lammering[[#This Row],[Verkoop-gewicht]]-lammering[[#This Row],[geboorte-gewicht]]) ->  | V5: =Opzoek_ooi[[#This Row],[Ooinummer]] -> BE127620113 | W5: 1 | X5: 1
A6: =lammering[[#This Row],[Ooi]] -> BE977340164 | B6: 1 | C6: BE977340164 | D6: =IF(lammering[[#This Row],[Lam-nummer]]="",0,1) -> 1 | E6: =IF(lammering[[#This Row],[Dood in geboorte]]="ja",1,0) -> 0 | F6: =IF(lammering[[#This Row],[Ooi]]="",0,IF(Berekeningen!E6=0,1,0)) -> 1 | G6: =IF(lammering[[#This Row],[Dood in geboorte]]="Ja",0,IF(lammering[[#This Row],[Dood na geboorte]]="ja",0,1)) -> 1 | H6: =IF(lammering[[#This Row],[Opfok met kunstmelk]]="Ja",1,0) -> 0 | I6: =IF(lammering[[#This Row],[geslacht]]="O",1,0) -> 1 | J6: =IF(lammering[[#This Row],[Speen-datum]]="","",(lammering[[#This Row],[Speen-gewicht]]-lammering[[#This Row],[geboorte-gewicht]])/(lammering[[#This Row],[Speen-datum]]-lammering[[#This Row],[Werp-datum]])) -> 0.2405228758 | K6: =IF(lammering[[#This Row],[Verkoop-datum]]="","",(lammering[[#This Row],[Verkoop-gewicht]]-lammering[[#This Row],[Speen-gewicht]])/(lammering[[#This Row],[Verkoop-datum]]-lammering[[#This Row],[Speen-datum]])) ->  | L6: =IF(lammering[[#This Row],[Verkoop-datum]]="","",(lammering[[#This Row],[Verkoop-gewicht]]-lammering[[#This Row],[geboorte-gewicht]])/(lammering[[#This Row],[Verkoop-datum]]-lammering[[#This Row],[Werp-datum]])) -> 0.2405228758 | M6: 0.2405228758 | O6: 0.2405228758 | S6: =IF(lammering[[#This Row],[Verkoop-gewicht]]="","",lammering[[#This Row],[Verkoop-gewicht]]-lammering[[#This Row],[geboorte-gewicht]]) -> 36.8 | T6: 36.8 | V6: =Opzoek_ooi[[#This Row],[Ooinummer]] -> BE677340126 | W6: 1 | X6: 1
A7: =lammering[[#This Row],[Ooi]] -> BE977340164 | B7: 0 | C7: 0 | D7: =IF(lammering[[#This Row],[Lam-nummer]]="",0,1) -> 1 | E7: =IF(lammering[[#This Row],[Dood in geboorte]]="ja",1,0) -> 0 | F7: =IF(lammering[[#This Row],[Ooi]]="",0,IF(Berekeningen!E7=0,1,0)) -> 1 | G7: =IF(lammering[[#This Row],[Dood in geboorte]]="Ja",0,IF(lammering[[#This Row],[Dood na geboorte]]="ja",0,1)) -> 1 | H7: =IF(lammering[[#This Row],[Opfok met kunstmelk]]="Ja",1,0) -> 0 | I7: =IF(lammering[[#This Row],[geslacht]]="O",1,0) -> 1 | J7: =IF(lammering[[#This Row],[Speen-datum]]="","",(lammering[[#This Row],[Speen-gewicht]]-lammering[[#This Row],[geboorte-gewicht]])/(lammering[[#This Row],[Speen-datum]]-lammering[[#This Row],[Werp-datum]])) -> 0.2418300654 | K7: =IF(lammering[[#This Row],[Verkoop-datum]]="","",(lammering[[#This Row],[Verkoop-gewicht]]-lammering[[#This Row],[Speen-gewicht]])/(lammering[[#This Row],[Verkoop-datum]]-lammering[[#This Row],[Speen-datum]])) ->  | L7: =IF(lammering[[#This Row],[Verkoop-datum]]="","",(lammering[[#This Row],[Verkoop-gewicht]]-lammering[[#This Row],[geboorte-gewicht]])/(lammering[[#This Row],[Verkoop-datum]]-lammering[[#This Row],[Werp-datum]])) -> 0.2418300654 | M7: 0.2418300654 | O7: 0.2418300654 | S7: =IF(lammering[[#This Row],[Verkoop-gewicht]]="","",lammering[[#This Row],[Verkoop-gewicht]]-lammering[[#This Row],[geboorte-gewicht]]) -> 37 | T7: 37 | V7: =Opzoek_ooi[[#This Row],[Ooinummer]] -> BE577340068 | W7: 1 | X7: 1
A8: =lammering[[#This Row],[Ooi]] -> BE077340163 | B8: 1 | C8: BE077340163 | D8: =IF(lammering[[#This Row],[Lam-nummer]]="",0,1) -> 1 | E8: =IF(lammering[[#This Row],[Dood in geboorte]]="ja",1,0) -> 0 | F8: =IF(lammering[[#This Row],[Ooi]]="",0,IF(Berekeningen!E8=0,1,0)) -> 1 | G8: =IF(lammering[[#This Row],[Dood in geboorte]]="Ja",0,IF(lammering[[#This Row],[Dood na geboorte]]="ja",0,1)) -> 1 | H8: =IF(lammering[[#This Row],[Opfok met kunstmelk]]="Ja",1,0) -> 0 | I8: =IF(lammering[[#This Row],[geslacht]]="O",1,0) -> 1 | J8: =IF(lammering[[#This Row],[Speen-datum]]="","",(lammering[[#This Row],[Speen-gewicht]]-lammering[[#This Row],[geboorte-gewicht]])/(lammering[[#This Row],[Speen-datum]]-lammering[[#This Row],[Werp-datum]])) -> 0.262585034 | K8: =IF(lammering[[#This Row],[Verkoop-datum]]="","",(lammering[[#This Row],[Verkoop-gewicht]]-lammering[[#This Row],[Speen-gewicht]])/(lammering[[#This Row],[Verkoop-datum]]-lammering[[#This Row],[Speen-datum]])) ->  | L8: =IF(lammering[[#This Row],[Verkoop-datum]]="","",(lammering[[#This Row],[Verkoop-gewicht]]-lammering[[#This Row],[geboorte-gewicht]])/(lammering[[#This Row],[Verkoop-datum]]-lammering[[#This Row],[Werp-datum]])) ->  | M8: 0.262585034 | S8: =IF(lammering[[#This Row],[Verkoop-gewicht]]="","",lammering[[#This Row],[Verkoop-gewicht]]-lammering[[#This Row],[geboorte-gewicht]]) ->  | V8: =Opzoek_ooi[[#This Row],[Ooinummer]] -> BE977340164 | W8: 1 | X8: 1
A9: =lammering[[#This Row],[Ooi]] -> BE077340163 | B9: 0 | C9: 0 | D9: =IF(lammering[[#This Row],[Lam-nummer]]="",0,1) -> 1 | E9: =IF(lammering[[#This Row],[Dood in geboorte]]="ja",1,0) -> 0 | F9: =IF(lammering[[#This Row],[Ooi]]="",0,IF(Berekeningen!E9=0,1,0)) -> 1 | G9: =IF(lammering[[#This Row],[Dood in geboorte]]="Ja",0,IF(lammering[[#This Row],[Dood na geboorte]]="ja",0,1)) -> 1 | H9: =IF(lammering[[#This Row],[Opfok met kunstmelk]]="Ja",1,0) -> 0 | I9: =IF(lammering[[#This Row],[geslacht]]="O",1,0) -> 1 | J9: =IF(lammering[[#This Row],[Speen-datum]]="","",(lammering[[#This Row],[Speen-gewicht]]-lammering[[#This Row],[geboorte-gewicht]])/(lammering[[#This Row],[Speen-datum]]-lammering[[#This Row],[Werp-datum]])) -> 0.2612244898 | K9: =IF(lammering[[#This Row],[Verkoop-datum]]="","",(lammering[[#This Row],[Verkoop-gewicht]]-lammering[[#This Row],[Speen-gewicht]])/(lammering[[#This Row],[Verkoop-datum]]-lammering[[#This Row],[Speen-datum]])) ->  | L9: =IF(lammering[[#This Row],[Verkoop-datum]]="","",(lammering[[#This Row],[Verkoop-gewicht]]-lammering[[#This Row],[geboorte-gewicht]])/(lammering[[#This Row],[Verkoop-datum]]-lammering[[#This Row],[Werp-datum]])) ->  | M9: 0.2612244898 | S9: =IF(lammering[[#This Row],[Verkoop-gewicht]]="","",lammering[[#This Row],[Verkoop-gewicht]]-lammering[[#This Row],[geboorte-gewicht]]) ->  | V9: =Opzoek_ooi[[#This Row],[Ooinummer]] -> BE077340163 | W9: 1 | X9: 1
A10: =lammering[[#This Row],[Ooi]] -> BE077340163 | B10: 0 | C10: 0 | D10: =IF(lammering[[#This Row],[Lam-nummer]]="",0,1) -> 1 | E10: =IF(lammering[[#This Row],[Dood in geboorte]]="ja",1,0) -> 0 | F10: =IF(lammering[[#This Row],[Ooi]]="",0,IF(Berekeningen!E10=0,1,0)) -> 1 | G10: =IF(lammering[[#This Row],[Dood in geboorte]]="Ja",0,IF(lammering[[#This Row],[Dood na geboorte]]="ja",0,1)) -> 1 | H10: =IF(lammering[[#This Row],[Opfok met kunstmelk]]="Ja",1,0) -> 0 | I10: =IF(lammering[[#This Row],[geslacht]]="O",1,0) -> 0 | J10: =IF(lammering[[#This Row],[Speen-datum]]="","",(lammering[[#This Row],[Speen-gewicht]]-lammering[[#This Row],[geboorte-gewicht]])/(lammering[[#This Row],[Speen-datum]]-lammering[[#This Row],[Werp-datum]])) -> 0.306122449 | K10: =IF(lammering[[#This Row],[Verkoop-datum]]="","",(lammering[[#This Row],[Verkoop-gewicht]]-lammering[[#This Row],[Speen-gewicht]])/(lammering[[#This Row],[Verkoop-datum]]-lammering[[#This Row],[Speen-datum]])) ->  | L10: =IF(lammering[[#This Row],[Verkoop-datum]]="","",(lammering[[#This Row],[Verkoop-gewicht]]-lammering[[#This Row],[geboorte-gewicht]])/(lammering[[#This Row],[Verkoop-datum]]-lammering[[#This Row],[Werp-datum]])) -> 0.306122449 | P10: 0.306122449 | R10: 0.306122449 | S10: =IF(lammering[[#This Row],[Verkoop-gewicht]]="","",lammering[[#This Row],[Verkoop-gewicht]]-lammering[[#This Row],[geboorte-gewicht]]) -> 45 | U10: 45 | V10: =Opzoek_ooi[[#This Row],[Ooinummer]] -> BE119886429 | W10: 1 | X10: 1
A11: =lammering[[#This Row],[Ooi]] -> BE519886430 | B11: 1 | C11: BE519886430 | D11: =IF(lammering[[#This Row],[Lam-nummer]]="",0,1) -> 1 | E11: =IF(lammering[[#This Row],[Dood in geboorte]]="ja",1,0) -> 0 | F11: =IF(lammering[[#This Row],[Ooi]]="",0,IF(Berekeningen!E11=0,1,0)) -> 1 | G11: =IF(D11=0,0,IF(lammering[[#This Row],[Dood in geboorte]]="Ja",0,IF(lammering[[#This Row],[Dood na geboorte]]="ja",0,1))) -> 1 | H11: =IF(lammering[[#This Row],[Opfok met kunstmelk]]="Ja",1,0) -> 0 | I11: =IF(lammering[[#This Row],[geslacht]]="O",1,0) -> 1 | J11: =IF(lammering[[#This Row],[Speen-datum]]="","",(lammering[[#This Row],[Speen-gewicht]]-lammering[[#This Row],[geboorte-gewicht]])/(lammering[[#This Row],[Speen-datum]]-lammering[[#This Row],[Werp-datum]])) -> 0.3197452229 | K11: =IF(lammering[[#This Row],[Verkoop-datum]]="","",(lammering[[#This Row],[Verkoop-gewicht]]-lammering[[#This Row],[Speen-gewicht]])/(lammering[[#This Row],[Verkoop-datum]]-lammering[[#This Row],[Speen-datum]])) ->  | L11: =IF(lammering[[#This Row],[Verkoop-datum]]="","",(lammering[[#This Row],[Verkoop-gewicht]]-lammering[[#This Row],[geboorte-gewicht]])/(lammering[[#This Row],[Verkoop-datum]]-lammering[[#This Row],[Werp-datum]])) ->  | M11: 0.3197452229 | S11: =IF(lammering[[#This Row],[Verkoop-gewicht]]="","",lammering[[#This Row],[Verkoop-gewicht]]-lammering[[#This Row],[geboorte-gewicht]]) ->  | V11: =Opzoek_ooi[[#This Row],[Ooinummer]] -> BE276710026 | W11: 1 | X11: 1
A12: =lammering[[#This Row],[Ooi]] -> BE519886430 | B12: 0 | C12: 0 | D12: =IF(lammering[[#This Row],[Lam-nummer]]="",0,1) -> 1 | E12: =IF(lammering[[#This Row],[Dood in geboorte]]="ja",1,0) -> 0 | F12: =IF(lammering[[#This Row],[Ooi]]="",0,IF(Berekeningen!E12=0,1,0)) -> 1 | G12: =IF(D12=0,0,IF(lammering[[#This Row],[Dood in geboorte]]="Ja",0,IF(lammering[[#This Row],[Dood na geboorte]]="ja",0,1))) -> 1 | H12: =IF(lammering[[#This Row],[Opfok met kunstmelk]]="Ja",1,0) -> 0 | I12: =IF(lammering[[#This Row],[geslacht]]="O",1,0) -> 0 | J12: =IF(lammering[[#This Row],[Speen-datum]]="","",(lammering[[#This Row],[Speen-gewicht]]-lammering[[#This Row],[geboorte-gewicht]])/(lammering[[#This Row],[Speen-datum]]-lammering[[#This Row],[Werp-datum]])) -> 0.2611464968 | K12: =IF(lammering[[#This Row],[Verkoop-datum]]="","",(lammering[[#This Row],[Verkoop-gewicht]]-lammering[[#This Row],[Speen-gewicht]])/(lammering[[#This Row],[Verkoop-datum]]-lammering[[#This Row],[Speen-datum]])) ->  | L12: =IF(lammering[[#This Row],[Verkoop-datum]]="","",(lammering[[#This Row],[Verkoop-gewicht]]-lammering[[#This Row],[geboorte-gewicht]])/(lammering[[#This Row],[Verkoop-datum]]-lammering[[#This Row],[Werp-datum]])) ->  | P12: 0.2611464968 | S12: =IF(lammering[[#This Row],[Verkoop-gewicht]]="","",lammering[[#This Row],[Verkoop-gewicht]]-lammering[[#This Row],[geboorte-gewicht]]) ->  | V12: =Opzoek_ooi[[#This Row],[Ooinummer]] -> BE977340083 | W12: 1 | X12: 1
A13: =lammering[[#This Row],[Ooi]] -> BE119886429 | B13: 1 | C13: BE119886429 | D13: =IF(lammering[[#This Row],[Lam-nummer]]="",0,1) -> 1 | E13: =IF(lammering[[#This Row],[Dood in geboorte]]="ja",1,0) -> 0 | F13: =IF(lammering[[#This Row],[Ooi]]="",0,IF(Berekeningen!E13=0,1,0)) -> 1 | G13: =IF(D13=0,0,IF(lammering[[#This Row],[Dood in geboorte]]="Ja",0,IF(lammering[[#This Row],[Dood na geboorte]]="ja",0,1))) -> 1 | H13: =IF(lammering[[#This Row],[Opfok met kunstmelk]]="Ja",1,0) -> 0 | I13: =IF(lammering[[#This Row],[geslacht]]="O",1,0) -> 1 | J13: =IF(lammering[[#This Row],[Speen-datum]]="","",(lammering[[#This Row],[Speen-gewicht]]-lammering[[#This Row],[geboorte-gewicht]])/(lammering[[#This Row],[Speen-datum]]-lammering[[#This Row],[Werp-datum]])) -> 0.2335616438 | K13: =IF(lammering[[#This Row],[Verkoop-datum]]="","",(lammering[[#This Row],[Verkoop-gewicht]]-lammering[[#This Row],[Speen-gewicht]])/(lammering[[#This Row],[Verkoop-datum]]-lammering[[#This Row],[Speen-datum]])) ->  | L13: =IF(lammering[[#This Row],[Verkoop-datum]]="","",(lammering[[#This Row],[Verkoop-gewicht]]-lammering[[#This Row],[geboorte-gewicht]])/(lammering[[#This Row],[Verkoop-datum]]-lammering[[#This Row],[Werp-datum]])) -> 0.2335616438 | M13: 0.2335616438 | O13: 0.2335616438 | S13: =IF(lammering[[#This Row],[Verkoop-gewicht]]="","",lammering[[#This Row],[Verkoop-gewicht]]-lammering[[#This Row],[geboorte-gewicht]]) -> 34.1 | T13: 34.1 | V13: =Opzoek_ooi[[#This Row],[Ooinummer]] -> BE919886425 | W13: 1 | X13: 1
A14: =lammering[[#This Row],[Ooi]] -> BE119886429 | B14: 0 | C14: 0 | D14: =IF(lammering[[#This Row],[Lam-nummer]]="",0,1) -> 1 | E14: =IF(lammering[[#This Row],[Dood in geboorte]]="ja",1,0) -> 0 | F14: =IF(lammering[[#This Row],[Ooi]]="",0,IF(Berekeningen!E14=0,1,0)) -> 1 | G14: =IF(D14=0,0,IF(lammering[[#This Row],[Dood in geboorte]]="Ja",0,IF(lammering[[#This Row],[Dood na geboorte]]="ja",0,1))) -> 1 | H14: =IF(lammering[[#This Row],[Opfok met kunstmelk]]="Ja",1,0) -> 0 | I14: =IF(lammering[[#This Row],[geslacht]]="O",1,0) -> 0 | J14: =IF(lammering[[#This Row],[Speen-datum]]="","",(lammering[[#This Row],[Speen-gewicht]]-lammering[[#This Row],[geboorte-gewicht]])/(lammering[[#This Row],[Speen-datum]]-lammering[[#This Row],[Werp-datum]])) -> 0.2705479452 | K14: =IF(lammering[[#This Row],[Verkoop-datum]]="","",(lammering[[#This Row],[Verkoop-gewicht]]-lammering[[#This Row],[Speen-gewicht]])/(lammering[[#This Row],[Verkoop-datum]]-lammering[[#This Row],[Speen-datum]])) ->  | L14: =IF(lammering[[#This Row],[Verkoop-datum]]="","",(lammering[[#This Row],[Verkoop-gewicht]]-lammering[[#This Row],[geboorte-gewicht]])/(lammering[[#This Row],[Verkoop-datum]]-lammering[[#This Row],[Werp-datum]])) -> 0.2705479452 | P14: 0.2705479452 | R14: 0.2705479452 | S14: =IF(lammering[[#This Row],[Verkoop-gewicht]]="","",lammering[[#This Row],[Verkoop-gewicht]]-lammering[[#This Row],[geboorte-gewicht]]) -> 39.5 | U14: 39.5 | V14: =Opzoek_ooi[[#This Row],[Ooinummer]] -> BE519886430 | W14: 1 | X14: 1
A15: =lammering[[#This Row],[Ooi]] -> BE119886429 | B15: =IF(A15=0,0,IF(A15=A14,0,1)) -> 0 | C15: 0 | D15: =IF(lammering[[#This Row],[Lam-nummer]]="",0,1) -> 1 | E15: =IF(lammering[[#This Row],[Dood in geboorte]]="ja",1,0) -> 0 | F15: =IF(lammering[[#This Row],[Ooi]]="",0,IF(Berekeningen!E15=0,1,0)) -> 1 | G15: =IF(D15=0,0,IF(lammering[[#This Row],[Dood in geboorte]]="Ja",0,IF(lammering[[#This Row],[Dood na geboorte]]="ja",0,1))) -> 1 | H15: =IF(lammering[[#This Row],[Opfok met kunstmelk]]="Ja",1,0) -> 0 | I15: =IF(lammering[[#This Row],[geslacht]]="O",1,0) -> 0 | J15: =IF(lammering[[#This Row],[Speen-datum]]="","",(lammering[[#This Row],[Speen-gewicht]]-lammering[[#This Row],[geboorte-gewicht]])/(lammering[[#This Row],[Speen-datum]]-lammering[[#This Row],[Werp-datum]])) -> 0.3366197183 | K15: =IF(lammering[[#This Row],[Verkoop-datum]]="","",(lammering[[#This Row],[Verkoop-gewicht]]-lammering[[#This Row],[Speen-gewicht]])/(lammering[[#This Row],[Verkoop-datum]]-lammering[[#This Row],[Speen-datum]])) ->  | L15: =IF(lammering[[#This Row],[Verkoop-datum]]="","",(lammering[[#This Row],[Verkoop-gewicht]]-lammering[[#This Row],[geboorte-gewicht]])/(lammering[[#This Row],[Verkoop-datum]]-lammering[[#This Row],[Werp-datum]])) -> 0.3366197183 | M15: =IF($I15=1,J15,"") ->  | N15: =IF($I15=1,K15,"") ->  | O15: =IF($I15=1,L15,"") ->  | P15: =IF($I15=0,J15,"") -> 0.3366197183 | Q15: =IF($I15=0,K15,"") ->  | R15: =IF($I15=0,L15,"") -> 0.3366197183 | S15: =IF(lammering[[#This Row],[Verkoop-gewicht]]="","",lammering[[#This Row],[Verkoop-gewicht]]-lammering[[#This Row],[geboorte-gewicht]]) -> 47.8 | T15: =IF(I15=1,S15,"") ->  | U15: =IF(I15=0,S15,"") -> 47.8 | V15: =Opzoek_ooi[[#This Row],[Ooinummer]] -> BE719886426 | W15: 1 | X15: 1
A16: =lammering[[#This Row],[Ooi]] -> BE276710026 | B16: 1 | C16: BE276710026 | D16: =IF(lammering[[#This Row],[Lam-nummer]]="",0,1) -> 1 | E16: =IF(lammering[[#This Row],[Dood in geboorte]]="ja",1,0) -> 0 | F16: =IF(lammering[[#This Row],[Ooi]]="",0,IF(Berekeningen!E16=0,1,0)) -> 1 | G16: =IF(D16=0,0,IF(lammering[[#This Row],[Dood in geboorte]]="Ja",0,IF(lammering[[#This Row],[Dood na geboorte]]="ja",0,1))) -> 1 | H16: =IF(lammering[[#This Row],[Opfok met kunstmelk]]="Ja",1,0) -> 0 | I16: =IF(lammering[[#This Row],[geslacht]]="O",1,0) -> 1 | J16: =IF(lammering[[#This Row],[Speen-datum]]="","",(lammering[[#This Row],[Speen-gewicht]]-lammering[[#This Row],[geboorte-gewicht]])/(lammering[[#This Row],[Speen-datum]]-lammering[[#This Row],[Werp-datum]])) -> 0.2957746479 | K16: =IF(lammering[[#This Row],[Verkoop-datum]]="","",(lammering[[#This Row],[Verkoop-gewicht]]-lammering[[#This Row],[Speen-gewicht]])/(lammering[[#This Row],[Verkoop-datum]]-lammering[[#This Row],[Speen-datum]])) ->  | L16: =IF(lammering[[#This Row],[Verkoop-datum]]="","",(lammering[[#This Row],[Verkoop-gewicht]]-lammering[[#This Row],[geboorte-gewicht]])/(lammering[[#This Row],[Verkoop-datum]]-lammering[[#This Row],[Werp-datum]])) ->  | M16: 0.2957746479 | S16: =IF(lammering[[#This Row],[Verkoop-gewicht]]="","",lammering[[#This Row],[Verkoop-gewicht]]-lammering[[#This Row],[geboorte-gewicht]]) ->  | V16: =Opzoek_ooi[[#This Row],[Ooinummer]] -> BE777340165 | W16: =IF(V16=0,"",COUNTIF(C$2:C$500,V16)) -> 1 | X16: 1
A17: =lammering[[#This Row],[Ooi]] -> BE276710026 | B17: 0 | C17: 0 | D17: =IF(lammering[[#This Row],[Lam-nummer]]="",0,1) -> 1 | E17: =IF(lammering[[#This Row],[Dood in geboorte]]="ja",1,0) -> 0 | F17: =IF(lammering[[#This Row],[Ooi]]="",0,IF(Berekeningen!E17=0,1,0)) -> 1 | G17: =IF(D17=0,0,IF(lammering[[#This Row],[Dood in geboorte]]="Ja",0,IF(lammering[[#This Row],[Dood na geboorte]]="ja",0,1))) -> 1 | H17: =IF(lammering[[#This Row],[Opfok met kunstmelk]]="Ja",1,0) -> 0 | I17: =IF(lammering[[#This Row],[geslacht]]="O",1,0) -> 1 | J17: =IF(lammering[[#This Row],[Speen-datum]]="","",(lammering[[#This Row],[Speen-gewicht]]-lammering[[#This Row],[geboorte-gewicht]])/(lammering[[#This Row],[Speen-datum]]-lammering[[#This Row],[Werp-datum]])) ->  | K17: =IF(lammering[[#This Row],[Verkoop-datum]]="","",(lammering[[#This Row],[Verkoop-gewicht]]-lammering[[#This Row],[Speen-gewicht]])/(lammering[[#This Row],[Verkoop-datum]]-lammering[[#This Row],[Speen-datum]])) ->  | L17: =IF(lammering[[#This Row],[Verkoop-datum]]="","",(lammering[[#This Row],[Verkoop-gewicht]]-lammering[[#This Row],[geboorte-gewicht]])/(lammering[[#This Row],[Verkoop-datum]]-lammering[[#This Row],[Werp-datum]])) ->  | S17: =IF(lammering[[#This Row],[Verkoop-gewicht]]="","",lammering[[#This Row],[Verkoop-gewicht]]-lammering[[#This Row],[geboorte-gewicht]]) ->  | V17: =Opzoek_ooi[[#This Row],[Ooinummer]] -> BE227620120 | W17: 1 | X17: 1
A18: =lammering[[#This Row],[Ooi]] -> BE919886425 | B18: 1 | C18: BE919886425 | D18: =IF(lammering[[#This Row],[Lam-nummer]]="",0,1) -> 1 | E18: =IF(lammering[[#This Row],[Dood in geboorte]]="ja",1,0) -> 0 | F18: =IF(lammering[[#This Row],[Ooi]]="",0,IF(Berekeningen!E18=0,1,0)) -> 1 | G18: =IF(D18=0,0,IF(lammering[[#This Row],[Dood in geboorte]]="Ja",0,IF(lammering[[#This Row],[Dood na geboorte]]="ja",0,1))) -> 1 | H18: =IF(lammering[[#This Row],[Opfok met kunstmelk]]="Ja",1,0) -> 0 | I18: =IF(lammering[[#This Row],[geslacht]]="O",1,0) -> 1 | J18: =IF(lammering[[#This Row],[Speen-datum]]="","",(lammering[[#This Row],[Speen-gewicht]]-lammering[[#This Row],[geboorte-gewicht]])/(lammering[[#This Row],[Speen-datum]]-lammering[[#This Row],[Werp-datum]])) -> 0.335483871 | K18: =IF(lammering[[#This Row],[Verkoop-datum]]="","",(lammering[[#This Row],[Verkoop-gewicht]]-lammering[[#This Row],[Speen-gewicht]])/(lammering[[#This Row],[Verkoop-datum]]-lammering[[#This Row],[Speen-datum]])) ->  | L18: =IF(lammering[[#This Row],[Verkoop-datum]]="","",(lammering[[#This Row],[Verkoop-gewicht]]-lammering[[#This Row],[geboorte-gewicht]])/(lammering[[#This Row],[Verkoop-datum]]-lammering[[#This Row],[Werp-datum]])) ->  | M18: 0.335483871 | S18: =IF(lammering[[#This Row],[Verkoop-gewicht]]="","",lammering[[#This Row],[Verkoop-gewicht]]-lammering[[#This Row],[geboorte-gewicht]]) ->  | V18: =Opzoek_ooi[[#This Row],[Ooinummer]] -> BE277340095 | W18: 1 | X18: 1
A19: =lammering[[#This Row],[Ooi]] -> BE919886425 | B19: 0 | C19: 0 | D19: =IF(lammering[[#This Row],[Lam-nummer]]="",0,1) -> 1 | E19: =IF(lammering[[#This Row],[Dood in geboorte]]="ja",1,0) -> 0 | F19: =IF(lammering[[#This Row],[Ooi]]="",0,IF(Berekeningen!E19=0,1,0)) -> 1 | G19: =IF(D19=0,0,IF(lammering[[#This Row],[Dood in geboorte]]="Ja",0,IF(lammering[[#This Row],[Dood na geboorte]]="ja",0,1))) -> 1 | H19: =IF(lammering[[#This Row],[Opfok met kunstmelk]]="Ja",1,0) -> 0 | I19: =IF(lammering[[#This Row],[geslacht]]="O",1,0) -> 0 | J19: =IF(lammering[[#This Row],[Speen-datum]]="","",(lammering[[#This Row],[Speen-gewicht]]-lammering[[#This Row],[geboorte-gewicht]])/(lammering[[#This Row],[Speen-datum]]-lammering[[#This Row],[Werp-datum]])) -> 0.3870967742 | K19: =IF(lammering[[#This Row],[Verkoop-datum]]="","",(lammering[[#This Row],[Verkoop-gewicht]]-lammering[[#This Row],[Speen-gewicht]])/(lammering[[#This Row],[Verkoop-datum]]-lammering[[#This Row],[Speen-datum]])) ->  | L19: =IF(lammering[[#This Row],[Verkoop-datum]]="","",(lammering[[#This Row],[Verkoop-gewicht]]-lammering[[#This Row],[geboorte-gewicht]])/(lammering[[#This Row],[Verkoop-datum]]-lammering[[#This Row],[Werp-datum]])) -> 0.3870967742 | P19: 0.3870967742 | R19: 0.3870967742 | S19: =IF(lammering[[#This Row],[Verkoop-gewicht]]="","",lammering[[#This Row],[Verkoop-gewicht]]-lammering[[#This Row],[geboorte-gewicht]]) -> 60 | U19: 60 | V19: =Opzoek_ooi[[#This Row],[Ooinummer]] -> BE277340162 | W19: 1 | X19: 1
A20: =lammering[[#This Row],[Ooi]] -> BE919886425 | B20: 0 | C20: 0 | D20: =IF(lammering[[#This Row],[Lam-nummer]]="",0,1) -> 0 | E20: =IF(lammering[[#This Row],[Dood in geboorte]]="ja",1,0) -> 1 | F20: =IF(lammering[[#This Row],[Ooi]]="",0,IF(Berekeningen!E20=0,1,0)) -> 0 | G20: =IF(D20=0,0,IF(lammering[[#This Row],[Dood in geboorte]]="Ja",0,IF(lammering[[#This Row],[Dood na geboorte]]="ja",0,1))) -> 0 | H20: =IF(lammering[[#This Row],[Opfok met kunstmelk]]="Ja",1,0) -> 0 | I20: =IF(lammering[[#This Row],[geslacht]]="O",1,0) -> 0 | J20: =IF(lammering[[#This Row],[Speen-datum]]="","",(lammering[[#This Row],[Speen-gewicht]]-lammering[[#This Row],[geboorte-gewicht]])/(lammering[[#This Row],[Speen-datum]]-lammering[[#This Row],[Werp-datum]])) ->  | K20: =IF(lammering[[#This Row],[Verkoop-datum]]="","",(lammering[[#This Row],[Verkoop-gewicht]]-lammering[[#This Row],[Speen-gewicht]])/(lammering[[#This Row],[Verkoop-datum]]-lammering[[#This Row],[Speen-datum]])) ->  | L20: =IF(lammering[[#This Row],[Verkoop-datum]]="","",(lammering[[#This Row],[Verkoop-gewicht]]-lammering[[#This Row],[geboorte-gewicht]])/(lammering[[#This Row],[Verkoop-datum]]-lammering[[#This Row],[Werp-datum]])) ->  | S20: =IF(lammering[[#This Row],[Verkoop-gewicht]]="","",lammering[[#This Row],[Verkoop-gewicht]]-lammering[[#This Row],[geboorte-gewicht]]) ->  | V20: =Opzoek_ooi[[#This Row],[Ooinummer]] -> BE876710023 | W20: 1 | X20: 1
A21: =lammering[[#This Row],[Ooi]] -> BE777340165 | B21: 1 | C21: BE777340165 | D21: =IF(lammering[[#This Row],[Lam-nummer]]="",0,1) -> 0 | E21: =IF(lammering[[#This Row],[Dood in geboorte]]="ja",1,0) -> 0 | F21: =IF(lammering[[#This Row],[Ooi]]="",0,IF(Berekeningen!E21=0,1,0)) -> 1 | G21: =IF(D21=0,0,IF(lammering[[#This Row],[Dood in geboorte]]="Ja",0,IF(lammering[[#This Row],[Dood na geboorte]]="ja",0,1))) -> 0 | H21: =IF(lammering[[#This Row],[Opfok met kunstmelk]]="Ja",1,0) -> 0 | I21: =IF(lammering[[#This Row],[geslacht]]="O",1,0) -> 1 | J21: =IF(lammering[[#This Row],[Speen-datum]]="","",(lammering[[#This Row],[Speen-gewicht]]-lammering[[#This Row],[geboorte-gewicht]])/(lammering[[#This Row],[Speen-datum]]-lammering[[#This Row],[Werp-datum]])) ->  | K21: =IF(lammering[[#This Row],[Verkoop-datum]]="","",(lammering[[#This Row],[Verkoop-gewicht]]-lammering[[#This Row],[Speen-gewicht]])/(lammering[[#This Row],[Verkoop-datum]]-lammering[[#This Row],[Speen-datum]])) ->  | L21: =IF(lammering[[#This Row],[Verkoop-datum]]="","",(lammering[[#This Row],[Verkoop-gewicht]]-lammering[[#This Row],[geboorte-gewicht]])/(lammering[[#This Row],[Verkoop-datum]]-lammering[[#This Row],[Werp-datum]])) ->  | S21: =IF(lammering[[#This Row],[Verkoop-gewicht]]="","",lammering[[#This Row],[Verkoop-gewicht]]-lammering[[#This Row],[geboorte-gewicht]]) ->  | V21: =Opzoek_ooi[[#This Row],[Ooinummer]] -> BE477340161 | W21: 1 | X21: 1
A22: =lammering[[#This Row],[Ooi]] -> BE777340165 | B22: 0 | C22: 0 | D22: =IF(lammering[[#This Row],[Lam-nummer]]="",0,1) -> 1 | E22: =IF(lammering[[#This Row],[Dood in geboorte]]="ja",1,0) -> 0 | F22: =IF(lammering[[#This Row],[Ooi]]="",0,IF(Berekeningen!E22=0,1,0)) -> 1 | G22: =IF(D22=0,0,IF(lammering[[#This Row],[Dood in geboorte]]="Ja",0,IF(lammering[[#This Row],[Dood na geboorte]]="ja",0,1))) -> 1 | H22: =IF(lammering[[#This Row],[Opfok met kunstmelk]]="Ja",1,0) -> 0 | I22: =IF(lammering[[#This Row],[geslacht]]="O",1,0) -> 0 | J22: =IF(lammering[[#This Row],[Speen-datum]]="","",(lammering[[#This Row],[Speen-gewicht]]-lammering[[#This Row],[geboorte-gewicht]])/(lammering[[#This Row],[Speen-datum]]-lammering[[#This Row],[Werp-datum]])) -> 0.2842465753 | K22: =IF(lammering[[#This Row],[Verkoop-datum]]="","",(lammering[[#This Row],[Verkoop-gewicht]]-lammering[[#This Row],[Speen-gewicht]])/(lammering[[#This Row],[Verkoop-datum]]-lammering[[#This Row],[Speen-datum]])) ->  | L22: =IF(lammering[[#This Row],[Verkoop-datum]]="","",(lammering[[#This Row],[Verkoop-gewicht]]-lammering[[#This Row],[geboorte-gewicht]])/(lammering[[#This Row],[Verkoop-datum]]-lammering[[#This Row],[Werp-datum]])) -> 0.2842465753 | P22: 0.2842465753 | R22: 0.2842465753 | S22: =IF(lammering[[#This Row],[Verkoop-gewicht]]="","",lammering[[#This Row],[Verkoop-gewicht]]-lammering[[#This Row],[geboorte-gewicht]]) -> 41.5 | U22: 41.5 | V22: =Opzoek_ooi[[#This Row],[Ooinummer]] -> BE577340135 | W22: 1 | X22: 1
A23: =lammering[[#This Row],[Ooi]] -> BE977340083 | B23: 1 | C23: BE977340083 | D23: =IF(lammering[[#This Row],[Lam-nummer]]="",0,1) -> 1 | E23: =IF(lammering[[#This Row],[Dood in geboorte]]="ja",1,0) -> 0 | F23: =IF(lammering[[#This Row],[Ooi]]="",0,IF(Berekeningen!E23=0,1,0)) -> 1 | G23: =IF(D23=0,0,IF(lammering[[#This Row],[Dood in geboorte]]="Ja",0,IF(lammering[[#This Row],[Dood na geboorte]]="ja",0,1))) -> 1 | H23: =IF(lammering[[#This Row],[Opfok met kunstmelk]]="Ja",1,0) -> 0 | I23: =IF(lammering[[#This Row],[geslacht]]="O",1,0) -> 1 | J23: =IF(lammering[[#This Row],[Speen-datum]]="","",(lammering[[#This Row],[Speen-gewicht]]-lammering[[#This Row],[geboorte-gewicht]])/(lammering[[#This Row],[Speen-datum]]-lammering[[#This Row],[Werp-datum]])) -> 0.3146853147 | K23: =IF(lammering[[#This Row],[Verkoop-datum]]="","",(lammering[[#This Row],[Verkoop-gewicht]]-lammering[[#This Row],[Speen-gewicht]])/(lammering[[#This Row],[Verkoop-datum]]-lammering[[#This Row],[Speen-datum]])) ->  | L23: =IF(lammering[[#This Row],[Verkoop-datum]]="","",(lammering[[#This Row],[Verkoop-gewicht]]-lammering[[#This Row],[geboorte-gewicht]])/(lammering[[#This Row],[Verkoop-datum]]-lammering[[#This Row],[Werp-datum]])) -> 0.3146853147 | M23: 0.3146853147 | O23: 0.3146853147 | S23: =IF(lammering[[#This Row],[Verkoop-gewicht]]="","",lammering[[#This Row],[Verkoop-gewicht]]-lammering[[#This Row],[geboorte-gewicht]]) -> 45 | T23: 45 | V23: =Opzoek_ooi[[#This Row],[Ooinummer]] -> BE176710022 | W23: 1 | X23: 1
A24: =lammering[[#This Row],[Ooi]] -> BE677340126 | B24: 1 | C24: BE677340126 | D24: =IF(lammering[[#This Row],[Lam-nummer]]="",0,1) -> 1 | E24: =IF(lammering[[#This Row],[Dood in geboorte]]="ja",1,0) -> 0 | F24: =IF(lammering[[#This Row],[Ooi]]="",0,IF(Berekeningen!E24=0,1,0)) -> 1 | G24: =IF(D24=0,0,IF(lammering[[#This Row],[Dood in geboorte]]="Ja",0,IF(lammering[[#This Row],[Dood na geboorte]]="ja",0,1))) -> 1 | H24: =IF(lammering[[#This Row],[Opfok met kunstmelk]]="Ja",1,0) -> 0 | I24: =IF(lammering[[#This Row],[geslacht]]="O",1,0) -> 1 | J24: =IF(lammering[[#This Row],[Speen-datum]]="","",(lammering[[#This Row],[Speen-gewicht]]-lammering[[#This Row],[geboorte-gewicht]])/(lammering[[#This Row],[Speen-datum]]-lammering[[#This Row],[Werp-datum]])) -> 0.2927007299 | K24: =IF(lammering[[#This Row],[Verkoop-datum]]="","",(lammering[[#This Row],[Verkoop-gewicht]]-lammering[[#This Row],[Speen-gewicht]])/(lammering[[#This Row],[Verkoop-datum]]-lammering[[#This Row],[Speen-datum]])) ->  | L24: =IF(lammering[[#This Row],[Verkoop-datum]]="","",(lammering[[#This Row],[Verkoop-gewicht]]-lammering[[#This Row],[geboorte-gewicht]])/(lammering[[#This Row],[Verkoop-datum]]-lammering[[#This Row],[Werp-datum]])) ->  | M24: 0.2927007299 | S24: =IF(lammering[[#This Row],[Verkoop-gewicht]]="","",lammering[[#This Row],[Verkoop-gewicht]]-lammering[[#This Row],[geboorte-gewicht]]) ->  | V24: =Opzoek_ooi[[#This Row],[Ooinummer]] -> BE120 | W24: 1 | X24: 1
A25: =lammering[[#This Row],[Ooi]] -> BE677340126 | B25: 0 | C25: 0 | D25: =IF(lammering[[#This Row],[Lam-nummer]]="",0,1) -> 1 | E25: =IF(lammering[[#This Row],[Dood in geboorte]]="ja",1,0) -> 0 | F25: =IF(lammering[[#This Row],[Ooi]]="",0,IF(Berekeningen!E25=0,1,0)) -> 1 | G25: =IF(D25=0,0,IF(lammering[[#This Row],[Dood in geboorte]]="Ja",0,IF(lammering[[#This Row],[Dood na geboorte]]="ja",0,1))) -> 1 | H25: =IF(lammering[[#This Row],[Opfok met kunstmelk]]="Ja",1,0) -> 0 | I25: =IF(lammering[[#This Row],[geslacht]]="O",1,0) -> 1 | J25: =IF(lammering[[#This Row],[Speen-datum]]="","",(lammering[[#This Row],[Speen-gewicht]]-lammering[[#This Row],[geboorte-gewicht]])/(lammering[[#This Row],[Speen-datum]]-lammering[[#This Row],[Werp-datum]])) -> 0.297810219 | K25: =IF(lammering[[#This Row],[Verkoop-datum]]="","",(lammering[[#This Row],[Verkoop-gewicht]]-lammering[[#This Row],[Speen-gewicht]])/(lammering[[#This Row],[Verkoop-datum]]-lammering[[#This Row],[Speen-datum]])) ->  | L25: =IF(lammering[[#This Row],[Verkoop-datum]]="","",(lammering[[#This Row],[Verkoop-gewicht]]-lammering[[#This Row],[geboorte-gewicht]])/(lammering[[#This Row],[Verkoop-datum]]-lammering[[#This Row],[Werp-datum]])) ->  | M25: 0.297810219 | S25: =IF(lammering[[#This Row],[Verkoop-gewicht]]="","",lammering[[#This Row],[Verkoop-gewicht]]-lammering[[#This Row],[geboorte-gewicht]]) ->  | V25: =Opzoek_ooi[[#This Row],[Ooinummer]] -> BE377340167 | W25: 1 | X25: 1
A26: =lammering[[#This Row],[Ooi]] -> BE677340126 | B26: 0 | C26: 0 | D26: =IF(lammering[[#This Row],[Lam-nummer]]="",0,1) -> 1 | E26: =IF(lammering[[#This Row],[Dood in geboorte]]="ja",1,0) -> 0 | F26: =IF(lammering[[#This Row],[Ooi]]="",0,IF(Berekeningen!E26=0,1,0)) -> 1 | G26: =IF(D26=0,0,IF(lammering[[#This Row],[Dood in geboorte]]="Ja",0,IF(lammering[[#This Row],[Dood na geboorte]]="ja",0,1))) -> 1 | H26: =IF(lammering[[#This Row],[Opfok met kunstmelk]]="Ja",1,0) -> 0 | I26: =IF(lammering[[#This Row],[geslacht]]="O",1,0) -> 0 | J26: =IF(lammering[[#This Row],[Speen-datum]]="","",(lammering[[#This Row],[Speen-gewicht]]-lammering[[#This Row],[geboorte-gewicht]])/(lammering[[#This Row],[Speen-datum]]-lammering[[#This Row],[Werp-datum]])) -> 0.3751824818 | K26: =IF(lammering[[#This Row],[Verkoop-datum]]="","",(lammering[[#This Row],[Verkoop-gewicht]]-lammering[[#This Row],[Speen-gewicht]])/(lammering[[#This Row],[Verkoop-datum]]-lammering[[#This Row],[Speen-datum]])) -> -0.07692307692 | L26: =IF(lammering[[#This Row],[Verkoop-datum]]="","",(lammering[[#This Row],[Verkoop-gewicht]]-lammering[[#This Row],[geboorte-gewicht]])/(lammering[[#This Row],[Verkoop-datum]]-lammering[[#This Row],[Werp-datum]])) -> 0.336 | P26: 0.3751824818 | Q26: -0.07692307692 | R26: 0.336 | S26: =IF(lammering[[#This Row],[Verkoop-gewicht]]="","",lammering[[#This Row],[Verkoop-gewicht]]-lammering[[#This Row],[geboorte-gewicht]]) -> 50.4 | U26: 50.4 | V26: =Opzoek_ooi[[#This Row],[Ooinummer]] -> BE477340175 | W26: 1 | X26: 1
A27: =lammering[[#This Row],[Ooi]] -> BE227620120 | B27: 1 | C27: BE227620120 | D27: =IF(lammering[[#This Row],[Lam-nummer]]="",0,1) -> 1 | E27: =IF(lammering[[#This Row],[Dood in geboorte]]="ja",1,0) -> 0 | F27: =IF(lammering[[#This Row],[Ooi]]="",0,IF(Berekeningen!E27=0,1,0)) -> 1 | G27: =IF(D27=0,0,IF(lammering[[#This Row],[Dood in geboorte]]="Ja",0,IF(lammering[[#This Row],[Dood na geboorte]]="ja",0,1))) -> 1 | H27: =IF(lammering[[#This Row],[Opfok met kunstmelk]]="Ja",1,0) -> 0 | I27: =IF(lammering[[#This Row],[geslacht]]="O",1,0) -> 1 | J27: =IF(lammering[[#This Row],[Speen-datum]]="","",(lammering[[#This Row],[Speen-gewicht]]-lammering[[#This Row],[geboorte-gewicht]])/(lammering[[#This Row],[Speen-datum]]-lammering[[#This Row],[Werp-datum]])) -> 0.2411347518 | K27: =IF(lammering[[#This Row],[Verkoop-datum]]="","",(lammering[[#This Row],[Verkoop-gewicht]]-lammering[[#This Row],[Speen-gewicht]])/(lammering[[#This Row],[Verkoop-datum]]-lammering[[#This Row],[Speen-datum]])) ->  | L27: =IF(lammering[[#This Row],[Verkoop-datum]]="","",(lammering[[#This Row],[Verkoop-gewicht]]-lammering[[#This Row],[geboorte-gewicht]])/(lammering[[#This Row],[Verkoop-datum]]-lammering[[#This Row],[Werp-datum]])) -> 0.2411347518 | M27: 0.2411347518 | O27: 0.2411347518 | S27: =IF(lammering[[#This Row],[Verkoop-gewicht]]="","",lammering[[#This Row],[Verkoop-gewicht]]-lammering[[#This Row],[geboorte-gewicht]]) -> 34 | T27: 34 | V27: =Opzoek_ooi[[#This Row],[Ooinummer]] -> BE577340166 | W27: 1 | X27: 1
A28: =lammering[[#This Row],[Ooi]] -> BE227620120 | B28: 0 | C28: 0 | D28: =IF(lammering[[#This Row],[Lam-nummer]]="",0,1) -> 1 | E28: =IF(lammering[[#This Row],[Dood in geboorte]]="ja",1,0) -> 0 | F28: =IF(lammering[[#This Row],[Ooi]]="",0,IF(Berekeningen!E28=0,1,0)) -> 1 | G28: =IF(D28=0,0,IF(lammering[[#This Row],[Dood in geboorte]]="Ja",0,IF(lammering[[#This Row],[Dood na geboorte]]="ja",0,1))) -> 1 | H28: =IF(lammering[[#This Row],[Opfok met kunstmelk]]="Ja",1,0) -> 1 | I28: =IF(lammering[[#This Row],[geslacht]]="O",1,0) -> 1 | J28: =IF(lammering[[#This Row],[Speen-datum]]="","",(lammering[[#This Row],[Speen-gewicht]]-lammering[[#This Row],[geboorte-gewicht]])/(lammering[[#This Row],[Speen-datum]]-lammering[[#This Row],[Werp-datum]])) -> 0.2907801418 | K28: =IF(lammering[[#This Row],[Verkoop-datum]]="","",(lammering[[#This Row],[Verkoop-gewicht]]-lammering[[#This Row],[Speen-gewicht]])/(lammering[[#This Row],[Verkoop-datum]]-lammering[[#This Row],[Speen-datum]])) ->  | L28: =IF(lammering[[#This Row],[Verkoop-datum]]="","",(lammering[[#This Row],[Verkoop-gewicht]]-lammering[[#This Row],[geboorte-gewicht]])/(lammering[[#This Row],[Verkoop-datum]]-lammering[[#This Row],[Werp-datum]])) -> 0.2907801418 | M28: 0.2907801418 | O28: 0.2907801418 | S28: =IF(lammering[[#This Row],[Verkoop-gewicht]]="","",lammering[[#This Row],[Verkoop-gewicht]]-lammering[[#This Row],[geboorte-gewicht]]) -> 41 | T28: 41 | V28: =Opzoek_ooi[[#This Row],[Ooinummer]] -> BE177340138 | W28: 1 | X28: 1
A29: =lammering[[#This Row],[Ooi]] -> BE227620120 | B29: 0 | C29: 0 | D29: =IF(lammering[[#This Row],[Lam-nummer]]="",0,1) -> 1 | E29: =IF(lammering[[#This Row],[Dood in geboorte]]="ja",1,0) -> 0 | F29: =IF(lammering[[#This Row],[Ooi]]="",0,IF(Berekeningen!E29=0,1,0)) -> 1 | G29: =IF(D29=0,0,IF(lammering[[#This Row],[Dood in geboorte]]="Ja",0,IF(lammering[[#This Row],[Dood na geboorte]]="ja",0,1))) -> 1 | H29: =IF(lammering[[#This Row],[Opfok met kunstmelk]]="Ja",1,0) -> 1 | I29: =IF(lammering[[#This Row],[geslacht]]="O",1,0) -> 0 | J29: =IF(lammering[[#This Row],[Speen-datum]]="","",(lammering[[#This Row],[Speen-gewicht]]-lammering[[#This Row],[geboorte-gewicht]])/(lammering[[#This Row],[Speen-datum]]-lammering[[#This Row],[Werp-datum]])) -> 0.265248227 | K29: =IF(lammering[[#This Row],[Verkoop-datum]]="","",(lammering[[#This Row],[Verkoop-gewicht]]-lammering[[#This Row],[Speen-gewicht]])/(lammering[[#This Row],[Verkoop-datum]]-lammering[[#This Row],[Speen-datum]])) ->  | L29: =IF(lammering[[#This Row],[Verkoop-datum]]="","",(lammering[[#This Row],[Verkoop-gewicht]]-lammering[[#This Row],[geboorte-gewicht]])/(lammering[[#This Row],[Verkoop-datum]]-lammering[[#This Row],[Werp-datum]])) -> 0.265248227 | P29: 0.265248227 | R29: 0.265248227 | S29: =IF(lammering[[#This Row],[Verkoop-gewicht]]="","",lammering[[#This Row],[Verkoop-gewicht]]-lammering[[#This Row],[geboorte-gewicht]]) -> 37.4 | U29: 37.4 | V29: =Opzoek_ooi[[#This Row],[Ooinummer]] -> 0
A30: =lammering[[#This Row],[Ooi]] -> BE127620112 | B30: 1 | C30: BE127620112 | D30: =IF(lammering[[#This Row],[Lam-nummer]]="",0,1) -> 1 | E30: =IF(lammering[[#This Row],[Dood in geboorte]]="ja",1,0) -> 0 | F30: =IF(lammering[[#This Row],[Ooi]]="",0,IF(Berekeningen!E30=0,1,0)) -> 1 | G30: =IF(D30=0,0,IF(lammering[[#This Row],[Dood in geboorte]]="Ja",0,IF(lammering[[#This Row],[Dood na geboorte]]="ja",0,1))) -> 1 | H30: =IF(lammering[[#This Row],[Opfok met kunstmelk]]="Ja",1,0) -> 0 | I30: =IF(lammering[[#This Row],[geslacht]]="O",1,0) -> 1 | J30: =IF(lammering[[#This Row],[Speen-datum]]="","",(lammering[[#This Row],[Speen-gewicht]]-lammering[[#This Row],[geboorte-gewicht]])/(lammering[[#This Row],[Speen-datum]]-lammering[[#This Row],[Werp-datum]])) ->  | K30: =IF(lammering[[#This Row],[Verkoop-datum]]="","",(lammering[[#This Row],[Verkoop-gewicht]]-lammering[[#This Row],[Speen-gewicht]])/(lammering[[#This Row],[Verkoop-datum]]-lammering[[#This Row],[Speen-datum]])) ->  | L30: =IF(lammering[[#This Row],[Verkoop-datum]]="","",(lammering[[#This Row],[Verkoop-gewicht]]-lammering[[#This Row],[geboorte-gewicht]])/(lammering[[#This Row],[Verkoop-datum]]-lammering[[#This Row],[Werp-datum]])) ->  | S30: =IF(lammering[[#This Row],[Verkoop-gewicht]]="","",lammering[[#This Row],[Verkoop-gewicht]]-lammering[[#This Row],[geboorte-gewicht]]) ->  | V30: =Opzoek_ooi[[#This Row],[Ooinummer]] -> 0
A31: =lammering[[#This Row],[Ooi]] -> BE127620112 | B31: 0 | C31: 0 | D31: =IF(lammering[[#This Row],[Lam-nummer]]="",0,1) -> 1 | E31: =IF(lammering[[#This Row],[Dood in geboorte]]="ja",1,0) -> 0 | F31: =IF(lammering[[#This Row],[Ooi]]="",0,IF(Berekeningen!E31=0,1,0)) -> 1 | G31: =IF(D31=0,0,IF(lammering[[#This Row],[Dood in geboorte]]="Ja",0,IF(lammering[[#This Row],[Dood na geboorte]]="ja",0,1))) -> 1 | H31: =IF(lammering[[#This Row],[Opfok met kunstmelk]]="Ja",1,0) -> 0 | I31: =IF(lammering[[#This Row],[geslacht]]="O",1,0) -> 0 | J31: =IF(lammering[[#This Row],[Speen-datum]]="","",(lammering[[#This Row],[Speen-gewicht]]-lammering[[#This Row],[geboorte-gewicht]])/(lammering[[#This Row],[Speen-datum]]-lammering[[#This Row],[Werp-datum]])) ->  | K31: =IF(lammering[[#This Row],[Verkoop-datum]]="","",(lammering[[#This Row],[Verkoop-gewicht]]-lammering[[#This Row],[Speen-gewicht]])/(lammering[[#This Row],[Verkoop-datum]]-lammering[[#This Row],[Speen-datum]])) ->  | L31: =IF(lammering[[#This Row],[Verkoop-datum]]="","",(lammering[[#This Row],[Verkoop-gewicht]]-lammering[[#This Row],[geboorte-gewicht]])/(lammering[[#This Row],[Verkoop-datum]]-lammering[[#This Row],[Werp-datum]])) ->  | S31: =IF(lammering[[#This Row],[Verkoop-gewicht]]="","",lammering[[#This Row],[Verkoop-gewicht]]-lammering[[#This Row],[geboorte-gewicht]]) ->  | V31: =Opzoek_ooi[[#This Row],[Ooinummer]] -> 0
A32: =lammering[[#This Row],[Ooi]] -> BE719886426 | B32: 1 | C32: BE719886426 | D32: =IF(lammering[[#This Row],[Lam-nummer]]="",0,1) -> 1 | E32: =IF(lammering[[#This Row],[Dood in geboorte]]="ja",1,0) -> 0 | F32: =IF(lammering[[#This Row],[Ooi]]="",0,IF(Berekeningen!E32=0,1,0)) -> 1 | G32: =IF(D32=0,0,IF(lammering[[#This Row],[Dood in geboorte]]="Ja",0,IF(lammering[[#This Row],[Dood na geboorte]]="ja",0,1))) -> 1 | H32: =IF(lammering[[#This Row],[Opfok met kunstmelk]]="Ja",1,0) -> 0 | I32: =IF(lammering[[#This Row],[geslacht]]="O",1,0) -> 0 | J32: =IF(lammering[[#This Row],[Speen-datum]]="","",(lammering[[#This Row],[Speen-gewicht]]-lammering[[#This Row],[geboorte-gewicht]])/(lammering[[#This Row],[Speen-datum]]-lammering[[#This Row],[Werp-datum]])) -> 0.3347826087 | K32: =IF(lammering[[#This Row],[Verkoop-datum]]="","",(lammering[[#This Row],[Verkoop-gewicht]]-lammering[[#This Row],[Speen-gewicht]])/(lammering[[#This Row],[Verkoop-datum]]-lammering[[#This Row],[Speen-datum]])) ->  | L32: =IF(lammering[[#This Row],[Verkoop-datum]]="","",(lammering[[#This Row],[Verkoop-gewicht]]-lammering[[#This Row],[geboorte-gewicht]])/(lammering[[#This Row],[Verkoop-datum]]-lammering[[#This Row],[Werp-datum]])) -> 0.3347826087 | P32: 0.3347826087 | R32: 0.3347826087 | S32: =IF(lammering[[#This Row],[Verkoop-gewicht]]="","",lammering[[#This Row],[Verkoop-gewicht]]-lammering[[#This Row],[geboorte-gewicht]]) -> 46.2 | U32: 46.2 | V32: =Opzoek_ooi[[#This Row],[Ooinummer]] -> 0
A33: =lammering[[#This Row],[Ooi]] -> BE719886426 | B33: 0 | C33: 0 | D33: =IF(lammering[[#This Row],[Lam-nummer]]="",0,1) -> 1 | E33: =IF(lammering[[#This Row],[Dood in geboorte]]="ja",1,0) -> 0 | F33: =IF(lammering[[#This Row],[Ooi]]="",0,IF(Berekeningen!E33=0,1,0)) -> 1 | G33: =IF(D33=0,0,IF(lammering[[#This Row],[Dood in geboorte]]="Ja",0,IF(lammering[[#This Row],[Dood na geboorte]]="ja",0,1))) -> 1 | H33: =IF(lammering[[#This Row],[Opfok met kunstmelk]]="Ja",1,0) -> 0 | I33: =IF(lammering[[#This Row],[geslacht]]="O",1,0) -> 0 | J33: =IF(lammering[[#This Row],[Speen-datum]]="","",(lammering[[#This Row],[Speen-gewicht]]-lammering[[#This Row],[geboorte-gewicht]])/(lammering[[#This Row],[Speen-datum]]-lammering[[#This Row],[Werp-datum]])) -> 0.3188405797 | K33: =IF(lammering[[#This Row],[Verkoop-datum]]="","",(lammering[[#This Row],[Verkoop-gewicht]]-lammering[[#This Row],[Speen-gewicht]])/(lammering[[#This Row],[Verkoop-datum]]-lammering[[#This Row],[Speen-datum]])) ->  | L33: =IF(lammering[[#This Row],[Verkoop-datum]]="","",(lammering[[#This Row],[Verkoop-gewicht]]-lammering[[#This Row],[geboorte-gewicht]])/(lammering[[#This Row],[Verkoop-datum]]-lammering[[#This Row],[Werp-datum]])) -> 0.3188405797 | P33: 0.3188405797 | R33: 0.3188405797 | S33: =IF(lammering[[#This Row],[Verkoop-gewicht]]="","",lammering[[#This Row],[Verkoop-gewicht]]-lammering[[#This Row],[geboorte-gewicht]]) -> 44 | U33: 44 | V33: =Opzoek_ooi[[#This Row],[Ooinummer]] -> 0
A34: =lammering[[#This Row],[Ooi]] -> BE719886426 | B34: 0 | C34: 0 | D34: =IF(lammering[[#This Row],[Lam-nummer]]="",0,1) -> 1 | E34: =IF(lammering[[#This Row],[Dood in geboorte]]="ja",1,0) -> 0 | F34: =IF(lammering[[#This Row],[Ooi]]="",0,IF(Berekeningen!E34=0,1,0)) -> 1 | G34: =IF(D34=0,0,IF(lammering[[#This Row],[Dood in geboorte]]="Ja",0,IF(lammering[[#This Row],[Dood na geboorte]]="ja",0,1))) -> 1 | H34: =IF(lammering[[#This Row],[Opfok met kunstmelk]]="Ja",1,0) -> 0 | I34: =IF(lammering[[#This Row],[geslacht]]="O",1,0) -> 0 | J34: =IF(lammering[[#This Row],[Speen-datum]]="","",(lammering[[#This Row],[Speen-gewicht]]-lammering[[#This Row],[geboorte-gewicht]])/(lammering[[#This Row],[Speen-datum]]-lammering[[#This Row],[Werp-datum]])) -> 0.3876811594 | K34: =IF(lammering[[#This Row],[Verkoop-datum]]="","",(lammering[[#This Row],[Verkoop-gewicht]]-lammering[[#This Row],[Speen-gewicht]])/(lammering[[#This Row],[Verkoop-datum]]-lammering[[#This Row],[Speen-datum]])) ->  | L34: =IF(lammering[[#This Row],[Verkoop-datum]]="","",(lammering[[#This Row],[Verkoop-gewicht]]-lammering[[#This Row],[geboorte-gewicht]])/(lammering[[#This Row],[Verkoop-datum]]-lammering[[#This Row],[Werp-datum]])) -> 0.3876811594 | P34: 0.3876811594 | R34: 0.3876811594 | S34: =IF(lammering[[#This Row],[Verkoop-gewicht]]="","",lammering[[#This Row],[Verkoop-gewicht]]-lammering[[#This Row],[geboorte-gewicht]]) -> 53.5 | U34: 53.5 | V34: =Opzoek_ooi[[#This Row],[Ooinummer]] -> 0
A35: =lammering[[#This Row],[Ooi]] -> BE876710023 | B35: 1 | C35: BE876710023 | D35: =IF(lammering[[#This Row],[Lam-nummer]]="",0,1) -> 1 | E35: =IF(lammering[[#This Row],[Dood in geboorte]]="ja",1,0) -> 0 | F35: =IF(lammering[[#This Row],[Ooi]]="",0,IF(Berekeningen!E35=0,1,0)) -> 1 | G35: =IF(D35=0,0,IF(lammering[[#This Row],[Dood in geboorte]]="Ja",0,IF(lammering[[#This Row],[Dood na geboorte]]="ja",0,1))) -> 1 | H35: =IF(lammering[[#This Row],[Opfok met kunstmelk]]="Ja",1,0) -> 0 | I35: =IF(lammering[[#This Row],[geslacht]]="O",1,0) -> 0 | J35: =IF(lammering[[#This Row],[Speen-datum]]="","",(lammering[[#This Row],[Speen-gewicht]]-lammering[[#This Row],[geboorte-gewicht]])/(lammering[[#This Row],[Speen-datum]]-lammering[[#This Row],[Werp-datum]])) -> 0.3613138686 | K35: =IF(lammering[[#This Row],[Verkoop-datum]]="","",(lammering[[#This Row],[Verkoop-gewicht]]-lammering[[#This Row],[Speen-gewicht]])/(lammering[[#This Row],[Verkoop-datum]]-lammering[[#This Row],[Speen-datum]])) -> -0.1111111111 | L35: =IF(lammering[[#This Row],[Verkoop-datum]]="","",(lammering[[#This Row],[Verkoop-gewicht]]-lammering[[#This Row],[geboorte-gewicht]])/(lammering[[#This Row],[Verkoop-datum]]-lammering[[#This Row],[Werp-datum]])) -> 0.3321917808 | P35: 0.3613138686 | Q35: -0.1111111111 | R35: 0.3321917808 | S35: =IF(lammering[[#This Row],[Verkoop-gewicht]]="","",lammering[[#This Row],[Verkoop-gewicht]]-lammering[[#This Row],[geboorte-gewicht]]) -> 48.5 | U35: 48.5 | V35: =Opzoek_ooi[[#This Row],[Ooinummer]] -> 0
A36: =lammering[[#This Row],[Ooi]] -> BE477340161 | B36: 1 | C36: BE477340161 | D36: =IF(lammering[[#This Row],[Lam-nummer]]="",0,1) -> 1 | E36: =IF(lammering[[#This Row],[Dood in geboorte]]="ja",1,0) -> 0 | F36: =IF(lammering[[#This Row],[Ooi]]="",0,IF(Berekeningen!E36=0,1,0)) -> 1 | G36: =IF(D36=0,0,IF(lammering[[#This Row],[Dood in geboorte]]="Ja",0,IF(lammering[[#This Row],[Dood na geboorte]]="ja",0,1))) -> 1 | H36: =IF(lammering[[#This Row],[Opfok met kunstmelk]]="Ja",1,0) -> 0 | I36: =IF(lammering[[#This Row],[geslacht]]="O",1,0) -> 1 | J36: =IF(lammering[[#This Row],[Speen-datum]]="","",(lammering[[#This Row],[Speen-gewicht]]-lammering[[#This Row],[geboorte-gewicht]])/(lammering[[#This Row],[Speen-datum]]-lammering[[#This Row],[Werp-datum]])) -> 0.2721804511 | K36: =IF(lammering[[#This Row],[Verkoop-datum]]="","",(lammering[[#This Row],[Verkoop-gewicht]]-lammering[[#This Row],[Speen-gewicht]])/(lammering[[#This Row],[Verkoop-datum]]-lammering[[#This Row],[Speen-datum]])) ->  | L36: =IF(lammering[[#This Row],[Verkoop-datum]]="","",(lammering[[#This Row],[Verkoop-gewicht]]-lammering[[#This Row],[geboorte-gewicht]])/(lammering[[#This Row],[Verkoop-datum]]-lammering[[#This Row],[Werp-datum]])) ->  | M36: 0.2721804511 | S36: =IF(lammering[[#This Row],[Verkoop-gewicht]]="","",lammering[[#This Row],[Verkoop-gewicht]]-lammering[[#This Row],[geboorte-gewicht]]) ->  | V36: =Opzoek_ooi[[#This Row],[Ooinummer]] -> 0
A37: =lammering[[#This Row],[Ooi]] -> BE477340161 | B37: 0 | C37: 0 | D37: =IF(lammering[[#This Row],[Lam-nummer]]="",0,1) -> 1 | E37: =IF(lammering[[#This Row],[Dood in geboorte]]="ja",1,0) -> 0 | F37: =IF(lammering[[#This Row],[Ooi]]="",0,IF(Berekeningen!E37=0,1,0)) -> 1 | G37: =IF(D37=0,0,IF(lammering[[#This Row],[Dood in geboorte]]="Ja",0,IF(lammering[[#This Row],[Dood na geboorte]]="ja",0,1))) -> 1 | H37: =IF(lammering[[#This Row],[Opfok met kunstmelk]]="Ja",1,0) -> 0 | I37: =IF(lammering[[#This Row],[geslacht]]="O",1,0) -> 0 | J37: =IF(lammering[[#This Row],[Speen-datum]]="","",(lammering[[#This Row],[Speen-gewicht]]-lammering[[#This Row],[geboorte-gewicht]])/(lammering[[#This Row],[Speen-datum]]-lammering[[#This Row],[Werp-datum]])) -> 0.3097744361 | K37: =IF(lammering[[#This Row],[Verkoop-datum]]="","",(lammering[[#This Row],[Verkoop-gewicht]]-lammering[[#This Row],[Speen-gewicht]])/(lammering[[#This Row],[Verkoop-datum]]-lammering[[#This Row],[Speen-datum]])) ->  | L37: =IF(lammering[[#This Row],[Verkoop-datum]]="","",(lammering[[#This Row],[Verkoop-gewicht]]-lammering[[#This Row],[geboorte-gewicht]])/(lammering[[#This Row],[Verkoop-datum]]-lammering[[#This Row],[Werp-datum]])) -> 0.3097744361 | P37: 0.3097744361 | R37: 0.3097744361 | S37: =IF(lammering[[#This Row],[Verkoop-gewicht]]="","",lammering[[#This Row],[Verkoop-gewicht]]-lammering[[#This Row],[geboorte-gewicht]]) -> 41.2 | U37: 41.2 | V37: =Opzoek_ooi[[#This Row],[Ooinummer]] -> 0
A38: =lammering[[#This Row],[Ooi]] -> BE527620141 | B38: 1 | C38: BE527620141 | D38: =IF(lammering[[#This Row],[Lam-nummer]]="",0,1) -> 1 | E38: =IF(lammering[[#This Row],[Dood in geboorte]]="ja",1,0) -> 0 | F38: =IF(lammering[[#This Row],[Ooi]]="",0,IF(Berekeningen!E38=0,1,0)) -> 1 | G38: =IF(D38=0,0,IF(lammering[[#This Row],[Dood in geboorte]]="Ja",0,IF(lammering[[#This Row],[Dood na geboorte]]="ja",0,1))) -> 1 | H38: =IF(lammering[[#This Row],[Opfok met kunstmelk]]="Ja",1,0) -> 0 | I38: =IF(lammering[[#This Row],[geslacht]]="O",1,0) -> 1 | J38: =IF(lammering[[#This Row],[Speen-datum]]="","",(lammering[[#This Row],[Speen-gewicht]]-lammering[[#This Row],[geboorte-gewicht]])/(lammering[[#This Row],[Speen-datum]]-lammering[[#This Row],[Werp-datum]])) -> 0.2197080292 | K38: =IF(lammering[[#This Row],[Verkoop-datum]]="","",(lammering[[#This Row],[Verkoop-gewicht]]-lammering[[#This Row],[Speen-gewicht]])/(lammering[[#This Row],[Verkoop-datum]]-lammering[[#This Row],[Speen-datum]])) ->  | L38: =IF(lammering[[#This Row],[Verkoop-datum]]="","",(lammering[[#This Row],[Verkoop-gewicht]]-lammering[[#This Row],[geboorte-gewicht]])/(lammering[[#This Row],[Verkoop-datum]]-lammering[[#This Row],[Werp-datum]])) -> 0.2197080292 | M38: 0.2197080292 | O38: 0.2197080292 | S38: =IF(lammering[[#This Row],[Verkoop-gewicht]]="","",lammering[[#This Row],[Verkoop-gewicht]]-lammering[[#This Row],[geboorte-gewicht]]) -> 30.1 | T38: 30.1 | V38: =Opzoek_ooi[[#This Row],[Ooinummer]] -> 0
A39: =lammering[[#This Row],[Ooi]] -> BE527620141 | B39: 0 | C39: 0 | D39: =IF(lammering[[#This Row],[Lam-nummer]]="",0,1) -> 1 | E39: =IF(lammering[[#This Row],[Dood in geboorte]]="ja",1,0) -> 0 | F39: =IF(lammering[[#This Row],[Ooi]]="",0,IF(Berekeningen!E39=0,1,0)) -> 1 | G39: =IF(D39=0,0,IF(lammering[[#This Row],[Dood in geboorte]]="Ja",0,IF(lammering[[#This Row],[Dood na geboorte]]="ja",0,1))) -> 1 | H39: =IF(lammering[[#This Row],[Opfok met kunstmelk]]="Ja",1,0) -> 0 | I39: =IF(lammering[[#This Row],[geslacht]]="O",1,0) -> 1 | J39: =IF(lammering[[#This Row],[Speen-datum]]="","",(lammering[[#This Row],[Speen-gewicht]]-lammering[[#This Row],[geboorte-gewicht]])/(lammering[[#This Row],[Speen-datum]]-lammering[[#This Row],[Werp-datum]])) -> 0.3145985401 | K39: =IF(lammering[[#This Row],[Verkoop-datum]]="","",(lammering[[#This Row],[Verkoop-gewicht]]-lammering[[#This Row],[Speen-gewicht]])/(lammering[[#This Row],[Verkoop-datum]]-lammering[[#This Row],[Speen-datum]])) ->  | L39: =IF(lammering[[#This Row],[Verkoop-datum]]="","",(lammering[[#This Row],[Verkoop-gewicht]]-lammering[[#This Row],[geboorte-gewicht]])/(lammering[[#This Row],[Verkoop-datum]]-lammering[[#This Row],[Werp-datum]])) -> 0.3145985401 | M39: 0.3145985401 | O39: 0.3145985401 | S39: =IF(lammering[[#This Row],[Verkoop-gewicht]]="","",lammering[[#This Row],[Verkoop-gewicht]]-lammering[[#This Row],[geboorte-gewicht]]) -> 43.1 | T39: 43.1 | V39: =Opzoek_ooi[[#This Row],[Ooinummer]] -> 0
A40: =lammering[[#This Row],[Ooi]] -> BE277340095 | B40: 1 | C40: BE277340095 | D40: =IF(lammering[[#This Row],[Lam-nummer]]="",0,1) -> 1 | E40: =IF(lammering[[#This Row],[Dood in geboorte]]="ja",1,0) -> 0 | F40: =IF(lammering[[#This Row],[Ooi]]="",0,IF(Berekeningen!E40=0,1,0)) -> 1 | G40: =IF(D40=0,0,IF(lammering[[#This Row],[Dood in geboorte]]="Ja",0,IF(lammering[[#This Row],[Dood na geboorte]]="ja",0,1))) -> 1 | H40: =IF(lammering[[#This Row],[Opfok met kunstmelk]]="Ja",1,0) -> 0 | I40: =IF(lammering[[#This Row],[geslacht]]="O",1,0) -> 0 | J40: =IF(lammering[[#This Row],[Speen-datum]]="","",(lammering[[#This Row],[Speen-gewicht]]-lammering[[#This Row],[geboorte-gewicht]])/(lammering[[#This Row],[Speen-datum]]-lammering[[#This Row],[Werp-datum]])) -> 0.3433823529 | K40: =IF(lammering[[#This Row],[Verkoop-datum]]="","",(lammering[[#This Row],[Verkoop-gewicht]]-lammering[[#This Row],[Speen-gewicht]])/(lammering[[#This Row],[Verkoop-datum]]-lammering[[#This Row],[Speen-datum]])) -> 0 | L40: =IF(lammering[[#This Row],[Verkoop-datum]]="","",(lammering[[#This Row],[Verkoop-gewicht]]-lammering[[#This Row],[geboorte-gewicht]])/(lammering[[#This Row],[Verkoop-datum]]-lammering[[#This Row],[Werp-datum]])) -> 0.3220689655 | P40: 0.3433823529 | Q40: 0 | R40: 0.3220689655 | S40: =IF(lammering[[#This Row],[Verkoop-gewicht]]="","",lammering[[#This Row],[Verkoop-gewicht]]-lammering[[#This Row],[geboorte-gewicht]]) -> 46.7 | U40: 46.7 | V40: =Opzoek_ooi[[#This Row],[Ooinummer]] -> 0
A41: =lammering[[#This Row],[Ooi]] -> BE277340095 | B41: 0 | C41: 0 | D41: =IF(lammering[[#This Row],[Lam-nummer]]="",0,1) -> 0 | E41: =IF(lammering[[#This Row],[Dood in geboorte]]="ja",1,0) -> 1 | F41: =IF(lammering[[#This Row],[Ooi]]="",0,IF(Berekeningen!E41=0,1,0)) -> 0 | G41: =IF(D41=0,0,IF(lammering[[#This Row],[Dood in geboorte]]="Ja",0,IF(lammering[[#This Row],[Dood na geboorte]]="ja",0,1))) -> 0 | H41: =IF(lammering[[#This Row],[Opfok met kunstmelk]]="Ja",1,0) -> 0 | I41: =IF(lammering[[#This Row],[geslacht]]="O",1,0) -> 0 | J41: =IF(lammering[[#This Row],[Speen-datum]]="","",(lammering[[#This Row],[Speen-gewicht]]-lammering[[#This Row],[geboorte-gewicht]])/(lammering[[#This Row],[Speen-datum]]-lammering[[#This Row],[Werp-datum]])) ->  | K41: =IF(lammering[[#This Row],[Verkoop-datum]]="","",(lammering[[#This Row],[Verkoop-gewicht]]-lammering[[#This Row],[Speen-gewicht]])/(lammering[[#This Row],[Verkoop-datum]]-lammering[[#This Row],[Speen-datum]])) ->  | L41: =IF(lammering[[#This Row],[Verkoop-datum]]="","",(lammering[[#This Row],[Verkoop-gewicht]]-lammering[[#This Row],[geboorte-gewicht]])/(lammering[[#This Row],[Verkoop-datum]]-lammering[[#This Row],[Werp-datum]])) ->  | S41: =IF(lammering[[#This Row],[Verkoop-gewicht]]="","",lammering[[#This Row],[Verkoop-gewicht]]-lammering[[#This Row],[geboorte-gewicht]]) ->  | V41: =Opzoek_ooi[[#This Row],[Ooinummer]] -> 0
A42: =lammering[[#This Row],[Ooi]] -> BE277340095 | B42: 0 | C42: 0 | D42: =IF(lammering[[#This Row],[Lam-nummer]]="",0,1) -> 0 | E42: =IF(lammering[[#This Row],[Dood in geboorte]]="ja",1,0) -> 1 | F42: =IF(lammering[[#This Row],[Ooi]]="",0,IF(Berekeningen!E42=0,1,0)) -> 0 | G42: =IF(D42=0,0,IF(lammering[[#This Row],[Dood in geboorte]]="Ja",0,IF(lammering[[#This Row],[Dood na geboorte]]="ja",0,1))) -> 0 | H42: =IF(lammering[[#This Row],[Opfok met kunstmelk]]="Ja",1,0) -> 0 | I42: =IF(lammering[[#This Row],[geslacht]]="O",1,0) -> 1 | J42: =IF(lammering[[#This Row],[Speen-datum]]="","",(lammering[[#This Row],[Speen-gewicht]]-lammering[[#This Row],[geboorte-gewicht]])/(lammering[[#This Row],[Speen-datum]]-lammering[[#This Row],[Werp-datum]])) ->  | K42: =IF(lammering[[#This Row],[Verkoop-datum]]="","",(lammering[[#This Row],[Verkoop-gewicht]]-lammering[[#This Row],[Speen-gewicht]])/(lammering[[#This Row],[Verkoop-datum]]-lammering[[#This Row],[Speen-datum]])) ->  | L42: =IF(lammering[[#This Row],[Verkoop-datum]]="","",(lammering[[#This Row],[Verkoop-gewicht]]-lammering[[#This Row],[geboorte-gewicht]])/(lammering[[#This Row],[Verkoop-datum]]-lammering[[#This Row],[Werp-datum]])) ->  | S42: =IF(lammering[[#This Row],[Verkoop-gewicht]]="","",lammering[[#This Row],[Verkoop-gewicht]]-lammering[[#This Row],[geboorte-gewicht]]) ->  | V42: =Opzoek_ooi[[#This Row],[Ooinummer]] -> 0
A43: =lammering[[#This Row],[Ooi]] -> BE377340167 | B43: 1 | C43: BE377340167 | D43: =IF(lammering[[#This Row],[Lam-nummer]]="",0,1) -> 1 | E43: =IF(lammering[[#This Row],[Dood in geboorte]]="ja",1,0) -> 0 | F43: =IF(lammering[[#This Row],[Ooi]]="",0,IF(Berekeningen!E43=0,1,0)) -> 1 | G43: =IF(D43=0,0,IF(lammering[[#This Row],[Dood in geboorte]]="Ja",0,IF(lammering[[#This Row],[Dood na geboorte]]="ja",0,1))) -> 1 | H43: =IF(lammering[[#This Row],[Opfok met kunstmelk]]="Ja",1,0) -> 0 | I43: =IF(lammering[[#This Row],[geslacht]]="O",1,0) -> 1 | J43: =IF(lammering[[#This Row],[Speen-datum]]="","",(lammering[[#This Row],[Speen-gewicht]]-lammering[[#This Row],[geboorte-gewicht]])/(lammering[[#This Row],[Speen-datum]]-lammering[[#This Row],[Werp-datum]])) -> 0.2132867133 | K43: =IF(lammering[[#This Row],[Verkoop-datum]]="","",(lammering[[#This Row],[Verkoop-gewicht]]-lammering[[#This Row],[Speen-gewicht]])/(lammering[[#This Row],[Verkoop-datum]]-lammering[[#This Row],[Speen-datum]])) ->  | L43: =IF(lammering[[#This Row],[Verkoop-datum]]="","",(lammering[[#This Row],[Verkoop-gewicht]]-lammering[[#This Row],[geboorte-gewicht]])/(lammering[[#This Row],[Verkoop-datum]]-lammering[[#This Row],[Werp-datum]])) ->  | M43: 0.2132867133 | S43: =IF(lammering[[#This Row],[Verkoop-gewicht]]="","",lammering[[#This Row],[Verkoop-gewicht]]-lammering[[#This Row],[geboorte-gewicht]]) ->  | V43: =Opzoek_ooi[[#This Row],[Ooinummer]] -> 0
A44: =lammering[[#This Row],[Ooi]] -> BE377340167 | B44: 0 | C44: 0 | D44: =IF(lammering[[#This Row],[Lam-nummer]]="",0,1) -> 1 | E44: =IF(lammering[[#This Row],[Dood in geboorte]]="ja",1,0) -> 0 | F44: =IF(lammering[[#This Row],[Ooi]]="",0,IF(Berekeningen!E44=0,1,0)) -> 1 | G44: =IF(D44=0,0,IF(lammering[[#This Row],[Dood in geboorte]]="Ja",0,IF(lammering[[#This Row],[Dood na geboorte]]="ja",0,1))) -> 1 | H44: =IF(lammering[[#This Row],[Opfok met kunstmelk]]="Ja",1,0) -> 0 | I44: =IF(lammering[[#This Row],[geslacht]]="O",1,0) -> 1 | J44: =IF(lammering[[#This Row],[Speen-datum]]="","",(lammering[[#This Row],[Speen-gewicht]]-lammering[[#This Row],[geboorte-gewicht]])/(lammering[[#This Row],[Speen-datum]]-lammering[[#This Row],[Werp-datum]])) -> 0.3097902098 | K44: =IF(lammering[[#This Row],[Verkoop-datum]]="","",(lammering[[#This Row],[Verkoop-gewicht]]-lammering[[#This Row],[Speen-gewicht]])/(lammering[[#This Row],[Verkoop-datum]]-lammering[[#This Row],[Speen-datum]])) ->  | L44: =IF(lammering[[#This Row],[Verkoop-datum]]="","",(lammering[[#This Row],[Verkoop-gewicht]]-lammering[[#This Row],[geboorte-gewicht]])/(lammering[[#This Row],[Verkoop-datum]]-lammering[[#This Row],[Werp-datum]])) ->  | M44: 0.3097902098 | S44: =IF(lammering[[#This Row],[Verkoop-gewicht]]="","",lammering[[#This Row],[Verkoop-gewicht]]-lammering[[#This Row],[geboorte-gewicht]]) ->  | V44: =Opzoek_ooi[[#This Row],[Ooinummer]] -> 0
A45: =lammering[[#This Row],[Ooi]] -> BE377340167 | B45: 0 | C45: 0 | D45: =IF(lammering[[#This Row],[Lam-nummer]]="",0,1) -> 0 | E45: =IF(lammering[[#This Row],[Dood in geboorte]]="ja",1,0) -> 1 | F45: =IF(lammering[[#This Row],[Ooi]]="",0,IF(Berekeningen!E45=0,1,0)) -> 0 | G45: =IF(D45=0,0,IF(lammering[[#This Row],[Dood in geboorte]]="Ja",0,IF(lammering[[#This Row],[Dood na geboorte]]="ja",0,1))) -> 0 | H45: =IF(lammering[[#This Row],[Opfok met kunstmelk]]="Ja",1,0) -> 0 | I45: =IF(lammering[[#This Row],[geslacht]]="O",1,0) -> 0 | J45: =IF(lammering[[#This Row],[Speen-datum]]="","",(lammering[[#This Row],[Speen-gewicht]]-lammering[[#This Row],[geboorte-gewicht]])/(lammering[[#This Row],[Speen-datum]]-lammering[[#This Row],[Werp-datum]])) ->  | K45: =IF(lammering[[#This Row],[Verkoop-datum]]="","",(lammering[[#This Row],[Verkoop-gewicht]]-lammering[[#This Row],[Speen-gewicht]])/(lammering[[#This Row],[Verkoop-datum]]-lammering[[#This Row],[Speen-datum]])) ->  | L45: =IF(lammering[[#This Row],[Verkoop-datum]]="","",(lammering[[#This Row],[Verkoop-gewicht]]-lammering[[#This Row],[geboorte-gewicht]])/(lammering[[#This Row],[Verkoop-datum]]-lammering[[#This Row],[Werp-datum]])) ->  | S45: =IF(lammering[[#This Row],[Verkoop-gewicht]]="","",lammering[[#This Row],[Verkoop-gewicht]]-lammering[[#This Row],[geboorte-gewicht]]) ->  | V45: =Opzoek_ooi[[#This Row],[Ooinummer]] -> 0
A46: =lammering[[#This Row],[Ooi]] -> BE477340175 | B46: 1 | C46: BE477340175 | D46: =IF(lammering[[#This Row],[Lam-nummer]]="",0,1) -> 1 | E46: =IF(lammering[[#This Row],[Dood in geboorte]]="ja",1,0) -> 0 | F46: =IF(lammering[[#This Row],[Ooi]]="",0,IF(Berekeningen!E46=0,1,0)) -> 1 | G46: =IF(D46=0,0,IF(lammering[[#This Row],[Dood in geboorte]]="Ja",0,IF(lammering[[#This Row],[Dood na geboorte]]="ja",0,1))) -> 1 | H46: =IF(lammering[[#This Row],[Opfok met kunstmelk]]="Ja",1,0) -> 0 | I46: =IF(lammering[[#This Row],[geslacht]]="O",1,0) -> 1 | J46: =IF(lammering[[#This Row],[Speen-datum]]="","",(lammering[[#This Row],[Speen-gewicht]]-lammering[[#This Row],[geboorte-gewicht]])/(lammering[[#This Row],[Speen-datum]]-lammering[[#This Row],[Werp-datum]])) ->  | K46: =IF(lammering[[#This Row],[Verkoop-datum]]="","",(lammering[[#This Row],[Verkoop-gewicht]]-lammering[[#This Row],[Speen-gewicht]])/(lammering[[#This Row],[Verkoop-datum]]-lammering[[#This Row],[Speen-datum]])) ->  | L46: =IF(lammering[[#This Row],[Verkoop-datum]]="","",(lammering[[#This Row],[Verkoop-gewicht]]-lammering[[#This Row],[geboorte-gewicht]])/(lammering[[#This Row],[Verkoop-datum]]-lammering[[#This Row],[Werp-datum]])) ->  | S46: =IF(lammering[[#This Row],[Verkoop-gewicht]]="","",lammering[[#This Row],[Verkoop-gewicht]]-lammering[[#This Row],[geboorte-gewicht]]) ->  | V46: =Opzoek_ooi[[#This Row],[Ooinummer]] -> 0
A47: =lammering[[#This Row],[Ooi]] -> BE477340175 | B47: 0 | C47: 0 | D47: =IF(lammering[[#This Row],[Lam-nummer]]="",0,1) -> 1 | E47: =IF(lammering[[#This Row],[Dood in geboorte]]="ja",1,0) -> 0 | F47: =IF(lammering[[#This Row],[Ooi]]="",0,IF(Berekeningen!E47=0,1,0)) -> 1 | G47: =IF(D47=0,0,IF(lammering[[#This Row],[Dood in geboorte]]="Ja",0,IF(lammering[[#This Row],[Dood na geboorte]]="ja",0,1))) -> 1 | H47: =IF(lammering[[#This Row],[Opfok met kunstmelk]]="Ja",1,0) -> 0 | I47: =IF(lammering[[#This Row],[geslacht]]="O",1,0) -> 0 | J47: =IF(lammering[[#This Row],[Speen-datum]]="","",(lammering[[#This Row],[Speen-gewicht]]-lammering[[#This Row],[geboorte-gewicht]])/(lammering[[#This Row],[Speen-datum]]-lammering[[#This Row],[Werp-datum]])) -> 0.2611940299 | K47: =IF(lammering[[#This Row],[Verkoop-datum]]="","",(lammering[[#This Row],[Verkoop-gewicht]]-lammering[[#This Row],[Speen-gewicht]])/(lammering[[#This Row],[Verkoop-datum]]-lammering[[#This Row],[Speen-datum]])) ->  | L47: =IF(lammering[[#This Row],[Verkoop-datum]]="","",(lammering[[#This Row],[Verkoop-gewicht]]-lammering[[#This Row],[geboorte-gewicht]])/(lammering[[#This Row],[Verkoop-datum]]-lammering[[#This Row],[Werp-datum]])) -> 0.2611940299 | P47: 0.2611940299 | R47: 0.2611940299 | S47: =IF(lammering[[#This Row],[Verkoop-gewicht]]="","",lammering[[#This Row],[Verkoop-gewicht]]-lammering[[#This Row],[geboorte-gewicht]]) -> 35 | U47: 35 | V47: =Opzoek_ooi[[#This Row],[Ooinummer]] -> 0
A48: =lammering[[#This Row],[Ooi]] -> BE577340166 | B48: 1 | C48: BE577340166 | D48: =IF(lammering[[#This Row],[Lam-nummer]]="",0,1) -> 1 | E48: =IF(lammering[[#This Row],[Dood in geboorte]]="ja",1,0) -> 0 | F48: =IF(lammering[[#This Row],[Ooi]]="",0,IF(Berekeningen!E48=0,1,0)) -> 1 | G48: =IF(D48=0,0,IF(lammering[[#This Row],[Dood in geboorte]]="Ja",0,IF(lammering[[#This Row],[Dood na geboorte]]="ja",0,1))) -> 1 | H48: =IF(lammering[[#This Row],[Opfok met kunstmelk]]="Ja",1,0) -> 0 | I48: =IF(lammering[[#This Row],[geslacht]]="O",1,0) -> 1 | J48: =IF(lammering[[#This Row],[Speen-datum]]="","",(lammering[[#This Row],[Speen-gewicht]]-lammering[[#This Row],[geboorte-gewicht]])/(lammering[[#This Row],[Speen-datum]]-lammering[[#This Row],[Werp-datum]])) -> 0.3161971831 | K48: =IF(lammering[[#This Row],[Verkoop-datum]]="","",(lammering[[#This Row],[Verkoop-gewicht]]-lammering[[#This Row],[Speen-gewicht]])/(lammering[[#This Row],[Verkoop-datum]]-lammering[[#This Row],[Speen-datum]])) ->  | L48: =IF(lammering[[#This Row],[Verkoop-datum]]="","",(lammering[[#This Row],[Verkoop-gewicht]]-lammering[[#This Row],[geboorte-gewicht]])/(lammering[[#This Row],[Verkoop-datum]]-lammering[[#This Row],[Werp-datum]])) ->  | M48: 0.3161971831 | S48: =IF(lammering[[#This Row],[Verkoop-gewicht]]="","",lammering[[#This Row],[Verkoop-gewicht]]-lammering[[#This Row],[geboorte-gewicht]]) ->  | V48: =Opzoek_ooi[[#This Row],[Ooinummer]] -> 0
A49: =lammering[[#This Row],[Ooi]] -> BE577340166 | B49: 0 | C49: 0 | D49: =IF(lammering[[#This Row],[Lam-nummer]]="",0,1) -> 1 | E49: =IF(lammering[[#This Row],[Dood in geboorte]]="ja",1,0) -> 0 | F49: =IF(lammering[[#This Row],[Ooi]]="",0,IF(Berekeningen!E49=0,1,0)) -> 1 | G49: =IF(D49=0,0,IF(lammering[[#This Row],[Dood in geboorte]]="Ja",0,IF(lammering[[#This Row],[Dood na geboorte]]="ja",0,1))) -> 1 | H49: =IF(lammering[[#This Row],[Opfok met kunstmelk]]="Ja",1,0) -> 0 | I49: =IF(lammering[[#This Row],[geslacht]]="O",1,0) -> 0 | J49: =IF(lammering[[#This Row],[Speen-datum]]="","",(lammering[[#This Row],[Speen-gewicht]]-lammering[[#This Row],[geboorte-gewicht]])/(lammering[[#This Row],[Speen-datum]]-lammering[[#This Row],[Werp-datum]])) -> 0.3943661972 | K49: =IF(lammering[[#This Row],[Verkoop-datum]]="","",(lammering[[#This Row],[Verkoop-gewicht]]-lammering[[#This Row],[Speen-gewicht]])/(lammering[[#This Row],[Verkoop-datum]]-lammering[[#This Row],[Speen-datum]])) ->  | L49: =IF(lammering[[#This Row],[Verkoop-datum]]="","",(lammering[[#This Row],[Verkoop-gewicht]]-lammering[[#This Row],[geboorte-gewicht]])/(lammering[[#This Row],[Verkoop-datum]]-lammering[[#This Row],[Werp-datum]])) ->  | P49: 0.3943661972 | S49: =IF(lammering[[#This Row],[Verkoop-gewicht]]="","",lammering[[#This Row],[Verkoop-gewicht]]-lammering[[#This Row],[geboorte-gewicht]]) ->  | V49: =Opzoek_ooi[[#This Row],[Ooinummer]] -> 0
A50: =lammering[[#This Row],[Ooi]] -> BE177340138 | B50: 1 | C50: BE177340138 | D50: =IF(lammering[[#This Row],[Lam-nummer]]="",0,1) -> 1 | E50: =IF(lammering[[#This Row],[Dood in geboorte]]="ja",1,0) -> 0 | F50: =IF(lammering[[#This Row],[Ooi]]="",0,IF(Berekeningen!E50=0,1,0)) -> 1 | G50: =IF(D50=0,0,IF(lammering[[#This Row],[Dood in geboorte]]="Ja",0,IF(lammering[[#This Row],[Dood na geboorte]]="ja",0,1))) -> 1 | H50: =IF(lammering[[#This Row],[Opfok met kunstmelk]]="Ja",1,0) -> 0 | I50: =IF(lammering[[#This Row],[geslacht]]="O",1,0) -> 1 | J50: =IF(lammering[[#This Row],[Speen-datum]]="","",(lammering[[#This Row],[Speen-gewicht]]-lammering[[#This Row],[geboorte-gewicht]])/(lammering[[#This Row],[Speen-datum]]-lammering[[#This Row],[Werp-datum]])) -> 0.2627906977 | K50: =IF(lammering[[#This Row],[Verkoop-datum]]="","",(lammering[[#This Row],[Verkoop-gewicht]]-lammering[[#This Row],[Speen-gewicht]])/(lammering[[#This Row],[Verkoop-datum]]-lammering[[#This Row],[Speen-datum]])) ->  | L50: =IF(lammering[[#This Row],[Verkoop-datum]]="","",(lammering[[#This Row],[Verkoop-gewicht]]-lammering[[#This Row],[geboorte-gewicht]])/(lammering[[#This Row],[Verkoop-datum]]-lammering[[#This Row],[Werp-datum]])) ->  | M50: 0.2627906977 | S50: =IF(lammering[[#This Row],[Verkoop-gewicht]]="","",lammering[[#This Row],[Verkoop-gewicht]]-lammering[[#This Row],[geboorte-gewicht]]) ->  | V50: =Opzoek_ooi[[#This Row],[Ooinummer]] -> 0
A51: =lammering[[#This Row],[Ooi]] -> BE177340138 | B51: 0 | C51: 0 | D51: =IF(lammering[[#This Row],[Lam-nummer]]="",0,1) -> 1 | E51: =IF(lammering[[#This Row],[Dood in geboorte]]="ja",1,0) -> 0 | F51: =IF(lammering[[#This Row],[Ooi]]="",0,IF(Berekeningen!E51=0,1,0)) -> 1 | G51: =IF(D51=0,0,IF(lammering[[#This Row],[Dood in geboorte]]="Ja",0,IF(lammering[[#This Row],[Dood na geboorte]]="ja",0,1))) -> 1 | H51: =IF(lammering[[#This Row],[Opfok met kunstmelk]]="Ja",1,0) -> 0 | I51: =IF(lammering[[#This Row],[geslacht]]="O",1,0) -> 1 | J51: =IF(lammering[[#This Row],[Speen-datum]]="","",(lammering[[#This Row],[Speen-gewicht]]-lammering[[#This Row],[geboorte-gewicht]])/(lammering[[#This Row],[Speen-datum]]-lammering[[#This Row],[Werp-datum]])) -> 0.2639097744 | K51: =IF(lammering[[#This Row],[Verkoop-datum]]="","",(lammering[[#This Row],[Verkoop-gewicht]]-lammering[[#This Row],[Speen-gewicht]])/(lammering[[#This Row],[Verkoop-datum]]-lammering[[#This Row],[Speen-datum]])) ->  | L51: =IF(lammering[[#This Row],[Verkoop-datum]]="","",(lammering[[#This Row],[Verkoop-gewicht]]-lammering[[#This Row],[geboorte-gewicht]])/(lammering[[#This Row],[Verkoop-datum]]-lammering[[#This Row],[Werp-datum]])) -> 0.2639097744 | M51: 0.2639097744 | O51: 0.2639097744 | S51: =IF(lammering[[#This Row],[Verkoop-gewicht]]="","",lammering[[#This Row],[Verkoop-gewicht]]-lammering[[#This Row],[geboorte-gewicht]]) -> 35.1 | T51: 35.1 | V51: =Opzoek_ooi[[#This Row],[Ooinummer]] -> 0
A52: =lammering[[#This Row],[Ooi]] -> BE177340138 | B52: 0 | C52: 0 | D52: =IF(lammering[[#This Row],[Lam-nummer]]="",0,1) -> 1 | E52: =IF(lammering[[#This Row],[Dood in geboorte]]="ja",1,0) -> 0 | F52: =IF(lammering[[#This Row],[Ooi]]="",0,IF(Berekeningen!E52=0,1,0)) -> 1 | G52: =IF(D52=0,0,IF(lammering[[#This Row],[Dood in geboorte]]="Ja",0,IF(lammering[[#This Row],[Dood na geboorte]]="ja",0,1))) -> 1 | H52: =IF(lammering[[#This Row],[Opfok met kunstmelk]]="Ja",1,0) -> 0 | I52: =IF(lammering[[#This Row],[geslacht]]="O",1,0) -> 1 | J52: =IF(lammering[[#This Row],[Speen-datum]]="","",(lammering[[#This Row],[Speen-gewicht]]-lammering[[#This Row],[geboorte-gewicht]])/(lammering[[#This Row],[Speen-datum]]-lammering[[#This Row],[Werp-datum]])) -> 0.2496240602 | K52: =IF(lammering[[#This Row],[Verkoop-datum]]="","",(lammering[[#This Row],[Verkoop-gewicht]]-lammering[[#This Row],[Speen-gewicht]])/(lammering[[#This Row],[Verkoop-datum]]-lammering[[#This Row],[Speen-datum]])) ->  | L52: =IF(lammering[[#This Row],[Verkoop-datum]]="","",(lammering[[#This Row],[Verkoop-gewicht]]-lammering[[#This Row],[geboorte-gewicht]])/(lammering[[#This Row],[Verkoop-datum]]-lammering[[#This Row],[Werp-datum]])) -> 0.2496240602 | M52: 0.2496240602 | O52: 0.2496240602 | S52: =IF(lammering[[#This Row],[Verkoop-gewicht]]="","",lammering[[#This Row],[Verkoop-gewicht]]-lammering[[#This Row],[geboorte-gewicht]]) -> 33.2 | T52: 33.2 | V52: =Opzoek_ooi[[#This Row],[Ooinummer]] -> 0
A53: =lammering[[#This Row],[Ooi]] -> BE177340138 | B53: 0 | C53: 0 | D53: =IF(lammering[[#This Row],[Lam-nummer]]="",0,1) -> 1 | E53: =IF(lammering[[#This Row],[Dood in geboorte]]="ja",1,0) -> 0 | F53: =IF(lammering[[#This Row],[Ooi]]="",0,IF(Berekeningen!E53=0,1,0)) -> 1 | G53: =IF(D53=0,0,IF(lammering[[#This Row],[Dood in geboorte]]="Ja",0,IF(lammering[[#This Row],[Dood na geboorte]]="ja",0,1))) -> 1 | H53: =IF(lammering[[#This Row],[Opfok met kunstmelk]]="Ja",1,0) -> 0 | I53: =IF(lammering[[#This Row],[geslacht]]="O",1,0) -> 0 | J53: =IF(lammering[[#This Row],[Speen-datum]]="","",(lammering[[#This Row],[Speen-gewicht]]-lammering[[#This Row],[geboorte-gewicht]])/(lammering[[#This Row],[Speen-datum]]-lammering[[#This Row],[Werp-datum]])) -> 0.2550387597 | K53: =IF(lammering[[#This Row],[Verkoop-datum]]="","",(lammering[[#This Row],[Verkoop-gewicht]]-lammering[[#This Row],[Speen-gewicht]])/(lammering[[#This Row],[Verkoop-datum]]-lammering[[#This Row],[Speen-datum]])) ->  | L53: =IF(lammering[[#This Row],[Verkoop-datum]]="","",(lammering[[#This Row],[Verkoop-gewicht]]-lammering[[#This Row],[geboorte-gewicht]])/(lammering[[#This Row],[Verkoop-datum]]-lammering[[#This Row],[Werp-datum]])) ->  | P53: 0.2550387597 | S53: =IF(lammering[[#This Row],[Verkoop-gewicht]]="","",lammering[[#This Row],[Verkoop-gewicht]]-lammering[[#This Row],[geboorte-gewicht]]) ->  | V53: =Opzoek_ooi[[#This Row],[Ooinummer]] -> 0
A54: =lammering[[#This Row],[Ooi]] -> BE120 | B54: 1 | C54: BE120 | D54: =IF(lammering[[#This Row],[Lam-nummer]]="",0,1) -> 1 | E54: =IF(lammering[[#This Row],[Dood in geboorte]]="ja",1,0) -> 0 | F54: =IF(lammering[[#This Row],[Ooi]]="",0,IF(Berekeningen!E54=0,1,0)) -> 1 | G54: =IF(D54=0,0,IF(lammering[[#This Row],[Dood in geboorte]]="Ja",0,IF(lammering[[#This Row],[Dood na geboorte]]="ja",0,1))) -> 1 | H54: =IF(lammering[[#This Row],[Opfok met kunstmelk]]="Ja",1,0) -> 0 | I54: =IF(lammering[[#This Row],[geslacht]]="O",1,0) -> 1 | J54: =IF(lammering[[#This Row],[Speen-datum]]="","",(lammering[[#This Row],[Speen-gewicht]]-lammering[[#This Row],[geboorte-gewicht]])/(lammering[[#This Row],[Speen-datum]]-lammering[[#This Row],[Werp-datum]])) -> 0.1969924812 | K54: =IF(lammering[[#This Row],[Verkoop-datum]]="","",(lammering[[#This Row],[Verkoop-gewicht]]-lammering[[#This Row],[Speen-gewicht]])/(lammering[[#This Row],[Verkoop-datum]]-lammering[[#This Row],[Speen-datum]])) ->  | L54: =IF(lammering[[#This Row],[Verkoop-datum]]="","",(lammering[[#This Row],[Verkoop-gewicht]]-lammering[[#This Row],[geboorte-gewicht]])/(lammering[[#This Row],[Verkoop-datum]]-lammering[[#This Row],[Werp-datum]])) -> 0.1969924812 | M54: 0.1969924812 | O54: 0.1969924812 | S54: =IF(lammering[[#This Row],[Verkoop-gewicht]]="","",lammering[[#This Row],[Verkoop-gewicht]]-lammering[[#This Row],[geboorte-gewicht]]) -> 26.2 | T54: 26.2 | V54: =Opzoek_ooi[[#This Row],[Ooinummer]] -> 0
A55: =lammering[[#This Row],[Ooi]] -> BE120 | B55: 0 | C55: 0 | D55: =IF(lammering[[#This Row],[Lam-nummer]]="",0,1) -> 1 | E55: =IF(lammering[[#This Row],[Dood in geboorte]]="ja",1,0) -> 0 | F55: =IF(lammering[[#This Row],[Ooi]]="",0,IF(Berekeningen!E55=0,1,0)) -> 1 | G55: =IF(D55=0,0,IF(lammering[[#This Row],[Dood in geboorte]]="Ja",0,IF(lammering[[#This Row],[Dood na geboorte]]="ja",0,1))) -> 1 | H55: =IF(lammering[[#This Row],[Opfok met kunstmelk]]="Ja",1,0) -> 0 | I55: =IF(lammering[[#This Row],[geslacht]]="O",1,0) -> 1 | J55: =IF(lammering[[#This Row],[Speen-datum]]="","",(lammering[[#This Row],[Speen-gewicht]]-lammering[[#This Row],[geboorte-gewicht]])/(lammering[[#This Row],[Speen-datum]]-lammering[[#This Row],[Werp-datum]])) -> 0.3007518797 | K55: =IF(lammering[[#This Row],[Verkoop-datum]]="","",(lammering[[#This Row],[Verkoop-gewicht]]-lammering[[#This Row],[Speen-gewicht]])/(lammering[[#This Row],[Verkoop-datum]]-lammering[[#This Row],[Speen-datum]])) ->  | L55: =IF(lammering[[#This Row],[Verkoop-datum]]="","",(lammering[[#This Row],[Verkoop-gewicht]]-lammering[[#This Row],[geboorte-gewicht]])/(lammering[[#This Row],[Verkoop-datum]]-lammering[[#This Row],[Werp-datum]])) -> 0.3007518797 | M55: 0.3007518797 | O55: 0.3007518797 | S55: =IF(lammering[[#This Row],[Verkoop-gewicht]]="","",lammering[[#This Row],[Verkoop-gewicht]]-lammering[[#This Row],[geboorte-gewicht]]) -> 40 | T55: 40 | V55: =Opzoek_ooi[[#This Row],[Ooinummer]] -> 0
A56: =lammering[[#This Row],[Ooi]] -> BE120 | B56: 0 | C56: 0 | D56: =IF(lammering[[#This Row],[Lam-nummer]]="",0,1) -> 1 | E56: =IF(lammering[[#This Row],[Dood in geboorte]]="ja",1,0) -> 0 | F56: =IF(lammering[[#This Row],[Ooi]]="",0,IF(Berekeningen!E56=0,1,0)) -> 1 | G56: =IF(D56=0,0,IF(lammering[[#This Row],[Dood in geboorte]]="Ja",0,IF(lammering[[#This Row],[Dood na geboorte]]="ja",0,1))) -> 1 | H56: =IF(lammering[[#This Row],[Opfok met kunstmelk]]="Ja",1,0) -> 0 | I56: =IF(lammering[[#This Row],[geslacht]]="O",1,0) -> 1 | J56: =IF(lammering[[#This Row],[Speen-datum]]="","",(lammering[[#This Row],[Speen-gewicht]]-lammering[[#This Row],[geboorte-gewicht]])/(lammering[[#This Row],[Speen-datum]]-lammering[[#This Row],[Werp-datum]])) -> 0.2022556391 | K56: =IF(lammering[[#This Row],[Verkoop-datum]]="","",(lammering[[#This Row],[Verkoop-gewicht]]-lammering[[#This Row],[Speen-gewicht]])/(lammering[[#This Row],[Verkoop-datum]]-lammering[[#This Row],[Speen-datum]])) ->  | L56: =IF(lammering[[#This Row],[Verkoop-datum]]="","",(lammering[[#This Row],[Verkoop-gewicht]]-lammering[[#This Row],[geboorte-gewicht]])/(lammering[[#This Row],[Verkoop-datum]]-lammering[[#This Row],[Werp-datum]])) -> 0.2022556391 | M56: 0.2022556391 | O56: 0.2022556391 | S56: =IF(lammering[[#This Row],[Verkoop-gewicht]]="","",lammering[[#This Row],[Verkoop-gewicht]]-lammering[[#This Row],[geboorte-gewicht]]) -> 26.9 | T56: 26.9 | V56: =Opzoek_ooi[[#This Row],[Ooinummer]] -> 0
A57: =lammering[[#This Row],[Ooi]] -> BE176710022 | B57: 1 | C57: BE176710022 | D57: =IF(lammering[[#This Row],[Lam-nummer]]="",0,1) -> 1 | E57: =IF(lammering[[#This Row],[Dood in geboorte]]="ja",1,0) -> 0 | F57: =IF(lammering[[#This Row],[Ooi]]="",0,IF(Berekeningen!E57=0,1,0)) -> 1 | G57: =IF(D57=0,0,IF(lammering[[#This Row],[Dood in geboorte]]="Ja",0,IF(lammering[[#This Row],[Dood na geboorte]]="ja",0,1))) -> 1 | H57: =IF(lammering[[#This Row],[Opfok met kunstmelk]]="Ja",1,0) -> 0 | I57: =IF(lammering[[#This Row],[geslacht]]="O",1,0) -> 1 | J57: =IF(lammering[[#This Row],[Speen-datum]]="","",(lammering[[#This Row],[Speen-gewicht]]-lammering[[#This Row],[geboorte-gewicht]])/(lammering[[#This Row],[Speen-datum]]-lammering[[#This Row],[Werp-datum]])) -> 0.2610687023 | K57: =IF(lammering[[#This Row],[Verkoop-datum]]="","",(lammering[[#This Row],[Verkoop-gewicht]]-lammering[[#This Row],[Speen-gewicht]])/(lammering[[#This Row],[Verkoop-datum]]-lammering[[#This Row],[Speen-datum]])) ->  | L57: =IF(lammering[[#This Row],[Verkoop-datum]]="","",(lammering[[#This Row],[Verkoop-gewicht]]-lammering[[#This Row],[geboorte-gewicht]])/(lammering[[#This Row],[Verkoop-datum]]-lammering[[#This Row],[Werp-datum]])) -> 0.2610687023 | M57: 0.2610687023 | O57: 0.2610687023 | S57: =IF(lammering[[#This Row],[Verkoop-gewicht]]="","",lammering[[#This Row],[Verkoop-gewicht]]-lammering[[#This Row],[geboorte-gewicht]]) -> 34.2 | T57: 34.2 | V57: =Opzoek_ooi[[#This Row],[Ooinummer]] -> 0
A58: =lammering[[#This Row],[Ooi]] -> BE176710022 | B58: 0 | C58: 0 | D58: =IF(lammering[[#This Row],[Lam-nummer]]="",0,1) -> 1 | E58: =IF(lammering[[#This Row],[Dood in geboorte]]="ja",1,0) -> 0 | F58: =IF(lammering[[#This Row],[Ooi]]="",0,IF(Berekeningen!E58=0,1,0)) -> 1 | G58: =IF(D58=0,0,IF(lammering[[#This Row],[Dood in geboorte]]="Ja",0,IF(lammering[[#This Row],[Dood na geboorte]]="ja",0,1))) -> 1 | H58: =IF(lammering[[#This Row],[Opfok met kunstmelk]]="Ja",1,0) -> 0 | I58: =IF(lammering[[#This Row],[geslacht]]="O",1,0) -> 1 | J58: =IF(lammering[[#This Row],[Speen-datum]]="","",(lammering[[#This Row],[Speen-gewicht]]-lammering[[#This Row],[geboorte-gewicht]])/(lammering[[#This Row],[Speen-datum]]-lammering[[#This Row],[Werp-datum]])) -> 0.2778625954 | K58: =IF(lammering[[#This Row],[Verkoop-datum]]="","",(lammering[[#This Row],[Verkoop-gewicht]]-lammering[[#This Row],[Speen-gewicht]])/(lammering[[#This Row],[Verkoop-datum]]-lammering[[#This Row],[Speen-datum]])) ->  | L58: =IF(lammering[[#This Row],[Verkoop-datum]]="","",(lammering[[#This Row],[Verkoop-gewicht]]-lammering[[#This Row],[geboorte-gewicht]])/(lammering[[#This Row],[Verkoop-datum]]-lammering[[#This Row],[Werp-datum]])) -> 0.2778625954 | M58: 0.2778625954 | O58: 0.2778625954 | S58: =IF(lammering[[#This Row],[Verkoop-gewicht]]="","",lammering[[#This Row],[Verkoop-gewicht]]-lammering[[#This Row],[geboorte-gewicht]]) -> 36.4 | T58: 36.4 | V58: =Opzoek_ooi[[#This Row],[Ooinummer]] -> 0
A59: =lammering[[#This Row],[Ooi]] -> BE176710022 | B59: 0 | C59: 0 | D59: =IF(lammering[[#This Row],[Lam-nummer]]="",0,1) -> 1 | E59: =IF(lammering[[#This Row],[Dood in geboorte]]="ja",1,0) -> 0 | F59: =IF(lammering[[#This Row],[Ooi]]="",0,IF(Berekeningen!E59=0,1,0)) -> 1 | G59: =IF(D59=0,0,IF(lammering[[#This Row],[Dood in geboorte]]="Ja",0,IF(lammering[[#This Row],[Dood na geboorte]]="ja",0,1))) -> 1 | H59: =IF(lammering[[#This Row],[Opfok met kunstmelk]]="Ja",1,0) -> 0 | I59: =IF(lammering[[#This Row],[geslacht]]="O",1,0) -> 0 | J59: =IF(lammering[[#This Row],[Speen-datum]]="","",(lammering[[#This Row],[Speen-gewicht]]-lammering[[#This Row],[geboorte-gewicht]])/(lammering[[#This Row],[Speen-datum]]-lammering[[#This Row],[Werp-datum]])) -> 0.3465648855 | K59: =IF(lammering[[#This Row],[Verkoop-datum]]="","",(lammering[[#This Row],[Verkoop-gewicht]]-lammering[[#This Row],[Speen-gewicht]])/(lammering[[#This Row],[Verkoop-datum]]-lammering[[#This Row],[Speen-datum]])) ->  | L59: =IF(lammering[[#This Row],[Verkoop-datum]]="","",(lammering[[#This Row],[Verkoop-gewicht]]-lammering[[#This Row],[geboorte-gewicht]])/(lammering[[#This Row],[Verkoop-datum]]-lammering[[#This Row],[Werp-datum]])) -> 0.3465648855 | P59: 0.3465648855 | R59: 0.3465648855 | S59: =IF(lammering[[#This Row],[Verkoop-gewicht]]="","",lammering[[#This Row],[Verkoop-gewicht]]-lammering[[#This Row],[geboorte-gewicht]]) -> 45.4 | U59: 45.4 | V59: =Opzoek_ooi[[#This Row],[Ooinummer]] -> 0
A60: =lammering[[#This Row],[Ooi]] -> BE577340135 | B60: 1 | C60: BE577340135 | D60: =IF(lammering[[#This Row],[Lam-nummer]]="",0,1) -> 1 | E60: =IF(lammering[[#This Row],[Dood in geboorte]]="ja",1,0) -> 0 | F60: =IF(lammering[[#This Row],[Ooi]]="",0,IF(Berekeningen!E60=0,1,0)) -> 1 | G60: =IF(D60=0,0,IF(lammering[[#This Row],[Dood in geboorte]]="Ja",0,IF(lammering[[#This Row],[Dood na geboorte]]="ja",0,1))) -> 1 | H60: =IF(lammering[[#This Row],[Opfok met kunstmelk]]="Ja",1,0) -> 0 | I60: =IF(lammering[[#This Row],[geslacht]]="O",1,0) -> 1 | J60: =IF(lammering[[#This Row],[Speen-datum]]="","",(lammering[[#This Row],[Speen-gewicht]]-lammering[[#This Row],[geboorte-gewicht]])/(lammering[[#This Row],[Speen-datum]]-lammering[[#This Row],[Werp-datum]])) -> 0.2706349206 | K60: =IF(lammering[[#This Row],[Verkoop-datum]]="","",(lammering[[#This Row],[Verkoop-gewicht]]-lammering[[#This Row],[Speen-gewicht]])/(lammering[[#This Row],[Verkoop-datum]]-lammering[[#This Row],[Speen-datum]])) ->  | L60: =IF(lammering[[#This Row],[Verkoop-datum]]="","",(lammering[[#This Row],[Verkoop-gewicht]]-lammering[[#This Row],[geboorte-gewicht]])/(lammering[[#This Row],[Verkoop-datum]]-lammering[[#This Row],[Werp-datum]])) -> 0.2706349206 | M60: 0.2706349206 | O60: 0.2706349206 | S60: =IF(lammering[[#This Row],[Verkoop-gewicht]]="","",lammering[[#This Row],[Verkoop-gewicht]]-lammering[[#This Row],[geboorte-gewicht]]) -> 34.1 | T60: 34.1 | V60: =Opzoek_ooi[[#This Row],[Ooinummer]] -> 0
A61: =lammering[[#This Row],[Ooi]] -> BE577340135 | B61: 0 | C61: 0 | D61: =IF(lammering[[#This Row],[Lam-nummer]]="",0,1) -> 1 | E61: =IF(lammering[[#This Row],[Dood in geboorte]]="ja",1,0) -> 0 | F61: =IF(lammering[[#This Row],[Ooi]]="",0,IF(Berekeningen!E61=0,1,0)) -> 1 | G61: =IF(D61=0,0,IF(lammering[[#This Row],[Dood in geboorte]]="Ja",0,IF(lammering[[#This Row],[Dood na geboorte]]="ja",0,1))) -> 1 | H61: =IF(lammering[[#This Row],[Opfok met kunstmelk]]="Ja",1,0) -> 1 | I61: =IF(lammering[[#This Row],[geslacht]]="O",1,0) -> 0 | J61: =IF(lammering[[#This Row],[Speen-datum]]="","",(lammering[[#This Row],[Speen-gewicht]]-lammering[[#This Row],[geboorte-gewicht]])/(lammering[[#This Row],[Speen-datum]]-lammering[[#This Row],[Werp-datum]])) -> 0.2206349206 | K61: =IF(lammering[[#This Row],[Verkoop-datum]]="","",(lammering[[#This Row],[Verkoop-gewicht]]-lammering[[#This Row],[Speen-gewicht]])/(lammering[[#This Row],[Verkoop-datum]]-lammering[[#This Row],[Speen-datum]])) ->  | L61: =IF(lammering[[#This Row],[Verkoop-datum]]="","",(lammering[[#This Row],[Verkoop-gewicht]]-lammering[[#This Row],[geboorte-gewicht]])/(lammering[[#This Row],[Verkoop-datum]]-lammering[[#This Row],[Werp-datum]])) -> 0.2206349206 | P61: 0.2206349206 | R61: 0.2206349206 | S61: =IF(lammering[[#This Row],[Verkoop-gewicht]]="","",lammering[[#This Row],[Verkoop-gewicht]]-lammering[[#This Row],[geboorte-gewicht]]) -> 27.8 | U61: 27.8 | V61: =Opzoek_ooi[[#This Row],[Ooinummer]] -> 0
A62: =lammering[[#This Row],[Ooi]] -> BE519886427 | B62: 1 | C62: BE519886427 | D62: =IF(lammering[[#This Row],[Lam-nummer]]="",0,1) -> 1 | E62: =IF(lammering[[#This Row],[Dood in geboorte]]="ja",1,0) -> 0 | F62: =IF(lammering[[#This Row],[Ooi]]="",0,IF(Berekeningen!E62=0,1,0)) -> 1 | G62: =IF(D62=0,0,IF(lammering[[#This Row],[Dood in geboorte]]="Ja",0,IF(lammering[[#This Row],[Dood na geboorte]]="ja",0,1))) -> 1 | H62: =IF(lammering[[#This Row],[Opfok met kunstmelk]]="Ja",1,0) -> 0 | I62: =IF(lammering[[#This Row],[geslacht]]="O",1,0) -> 1 | J62: =IF(lammering[[#This Row],[Speen-datum]]="","",(lammering[[#This Row],[Speen-gewicht]]-lammering[[#This Row],[geboorte-gewicht]])/(lammering[[#This Row],[Speen-datum]]-lammering[[#This Row],[Werp-datum]])) -> 0.2966216216 | K62: =IF(lammering[[#This Row],[Verkoop-datum]]="","",(lammering[[#This Row],[Verkoop-gewicht]]-lammering[[#This Row],[Speen-gewicht]])/(lammering[[#This Row],[Verkoop-datum]]-lammering[[#This Row],[Speen-datum]])) ->  | L62: =IF(lammering[[#This Row],[Verkoop-datum]]="","",(lammering[[#This Row],[Verkoop-gewicht]]-lammering[[#This Row],[geboorte-gewicht]])/(lammering[[#This Row],[Verkoop-datum]]-lammering[[#This Row],[Werp-datum]])) ->  | M62: 0.2966216216 | S62: =IF(lammering[[#This Row],[Verkoop-gewicht]]="","",lammering[[#This Row],[Verkoop-gewicht]]-lammering[[#This Row],[geboorte-gewicht]]) ->  | V62: =Opzoek_ooi[[#This Row],[Ooinummer]] -> 0
A63: =lammering[[#This Row],[Ooi]] -> BE519886427 | B63: 0 | C63: 0 | D63: =IF(lammering[[#This Row],[Lam-nummer]]="",0,1) -> 1 | E63: =IF(lammering[[#This Row],[Dood in geboorte]]="ja",1,0) -> 0 | F63: =IF(lammering[[#This Row],[Ooi]]="",0,IF(Berekeningen!E63=0,1,0)) -> 1 | G63: =IF(D63=0,0,IF(lammering[[#This Row],[Dood in geboorte]]="Ja",0,IF(lammering[[#This Row],[Dood na geboorte]]="ja",0,1))) -> 1 | H63: =IF(lammering[[#This Row],[Opfok met kunstmelk]]="Ja",1,0) -> 0 | I63: =IF(lammering[[#This Row],[geslacht]]="O",1,0) -> 1 | J63: =IF(lammering[[#This Row],[Speen-datum]]="","",(lammering[[#This Row],[Speen-gewicht]]-lammering[[#This Row],[geboorte-gewicht]])/(lammering[[#This Row],[Speen-datum]]-lammering[[#This Row],[Werp-datum]])) -> 0.3371621622 | K63: =IF(lammering[[#This Row],[Verkoop-datum]]="","",(lammering[[#This Row],[Verkoop-gewicht]]-lammering[[#This Row],[Speen-gewicht]])/(lammering[[#This Row],[Verkoop-datum]]-lammering[[#This Row],[Speen-datum]])) ->  | L63: =IF(lammering[[#This Row],[Verkoop-datum]]="","",(lammering[[#This Row],[Verkoop-gewicht]]-lammering[[#This Row],[geboorte-gewicht]])/(lammering[[#This Row],[Verkoop-datum]]-lammering[[#This Row],[Werp-datum]])) ->  | M63: 0.3371621622 | S63: =IF(lammering[[#This Row],[Verkoop-gewicht]]="","",lammering[[#This Row],[Verkoop-gewicht]]-lammering[[#This Row],[geboorte-gewicht]]) ->  | V63: =Opzoek_ooi[[#This Row],[Ooinummer]] -> 0
A64: =lammering[[#This Row],[Ooi]] -> BE277340162 | B64: 1 | C64: BE277340162 | D64: =IF(lammering[[#This Row],[Lam-nummer]]="",0,1) -> 1 | E64: =IF(lammering[[#This Row],[Dood in geboorte]]="ja",1,0) -> 0 | F64: =IF(lammering[[#This Row],[Ooi]]="",0,IF(Berekeningen!E64=0,1,0)) -> 1 | G64: =IF(D64=0,0,IF(lammering[[#This Row],[Dood in geboorte]]="Ja",0,IF(lammering[[#This Row],[Dood na geboorte]]="ja",0,1))) -> 1 | H64: =IF(lammering[[#This Row],[Opfok met kunstmelk]]="Ja",1,0) -> 0 | I64: =IF(lammering[[#This Row],[geslacht]]="O",1,0) -> 0 | J64: =IF(lammering[[#This Row],[Speen-datum]]="","",(lammering[[#This Row],[Speen-gewicht]]-lammering[[#This Row],[geboorte-gewicht]])/(lammering[[#This Row],[Speen-datum]]-lammering[[#This Row],[Werp-datum]])) -> 0.4084507042 | K64: =IF(lammering[[#This Row],[Verkoop-datum]]="","",(lammering[[#This Row],[Verkoop-gewicht]]-lammering[[#This Row],[Speen-gewicht]])/(lammering[[#This Row],[Verkoop-datum]]-lammering[[#This Row],[Speen-datum]])) ->  | L64: =IF(lammering[[#This Row],[Verkoop-datum]]="","",(lammering[[#This Row],[Verkoop-gewicht]]-lammering[[#This Row],[geboorte-gewicht]])/(lammering[[#This Row],[Verkoop-datum]]-lammering[[#This Row],[Werp-datum]])) -> 0.4084507042 | P64: 0.4084507042 | R64: 0.4084507042 | S64: =IF(lammering[[#This Row],[Verkoop-gewicht]]="","",lammering[[#This Row],[Verkoop-gewicht]]-lammering[[#This Row],[geboorte-gewicht]]) -> 29 | U64: 29 | V64: =Opzoek_ooi[[#This Row],[Ooinummer]] -> 0
A65: =lammering[[#This Row],[Ooi]] -> 0 | B65: 0 | C65: 0 | D65: =IF(lammering[[#This Row],[Lam-nummer]]="",0,1) -> 0 | E65: =IF(lammering[[#This Row],[Dood in geboorte]]="ja",1,0) -> 0 | F65: =IF(lammering[[#This Row],[Ooi]]="",0,IF(Berekeningen!E65=0,1,0)) -> 0 | G65: =IF(D65=0,0,IF(lammering[[#This Row],[Dood in geboorte]]="Ja",0,IF(lammering[[#This Row],[Dood na geboorte]]="ja",0,1))) -> 0 | H65: =IF(lammering[[#This Row],[Opfok met kunstmelk]]="Ja",1,0) -> 0 | I65: =IF(lammering[[#This Row],[geslacht]]="O",1,0) -> 0 | J65: =IF(lammering[[#This Row],[Speen-datum]]="","",(lammering[[#This Row],[Speen-gewicht]]-lammering[[#This Row],[geboorte-gewicht]])/(lammering[[#This Row],[Speen-datum]]-lammering[[#This Row],[Werp-datum]])) ->  | K65: =IF(lammering[[#This Row],[Verkoop-datum]]="","",(lammering[[#This Row],[Verkoop-gewicht]]-lammering[[#This Row],[Speen-gewicht]])/(lammering[[#This Row],[Verkoop-datum]]-lammering[[#This Row],[Speen-datum]])) ->  | L65: =IF(lammering[[#This Row],[Verkoop-datum]]="","",(lammering[[#This Row],[Verkoop-gewicht]]-lammering[[#This Row],[geboorte-gewicht]])/(lammering[[#This Row],[Verkoop-datum]]-lammering[[#This Row],[Werp-datum]])) ->  | S65: =IF(lammering[[#This Row],[Verkoop-gewicht]]="","",lammering[[#This Row],[Verkoop-gewicht]]-lammering[[#This Row],[geboorte-gewicht]]) ->  | V65: =Opzoek_ooi[[#This Row],[Ooinummer]] -> 0
A66: =lammering[[#This Row],[Ooi]] -> 0 | B66: 0 | C66: 0 | D66: =IF(lammering[[#This Row],[Lam-nummer]]="",0,1) -> 0 | E66: =IF(lammering[[#This Row],[Dood in geboorte]]="ja",1,0) -> 0 | F66: =IF(lammering[[#This Row],[Ooi]]="",0,IF(Berekeningen!E66=0,1,0)) -> 0 | G66: =IF(D66=0,0,IF(lammering[[#This Row],[Dood in geboorte]]="Ja",0,IF(lammering[[#This Row],[Dood na geboorte]]="ja",0,1))) -> 0 | H66: =IF(lammering[[#This Row],[Opfok met kunstmelk]]="Ja",1,0) -> 0 | I66: =IF(lammering[[#This Row],[geslacht]]="O",1,0) -> 0 | J66: =IF(lammering[[#This Row],[Speen-datum]]="","",(lammering[[#This Row],[Speen-gewicht]]-lammering[[#This Row],[geboorte-gewicht]])/(lammering[[#This Row],[Speen-datum]]-lammering[[#This Row],[Werp-datum]])) ->  | K66: =IF(lammering[[#This Row],[Verkoop-datum]]="","",(lammering[[#This Row],[Verkoop-gewicht]]-lammering[[#This Row],[Speen-gewicht]])/(lammering[[#This Row],[Verkoop-datum]]-lammering[[#This Row],[Speen-datum]])) ->  | L66: =IF(lammering[[#This Row],[Verkoop-datum]]="","",(lammering[[#This Row],[Verkoop-gewicht]]-lammering[[#This Row],[geboorte-gewicht]])/(lammering[[#This Row],[Verkoop-datum]]-lammering[[#This Row],[Werp-datum]])) ->  | S66: =IF(lammering[[#This Row],[Verkoop-gewicht]]="","",lammering[[#This Row],[Verkoop-gewicht]]-lammering[[#This Row],[geboorte-gewicht]]) ->  | V66: =Opzoek_ooi[[#This Row],[Ooinummer]] -> 0
A67: =lammering[[#This Row],[Ooi]] -> 0 | B67: =IF(A67=0,0,IF(A67=A66,0,1)) -> 0 | C67: =IF(B67=1,A67,0) -> 0 | D67: =IF(lammering[[#This Row],[Lam-nummer]]="",0,1) -> 0 | E67: =IF(lammering[[#This Row],[Dood in geboorte]]="ja",1,0) -> 0 | F67: =IF(lammering[[#This Row],[Ooi]]="",0,IF(Berekeningen!E67=0,1,0)) -> 0 | G67: =IF(D67=0,0,IF(lammering[[#This Row],[Dood in geboorte]]="Ja",0,IF(lammering[[#This Row],[Dood na geboorte]]="ja",0,1))) -> 0 | H67: =IF(lammering[[#This Row],[Opfok met kunstmelk]]="Ja",1,0) -> 0 | I67: =IF(lammering[[#This Row],[geslacht]]="O",1,0) -> 0 | J67: =IF(lammering[[#This Row],[Speen-datum]]="","",(lammering[[#This Row],[Speen-gewicht]]-lammering[[#This Row],[geboorte-gewicht]])/(lammering[[#This Row],[Speen-datum]]-lammering[[#This Row],[Werp-datum]])) ->  | K67: =IF(lammering[[#This Row],[Verkoop-datum]]="","",(lammering[[#This Row],[Verkoop-gewicht]]-lammering[[#This Row],[Speen-gewicht]])/(lammering[[#This Row],[Verkoop-datum]]-lammering[[#This Row],[Speen-datum]])) ->  | L67: =IF(lammering[[#This Row],[Verkoop-datum]]="","",(lammering[[#This Row],[Verkoop-gewicht]]-lammering[[#This Row],[geboorte-gewicht]])/(lammering[[#This Row],[Verkoop-datum]]-lammering[[#This Row],[Werp-datum]])) ->  | S67: =IF(lammering[[#This Row],[Verkoop-gewicht]]="","",lammering[[#This Row],[Verkoop-gewicht]]-lammering[[#This Row],[geboorte-gewicht]]) ->  | V67: =Opzoek_ooi[[#This Row],[Ooinummer]] -> 0 | X67: =IF(W67>0,W67,"") -> 
A68: =lammering[[#This Row],[Ooi]] -> 0 | B68: 0 | C68: 0 | D68: =IF(lammering[[#This Row],[Lam-nummer]]="",0,1) -> 0 | E68: =IF(lammering[[#This Row],[Dood in geboorte]]="ja",1,0) -> 0 | F68: =IF(lammering[[#This Row],[Ooi]]="",0,IF(Berekeningen!E68=0,1,0)) -> 0 | G68: =IF(D68=0,0,IF(lammering[[#This Row],[Dood in geboorte]]="Ja",0,IF(lammering[[#This Row],[Dood na geboorte]]="ja",0,1))) -> 0 | H68: =IF(lammering[[#This Row],[Opfok met kunstmelk]]="Ja",1,0) -> 0 | I68: =IF(lammering[[#This Row],[geslacht]]="O",1,0) -> 0 | J68: =IF(lammering[[#This Row],[Speen-datum]]="","",(lammering[[#This Row],[Speen-gewicht]]-lammering[[#This Row],[geboorte-gewicht]])/(lammering[[#This Row],[Speen-datum]]-lammering[[#This Row],[Werp-datum]])) ->  | K68: =IF(lammering[[#This Row],[Verkoop-datum]]="","",(lammering[[#This Row],[Verkoop-gewicht]]-lammering[[#This Row],[Speen-gewicht]])/(lammering[[#This Row],[Verkoop-datum]]-lammering[[#This Row],[Speen-datum]])) ->  | L68: =IF(lammering[[#This Row],[Verkoop-datum]]="","",(lammering[[#This Row],[Verkoop-gewicht]]-lammering[[#This Row],[geboorte-gewicht]])/(lammering[[#This Row],[Verkoop-datum]]-lammering[[#This Row],[Werp-datum]])) ->  | S68: =IF(lammering[[#This Row],[Verkoop-gewicht]]="","",lammering[[#This Row],[Verkoop-gewicht]]-lammering[[#This Row],[geboorte-gewicht]]) ->  | V68: =Opzoek_ooi[[#This Row],[Ooinummer]] -> 0
A69: =lammering[[#This Row],[Ooi]] -> 0 | B69: 0 | C69: 0 | D69: =IF(lammering[[#This Row],[Lam-nummer]]="",0,1) -> 0 | E69: =IF(lammering[[#This Row],[Dood in geboorte]]="ja",1,0) -> 0 | F69: =IF(lammering[[#This Row],[Ooi]]="",0,IF(Berekeningen!E69=0,1,0)) -> 0 | G69: =IF(D69=0,0,IF(lammering[[#This Row],[Dood in geboorte]]="Ja",0,IF(lammering[[#This Row],[Dood na geboorte]]="ja",0,1))) -> 0 | H69: =IF(lammering[[#This Row],[Opfok met kunstmelk]]="Ja",1,0) -> 0 | I69: =IF(lammering[[#This Row],[geslacht]]="O",1,0) -> 0 | J69: =IF(lammering[[#This Row],[Speen-datum]]="","",(lammering[[#This Row],[Speen-gewicht]]-lammering[[#This Row],[geboorte-gewicht]])/(lammering[[#This Row],[Speen-datum]]-lammering[[#This Row],[Werp-datum]])) ->  | K69: =IF(lammering[[#This Row],[Verkoop-datum]]="","",(lammering[[#This Row],[Verkoop-gewicht]]-lammering[[#This Row],[Speen-gewicht]])/(lammering[[#This Row],[Verkoop-datum]]-lammering[[#This Row],[Speen-datum]])) ->  | L69: =IF(lammering[[#This Row],[Verkoop-datum]]="","",(lammering[[#This Row],[Verkoop-gewicht]]-lammering[[#This Row],[geboorte-gewicht]])/(lammering[[#This Row],[Verkoop-datum]]-lammering[[#This Row],[Werp-datum]])) ->  | S69: =IF(lammering[[#This Row],[Verkoop-gewicht]]="","",lammering[[#This Row],[Verkoop-gewicht]]-lammering[[#This Row],[geboorte-gewicht]]) ->  | V69: =Opzoek_ooi[[#This Row],[Ooinummer]] -> 0
A70: =lammering[[#This Row],[Ooi]] -> 0 | B70: 0 | C70: 0 | D70: =IF(lammering[[#This Row],[Lam-nummer]]="",0,1) -> 0 | E70: =IF(lammering[[#This Row],[Dood in geboorte]]="ja",1,0) -> 0 | F70: =IF(lammering[[#This Row],[Ooi]]="",0,IF(Berekeningen!E70=0,1,0)) -> 0 | G70: =IF(D70=0,0,IF(lammering[[#This Row],[Dood in geboorte]]="Ja",0,IF(lammering[[#This Row],[Dood na geboorte]]="ja",0,1))) -> 0 | H70: =IF(lammering[[#This Row],[Opfok met kunstmelk]]="Ja",1,0) -> 0 | I70: =IF(lammering[[#This Row],[geslacht]]="O",1,0) -> 0 | J70: =IF(lammering[[#This Row],[Speen-datum]]="","",(lammering[[#This Row],[Speen-gewicht]]-lammering[[#This Row],[geboorte-gewicht]])/(lammering[[#This Row],[Speen-datum]]-lammering[[#This Row],[Werp-datum]])) ->  | K70: =IF(lammering[[#This Row],[Verkoop-datum]]="","",(lammering[[#This Row],[Verkoop-gewicht]]-lammering[[#This Row],[Speen-gewicht]])/(lammering[[#This Row],[Verkoop-datum]]-lammering[[#This Row],[Speen-datum]])) ->  | L70: =IF(lammering[[#This Row],[Verkoop-datum]]="","",(lammering[[#This Row],[Verkoop-gewicht]]-lammering[[#This Row],[geboorte-gewicht]])/(lammering[[#This Row],[Verkoop-datum]]-lammering[[#This Row],[Werp-datum]])) ->  | S70: =IF(lammering[[#This Row],[Verkoop-gewicht]]="","",lammering[[#This Row],[Verkoop-gewicht]]-lammering[[#This Row],[geboorte-gewicht]]) ->  | V70: =Opzoek_ooi[[#This Row],[Ooinummer]] -> 0
A71: =lammering[[#This Row],[Ooi]] -> 0 | B71: 0 | C71: 0 | D71: =IF(lammering[[#This Row],[Lam-nummer]]="",0,1) -> 0 | E71: =IF(lammering[[#This Row],[Dood in geboorte]]="ja",1,0) -> 0 | F71: =IF(lammering[[#This Row],[Ooi]]="",0,IF(Berekeningen!E71=0,1,0)) -> 0 | G71: =IF(D71=0,0,IF(lammering[[#This Row],[Dood in geboorte]]="Ja",0,IF(lammering[[#This Row],[Dood na geboorte]]="ja",0,1))) -> 0 | H71: =IF(lammering[[#This Row],[Opfok met kunstmelk]]="Ja",1,0) -> 0 | I71: =IF(lammering[[#This Row],[geslacht]]="O",1,0) -> 0 | J71: =IF(lammering[[#This Row],[Speen-datum]]="","",(lammering[[#This Row],[Speen-gewicht]]-lammering[[#This Row],[geboorte-gewicht]])/(lammering[[#This Row],[Speen-datum]]-lammering[[#This Row],[Werp-datum]])) ->  | K71: =IF(lammering[[#This Row],[Verkoop-datum]]="","",(lammering[[#This Row],[Verkoop-gewicht]]-lammering[[#This Row],[Speen-gewicht]])/(lammering[[#This Row],[Verkoop-datum]]-lammering[[#This Row],[Speen-datum]])) ->  | L71: =IF(lammering[[#This Row],[Verkoop-datum]]="","",(lammering[[#This Row],[Verkoop-gewicht]]-lammering[[#This Row],[geboorte-gewicht]])/(lammering[[#This Row],[Verkoop-datum]]-lammering[[#This Row],[Werp-datum]])) ->  | S71: =IF(lammering[[#This Row],[Verkoop-gewicht]]="","",lammering[[#This Row],[Verkoop-gewicht]]-lammering[[#This Row],[geboorte-gewicht]]) ->  | V71: =Opzoek_ooi[[#This Row],[Ooinummer]] -> 0
A72: =lammering[[#This Row],[Ooi]] -> 0 | B72: 0 | C72: 0 | D72: =IF(lammering[[#This Row],[Lam-nummer]]="",0,1) -> 0 | E72: =IF(lammering[[#This Row],[Dood in geboorte]]="ja",1,0) -> 0 | F72: =IF(lammering[[#This Row],[Ooi]]="",0,IF(Berekeningen!E72=0,1,0)) -> 0 | G72: =IF(D72=0,0,IF(lammering[[#This Row],[Dood in geboorte]]="Ja",0,IF(lammering[[#This Row],[Dood na geboorte]]="ja",0,1))) -> 0 | H72: =IF(lammering[[#This Row],[Opfok met kunstmelk]]="Ja",1,0) -> 0 | I72: =IF(lammering[[#This Row],[geslacht]]="O",1,0) -> 0 | J72: =IF(lammering[[#This Row],[Speen-datum]]="","",(lammering[[#This Row],[Speen-gewicht]]-lammering[[#This Row],[geboorte-gewicht]])/(lammering[[#This Row],[Speen-datum]]-lammering[[#This Row],[Werp-datum]])) ->  | K72: =IF(lammering[[#This Row],[Verkoop-datum]]="","",(lammering[[#This Row],[Verkoop-gewicht]]-lammering[[#This Row],[Speen-gewicht]])/(lammering[[#This Row],[Verkoop-datum]]-lammering[[#This Row],[Speen-datum]])) ->  | L72: =IF(lammering[[#This Row],[Verkoop-datum]]="","",(lammering[[#This Row],[Verkoop-gewicht]]-lammering[[#This Row],[geboorte-gewicht]])/(lammering[[#This Row],[Verkoop-datum]]-lammering[[#This Row],[Werp-datum]])) ->  | S72: =IF(lammering[[#This Row],[Verkoop-gewicht]]="","",lammering[[#This Row],[Verkoop-gewicht]]-lammering[[#This Row],[geboorte-gewicht]]) ->  | V72: =Opzoek_ooi[[#This Row],[Ooinummer]] -> 0
A73: =lammering[[#This Row],[Ooi]] -> 0 | B73: 0 | C73: 0 | D73: =IF(lammering[[#This Row],[Lam-nummer]]="",0,1) -> 0 | E73: =IF(lammering[[#This Row],[Dood in geboorte]]="ja",1,0) -> 0 | F73: =IF(lammering[[#This Row],[Ooi]]="",0,IF(Berekeningen!E73=0,1,0)) -> 0 | G73: =IF(D73=0,0,IF(lammering[[#This Row],[Dood in geboorte]]="Ja",0,IF(lammering[[#This Row],[Dood na geboorte]]="ja",0,1))) -> 0 | H73: =IF(lammering[[#This Row],[Opfok met kunstmelk]]="Ja",1,0) -> 0 | I73: =IF(lammering[[#This Row],[geslacht]]="O",1,0) -> 0 | J73: =IF(lammering[[#This Row],[Speen-datum]]="","",(lammering[[#This Row],[Speen-gewicht]]-lammering[[#This Row],[geboorte-gewicht]])/(lammering[[#This Row],[Speen-datum]]-lammering[[#This Row],[Werp-datum]])) ->  | K73: =IF(lammering[[#This Row],[Verkoop-datum]]="","",(lammering[[#This Row],[Verkoop-gewicht]]-lammering[[#This Row],[Speen-gewicht]])/(lammering[[#This Row],[Verkoop-datum]]-lammering[[#This Row],[Speen-datum]])) ->  | L73: =IF(lammering[[#This Row],[Verkoop-datum]]="","",(lammering[[#This Row],[Verkoop-gewicht]]-lammering[[#This Row],[geboorte-gewicht]])/(lammering[[#This Row],[Verkoop-datum]]-lammering[[#This Row],[Werp-datum]])) ->  | S73: =IF(lammering[[#This Row],[Verkoop-gewicht]]="","",lammering[[#This Row],[Verkoop-gewicht]]-lammering[[#This Row],[geboorte-gewicht]]) ->  | V73: =Opzoek_ooi[[#This Row],[Ooinummer]] -> 0
A74: =lammering[[#This Row],[Ooi]] -> 0 | B74: 0 | C74: 0 | D74: =IF(lammering[[#This Row],[Lam-nummer]]="",0,1) -> 0 | E74: =IF(lammering[[#This Row],[Dood in geboorte]]="ja",1,0) -> 0 | F74: =IF(lammering[[#This Row],[Ooi]]="",0,IF(Berekeningen!E74=0,1,0)) -> 0 | G74: =IF(D74=0,0,IF(lammering[[#This Row],[Dood in geboorte]]="Ja",0,IF(lammering[[#This Row],[Dood na geboorte]]="ja",0,1))) -> 0 | H74: =IF(lammering[[#This Row],[Opfok met kunstmelk]]="Ja",1,0) -> 0 | I74: =IF(lammering[[#This Row],[geslacht]]="O",1,0) -> 0 | J74: =IF(lammering[[#This Row],[Speen-datum]]="","",(lammering[[#This Row],[Speen-gewicht]]-lammering[[#This Row],[geboorte-gewicht]])/(lammering[[#This Row],[Speen-datum]]-lammering[[#This Row],[Werp-datum]])) ->  | K74: =IF(lammering[[#This Row],[Verkoop-datum]]="","",(lammering[[#This Row],[Verkoop-gewicht]]-lammering[[#This Row],[Speen-gewicht]])/(lammering[[#This Row],[Verkoop-datum]]-lammering[[#This Row],[Speen-datum]])) ->  | L74: =IF(lammering[[#This Row],[Verkoop-datum]]="","",(lammering[[#This Row],[Verkoop-gewicht]]-lammering[[#This Row],[geboorte-gewicht]])/(lammering[[#This Row],[Verkoop-datum]]-lammering[[#This Row],[Werp-datum]])) ->  | S74: =IF(lammering[[#This Row],[Verkoop-gewicht]]="","",lammering[[#This Row],[Verkoop-gewicht]]-lammering[[#This Row],[geboorte-gewicht]]) ->  | V74: =Opzoek_ooi[[#This Row],[Ooinummer]] -> 0
A75: =lammering[[#This Row],[Ooi]] -> 0 | B75: 0 | C75: 0 | D75: =IF(lammering[[#This Row],[Lam-nummer]]="",0,1) -> 0 | E75: =IF(lammering[[#This Row],[Dood in geboorte]]="ja",1,0) -> 0 | F75: =IF(lammering[[#This Row],[Ooi]]="",0,IF(Berekeningen!E75=0,1,0)) -> 0 | G75: =IF(D75=0,0,IF(lammering[[#This Row],[Dood in geboorte]]="Ja",0,IF(lammering[[#This Row],[Dood na geboorte]]="ja",0,1))) -> 0 | H75: =IF(lammering[[#This Row],[Opfok met kunstmelk]]="Ja",1,0) -> 0 | I75: =IF(lammering[[#This Row],[geslacht]]="O",1,0) -> 0 | J75: =IF(lammering[[#This Row],[Speen-datum]]="","",(lammering[[#This Row],[Speen-gewicht]]-lammering[[#This Row],[geboorte-gewicht]])/(lammering[[#This Row],[Speen-datum]]-lammering[[#This Row],[Werp-datum]])) ->  | K75: =IF(lammering[[#This Row],[Verkoop-datum]]="","",(lammering[[#This Row],[Verkoop-gewicht]]-lammering[[#This Row],[Speen-gewicht]])/(lammering[[#This Row],[Verkoop-datum]]-lammering[[#This Row],[Speen-datum]])) ->  | L75: =IF(lammering[[#This Row],[Verkoop-datum]]="","",(lammering[[#This Row],[Verkoop-gewicht]]-lammering[[#This Row],[geboorte-gewicht]])/(lammering[[#This Row],[Verkoop-datum]]-lammering[[#This Row],[Werp-datum]])) ->  | S75: =IF(lammering[[#This Row],[Verkoop-gewicht]]="","",lammering[[#This Row],[Verkoop-gewicht]]-lammering[[#This Row],[geboorte-gewicht]]) ->  | V75: =Opzoek_ooi[[#This Row],[Ooinummer]] -> 0
A76: =lammering[[#This Row],[Ooi]] -> 0 | B76: 0 | C76: 0 | D76: =IF(lammering[[#This Row],[Lam-nummer]]="",0,1) -> 0 | E76: =IF(lammering[[#This Row],[Dood in geboorte]]="ja",1,0) -> 0 | F76: =IF(lammering[[#This Row],[Ooi]]="",0,IF(Berekeningen!E76=0,1,0)) -> 0 | G76: =IF(D76=0,0,IF(lammering[[#This Row],[Dood in geboorte]]="Ja",0,IF(lammering[[#This Row],[Dood na geboorte]]="ja",0,1))) -> 0 | H76: =IF(lammering[[#This Row],[Opfok met kunstmelk]]="Ja",1,0) -> 0 | I76: =IF(lammering[[#This Row],[geslacht]]="O",1,0) -> 0 | J76: =IF(lammering[[#This Row],[Speen-datum]]="","",(lammering[[#This Row],[Speen-gewicht]]-lammering[[#This Row],[geboorte-gewicht]])/(lammering[[#This Row],[Speen-datum]]-lammering[[#This Row],[Werp-datum]])) ->  | K76: =IF(lammering[[#This Row],[Verkoop-datum]]="","",(lammering[[#This Row],[Verkoop-gewicht]]-lammering[[#This Row],[Speen-gewicht]])/(lammering[[#This Row],[Verkoop-datum]]-lammering[[#This Row],[Speen-datum]])) ->  | L76: =IF(lammering[[#This Row],[Verkoop-datum]]="","",(lammering[[#This Row],[Verkoop-gewicht]]-lammering[[#This Row],[geboorte-gewicht]])/(lammering[[#This Row],[Verkoop-datum]]-lammering[[#This Row],[Werp-datum]])) ->  | S76: =IF(lammering[[#This Row],[Verkoop-gewicht]]="","",lammering[[#This Row],[Verkoop-gewicht]]-lammering[[#This Row],[geboorte-gewicht]]) ->  | V76: =Opzoek_ooi[[#This Row],[Ooinummer]] -> 0
A77: =lammering[[#This Row],[Ooi]] -> 0 | B77: 0 | C77: 0 | D77: =IF(lammering[[#This Row],[Lam-nummer]]="",0,1) -> 0 | E77: =IF(lammering[[#This Row],[Dood in geboorte]]="ja",1,0) -> 0 | F77: =IF(lammering[[#This Row],[Ooi]]="",0,IF(Berekeningen!E77=0,1,0)) -> 0 | G77: =IF(D77=0,0,IF(lammering[[#This Row],[Dood in geboorte]]="Ja",0,IF(lammering[[#This Row],[Dood na geboorte]]="ja",0,1))) -> 0 | H77: =IF(lammering[[#This Row],[Opfok met kunstmelk]]="Ja",1,0) -> 0 | I77: =IF(lammering[[#This Row],[geslacht]]="O",1,0) -> 0 | J77: =IF(lammering[[#This Row],[Speen-datum]]="","",(lammering[[#This Row],[Speen-gewicht]]-lammering[[#This Row],[geboorte-gewicht]])/(lammering[[#This Row],[Speen-datum]]-lammering[[#This Row],[Werp-datum]])) ->  | K77: =IF(lammering[[#This Row],[Verkoop-datum]]="","",(lammering[[#This Row],[Verkoop-gewicht]]-lammering[[#This Row],[Speen-gewicht]])/(lammering[[#This Row],[Verkoop-datum]]-lammering[[#This Row],[Speen-datum]])) ->  | L77: =IF(lammering[[#This Row],[Verkoop-datum]]="","",(lammering[[#This Row],[Verkoop-gewicht]]-lammering[[#This Row],[geboorte-gewicht]])/(lammering[[#This Row],[Verkoop-datum]]-lammering[[#This Row],[Werp-datum]])) ->  | S77: =IF(lammering[[#This Row],[Verkoop-gewicht]]="","",lammering[[#This Row],[Verkoop-gewicht]]-lammering[[#This Row],[geboorte-gewicht]]) ->  | V77: =Opzoek_ooi[[#This Row],[Ooinummer]] -> 0
A78: =lammering[[#This Row],[Ooi]] -> 0 | B78: 0 | C78: 0 | D78: =IF(lammering[[#This Row],[Lam-nummer]]="",0,1) -> 0 | E78: =IF(lammering[[#This Row],[Dood in geboorte]]="ja",1,0) -> 0 | F78: =IF(lammering[[#This Row],[Ooi]]="",0,IF(Berekeningen!E78=0,1,0)) -> 0 | G78: =IF(D78=0,0,IF(lammering[[#This Row],[Dood in geboorte]]="Ja",0,IF(lammering[[#This Row],[Dood na geboorte]]="ja",0,1))) -> 0 | H78: =IF(lammering[[#This Row],[Opfok met kunstmelk]]="Ja",1,0) -> 0 | I78: =IF(lammering[[#This Row],[geslacht]]="O",1,0) -> 0 | J78: =IF(lammering[[#This Row],[Speen-datum]]="","",(lammering[[#This Row],[Speen-gewicht]]-lammering[[#This Row],[geboorte-gewicht]])/(lammering[[#This Row],[Speen-datum]]-lammering[[#This Row],[Werp-datum]])) ->  | K78: =IF(lammering[[#This Row],[Verkoop-datum]]="","",(lammering[[#This Row],[Verkoop-gewicht]]-lammering[[#This Row],[Speen-gewicht]])/(lammering[[#This Row],[Verkoop-datum]]-lammering[[#This Row],[Speen-datum]])) ->  | L78: =IF(lammering[[#This Row],[Verkoop-datum]]="","",(lammering[[#This Row],[Verkoop-gewicht]]-lammering[[#This Row],[geboorte-gewicht]])/(lammering[[#This Row],[Verkoop-datum]]-lammering[[#This Row],[Werp-datum]])) ->  | S78: =IF(lammering[[#This Row],[Verkoop-gewicht]]="","",lammering[[#This Row],[Verkoop-gewicht]]-lammering[[#This Row],[geboorte-gewicht]]) ->  | V78: =Opzoek_ooi[[#This Row],[Ooinummer]] -> 0
A79: =lammering[[#This Row],[Ooi]] -> 0 | B79: 0 | C79: 0 | D79: =IF(lammering[[#This Row],[Lam-nummer]]="",0,1) -> 0 | E79: =IF(lammering[[#This Row],[Dood in geboorte]]="ja",1,0) -> 0 | F79: =IF(lammering[[#This Row],[Ooi]]="",0,IF(Berekeningen!E79=0,1,0)) -> 0 | G79: =IF(D79=0,0,IF(lammering[[#This Row],[Dood in geboorte]]="Ja",0,IF(lammering[[#This Row],[Dood na geboorte]]="ja",0,1))) -> 0 | H79: =IF(lammering[[#This Row],[Opfok met kunstmelk]]="Ja",1,0) -> 0 | I79: =IF(lammering[[#This Row],[geslacht]]="O",1,0) -> 0 | J79: =IF(lammering[[#This Row],[Speen-datum]]="","",(lammering[[#This Row],[Speen-gewicht]]-lammering[[#This Row],[geboorte-gewicht]])/(lammering[[#This Row],[Speen-datum]]-lammering[[#This Row],[Werp-datum]])) ->  | K79: =IF(lammering[[#This Row],[Verkoop-datum]]="","",(lammering[[#This Row],[Verkoop-gewicht]]-lammering[[#This Row],[Speen-gewicht]])/(lammering[[#This Row],[Verkoop-datum]]-lammering[[#This Row],[Speen-datum]])) ->  | L79: =IF(lammering[[#This Row],[Verkoop-datum]]="","",(lammering[[#This Row],[Verkoop-gewicht]]-lammering[[#This Row],[geboorte-gewicht]])/(lammering[[#This Row],[Verkoop-datum]]-lammering[[#This Row],[Werp-datum]])) ->  | M79: =IF($I79=1,J79,"") ->  | N79: =IF($I79=1,K79,"") ->  | O79: =IF($I79=1,L79,"") ->  | P79: =IF($I79=0,J79,"") ->  | Q79: =IF($I79=0,K79,"") ->  | R79: =IF($I79=0,L79,"") ->  | S79: =IF(lammering[[#This Row],[Verkoop-gewicht]]="","",lammering[[#This Row],[Verkoop-gewicht]]-lammering[[#This Row],[geboorte-gewicht]]) ->  | T79: =IF(I79=1,S79,"") ->  | U79: =IF(I79=0,S79,"") ->  | V79: =Opzoek_ooi[[#This Row],[Ooinummer]] -> 0
A80: =lammering[[#This Row],[Ooi]] -> 0 | B80: 0 | C80: 0 | D80: =IF(lammering[[#This Row],[Lam-nummer]]="",0,1) -> 0 | E80: =IF(lammering[[#This Row],[Dood in geboorte]]="ja",1,0) -> 0 | F80: =IF(lammering[[#This Row],[Ooi]]="",0,IF(Berekeningen!E80=0,1,0)) -> 0 | G80: =IF(D80=0,0,IF(lammering[[#This Row],[Dood in geboorte]]="Ja",0,IF(lammering[[#This Row],[Dood na geboorte]]="ja",0,1))) -> 0 | H80: =IF(lammering[[#This Row],[Opfok met kunstmelk]]="Ja",1,0) -> 0 | I80: =IF(lammering[[#This Row],[geslacht]]="O",1,0) -> 0 | J80: =IF(lammering[[#This Row],[Speen-datum]]="","",(lammering[[#This Row],[Speen-gewicht]]-lammering[[#This Row],[geboorte-gewicht]])/(lammering[[#This Row],[Speen-datum]]-lammering[[#This Row],[Werp-datum]])) ->  | K80: =IF(lammering[[#This Row],[Verkoop-datum]]="","",(lammering[[#This Row],[Verkoop-gewicht]]-lammering[[#This Row],[Speen-gewicht]])/(lammering[[#This Row],[Verkoop-datum]]-lammering[[#This Row],[Speen-datum]])) ->  | L80: =IF(lammering[[#This Row],[Verkoop-datum]]="","",(lammering[[#This Row],[Verkoop-gewicht]]-lammering[[#This Row],[geboorte-gewicht]])/(lammering[[#This Row],[Verkoop-datum]]-lammering[[#This Row],[Werp-datum]])) ->  | S80: =IF(lammering[[#This Row],[Verkoop-gewicht]]="","",lammering[[#This Row],[Verkoop-gewicht]]-lammering[[#This Row],[geboorte-gewicht]]) ->  | V80: =Opzoek_ooi[[#This Row],[Ooinummer]] -> 0 | W80: =IF(V80=0,"",COUNTIF(C$2:C$500,V80)) -> 
A81: =lammering[[#This Row],[Ooi]] -> 0 | B81: 0 | C81: 0 | D81: =IF(lammering[[#This Row],[Lam-nummer]]="",0,1) -> 0 | E81: =IF(lammering[[#This Row],[Dood in geboorte]]="ja",1,0) -> 0 | F81: =IF(lammering[[#This Row],[Ooi]]="",0,IF(Berekeningen!E81=0,1,0)) -> 0 | G81: =IF(D81=0,0,IF(lammering[[#This Row],[Dood in geboorte]]="Ja",0,IF(lammering[[#This Row],[Dood na geboorte]]="ja",0,1))) -> 0 | H81: =IF(lammering[[#This Row],[Opfok met kunstmelk]]="Ja",1,0) -> 0 | I81: =IF(lammering[[#This Row],[geslacht]]="O",1,0) -> 0 | J81: =IF(lammering[[#This Row],[Speen-datum]]="","",(lammering[[#This Row],[Speen-gewicht]]-lammering[[#This Row],[geboorte-gewicht]])/(lammering[[#This Row],[Speen-datum]]-lammering[[#This Row],[Werp-datum]])) ->  | K81: =IF(lammering[[#This Row],[Verkoop-datum]]="","",(lammering[[#This Row],[Verkoop-gewicht]]-lammering[[#This Row],[Speen-gewicht]])/(lammering[[#This Row],[Verkoop-datum]]-lammering[[#This Row],[Speen-datum]])) ->  | L81: =IF(lammering[[#This Row],[Verkoop-datum]]="","",(lammering[[#This Row],[Verkoop-gewicht]]-lammering[[#This Row],[geboorte-gewicht]])/(lammering[[#This Row],[Verkoop-datum]]-lammering[[#This Row],[Werp-datum]])) ->  | S81: =IF(lammering[[#This Row],[Verkoop-gewicht]]="","",lammering[[#This Row],[Verkoop-gewicht]]-lammering[[#This Row],[geboorte-gewicht]]) ->  | V81: =Opzoek_ooi[[#This Row],[Ooinummer]] -> 0
A82: =lammering[[#This Row],[Ooi]] -> 0 | B82: 0 | C82: 0 | D82: =IF(lammering[[#This Row],[Lam-nummer]]="",0,1) -> 0 | E82: =IF(lammering[[#This Row],[Dood in geboorte]]="ja",1,0) -> 0 | F82: =IF(lammering[[#This Row],[Ooi]]="",0,IF(Berekeningen!E82=0,1,0)) -> 0 | G82: =IF(D82=0,0,IF(lammering[[#This Row],[Dood in geboorte]]="Ja",0,IF(lammering[[#This Row],[Dood na geboorte]]="ja",0,1))) -> 0 | H82: =IF(lammering[[#This Row],[Opfok met kunstmelk]]="Ja",1,0) -> 0 | I82: =IF(lammering[[#This Row],[geslacht]]="O",1,0) -> 0 | J82: =IF(lammering[[#This Row],[Speen-datum]]="","",(lammering[[#This Row],[Speen-gewicht]]-lammering[[#This Row],[geboorte-gewicht]])/(lammering[[#This Row],[Speen-datum]]-lammering[[#This Row],[Werp-datum]])) ->  | K82: =IF(lammering[[#This Row],[Verkoop-datum]]="","",(lammering[[#This Row],[Verkoop-gewicht]]-lammering[[#This Row],[Speen-gewicht]])/(lammering[[#This Row],[Verkoop-datum]]-lammering[[#This Row],[Speen-datum]])) ->  | L82: =IF(lammering[[#This Row],[Verkoop-datum]]="","",(lammering[[#This Row],[Verkoop-gewicht]]-lammering[[#This Row],[geboorte-gewicht]])/(lammering[[#This Row],[Verkoop-datum]]-lammering[[#This Row],[Werp-datum]])) ->  | S82: =IF(lammering[[#This Row],[Verkoop-gewicht]]="","",lammering[[#This Row],[Verkoop-gewicht]]-lammering[[#This Row],[geboorte-gewicht]]) ->  | V82: =Opzoek_ooi[[#This Row],[Ooinummer]] -> 0
A83: =lammering[[#This Row],[Ooi]] -> 0 | B83: 0 | C83: 0 | D83: =IF(lammering[[#This Row],[Lam-nummer]]="",0,1) -> 0 | E83: =IF(lammering[[#This Row],[Dood in geboorte]]="ja",1,0) -> 0 | F83: =IF(lammering[[#This Row],[Ooi]]="",0,IF(Berekeningen!E83=0,1,0)) -> 0 | G83: =IF(D83=0,0,IF(lammering[[#This Row],[Dood in geboorte]]="Ja",0,IF(lammering[[#This Row],[Dood na geboorte]]="ja",0,1))) -> 0 | H83: =IF(lammering[[#This Row],[Opfok met kunstmelk]]="Ja",1,0) -> 0 | I83: =IF(lammering[[#This Row],[geslacht]]="O",1,0) -> 0 | J83: =IF(lammering[[#This Row],[Speen-datum]]="","",(lammering[[#This Row],[Speen-gewicht]]-lammering[[#This Row],[geboorte-gewicht]])/(lammering[[#This Row],[Speen-datum]]-lammering[[#This Row],[Werp-datum]])) ->  | K83: =IF(lammering[[#This Row],[Verkoop-datum]]="","",(lammering[[#This Row],[Verkoop-gewicht]]-lammering[[#This Row],[Speen-gewicht]])/(lammering[[#This Row],[Verkoop-datum]]-lammering[[#This Row],[Speen-datum]])) ->  | L83: =IF(lammering[[#This Row],[Verkoop-datum]]="","",(lammering[[#This Row],[Verkoop-gewicht]]-lammering[[#This Row],[geboorte-gewicht]])/(lammering[[#This Row],[Verkoop-datum]]-lammering[[#This Row],[Werp-datum]])) ->  | S83: =IF(lammering[[#This Row],[Verkoop-gewicht]]="","",lammering[[#This Row],[Verkoop-gewicht]]-lammering[[#This Row],[geboorte-gewicht]]) ->  | V83: =Opzoek_ooi[[#This Row],[Ooinummer]] -> 0
A84: =lammering[[#This Row],[Ooi]] -> 0 | B84: 0 | C84: 0 | D84: =IF(lammering[[#This Row],[Lam-nummer]]="",0,1) -> 0 | E84: =IF(lammering[[#This Row],[Dood in geboorte]]="ja",1,0) -> 0 | F84: =IF(lammering[[#This Row],[Ooi]]="",0,IF(Berekeningen!E84=0,1,0)) -> 0 | G84: =IF(D84=0,0,IF(lammering[[#This Row],[Dood in geboorte]]="Ja",0,IF(lammering[[#This Row],[Dood na geboorte]]="ja",0,1))) -> 0 | H84: =IF(lammering[[#This Row],[Opfok met kunstmelk]]="Ja",1,0) -> 0 | I84: =IF(lammering[[#This Row],[geslacht]]="O",1,0) -> 0 | J84: =IF(lammering[[#This Row],[Speen-datum]]="","",(lammering[[#This Row],[Speen-gewicht]]-lammering[[#This Row],[geboorte-gewicht]])/(lammering[[#This Row],[Speen-datum]]-lammering[[#This Row],[Werp-datum]])) ->  | K84: =IF(lammering[[#This Row],[Verkoop-datum]]="","",(lammering[[#This Row],[Verkoop-gewicht]]-lammering[[#This Row],[Speen-gewicht]])/(lammering[[#This Row],[Verkoop-datum]]-lammering[[#This Row],[Speen-datum]])) ->  | L84: =IF(lammering[[#This Row],[Verkoop-datum]]="","",(lammering[[#This Row],[Verkoop-gewicht]]-lammering[[#This Row],[geboorte-gewicht]])/(lammering[[#This Row],[Verkoop-datum]]-lammering[[#This Row],[Werp-datum]])) ->  | S84: =IF(lammering[[#This Row],[Verkoop-gewicht]]="","",lammering[[#This Row],[Verkoop-gewicht]]-lammering[[#This Row],[geboorte-gewicht]]) ->  | V84: =Opzoek_ooi[[#This Row],[Ooinummer]] -> 0
A85: =lammering[[#This Row],[Ooi]] -> 0 | B85: 0 | C85: 0 | D85: =IF(lammering[[#This Row],[Lam-nummer]]="",0,1) -> 0 | E85: =IF(lammering[[#This Row],[Dood in geboorte]]="ja",1,0) -> 0 | F85: =IF(lammering[[#This Row],[Ooi]]="",0,IF(Berekeningen!E85=0,1,0)) -> 0 | G85: =IF(D85=0,0,IF(lammering[[#This Row],[Dood in geboorte]]="Ja",0,IF(lammering[[#This Row],[Dood na geboorte]]="ja",0,1))) -> 0 | H85: =IF(lammering[[#This Row],[Opfok met kunstmelk]]="Ja",1,0) -> 0 | I85: =IF(lammering[[#This Row],[geslacht]]="O",1,0) -> 0 | J85: =IF(lammering[[#This Row],[Speen-datum]]="","",(lammering[[#This Row],[Speen-gewicht]]-lammering[[#This Row],[geboorte-gewicht]])/(lammering[[#This Row],[Speen-datum]]-lammering[[#This Row],[Werp-datum]])) ->  | K85: =IF(lammering[[#This Row],[Verkoop-datum]]="","",(lammering[[#This Row],[Verkoop-gewicht]]-lammering[[#This Row],[Speen-gewicht]])/(lammering[[#This Row],[Verkoop-datum]]-lammering[[#This Row],[Speen-datum]])) ->  | L85: =IF(lammering[[#This Row],[Verkoop-datum]]="","",(lammering[[#This Row],[Verkoop-gewicht]]-lammering[[#This Row],[geboorte-gewicht]])/(lammering[[#This Row],[Verkoop-datum]]-lammering[[#This Row],[Werp-datum]])) ->  | S85: =IF(lammering[[#This Row],[Verkoop-gewicht]]="","",lammering[[#This Row],[Verkoop-gewicht]]-lammering[[#This Row],[geboorte-gewicht]]) ->  | V85: =Opzoek_ooi[[#This Row],[Ooinummer]] -> 0
A86: =lammering[[#This Row],[Ooi]] -> 0 | B86: 0 | C86: 0 | D86: =IF(lammering[[#This Row],[Lam-nummer]]="",0,1) -> 0 | E86: =IF(lammering[[#This Row],[Dood in geboorte]]="ja",1,0) -> 0 | F86: =IF(lammering[[#This Row],[Ooi]]="",0,IF(Berekeningen!E86=0,1,0)) -> 0 | G86: =IF(D86=0,0,IF(lammering[[#This Row],[Dood in geboorte]]="Ja",0,IF(lammering[[#This Row],[Dood na geboorte]]="ja",0,1))) -> 0 | H86: =IF(lammering[[#This Row],[Opfok met kunstmelk]]="Ja",1,0) -> 0 | I86: =IF(lammering[[#This Row],[geslacht]]="O",1,0) -> 0 | J86: =IF(lammering[[#This Row],[Speen-datum]]="","",(lammering[[#This Row],[Speen-gewicht]]-lammering[[#This Row],[geboorte-gewicht]])/(lammering[[#This Row],[Speen-datum]]-lammering[[#This Row],[Werp-datum]])) ->  | K86: =IF(lammering[[#This Row],[Verkoop-datum]]="","",(lammering[[#This Row],[Verkoop-gewicht]]-lammering[[#This Row],[Speen-gewicht]])/(lammering[[#This Row],[Verkoop-datum]]-lammering[[#This Row],[Speen-datum]])) ->  | L86: =IF(lammering[[#This Row],[Verkoop-datum]]="","",(lammering[[#This Row],[Verkoop-gewicht]]-lammering[[#This Row],[geboorte-gewicht]])/(lammering[[#This Row],[Verkoop-datum]]-lammering[[#This Row],[Werp-datum]])) ->  | S86: =IF(lammering[[#This Row],[Verkoop-gewicht]]="","",lammering[[#This Row],[Verkoop-gewicht]]-lammering[[#This Row],[geboorte-gewicht]]) ->  | V86: =Opzoek_ooi[[#This Row],[Ooinummer]] -> 0
A87: =lammering[[#This Row],[Ooi]] -> 0 | B87: 0 | C87: 0 | D87: =IF(lammering[[#This Row],[Lam-nummer]]="",0,1) -> 0 | E87: =IF(lammering[[#This Row],[Dood in geboorte]]="ja",1,0) -> 0 | F87: =IF(lammering[[#This Row],[Ooi]]="",0,IF(Berekeningen!E87=0,1,0)) -> 0 | G87: =IF(D87=0,0,IF(lammering[[#This Row],[Dood in geboorte]]="Ja",0,IF(lammering[[#This Row],[Dood na geboorte]]="ja",0,1))) -> 0 | H87: =IF(lammering[[#This Row],[Opfok met kunstmelk]]="Ja",1,0) -> 0 | I87: =IF(lammering[[#This Row],[geslacht]]="O",1,0) -> 0 | J87: =IF(lammering[[#This Row],[Speen-datum]]="","",(lammering[[#This Row],[Speen-gewicht]]-lammering[[#This Row],[geboorte-gewicht]])/(lammering[[#This Row],[Speen-datum]]-lammering[[#This Row],[Werp-datum]])) ->  | K87: =IF(lammering[[#This Row],[Verkoop-datum]]="","",(lammering[[#This Row],[Verkoop-gewicht]]-lammering[[#This Row],[Speen-gewicht]])/(lammering[[#This Row],[Verkoop-datum]]-lammering[[#This Row],[Speen-datum]])) ->  | L87: =IF(lammering[[#This Row],[Verkoop-datum]]="","",(lammering[[#This Row],[Verkoop-gewicht]]-lammering[[#This Row],[geboorte-gewicht]])/(lammering[[#This Row],[Verkoop-datum]]-lammering[[#This Row],[Werp-datum]])) ->  | S87: =IF(lammering[[#This Row],[Verkoop-gewicht]]="","",lammering[[#This Row],[Verkoop-gewicht]]-lammering[[#This Row],[geboorte-gewicht]]) ->  | V87: =Opzoek_ooi[[#This Row],[Ooinummer]] -> 0
A88: =lammering[[#This Row],[Ooi]] -> 0 | B88: 0 | C88: 0 | D88: =IF(lammering[[#This Row],[Lam-nummer]]="",0,1) -> 0 | E88: =IF(lammering[[#This Row],[Dood in geboorte]]="ja",1,0) -> 0 | F88: =IF(lammering[[#This Row],[Ooi]]="",0,IF(Berekeningen!E88=0,1,0)) -> 0 | G88: =IF(D88=0,0,IF(lammering[[#This Row],[Dood in geboorte]]="Ja",0,IF(lammering[[#This Row],[Dood na geboorte]]="ja",0,1))) -> 0 | H88: =IF(lammering[[#This Row],[Opfok met kunstmelk]]="Ja",1,0) -> 0 | I88: =IF(lammering[[#This Row],[geslacht]]="O",1,0) -> 0 | J88: =IF(lammering[[#This Row],[Speen-datum]]="","",(lammering[[#This Row],[Speen-gewicht]]-lammering[[#This Row],[geboorte-gewicht]])/(lammering[[#This Row],[Speen-datum]]-lammering[[#This Row],[Werp-datum]])) ->  | K88: =IF(lammering[[#This Row],[Verkoop-datum]]="","",(lammering[[#This Row],[Verkoop-gewicht]]-lammering[[#This Row],[Speen-gewicht]])/(lammering[[#This Row],[Verkoop-datum]]-lammering[[#This Row],[Speen-datum]])) ->  | L88: =IF(lammering[[#This Row],[Verkoop-datum]]="","",(lammering[[#This Row],[Verkoop-gewicht]]-lammering[[#This Row],[geboorte-gewicht]])/(lammering[[#This Row],[Verkoop-datum]]-lammering[[#This Row],[Werp-datum]])) ->  | S88: =IF(lammering[[#This Row],[Verkoop-gewicht]]="","",lammering[[#This Row],[Verkoop-gewicht]]-lammering[[#This Row],[geboorte-gewicht]]) ->  | V88: =Opzoek_ooi[[#This Row],[Ooinummer]] -> 0
A89: =lammering[[#This Row],[Ooi]] -> 0 | B89: 0 | C89: 0 | D89: =IF(lammering[[#This Row],[Lam-nummer]]="",0,1) -> 0 | E89: =IF(lammering[[#This Row],[Dood in geboorte]]="ja",1,0) -> 0 | F89: =IF(lammering[[#This Row],[Ooi]]="",0,IF(Berekeningen!E89=0,1,0)) -> 0 | G89: =IF(D89=0,0,IF(lammering[[#This Row],[Dood in geboorte]]="Ja",0,IF(lammering[[#This Row],[Dood na geboorte]]="ja",0,1))) -> 0 | H89: =IF(lammering[[#This Row],[Opfok met kunstmelk]]="Ja",1,0) -> 0 | I89: =IF(lammering[[#This Row],[geslacht]]="O",1,0) -> 0 | J89: =IF(lammering[[#This Row],[Speen-datum]]="","",(lammering[[#This Row],[Speen-gewicht]]-lammering[[#This Row],[geboorte-gewicht]])/(lammering[[#This Row],[Speen-datum]]-lammering[[#This Row],[Werp-datum]])) ->  | K89: =IF(lammering[[#This Row],[Verkoop-datum]]="","",(lammering[[#This Row],[Verkoop-gewicht]]-lammering[[#This Row],[Speen-gewicht]])/(lammering[[#This Row],[Verkoop-datum]]-lammering[[#This Row],[Speen-datum]])) ->  | L89: =IF(lammering[[#This Row],[Verkoop-datum]]="","",(lammering[[#This Row],[Verkoop-gewicht]]-lammering[[#This Row],[geboorte-gewicht]])/(lammering[[#This Row],[Verkoop-datum]]-lammering[[#This Row],[Werp-datum]])) ->  | S89: =IF(lammering[[#This Row],[Verkoop-gewicht]]="","",lammering[[#This Row],[Verkoop-gewicht]]-lammering[[#This Row],[geboorte-gewicht]]) ->  | V89: =Opzoek_ooi[[#This Row],[Ooinummer]] -> 0
A90: =lammering[[#This Row],[Ooi]] -> 0 | B90: 0 | C90: 0 | D90: =IF(lammering[[#This Row],[Lam-nummer]]="",0,1) -> 0 | E90: =IF(lammering[[#This Row],[Dood in geboorte]]="ja",1,0) -> 0 | F90: =IF(lammering[[#This Row],[Ooi]]="",0,IF(Berekeningen!E90=0,1,0)) -> 0 | G90: =IF(D90=0,0,IF(lammering[[#This Row],[Dood in geboorte]]="Ja",0,IF(lammering[[#This Row],[Dood na geboorte]]="ja",0,1))) -> 0 | H90: =IF(lammering[[#This Row],[Opfok met kunstmelk]]="Ja",1,0) -> 0 | I90: =IF(lammering[[#This Row],[geslacht]]="O",1,0) -> 0 | J90: =IF(lammering[[#This Row],[Speen-datum]]="","",(lammering[[#This Row],[Speen-gewicht]]-lammering[[#This Row],[geboorte-gewicht]])/(lammering[[#This Row],[Speen-datum]]-lammering[[#This Row],[Werp-datum]])) ->  | K90: =IF(lammering[[#This Row],[Verkoop-datum]]="","",(lammering[[#This Row],[Verkoop-gewicht]]-lammering[[#This Row],[Speen-gewicht]])/(lammering[[#This Row],[Verkoop-datum]]-lammering[[#This Row],[Speen-datum]])) ->  | L90: =IF(lammering[[#This Row],[Verkoop-datum]]="","",(lammering[[#This Row],[Verkoop-gewicht]]-lammering[[#This Row],[geboorte-gewicht]])/(lammering[[#This Row],[Verkoop-datum]]-lammering[[#This Row],[Werp-datum]])) ->  | S90: =IF(lammering[[#This Row],[Verkoop-gewicht]]="","",lammering[[#This Row],[Verkoop-gewicht]]-lammering[[#This Row],[geboorte-gewicht]]) ->  | V90: =Opzoek_ooi[[#This Row],[Ooinummer]] -> 0
A91: =lammering[[#This Row],[Ooi]] -> 0 | B91: 0 | C91: 0 | D91: =IF(lammering[[#This Row],[Lam-nummer]]="",0,1) -> 0 | E91: =IF(lammering[[#This Row],[Dood in geboorte]]="ja",1,0) -> 0 | F91: =IF(lammering[[#This Row],[Ooi]]="",0,IF(Berekeningen!E91=0,1,0)) -> 0 | G91: =IF(D91=0,0,IF(lammering[[#This Row],[Dood in geboorte]]="Ja",0,IF(lammering[[#This Row],[Dood na geboorte]]="ja",0,1))) -> 0 | H91: =IF(lammering[[#This Row],[Opfok met kunstmelk]]="Ja",1,0) -> 0 | I91: =IF(lammering[[#This Row],[geslacht]]="O",1,0) -> 0 | J91: =IF(lammering[[#This Row],[Speen-datum]]="","",(lammering[[#This Row],[Speen-gewicht]]-lammering[[#This Row],[geboorte-gewicht]])/(lammering[[#This Row],[Speen-datum]]-lammering[[#This Row],[Werp-datum]])) ->  | K91: =IF(lammering[[#This Row],[Verkoop-datum]]="","",(lammering[[#This Row],[Verkoop-gewicht]]-lammering[[#This Row],[Speen-gewicht]])/(lammering[[#This Row],[Verkoop-datum]]-lammering[[#This Row],[Speen-datum]])) ->  | L91: =IF(lammering[[#This Row],[Verkoop-datum]]="","",(lammering[[#This Row],[Verkoop-gewicht]]-lammering[[#This Row],[geboorte-gewicht]])/(lammering[[#This Row],[Verkoop-datum]]-lammering[[#This Row],[Werp-datum]])) ->  | S91: =IF(lammering[[#This Row],[Verkoop-gewicht]]="","",lammering[[#This Row],[Verkoop-gewicht]]-lammering[[#This Row],[geboorte-gewicht]]) ->  | V91: =Opzoek_ooi[[#This Row],[Ooinummer]] -> 0
A92: =lammering[[#This Row],[Ooi]] -> 0 | B92: 0 | C92: 0 | D92: =IF(lammering[[#This Row],[Lam-nummer]]="",0,1) -> 0 | E92: =IF(lammering[[#This Row],[Dood in geboorte]]="ja",1,0) -> 0 | F92: =IF(lammering[[#This Row],[Ooi]]="",0,IF(Berekeningen!E92=0,1,0)) -> 0 | G92: =IF(D92=0,0,IF(lammering[[#This Row],[Dood in geboorte]]="Ja",0,IF(lammering[[#This Row],[Dood na geboorte]]="ja",0,1))) -> 0 | H92: =IF(lammering[[#This Row],[Opfok met kunstmelk]]="Ja",1,0) -> 0 | I92: =IF(lammering[[#This Row],[geslacht]]="O",1,0) -> 0 | J92: =IF(lammering[[#This Row],[Speen-datum]]="","",(lammering[[#This Row],[Speen-gewicht]]-lammering[[#This Row],[geboorte-gewicht]])/(lammering[[#This Row],[Speen-datum]]-lammering[[#This Row],[Werp-datum]])) ->  | K92: =IF(lammering[[#This Row],[Verkoop-datum]]="","",(lammering[[#This Row],[Verkoop-gewicht]]-lammering[[#This Row],[Speen-gewicht]])/(lammering[[#This Row],[Verkoop-datum]]-lammering[[#This Row],[Speen-datum]])) ->  | L92: =IF(lammering[[#This Row],[Verkoop-datum]]="","",(lammering[[#This Row],[Verkoop-gewicht]]-lammering[[#This Row],[geboorte-gewicht]])/(lammering[[#This Row],[Verkoop-datum]]-lammering[[#This Row],[Werp-datum]])) ->  | S92: =IF(lammering[[#This Row],[Verkoop-gewicht]]="","",lammering[[#This Row],[Verkoop-gewicht]]-lammering[[#This Row],[geboorte-gewicht]]) ->  | V92: =Opzoek_ooi[[#This Row],[Ooinummer]] -> 0
A93: =lammering[[#This Row],[Ooi]] -> 0 | B93: 0 | C93: 0 | D93: =IF(lammering[[#This Row],[Lam-nummer]]="",0,1) -> 0 | E93: =IF(lammering[[#This Row],[Dood in geboorte]]="ja",1,0) -> 0 | F93: =IF(lammering[[#This Row],[Ooi]]="",0,IF(Berekeningen!E93=0,1,0)) -> 0 | G93: =IF(D93=0,0,IF(lammering[[#This Row],[Dood in geboorte]]="Ja",0,IF(lammering[[#This Row],[Dood na geboorte]]="ja",0,1))) -> 0 | H93: =IF(lammering[[#This Row],[Opfok met kunstmelk]]="Ja",1,0) -> 0 | I93: =IF(lammering[[#This Row],[geslacht]]="O",1,0) -> 0 | J93: =IF(lammering[[#This Row],[Speen-datum]]="","",(lammering[[#This Row],[Speen-gewicht]]-lammering[[#This Row],[geboorte-gewicht]])/(lammering[[#This Row],[Speen-datum]]-lammering[[#This Row],[Werp-datum]])) ->  | K93: =IF(lammering[[#This Row],[Verkoop-datum]]="","",(lammering[[#This Row],[Verkoop-gewicht]]-lammering[[#This Row],[Speen-gewicht]])/(lammering[[#This Row],[Verkoop-datum]]-lammering[[#This Row],[Speen-datum]])) ->  | L93: =IF(lammering[[#This Row],[Verkoop-datum]]="","",(lammering[[#This Row],[Verkoop-gewicht]]-lammering[[#This Row],[geboorte-gewicht]])/(lammering[[#This Row],[Verkoop-datum]]-lammering[[#This Row],[Werp-datum]])) ->  | S93: =IF(lammering[[#This Row],[Verkoop-gewicht]]="","",lammering[[#This Row],[Verkoop-gewicht]]-lammering[[#This Row],[geboorte-gewicht]]) ->  | V93: =Opzoek_ooi[[#This Row],[Ooinummer]] -> 0
A94: =lammering[[#This Row],[Ooi]] -> 0 | B94: 0 | C94: 0 | D94: =IF(lammering[[#This Row],[Lam-nummer]]="",0,1) -> 0 | E94: =IF(lammering[[#This Row],[Dood in geboorte]]="ja",1,0) -> 0 | F94: =IF(lammering[[#This Row],[Ooi]]="",0,IF(Berekeningen!E94=0,1,0)) -> 0 | G94: =IF(D94=0,0,IF(lammering[[#This Row],[Dood in geboorte]]="Ja",0,IF(lammering[[#This Row],[Dood na geboorte]]="ja",0,1))) -> 0 | H94: =IF(lammering[[#This Row],[Opfok met kunstmelk]]="Ja",1,0) -> 0 | I94: =IF(lammering[[#This Row],[geslacht]]="O",1,0) -> 0 | J94: =IF(lammering[[#This Row],[Speen-datum]]="","",(lammering[[#This Row],[Speen-gewicht]]-lammering[[#This Row],[geboorte-gewicht]])/(lammering[[#This Row],[Speen-datum]]-lammering[[#This Row],[Werp-datum]])) ->  | K94: =IF(lammering[[#This Row],[Verkoop-datum]]="","",(lammering[[#This Row],[Verkoop-gewicht]]-lammering[[#This Row],[Speen-gewicht]])/(lammering[[#This Row],[Verkoop-datum]]-lammering[[#This Row],[Speen-datum]])) ->  | L94: =IF(lammering[[#This Row],[Verkoop-datum]]="","",(lammering[[#This Row],[Verkoop-gewicht]]-lammering[[#This Row],[geboorte-gewicht]])/(lammering[[#This Row],[Verkoop-datum]]-lammering[[#This Row],[Werp-datum]])) ->  | S94: =IF(lammering[[#This Row],[Verkoop-gewicht]]="","",lammering[[#This Row],[Verkoop-gewicht]]-lammering[[#This Row],[geboorte-gewicht]]) ->  | V94: =Opzoek_ooi[[#This Row],[Ooinummer]] -> 0
A95: =lammering[[#This Row],[Ooi]] -> 0 | B95: 0 | C95: 0 | D95: =IF(lammering[[#This Row],[Lam-nummer]]="",0,1) -> 0 | E95: =IF(lammering[[#This Row],[Dood in geboorte]]="ja",1,0) -> 0 | F95: =IF(lammering[[#This Row],[Ooi]]="",0,IF(Berekeningen!E95=0,1,0)) -> 0 | G95: =IF(D95=0,0,IF(lammering[[#This Row],[Dood in geboorte]]="Ja",0,IF(lammering[[#This Row],[Dood na geboorte]]="ja",0,1))) -> 0 | H95: =IF(lammering[[#This Row],[Opfok met kunstmelk]]="Ja",1,0) -> 0 | I95: =IF(lammering[[#This Row],[geslacht]]="O",1,0) -> 0 | J95: =IF(lammering[[#This Row],[Speen-datum]]="","",(lammering[[#This Row],[Speen-gewicht]]-lammering[[#This Row],[geboorte-gewicht]])/(lammering[[#This Row],[Speen-datum]]-lammering[[#This Row],[Werp-datum]])) ->  | K95: =IF(lammering[[#This Row],[Verkoop-datum]]="","",(lammering[[#This Row],[Verkoop-gewicht]]-lammering[[#This Row],[Speen-gewicht]])/(lammering[[#This Row],[Verkoop-datum]]-lammering[[#This Row],[Speen-datum]])) ->  | L95: =IF(lammering[[#This Row],[Verkoop-datum]]="","",(lammering[[#This Row],[Verkoop-gewicht]]-lammering[[#This Row],[geboorte-gewicht]])/(lammering[[#This Row],[Verkoop-datum]]-lammering[[#This Row],[Werp-datum]])) ->  | S95: =IF(lammering[[#This Row],[Verkoop-gewicht]]="","",lammering[[#This Row],[Verkoop-gewicht]]-lammering[[#This Row],[geboorte-gewicht]]) ->  | V95: =Opzoek_ooi[[#This Row],[Ooinummer]] -> 0
A96: =lammering[[#This Row],[Ooi]] -> 0 | B96: 0 | C96: 0 | D96: =IF(lammering[[#This Row],[Lam-nummer]]="",0,1) -> 0 | E96: =IF(lammering[[#This Row],[Dood in geboorte]]="ja",1,0) -> 0 | F96: =IF(lammering[[#This Row],[Ooi]]="",0,IF(Berekeningen!E96=0,1,0)) -> 0 | G96: =IF(D96=0,0,IF(lammering[[#This Row],[Dood in geboorte]]="Ja",0,IF(lammering[[#This Row],[Dood na geboorte]]="ja",0,1))) -> 0 | H96: =IF(lammering[[#This Row],[Opfok met kunstmelk]]="Ja",1,0) -> 0 | I96: =IF(lammering[[#This Row],[geslacht]]="O",1,0) -> 0 | J96: =IF(lammering[[#This Row],[Speen-datum]]="","",(lammering[[#This Row],[Speen-gewicht]]-lammering[[#This Row],[geboorte-gewicht]])/(lammering[[#This Row],[Speen-datum]]-lammering[[#This Row],[Werp-datum]])) ->  | K96: =IF(lammering[[#This Row],[Verkoop-datum]]="","",(lammering[[#This Row],[Verkoop-gewicht]]-lammering[[#This Row],[Speen-gewicht]])/(lammering[[#This Row],[Verkoop-datum]]-lammering[[#This Row],[Speen-datum]])) ->  | L96: =IF(lammering[[#This Row],[Verkoop-datum]]="","",(lammering[[#This Row],[Verkoop-gewicht]]-lammering[[#This Row],[geboorte-gewicht]])/(lammering[[#This Row],[Verkoop-datum]]-lammering[[#This Row],[Werp-datum]])) ->  | S96: =IF(lammering[[#This Row],[Verkoop-gewicht]]="","",lammering[[#This Row],[Verkoop-gewicht]]-lammering[[#This Row],[geboorte-gewicht]]) ->  | V96: =Opzoek_ooi[[#This Row],[Ooinummer]] -> 0
A97: =lammering[[#This Row],[Ooi]] -> 0 | B97: 0 | C97: 0 | D97: =IF(lammering[[#This Row],[Lam-nummer]]="",0,1) -> 0 | E97: =IF(lammering[[#This Row],[Dood in geboorte]]="ja",1,0) -> 0 | F97: =IF(lammering[[#This Row],[Ooi]]="",0,IF(Berekeningen!E97=0,1,0)) -> 0 | G97: =IF(D97=0,0,IF(lammering[[#This Row],[Dood in geboorte]]="Ja",0,IF(lammering[[#This Row],[Dood na geboorte]]="ja",0,1))) -> 0 | H97: =IF(lammering[[#This Row],[Opfok met kunstmelk]]="Ja",1,0) -> 0 | I97: =IF(lammering[[#This Row],[geslacht]]="O",1,0) -> 0 | J97: =IF(lammering[[#This Row],[Speen-datum]]="","",(lammering[[#This Row],[Speen-gewicht]]-lammering[[#This Row],[geboorte-gewicht]])/(lammering[[#This Row],[Speen-datum]]-lammering[[#This Row],[Werp-datum]])) ->  | K97: =IF(lammering[[#This Row],[Verkoop-datum]]="","",(lammering[[#This Row],[Verkoop-gewicht]]-lammering[[#This Row],[Speen-gewicht]])/(lammering[[#This Row],[Verkoop-datum]]-lammering[[#This Row],[Speen-datum]])) ->  | L97: =IF(lammering[[#This Row],[Verkoop-datum]]="","",(lammering[[#This Row],[Verkoop-gewicht]]-lammering[[#This Row],[geboorte-gewicht]])/(lammering[[#This Row],[Verkoop-datum]]-lammering[[#This Row],[Werp-datum]])) ->  | S97: =IF(lammering[[#This Row],[Verkoop-gewicht]]="","",lammering[[#This Row],[Verkoop-gewicht]]-lammering[[#This Row],[geboorte-gewicht]]) ->  | V97: =Opzoek_ooi[[#This Row],[Ooinummer]] -> 0
A98: =lammering[[#This Row],[Ooi]] -> 0 | B98: 0 | C98: 0 | D98: =IF(lammering[[#This Row],[Lam-nummer]]="",0,1) -> 0 | E98: =IF(lammering[[#This Row],[Dood in geboorte]]="ja",1,0) -> 0 | F98: =IF(lammering[[#This Row],[Ooi]]="",0,IF(Berekeningen!E98=0,1,0)) -> 0 | G98: =IF(D98=0,0,IF(lammering[[#This Row],[Dood in geboorte]]="Ja",0,IF(lammering[[#This Row],[Dood na geboorte]]="ja",0,1))) -> 0 | H98: =IF(lammering[[#This Row],[Opfok met kunstmelk]]="Ja",1,0) -> 0 | I98: =IF(lammering[[#This Row],[geslacht]]="O",1,0) -> 0 | J98: =IF(lammering[[#This Row],[Speen-datum]]="","",(lammering[[#This Row],[Speen-gewicht]]-lammering[[#This Row],[geboorte-gewicht]])/(lammering[[#This Row],[Speen-datum]]-lammering[[#This Row],[Werp-datum]])) ->  | K98: =IF(lammering[[#This Row],[Verkoop-datum]]="","",(lammering[[#This Row],[Verkoop-gewicht]]-lammering[[#This Row],[Speen-gewicht]])/(lammering[[#This Row],[Verkoop-datum]]-lammering[[#This Row],[Speen-datum]])) ->  | L98: =IF(lammering[[#This Row],[Verkoop-datum]]="","",(lammering[[#This Row],[Verkoop-gewicht]]-lammering[[#This Row],[geboorte-gewicht]])/(lammering[[#This Row],[Verkoop-datum]]-lammering[[#This Row],[Werp-datum]])) ->  | S98: =IF(lammering[[#This Row],[Verkoop-gewicht]]="","",lammering[[#This Row],[Verkoop-gewicht]]-lammering[[#This Row],[geboorte-gewicht]]) ->  | V98: =Opzoek_ooi[[#This Row],[Ooinummer]] -> 0
A99: =lammering[[#This Row],[Ooi]] -> 0 | B99: 0 | C99: 0 | D99: =IF(lammering[[#This Row],[Lam-nummer]]="",0,1) -> 0 | E99: =IF(lammering[[#This Row],[Dood in geboorte]]="ja",1,0) -> 0 | F99: =IF(lammering[[#This Row],[Ooi]]="",0,IF(Berekeningen!E99=0,1,0)) -> 0 | G99: =IF(D99=0,0,IF(lammering[[#This Row],[Dood in geboorte]]="Ja",0,IF(lammering[[#This Row],[Dood na geboorte]]="ja",0,1))) -> 0 | H99: =IF(lammering[[#This Row],[Opfok met kunstmelk]]="Ja",1,0) -> 0 | I99: =IF(lammering[[#This Row],[geslacht]]="O",1,0) -> 0 | J99: =IF(lammering[[#This Row],[Speen-datum]]="","",(lammering[[#This Row],[Speen-gewicht]]-lammering[[#This Row],[geboorte-gewicht]])/(lammering[[#This Row],[Speen-datum]]-lammering[[#This Row],[Werp-datum]])) ->  | K99: =IF(lammering[[#This Row],[Verkoop-datum]]="","",(lammering[[#This Row],[Verkoop-gewicht]]-lammering[[#This Row],[Speen-gewicht]])/(lammering[[#This Row],[Verkoop-datum]]-lammering[[#This Row],[Speen-datum]])) ->  | L99: =IF(lammering[[#This Row],[Verkoop-datum]]="","",(lammering[[#This Row],[Verkoop-gewicht]]-lammering[[#This Row],[geboorte-gewicht]])/(lammering[[#This Row],[Verkoop-datum]]-lammering[[#This Row],[Werp-datum]])) ->  | S99: =IF(lammering[[#This Row],[Verkoop-gewicht]]="","",lammering[[#This Row],[Verkoop-gewicht]]-lammering[[#This Row],[geboorte-gewicht]]) ->  | V99: =Opzoek_ooi[[#This Row],[Ooinummer]] -> 0
A100: =lammering[[#This Row],[Ooi]] -> 0 | B100: 0 | C100: 0 | D100: =IF(lammering[[#This Row],[Lam-nummer]]="",0,1) -> 0 | E100: =IF(lammering[[#This Row],[Dood in geboorte]]="ja",1,0) -> 0 | F100: =IF(lammering[[#This Row],[Ooi]]="",0,IF(Berekeningen!E100=0,1,0)) -> 0 | G100: =IF(D100=0,0,IF(lammering[[#This Row],[Dood in geboorte]]="Ja",0,IF(lammering[[#This Row],[Dood na geboorte]]="ja",0,1))) -> 0 | H100: =IF(lammering[[#This Row],[Opfok met kunstmelk]]="Ja",1,0) -> 0 | I100: =IF(lammering[[#This Row],[geslacht]]="O",1,0) -> 0 | J100: =IF(lammering[[#This Row],[Speen-datum]]="","",(lammering[[#This Row],[Speen-gewicht]]-lammering[[#This Row],[geboorte-gewicht]])/(lammering[[#This Row],[Speen-datum]]-lammering[[#This Row],[Werp-datum]])) ->  | K100: =IF(lammering[[#This Row],[Verkoop-datum]]="","",(lammering[[#This Row],[Verkoop-gewicht]]-lammering[[#This Row],[Speen-gewicht]])/(lammering[[#This Row],[Verkoop-datum]]-lammering[[#This Row],[Speen-datum]])) ->  | L100: =IF(lammering[[#This Row],[Verkoop-datum]]="","",(lammering[[#This Row],[Verkoop-gewicht]]-lammering[[#This Row],[geboorte-gewicht]])/(lammering[[#This Row],[Verkoop-datum]]-lammering[[#This Row],[Werp-datum]])) ->  | S100: =IF(lammering[[#This Row],[Verkoop-gewicht]]="","",lammering[[#This Row],[Verkoop-gewicht]]-lammering[[#This Row],[geboorte-gewicht]]) ->  | V100: =Opzoek_ooi[[#This Row],[Ooinummer]] -> 0
A101: =lammering[[#This Row],[Ooi]] -> 0 | B101: 0 | C101: 0 | D101: =IF(lammering[[#This Row],[Lam-nummer]]="",0,1) -> 0 | E101: =IF(lammering[[#This Row],[Dood in geboorte]]="ja",1,0) -> 0 | F101: =IF(lammering[[#This Row],[Ooi]]="",0,IF(Berekeningen!E101=0,1,0)) -> 0 | G101: =IF(D101=0,0,IF(lammering[[#This Row],[Dood in geboorte]]="Ja",0,IF(lammering[[#This Row],[Dood na geboorte]]="ja",0,1))) -> 0 | H101: =IF(lammering[[#This Row],[Opfok met kunstmelk]]="Ja",1,0) -> 0 | I101: =IF(lammering[[#This Row],[geslacht]]="O",1,0) -> 0 | J101: =IF(lammering[[#This Row],[Speen-datum]]="","",(lammering[[#This Row],[Speen-gewicht]]-lammering[[#This Row],[geboorte-gewicht]])/(lammering[[#This Row],[Speen-datum]]-lammering[[#This Row],[Werp-datum]])) ->  | K101: =IF(lammering[[#This Row],[Verkoop-datum]]="","",(lammering[[#This Row],[Verkoop-gewicht]]-lammering[[#This Row],[Speen-gewicht]])/(lammering[[#This Row],[Verkoop-datum]]-lammering[[#This Row],[Speen-datum]])) ->  | L101: =IF(lammering[[#This Row],[Verkoop-datum]]="","",(lammering[[#This Row],[Verkoop-gewicht]]-lammering[[#This Row],[geboorte-gewicht]])/(lammering[[#This Row],[Verkoop-datum]]-lammering[[#This Row],[Werp-datum]])) ->  | S101: =IF(lammering[[#This Row],[Verkoop-gewicht]]="","",lammering[[#This Row],[Verkoop-gewicht]]-lammering[[#This Row],[geboorte-gewicht]]) ->  | V101: =Opzoek_ooi[[#This Row],[Ooinummer]] -> 0
A102: =lammering[[#This Row],[Ooi]] -> 0 | B102: 0 | C102: 0 | D102: =IF(lammering[[#This Row],[Lam-nummer]]="",0,1) -> 0 | E102: =IF(lammering[[#This Row],[Dood in geboorte]]="ja",1,0) -> 0 | F102: =IF(lammering[[#This Row],[Ooi]]="",0,IF(Berekeningen!E102=0,1,0)) -> 0 | G102: =IF(D102=0,0,IF(lammering[[#This Row],[Dood in geboorte]]="Ja",0,IF(lammering[[#This Row],[Dood na geboorte]]="ja",0,1))) -> 0 | H102: =IF(lammering[[#This Row],[Opfok met kunstmelk]]="Ja",1,0) -> 0 | I102: =IF(lammering[[#This Row],[geslacht]]="O",1,0) -> 0 | J102: =IF(lammering[[#This Row],[Speen-datum]]="","",(lammering[[#This Row],[Speen-gewicht]]-lammering[[#This Row],[geboorte-gewicht]])/(lammering[[#This Row],[Speen-datum]]-lammering[[#This Row],[Werp-datum]])) ->  | K102: =IF(lammering[[#This Row],[Verkoop-datum]]="","",(lammering[[#This Row],[Verkoop-gewicht]]-lammering[[#This Row],[Speen-gewicht]])/(lammering[[#This Row],[Verkoop-datum]]-lammering[[#This Row],[Speen-datum]])) ->  | L102: =IF(lammering[[#This Row],[Verkoop-datum]]="","",(lammering[[#This Row],[Verkoop-gewicht]]-lammering[[#This Row],[geboorte-gewicht]])/(lammering[[#This Row],[Verkoop-datum]]-lammering[[#This Row],[Werp-datum]])) ->  | S102: =IF(lammering[[#This Row],[Verkoop-gewicht]]="","",lammering[[#This Row],[Verkoop-gewicht]]-lammering[[#This Row],[geboorte-gewicht]]) ->  | V102: =Opzoek_ooi[[#This Row],[Ooinummer]] -> 0
A103: =lammering[[#This Row],[Ooi]] -> 0 | B103: 0 | C103: 0 | D103: =IF(lammering[[#This Row],[Lam-nummer]]="",0,1) -> 0 | E103: =IF(lammering[[#This Row],[Dood in geboorte]]="ja",1,0) -> 0 | F103: =IF(lammering[[#This Row],[Ooi]]="",0,IF(Berekeningen!E103=0,1,0)) -> 0 | G103: =IF(D103=0,0,IF(lammering[[#This Row],[Dood in geboorte]]="Ja",0,IF(lammering[[#This Row],[Dood na geboorte]]="ja",0,1))) -> 0 | H103: =IF(lammering[[#This Row],[Opfok met kunstmelk]]="Ja",1,0) -> 0 | I103: =IF(lammering[[#This Row],[geslacht]]="O",1,0) -> 0 | J103: =IF(lammering[[#This Row],[Speen-datum]]="","",(lammering[[#This Row],[Speen-gewicht]]-lammering[[#This Row],[geboorte-gewicht]])/(lammering[[#This Row],[Speen-datum]]-lammering[[#This Row],[Werp-datum]])) ->  | K103: =IF(lammering[[#This Row],[Verkoop-datum]]="","",(lammering[[#This Row],[Verkoop-gewicht]]-lammering[[#This Row],[Speen-gewicht]])/(lammering[[#This Row],[Verkoop-datum]]-lammering[[#This Row],[Speen-datum]])) ->  | L103: =IF(lammering[[#This Row],[Verkoop-datum]]="","",(lammering[[#This Row],[Verkoop-gewicht]]-lammering[[#This Row],[geboorte-gewicht]])/(lammering[[#This Row],[Verkoop-datum]]-lammering[[#This Row],[Werp-datum]])) ->  | S103: =IF(lammering[[#This Row],[Verkoop-gewicht]]="","",lammering[[#This Row],[Verkoop-gewicht]]-lammering[[#This Row],[geboorte-gewicht]]) ->  | V103: =Opzoek_ooi[[#This Row],[Ooinummer]] -> 0
A104: =lammering[[#This Row],[Ooi]] -> 0 | B104: 0 | C104: 0 | D104: =IF(lammering[[#This Row],[Lam-nummer]]="",0,1) -> 0 | E104: =IF(lammering[[#This Row],[Dood in geboorte]]="ja",1,0) -> 0 | F104: =IF(lammering[[#This Row],[Ooi]]="",0,IF(Berekeningen!E104=0,1,0)) -> 0 | G104: =IF(D104=0,0,IF(lammering[[#This Row],[Dood in geboorte]]="Ja",0,IF(lammering[[#This Row],[Dood na geboorte]]="ja",0,1))) -> 0 | H104: =IF(lammering[[#This Row],[Opfok met kunstmelk]]="Ja",1,0) -> 0 | I104: =IF(lammering[[#This Row],[geslacht]]="O",1,0) -> 0 | J104: =IF(lammering[[#This Row],[Speen-datum]]="","",(lammering[[#This Row],[Speen-gewicht]]-lammering[[#This Row],[geboorte-gewicht]])/(lammering[[#This Row],[Speen-datum]]-lammering[[#This Row],[Werp-datum]])) ->  | K104: =IF(lammering[[#This Row],[Verkoop-datum]]="","",(lammering[[#This Row],[Verkoop-gewicht]]-lammering[[#This Row],[Speen-gewicht]])/(lammering[[#This Row],[Verkoop-datum]]-lammering[[#This Row],[Speen-datum]])) ->  | L104: =IF(lammering[[#This Row],[Verkoop-datum]]="","",(lammering[[#This Row],[Verkoop-gewicht]]-lammering[[#This Row],[geboorte-gewicht]])/(lammering[[#This Row],[Verkoop-datum]]-lammering[[#This Row],[Werp-datum]])) ->  | S104: =IF(lammering[[#This Row],[Verkoop-gewicht]]="","",lammering[[#This Row],[Verkoop-gewicht]]-lammering[[#This Row],[geboorte-gewicht]]) ->  | V104: =Opzoek_ooi[[#This Row],[Ooinummer]] -> 0
A105: =lammering[[#This Row],[Ooi]] -> 0 | B105: 0 | C105: 0 | D105: =IF(lammering[[#This Row],[Lam-nummer]]="",0,1) -> 0 | E105: =IF(lammering[[#This Row],[Dood in geboorte]]="ja",1,0) -> 0 | F105: =IF(lammering[[#This Row],[Ooi]]="",0,IF(Berekeningen!E105=0,1,0)) -> 0 | G105: =IF(D105=0,0,IF(lammering[[#This Row],[Dood in geboorte]]="Ja",0,IF(lammering[[#This Row],[Dood na geboorte]]="ja",0,1))) -> 0 | H105: =IF(lammering[[#This Row],[Opfok met kunstmelk]]="Ja",1,0) -> 0 | I105: =IF(lammering[[#This Row],[geslacht]]="O",1,0) -> 0 | J105: =IF(lammering[[#This Row],[Speen-datum]]="","",(lammering[[#This Row],[Speen-gewicht]]-lammering[[#This Row],[geboorte-gewicht]])/(lammering[[#This Row],[Speen-datum]]-lammering[[#This Row],[Werp-datum]])) ->  | K105: =IF(lammering[[#This Row],[Verkoop-datum]]="","",(lammering[[#This Row],[Verkoop-gewicht]]-lammering[[#This Row],[Speen-gewicht]])/(lammering[[#This Row],[Verkoop-datum]]-lammering[[#This Row],[Speen-datum]])) ->  | L105: =IF(lammering[[#This Row],[Verkoop-datum]]="","",(lammering[[#This Row],[Verkoop-gewicht]]-lammering[[#This Row],[geboorte-gewicht]])/(lammering[[#This Row],[Verkoop-datum]]-lammering[[#This Row],[Werp-datum]])) ->  | S105: =IF(lammering[[#This Row],[Verkoop-gewicht]]="","",lammering[[#This Row],[Verkoop-gewicht]]-lammering[[#This Row],[geboorte-gewicht]]) ->  | V105: =Opzoek_ooi[[#This Row],[Ooinummer]] -> 0
A106: =lammering[[#This Row],[Ooi]] -> 0 | B106: 0 | C106: 0 | D106: =IF(lammering[[#This Row],[Lam-nummer]]="",0,1) -> 0 | E106: =IF(lammering[[#This Row],[Dood in geboorte]]="ja",1,0) -> 0 | F106: =IF(lammering[[#This Row],[Ooi]]="",0,IF(Berekeningen!E106=0,1,0)) -> 0 | G106: =IF(D106=0,0,IF(lammering[[#This Row],[Dood in geboorte]]="Ja",0,IF(lammering[[#This Row],[Dood na geboorte]]="ja",0,1))) -> 0 | H106: =IF(lammering[[#This Row],[Opfok met kunstmelk]]="Ja",1,0) -> 0 | I106: =IF(lammering[[#This Row],[geslacht]]="O",1,0) -> 0 | J106: =IF(lammering[[#This Row],[Speen-datum]]="","",(lammering[[#This Row],[Speen-gewicht]]-lammering[[#This Row],[geboorte-gewicht]])/(lammering[[#This Row],[Speen-datum]]-lammering[[#This Row],[Werp-datum]])) ->  | K106: =IF(lammering[[#This Row],[Verkoop-datum]]="","",(lammering[[#This Row],[Verkoop-gewicht]]-lammering[[#This Row],[Speen-gewicht]])/(lammering[[#This Row],[Verkoop-datum]]-lammering[[#This Row],[Speen-datum]])) ->  | L106: =IF(lammering[[#This Row],[Verkoop-datum]]="","",(lammering[[#This Row],[Verkoop-gewicht]]-lammering[[#This Row],[geboorte-gewicht]])/(lammering[[#This Row],[Verkoop-datum]]-lammering[[#This Row],[Werp-datum]])) ->  | S106: =IF(lammering[[#This Row],[Verkoop-gewicht]]="","",lammering[[#This Row],[Verkoop-gewicht]]-lammering[[#This Row],[geboorte-gewicht]]) ->  | V106: =Opzoek_ooi[[#This Row],[Ooinummer]] -> 0
A107: =lammering[[#This Row],[Ooi]] -> 0 | B107: 0 | C107: 0 | D107: =IF(lammering[[#This Row],[Lam-nummer]]="",0,1) -> 0 | E107: =IF(lammering[[#This Row],[Dood in geboorte]]="ja",1,0) -> 0 | F107: =IF(lammering[[#This Row],[Ooi]]="",0,IF(Berekeningen!E107=0,1,0)) -> 0 | G107: =IF(D107=0,0,IF(lammering[[#This Row],[Dood in geboorte]]="Ja",0,IF(lammering[[#This Row],[Dood na geboorte]]="ja",0,1))) -> 0 | H107: =IF(lammering[[#This Row],[Opfok met kunstmelk]]="Ja",1,0) -> 0 | I107: =IF(lammering[[#This Row],[geslacht]]="O",1,0) -> 0 | J107: =IF(lammering[[#This Row],[Speen-datum]]="","",(lammering[[#This Row],[Speen-gewicht]]-lammering[[#This Row],[geboorte-gewicht]])/(lammering[[#This Row],[Speen-datum]]-lammering[[#This Row],[Werp-datum]])) ->  | K107: =IF(lammering[[#This Row],[Verkoop-datum]]="","",(lammering[[#This Row],[Verkoop-gewicht]]-lammering[[#This Row],[Speen-gewicht]])/(lammering[[#This Row],[Verkoop-datum]]-lammering[[#This Row],[Speen-datum]])) ->  | L107: =IF(lammering[[#This Row],[Verkoop-datum]]="","",(lammering[[#This Row],[Verkoop-gewicht]]-lammering[[#This Row],[geboorte-gewicht]])/(lammering[[#This Row],[Verkoop-datum]]-lammering[[#This Row],[Werp-datum]])) ->  | S107: =IF(lammering[[#This Row],[Verkoop-gewicht]]="","",lammering[[#This Row],[Verkoop-gewicht]]-lammering[[#This Row],[geboorte-gewicht]]) ->  | V107: =Opzoek_ooi[[#This Row],[Ooinummer]] -> 0
A108: =lammering[[#This Row],[Ooi]] -> 0 | B108: 0 | C108: 0 | D108: =IF(lammering[[#This Row],[Lam-nummer]]="",0,1) -> 0 | E108: =IF(lammering[[#This Row],[Dood in geboorte]]="ja",1,0) -> 0 | F108: =IF(lammering[[#This Row],[Ooi]]="",0,IF(Berekeningen!E108=0,1,0)) -> 0 | G108: =IF(D108=0,0,IF(lammering[[#This Row],[Dood in geboorte]]="Ja",0,IF(lammering[[#This Row],[Dood na geboorte]]="ja",0,1))) -> 0 | H108: =IF(lammering[[#This Row],[Opfok met kunstmelk]]="Ja",1,0) -> 0 | I108: =IF(lammering[[#This Row],[geslacht]]="O",1,0) -> 0 | J108: =IF(lammering[[#This Row],[Speen-datum]]="","",(lammering[[#This Row],[Speen-gewicht]]-lammering[[#This Row],[geboorte-gewicht]])/(lammering[[#This Row],[Speen-datum]]-lammering[[#This Row],[Werp-datum]])) ->  | K108: =IF(lammering[[#This Row],[Verkoop-datum]]="","",(lammering[[#This Row],[Verkoop-gewicht]]-lammering[[#This Row],[Speen-gewicht]])/(lammering[[#This Row],[Verkoop-datum]]-lammering[[#This Row],[Speen-datum]])) ->  | L108: =IF(lammering[[#This Row],[Verkoop-datum]]="","",(lammering[[#This Row],[Verkoop-gewicht]]-lammering[[#This Row],[geboorte-gewicht]])/(lammering[[#This Row],[Verkoop-datum]]-lammering[[#This Row],[Werp-datum]])) ->  | S108: =IF(lammering[[#This Row],[Verkoop-gewicht]]="","",lammering[[#This Row],[Verkoop-gewicht]]-lammering[[#This Row],[geboorte-gewicht]]) ->  | V108: =Opzoek_ooi[[#This Row],[Ooinummer]] -> 0
A109: =lammering[[#This Row],[Ooi]] -> 0 | B109: 0 | C109: 0 | D109: =IF(lammering[[#This Row],[Lam-nummer]]="",0,1) -> 0 | E109: =IF(lammering[[#This Row],[Dood in geboorte]]="ja",1,0) -> 0 | F109: =IF(lammering[[#This Row],[Ooi]]="",0,IF(Berekeningen!E109=0,1,0)) -> 0 | G109: =IF(D109=0,0,IF(lammering[[#This Row],[Dood in geboorte]]="Ja",0,IF(lammering[[#This Row],[Dood na geboorte]]="ja",0,1))) -> 0 | H109: =IF(lammering[[#This Row],[Opfok met kunstmelk]]="Ja",1,0) -> 0 | I109: =IF(lammering[[#This Row],[geslacht]]="O",1,0) -> 0 | J109: =IF(lammering[[#This Row],[Speen-datum]]="","",(lammering[[#This Row],[Speen-gewicht]]-lammering[[#This Row],[geboorte-gewicht]])/(lammering[[#This Row],[Speen-datum]]-lammering[[#This Row],[Werp-datum]])) ->  | K109: =IF(lammering[[#This Row],[Verkoop-datum]]="","",(lammering[[#This Row],[Verkoop-gewicht]]-lammering[[#This Row],[Speen-gewicht]])/(lammering[[#This Row],[Verkoop-datum]]-lammering[[#This Row],[Speen-datum]])) ->  | L109: =IF(lammering[[#This Row],[Verkoop-datum]]="","",(lammering[[#This Row],[Verkoop-gewicht]]-lammering[[#This Row],[geboorte-gewicht]])/(lammering[[#This Row],[Verkoop-datum]]-lammering[[#This Row],[Werp-datum]])) ->  | S109: =IF(lammering[[#This Row],[Verkoop-gewicht]]="","",lammering[[#This Row],[Verkoop-gewicht]]-lammering[[#This Row],[geboorte-gewicht]]) ->  | V109: =Opzoek_ooi[[#This Row],[Ooinummer]] -> 0
A110: =lammering[[#This Row],[Ooi]] -> 0 | B110: 0 | C110: 0 | D110: =IF(lammering[[#This Row],[Lam-nummer]]="",0,1) -> 0 | E110: =IF(lammering[[#This Row],[Dood in geboorte]]="ja",1,0) -> 0 | F110: =IF(lammering[[#This Row],[Ooi]]="",0,IF(Berekeningen!E110=0,1,0)) -> 0 | G110: =IF(D110=0,0,IF(lammering[[#This Row],[Dood in geboorte]]="Ja",0,IF(lammering[[#This Row],[Dood na geboorte]]="ja",0,1))) -> 0 | H110: =IF(lammering[[#This Row],[Opfok met kunstmelk]]="Ja",1,0) -> 0 | I110: =IF(lammering[[#This Row],[geslacht]]="O",1,0) -> 0 | J110: =IF(lammering[[#This Row],[Speen-datum]]="","",(lammering[[#This Row],[Speen-gewicht]]-lammering[[#This Row],[geboorte-gewicht]])/(lammering[[#This Row],[Speen-datum]]-lammering[[#This Row],[Werp-datum]])) ->  | K110: =IF(lammering[[#This Row],[Verkoop-datum]]="","",(lammering[[#This Row],[Verkoop-gewicht]]-lammering[[#This Row],[Speen-gewicht]])/(lammering[[#This Row],[Verkoop-datum]]-lammering[[#This Row],[Speen-datum]])) ->  | L110: =IF(lammering[[#This Row],[Verkoop-datum]]="","",(lammering[[#This Row],[Verkoop-gewicht]]-lammering[[#This Row],[geboorte-gewicht]])/(lammering[[#This Row],[Verkoop-datum]]-lammering[[#This Row],[Werp-datum]])) ->  | S110: =IF(lammering[[#This Row],[Verkoop-gewicht]]="","",lammering[[#This Row],[Verkoop-gewicht]]-lammering[[#This Row],[geboorte-gewicht]]) ->  | V110: =Opzoek_ooi[[#This Row],[Ooinummer]] -> 0
A111: =lammering[[#This Row],[Ooi]] -> 0 | B111: 0 | C111: 0 | D111: =IF(lammering[[#This Row],[Lam-nummer]]="",0,1) -> 0 | E111: =IF(lammering[[#This Row],[Dood in geboorte]]="ja",1,0) -> 0 | F111: =IF(lammering[[#This Row],[Ooi]]="",0,IF(Berekeningen!E111=0,1,0)) -> 0 | G111: =IF(D111=0,0,IF(lammering[[#This Row],[Dood in geboorte]]="Ja",0,IF(lammering[[#This Row],[Dood na geboorte]]="ja",0,1))) -> 0 | H111: =IF(lammering[[#This Row],[Opfok met kunstmelk]]="Ja",1,0) -> 0 | I111: =IF(lammering[[#This Row],[geslacht]]="O",1,0) -> 0 | J111: =IF(lammering[[#This Row],[Speen-datum]]="","",(lammering[[#This Row],[Speen-gewicht]]-lammering[[#This Row],[geboorte-gewicht]])/(lammering[[#This Row],[Speen-datum]]-lammering[[#This Row],[Werp-datum]])) ->  | K111: =IF(lammering[[#This Row],[Verkoop-datum]]="","",(lammering[[#This Row],[Verkoop-gewicht]]-lammering[[#This Row],[Speen-gewicht]])/(lammering[[#This Row],[Verkoop-datum]]-lammering[[#This Row],[Speen-datum]])) ->  | L111: =IF(lammering[[#This Row],[Verkoop-datum]]="","",(lammering[[#This Row],[Verkoop-gewicht]]-lammering[[#This Row],[geboorte-gewicht]])/(lammering[[#This Row],[Verkoop-datum]]-lammering[[#This Row],[Werp-datum]])) ->  | S111: =IF(lammering[[#This Row],[Verkoop-gewicht]]="","",lammering[[#This Row],[Verkoop-gewicht]]-lammering[[#This Row],[geboorte-gewicht]]) ->  | V111: =Opzoek_ooi[[#This Row],[Ooinummer]] -> 0
A112: =lammering[[#This Row],[Ooi]] -> 0 | B112: 0 | C112: 0 | D112: =IF(lammering[[#This Row],[Lam-nummer]]="",0,1) -> 0 | E112: =IF(lammering[[#This Row],[Dood in geboorte]]="ja",1,0) -> 0 | F112: =IF(lammering[[#This Row],[Ooi]]="",0,IF(Berekeningen!E112=0,1,0)) -> 0 | G112: =IF(D112=0,0,IF(lammering[[#This Row],[Dood in geboorte]]="Ja",0,IF(lammering[[#This Row],[Dood na geboorte]]="ja",0,1))) -> 0 | H112: =IF(lammering[[#This Row],[Opfok met kunstmelk]]="Ja",1,0) -> 0 | I112: =IF(lammering[[#This Row],[geslacht]]="O",1,0) -> 0 | J112: =IF(lammering[[#This Row],[Speen-datum]]="","",(lammering[[#This Row],[Speen-gewicht]]-lammering[[#This Row],[geboorte-gewicht]])/(lammering[[#This Row],[Speen-datum]]-lammering[[#This Row],[Werp-datum]])) ->  | K112: =IF(lammering[[#This Row],[Verkoop-datum]]="","",(lammering[[#This Row],[Verkoop-gewicht]]-lammering[[#This Row],[Speen-gewicht]])/(lammering[[#This Row],[Verkoop-datum]]-lammering[[#This Row],[Speen-datum]])) ->  | L112: =IF(lammering[[#This Row],[Verkoop-datum]]="","",(lammering[[#This Row],[Verkoop-gewicht]]-lammering[[#This Row],[geboorte-gewicht]])/(lammering[[#This Row],[Verkoop-datum]]-lammering[[#This Row],[Werp-datum]])) ->  | S112: =IF(lammering[[#This Row],[Verkoop-gewicht]]="","",lammering[[#This Row],[Verkoop-gewicht]]-lammering[[#This Row],[geboorte-gewicht]]) ->  | V112: =Opzoek_ooi[[#This Row],[Ooinummer]] -> 0
A113: =lammering[[#This Row],[Ooi]] -> 0 | B113: 0 | C113: 0 | D113: =IF(lammering[[#This Row],[Lam-nummer]]="",0,1) -> 0 | E113: =IF(lammering[[#This Row],[Dood in geboorte]]="ja",1,0) -> 0 | F113: =IF(lammering[[#This Row],[Ooi]]="",0,IF(Berekeningen!E113=0,1,0)) -> 0 | G113: =IF(D113=0,0,IF(lammering[[#This Row],[Dood in geboorte]]="Ja",0,IF(lammering[[#This Row],[Dood na geboorte]]="ja",0,1))) -> 0 | H113: =IF(lammering[[#This Row],[Opfok met kunstmelk]]="Ja",1,0) -> 0 | I113: =IF(lammering[[#This Row],[geslacht]]="O",1,0) -> 0 | J113: =IF(lammering[[#This Row],[Speen-datum]]="","",(lammering[[#This Row],[Speen-gewicht]]-lammering[[#This Row],[geboorte-gewicht]])/(lammering[[#This Row],[Speen-datum]]-lammering[[#This Row],[Werp-datum]])) ->  | K113: =IF(lammering[[#This Row],[Verkoop-datum]]="","",(lammering[[#This Row],[Verkoop-gewicht]]-lammering[[#This Row],[Speen-gewicht]])/(lammering[[#This Row],[Verkoop-datum]]-lammering[[#This Row],[Speen-datum]])) ->  | L113: =IF(lammering[[#This Row],[Verkoop-datum]]="","",(lammering[[#This Row],[Verkoop-gewicht]]-lammering[[#This Row],[geboorte-gewicht]])/(lammering[[#This Row],[Verkoop-datum]]-lammering[[#This Row],[Werp-datum]])) ->  | S113: =IF(lammering[[#This Row],[Verkoop-gewicht]]="","",lammering[[#This Row],[Verkoop-gewicht]]-lammering[[#This Row],[geboorte-gewicht]]) ->  | V113: =Opzoek_ooi[[#This Row],[Ooinummer]] -> 0
A114: =lammering[[#This Row],[Ooi]] -> 0 | B114: 0 | C114: 0 | D114: =IF(lammering[[#This Row],[Lam-nummer]]="",0,1) -> 0 | E114: =IF(lammering[[#This Row],[Dood in geboorte]]="ja",1,0) -> 0 | F114: =IF(lammering[[#This Row],[Ooi]]="",0,IF(Berekeningen!E114=0,1,0)) -> 0 | G114: =IF(D114=0,0,IF(lammering[[#This Row],[Dood in geboorte]]="Ja",0,IF(lammering[[#This Row],[Dood na geboorte]]="ja",0,1))) -> 0 | H114: =IF(lammering[[#This Row],[Opfok met kunstmelk]]="Ja",1,0) -> 0 | I114: =IF(lammering[[#This Row],[geslacht]]="O",1,0) -> 0 | J114: =IF(lammering[[#This Row],[Speen-datum]]="","",(lammering[[#This Row],[Speen-gewicht]]-lammering[[#This Row],[geboorte-gewicht]])/(lammering[[#This Row],[Speen-datum]]-lammering[[#This Row],[Werp-datum]])) ->  | K114: =IF(lammering[[#This Row],[Verkoop-datum]]="","",(lammering[[#This Row],[Verkoop-gewicht]]-lammering[[#This Row],[Speen-gewicht]])/(lammering[[#This Row],[Verkoop-datum]]-lammering[[#This Row],[Speen-datum]])) ->  | L114: =IF(lammering[[#This Row],[Verkoop-datum]]="","",(lammering[[#This Row],[Verkoop-gewicht]]-lammering[[#This Row],[geboorte-gewicht]])/(lammering[[#This Row],[Verkoop-datum]]-lammering[[#This Row],[Werp-datum]])) ->  | S114: =IF(lammering[[#This Row],[Verkoop-gewicht]]="","",lammering[[#This Row],[Verkoop-gewicht]]-lammering[[#This Row],[geboorte-gewicht]]) ->  | V114: =Opzoek_ooi[[#This Row],[Ooinummer]] -> 0
A115: =lammering[[#This Row],[Ooi]] -> 0 | B115: 0 | C115: 0 | D115: =IF(lammering[[#This Row],[Lam-nummer]]="",0,1) -> 0 | E115: =IF(lammering[[#This Row],[Dood in geboorte]]="ja",1,0) -> 0 | F115: =IF(lammering[[#This Row],[Ooi]]="",0,IF(Berekeningen!E115=0,1,0)) -> 0 | G115: =IF(D115=0,0,IF(lammering[[#This Row],[Dood in geboorte]]="Ja",0,IF(lammering[[#This Row],[Dood na geboorte]]="ja",0,1))) -> 0 | H115: =IF(lammering[[#This Row],[Opfok met kunstmelk]]="Ja",1,0) -> 0 | I115: =IF(lammering[[#This Row],[geslacht]]="O",1,0) -> 0 | J115: =IF(lammering[[#This Row],[Speen-datum]]="","",(lammering[[#This Row],[Speen-gewicht]]-lammering[[#This Row],[geboorte-gewicht]])/(lammering[[#This Row],[Speen-datum]]-lammering[[#This Row],[Werp-datum]])) ->  | K115: =IF(lammering[[#This Row],[Verkoop-datum]]="","",(lammering[[#This Row],[Verkoop-gewicht]]-lammering[[#This Row],[Speen-gewicht]])/(lammering[[#This Row],[Verkoop-datum]]-lammering[[#This Row],[Speen-datum]])) ->  | L115: =IF(lammering[[#This Row],[Verkoop-datum]]="","",(lammering[[#This Row],[Verkoop-gewicht]]-lammering[[#This Row],[geboorte-gewicht]])/(lammering[[#This Row],[Verkoop-datum]]-lammering[[#This Row],[Werp-datum]])) ->  | S115: =IF(lammering[[#This Row],[Verkoop-gewicht]]="","",lammering[[#This Row],[Verkoop-gewicht]]-lammering[[#This Row],[geboorte-gewicht]]) ->  | V115: =Opzoek_ooi[[#This Row],[Ooinummer]] -> 0
A116: =lammering[[#This Row],[Ooi]] -> 0 | B116: 0 | C116: 0 | D116: =IF(lammering[[#This Row],[Lam-nummer]]="",0,1) -> 0 | E116: =IF(lammering[[#This Row],[Dood in geboorte]]="ja",1,0) -> 0 | F116: =IF(lammering[[#This Row],[Ooi]]="",0,IF(Berekeningen!E116=0,1,0)) -> 0 | G116: =IF(D116=0,0,IF(lammering[[#This Row],[Dood in geboorte]]="Ja",0,IF(lammering[[#This Row],[Dood na geboorte]]="ja",0,1))) -> 0 | H116: =IF(lammering[[#This Row],[Opfok met kunstmelk]]="Ja",1,0) -> 0 | I116: =IF(lammering[[#This Row],[geslacht]]="O",1,0) -> 0 | J116: =IF(lammering[[#This Row],[Speen-datum]]="","",(lammering[[#This Row],[Speen-gewicht]]-lammering[[#This Row],[geboorte-gewicht]])/(lammering[[#This Row],[Speen-datum]]-lammering[[#This Row],[Werp-datum]])) ->  | K116: =IF(lammering[[#This Row],[Verkoop-datum]]="","",(lammering[[#This Row],[Verkoop-gewicht]]-lammering[[#This Row],[Speen-gewicht]])/(lammering[[#This Row],[Verkoop-datum]]-lammering[[#This Row],[Speen-datum]])) ->  | L116: =IF(lammering[[#This Row],[Verkoop-datum]]="","",(lammering[[#This Row],[Verkoop-gewicht]]-lammering[[#This Row],[geboorte-gewicht]])/(lammering[[#This Row],[Verkoop-datum]]-lammering[[#This Row],[Werp-datum]])) ->  | S116: =IF(lammering[[#This Row],[Verkoop-gewicht]]="","",lammering[[#This Row],[Verkoop-gewicht]]-lammering[[#This Row],[geboorte-gewicht]]) ->  | V116: =Opzoek_ooi[[#This Row],[Ooinummer]] -> 0
A117: =lammering[[#This Row],[Ooi]] -> 0 | B117: 0 | C117: 0 | D117: =IF(lammering[[#This Row],[Lam-nummer]]="",0,1) -> 0 | E117: =IF(lammering[[#This Row],[Dood in geboorte]]="ja",1,0) -> 0 | F117: =IF(lammering[[#This Row],[Ooi]]="",0,IF(Berekeningen!E117=0,1,0)) -> 0 | G117: =IF(D117=0,0,IF(lammering[[#This Row],[Dood in geboorte]]="Ja",0,IF(lammering[[#This Row],[Dood na geboorte]]="ja",0,1))) -> 0 | H117: =IF(lammering[[#This Row],[Opfok met kunstmelk]]="Ja",1,0) -> 0 | I117: =IF(lammering[[#This Row],[geslacht]]="O",1,0) -> 0 | J117: =IF(lammering[[#This Row],[Speen-datum]]="","",(lammering[[#This Row],[Speen-gewicht]]-lammering[[#This Row],[geboorte-gewicht]])/(lammering[[#This Row],[Speen-datum]]-lammering[[#This Row],[Werp-datum]])) ->  | K117: =IF(lammering[[#This Row],[Verkoop-datum]]="","",(lammering[[#This Row],[Verkoop-gewicht]]-lammering[[#This Row],[Speen-gewicht]])/(lammering[[#This Row],[Verkoop-datum]]-lammering[[#This Row],[Speen-datum]])) ->  | L117: =IF(lammering[[#This Row],[Verkoop-datum]]="","",(lammering[[#This Row],[Verkoop-gewicht]]-lammering[[#This Row],[geboorte-gewicht]])/(lammering[[#This Row],[Verkoop-datum]]-lammering[[#This Row],[Werp-datum]])) ->  | S117: =IF(lammering[[#This Row],[Verkoop-gewicht]]="","",lammering[[#This Row],[Verkoop-gewicht]]-lammering[[#This Row],[geboorte-gewicht]]) ->  | V117: =Opzoek_ooi[[#This Row],[Ooinummer]] -> 0
A118: =lammering[[#This Row],[Ooi]] -> 0 | B118: 0 | C118: 0 | D118: =IF(lammering[[#This Row],[Lam-nummer]]="",0,1) -> 0 | E118: =IF(lammering[[#This Row],[Dood in geboorte]]="ja",1,0) -> 0 | F118: =IF(lammering[[#This Row],[Ooi]]="",0,IF(Berekeningen!E118=0,1,0)) -> 0 | G118: =IF(D118=0,0,IF(lammering[[#This Row],[Dood in geboorte]]="Ja",0,IF(lammering[[#This Row],[Dood na geboorte]]="ja",0,1))) -> 0 | H118: =IF(lammering[[#This Row],[Opfok met kunstmelk]]="Ja",1,0) -> 0 | I118: =IF(lammering[[#This Row],[geslacht]]="O",1,0) -> 0 | J118: =IF(lammering[[#This Row],[Speen-datum]]="","",(lammering[[#This Row],[Speen-gewicht]]-lammering[[#This Row],[geboorte-gewicht]])/(lammering[[#This Row],[Speen-datum]]-lammering[[#This Row],[Werp-datum]])) ->  | K118: =IF(lammering[[#This Row],[Verkoop-datum]]="","",(lammering[[#This Row],[Verkoop-gewicht]]-lammering[[#This Row],[Speen-gewicht]])/(lammering[[#This Row],[Verkoop-datum]]-lammering[[#This Row],[Speen-datum]])) ->  | L118: =IF(lammering[[#This Row],[Verkoop-datum]]="","",(lammering[[#This Row],[Verkoop-gewicht]]-lammering[[#This Row],[geboorte-gewicht]])/(lammering[[#This Row],[Verkoop-datum]]-lammering[[#This Row],[Werp-datum]])) ->  | S118: =IF(lammering[[#This Row],[Verkoop-gewicht]]="","",lammering[[#This Row],[Verkoop-gewicht]]-lammering[[#This Row],[geboorte-gewicht]]) ->  | V118: =Opzoek_ooi[[#This Row],[Ooinummer]] -> 0
A119: =lammering[[#This Row],[Ooi]] -> 0 | B119: 0 | C119: 0 | D119: =IF(lammering[[#This Row],[Lam-nummer]]="",0,1) -> 0 | E119: =IF(lammering[[#This Row],[Dood in geboorte]]="ja",1,0) -> 0 | F119: =IF(lammering[[#This Row],[Ooi]]="",0,IF(Berekeningen!E119=0,1,0)) -> 0 | G119: =IF(D119=0,0,IF(lammering[[#This Row],[Dood in geboorte]]="Ja",0,IF(lammering[[#This Row],[Dood na geboorte]]="ja",0,1))) -> 0 | H119: =IF(lammering[[#This Row],[Opfok met kunstmelk]]="Ja",1,0) -> 0 | I119: =IF(lammering[[#This Row],[geslacht]]="O",1,0) -> 0 | J119: =IF(lammering[[#This Row],[Speen-datum]]="","",(lammering[[#This Row],[Speen-gewicht]]-lammering[[#This Row],[geboorte-gewicht]])/(lammering[[#This Row],[Speen-datum]]-lammering[[#This Row],[Werp-datum]])) ->  | K119: =IF(lammering[[#This Row],[Verkoop-datum]]="","",(lammering[[#This Row],[Verkoop-gewicht]]-lammering[[#This Row],[Speen-gewicht]])/(lammering[[#This Row],[Verkoop-datum]]-lammering[[#This Row],[Speen-datum]])) ->  | L119: =IF(lammering[[#This Row],[Verkoop-datum]]="","",(lammering[[#This Row],[Verkoop-gewicht]]-lammering[[#This Row],[geboorte-gewicht]])/(lammering[[#This Row],[Verkoop-datum]]-lammering[[#This Row],[Werp-datum]])) ->  | S119: =IF(lammering[[#This Row],[Verkoop-gewicht]]="","",lammering[[#This Row],[Verkoop-gewicht]]-lammering[[#This Row],[geboorte-gewicht]]) ->  | V119: =Opzoek_ooi[[#This Row],[Ooinummer]] -> 0
A120: =lammering[[#This Row],[Ooi]] -> 0 | B120: 0 | C120: 0 | D120: =IF(lammering[[#This Row],[Lam-nummer]]="",0,1) -> 0 | E120: =IF(lammering[[#This Row],[Dood in geboorte]]="ja",1,0) -> 0 | F120: =IF(lammering[[#This Row],[Ooi]]="",0,IF(Berekeningen!E120=0,1,0)) -> 0 | G120: =IF(D120=0,0,IF(lammering[[#This Row],[Dood in geboorte]]="Ja",0,IF(lammering[[#This Row],[Dood na geboorte]]="ja",0,1))) -> 0 | H120: =IF(lammering[[#This Row],[Opfok met kunstmelk]]="Ja",1,0) -> 0 | I120: =IF(lammering[[#This Row],[geslacht]]="O",1,0) -> 0 | J120: =IF(lammering[[#This Row],[Speen-datum]]="","",(lammering[[#This Row],[Speen-gewicht]]-lammering[[#This Row],[geboorte-gewicht]])/(lammering[[#This Row],[Speen-datum]]-lammering[[#This Row],[Werp-datum]])) ->  | K120: =IF(lammering[[#This Row],[Verkoop-datum]]="","",(lammering[[#This Row],[Verkoop-gewicht]]-lammering[[#This Row],[Speen-gewicht]])/(lammering[[#This Row],[Verkoop-datum]]-lammering[[#This Row],[Speen-datum]])) ->  | L120: =IF(lammering[[#This Row],[Verkoop-datum]]="","",(lammering[[#This Row],[Verkoop-gewicht]]-lammering[[#This Row],[geboorte-gewicht]])/(lammering[[#This Row],[Verkoop-datum]]-lammering[[#This Row],[Werp-datum]])) ->  | S120: =IF(lammering[[#This Row],[Verkoop-gewicht]]="","",lammering[[#This Row],[Verkoop-gewicht]]-lammering[[#This Row],[geboorte-gewicht]]) ->  | V120: =Opzoek_ooi[[#This Row],[Ooinummer]] -> 0
A121: =lammering[[#This Row],[Ooi]] -> 0 | B121: 0 | C121: 0 | D121: =IF(lammering[[#This Row],[Lam-nummer]]="",0,1) -> 0 | E121: =IF(lammering[[#This Row],[Dood in geboorte]]="ja",1,0) -> 0 | F121: =IF(lammering[[#This Row],[Ooi]]="",0,IF(Berekeningen!E121=0,1,0)) -> 0 | G121: =IF(D121=0,0,IF(lammering[[#This Row],[Dood in geboorte]]="Ja",0,IF(lammering[[#This Row],[Dood na geboorte]]="ja",0,1))) -> 0 | H121: =IF(lammering[[#This Row],[Opfok met kunstmelk]]="Ja",1,0) -> 0 | I121: =IF(lammering[[#This Row],[geslacht]]="O",1,0) -> 0 | J121: =IF(lammering[[#This Row],[Speen-datum]]="","",(lammering[[#This Row],[Speen-gewicht]]-lammering[[#This Row],[geboorte-gewicht]])/(lammering[[#This Row],[Speen-datum]]-lammering[[#This Row],[Werp-datum]])) ->  | K121: =IF(lammering[[#This Row],[Verkoop-datum]]="","",(lammering[[#This Row],[Verkoop-gewicht]]-lammering[[#This Row],[Speen-gewicht]])/(lammering[[#This Row],[Verkoop-datum]]-lammering[[#This Row],[Speen-datum]])) ->  | L121: =IF(lammering[[#This Row],[Verkoop-datum]]="","",(lammering[[#This Row],[Verkoop-gewicht]]-lammering[[#This Row],[geboorte-gewicht]])/(lammering[[#This Row],[Verkoop-datum]]-lammering[[#This Row],[Werp-datum]])) ->  | S121: =IF(lammering[[#This Row],[Verkoop-gewicht]]="","",lammering[[#This Row],[Verkoop-gewicht]]-lammering[[#This Row],[geboorte-gewicht]]) ->  | V121: =Opzoek_ooi[[#This Row],[Ooinummer]] -> 0
A122: =lammering[[#This Row],[Ooi]] -> 0 | B122: 0 | C122: 0 | D122: =IF(lammering[[#This Row],[Lam-nummer]]="",0,1) -> 0 | E122: =IF(lammering[[#This Row],[Dood in geboorte]]="ja",1,0) -> 0 | F122: =IF(lammering[[#This Row],[Ooi]]="",0,IF(Berekeningen!E122=0,1,0)) -> 0 | G122: =IF(D122=0,0,IF(lammering[[#This Row],[Dood in geboorte]]="Ja",0,IF(lammering[[#This Row],[Dood na geboorte]]="ja",0,1))) -> 0 | H122: =IF(lammering[[#This Row],[Opfok met kunstmelk]]="Ja",1,0) -> 0 | I122: =IF(lammering[[#This Row],[geslacht]]="O",1,0) -> 0 | J122: =IF(lammering[[#This Row],[Speen-datum]]="","",(lammering[[#This Row],[Speen-gewicht]]-lammering[[#This Row],[geboorte-gewicht]])/(lammering[[#This Row],[Speen-datum]]-lammering[[#This Row],[Werp-datum]])) ->  | K122: =IF(lammering[[#This Row],[Verkoop-datum]]="","",(lammering[[#This Row],[Verkoop-gewicht]]-lammering[[#This Row],[Speen-gewicht]])/(lammering[[#This Row],[Verkoop-datum]]-lammering[[#This Row],[Speen-datum]])) ->  | L122: =IF(lammering[[#This Row],[Verkoop-datum]]="","",(lammering[[#This Row],[Verkoop-gewicht]]-lammering[[#This Row],[geboorte-gewicht]])/(lammering[[#This Row],[Verkoop-datum]]-lammering[[#This Row],[Werp-datum]])) ->  | S122: =IF(lammering[[#This Row],[Verkoop-gewicht]]="","",lammering[[#This Row],[Verkoop-gewicht]]-lammering[[#This Row],[geboorte-gewicht]]) ->  | V122: =Opzoek_ooi[[#This Row],[Ooinummer]] -> 0
A123: =lammering[[#This Row],[Ooi]] -> 0 | B123: 0 | C123: 0 | D123: =IF(lammering[[#This Row],[Lam-nummer]]="",0,1) -> 0 | E123: =IF(lammering[[#This Row],[Dood in geboorte]]="ja",1,0) -> 0 | F123: =IF(lammering[[#This Row],[Ooi]]="",0,IF(Berekeningen!E123=0,1,0)) -> 0 | G123: =IF(D123=0,0,IF(lammering[[#This Row],[Dood in geboorte]]="Ja",0,IF(lammering[[#This Row],[Dood na geboorte]]="ja",0,1))) -> 0 | H123: =IF(lammering[[#This Row],[Opfok met kunstmelk]]="Ja",1,0) -> 0 | I123: =IF(lammering[[#This Row],[geslacht]]="O",1,0) -> 0 | J123: =IF(lammering[[#This Row],[Speen-datum]]="","",(lammering[[#This Row],[Speen-gewicht]]-lammering[[#This Row],[geboorte-gewicht]])/(lammering[[#This Row],[Speen-datum]]-lammering[[#This Row],[Werp-datum]])) ->  | K123: =IF(lammering[[#This Row],[Verkoop-datum]]="","",(lammering[[#This Row],[Verkoop-gewicht]]-lammering[[#This Row],[Speen-gewicht]])/(lammering[[#This Row],[Verkoop-datum]]-lammering[[#This Row],[Speen-datum]])) ->  | L123: =IF(lammering[[#This Row],[Verkoop-datum]]="","",(lammering[[#This Row],[Verkoop-gewicht]]-lammering[[#This Row],[geboorte-gewicht]])/(lammering[[#This Row],[Verkoop-datum]]-lammering[[#This Row],[Werp-datum]])) ->  | S123: =IF(lammering[[#This Row],[Verkoop-gewicht]]="","",lammering[[#This Row],[Verkoop-gewicht]]-lammering[[#This Row],[geboorte-gewicht]]) ->  | V123: =Opzoek_ooi[[#This Row],[Ooinummer]] -> 0
A124: =lammering[[#This Row],[Ooi]] -> 0 | B124: 0 | C124: 0 | D124: =IF(lammering[[#This Row],[Lam-nummer]]="",0,1) -> 0 | E124: =IF(lammering[[#This Row],[Dood in geboorte]]="ja",1,0) -> 0 | F124: =IF(lammering[[#This Row],[Ooi]]="",0,IF(Berekeningen!E124=0,1,0)) -> 0 | G124: =IF(D124=0,0,IF(lammering[[#This Row],[Dood in geboorte]]="Ja",0,IF(lammering[[#This Row],[Dood na geboorte]]="ja",0,1))) -> 0 | H124: =IF(lammering[[#This Row],[Opfok met kunstmelk]]="Ja",1,0) -> 0 | I124: =IF(lammering[[#This Row],[geslacht]]="O",1,0) -> 0 | J124: =IF(lammering[[#This Row],[Speen-datum]]="","",(lammering[[#This Row],[Speen-gewicht]]-lammering[[#This Row],[geboorte-gewicht]])/(lammering[[#This Row],[Speen-datum]]-lammering[[#This Row],[Werp-datum]])) ->  | K124: =IF(lammering[[#This Row],[Verkoop-datum]]="","",(lammering[[#This Row],[Verkoop-gewicht]]-lammering[[#This Row],[Speen-gewicht]])/(lammering[[#This Row],[Verkoop-datum]]-lammering[[#This Row],[Speen-datum]])) ->  | L124: =IF(lammering[[#This Row],[Verkoop-datum]]="","",(lammering[[#This Row],[Verkoop-gewicht]]-lammering[[#This Row],[geboorte-gewicht]])/(lammering[[#This Row],[Verkoop-datum]]-lammering[[#This Row],[Werp-datum]])) ->  | S124: =IF(lammering[[#This Row],[Verkoop-gewicht]]="","",lammering[[#This Row],[Verkoop-gewicht]]-lammering[[#This Row],[geboorte-gewicht]]) ->  | V124: =Opzoek_ooi[[#This Row],[Ooinummer]] -> 0
A125: =lammering[[#This Row],[Ooi]] -> 0 | B125: 0 | C125: 0 | D125: =IF(lammering[[#This Row],[Lam-nummer]]="",0,1) -> 0 | E125: =IF(lammering[[#This Row],[Dood in geboorte]]="ja",1,0) -> 0 | F125: =IF(lammering[[#This Row],[Ooi]]="",0,IF(Berekeningen!E125=0,1,0)) -> 0 | G125: =IF(D125=0,0,IF(lammering[[#This Row],[Dood in geboorte]]="Ja",0,IF(lammering[[#This Row],[Dood na geboorte]]="ja",0,1))) -> 0 | H125: =IF(lammering[[#This Row],[Opfok met kunstmelk]]="Ja",1,0) -> 0 | I125: =IF(lammering[[#This Row],[geslacht]]="O",1,0) -> 0 | J125: =IF(lammering[[#This Row],[Speen-datum]]="","",(lammering[[#This Row],[Speen-gewicht]]-lammering[[#This Row],[geboorte-gewicht]])/(lammering[[#This Row],[Speen-datum]]-lammering[[#This Row],[Werp-datum]])) ->  | K125: =IF(lammering[[#This Row],[Verkoop-datum]]="","",(lammering[[#This Row],[Verkoop-gewicht]]-lammering[[#This Row],[Speen-gewicht]])/(lammering[[#This Row],[Verkoop-datum]]-lammering[[#This Row],[Speen-datum]])) ->  | L125: =IF(lammering[[#This Row],[Verkoop-datum]]="","",(lammering[[#This Row],[Verkoop-gewicht]]-lammering[[#This Row],[geboorte-gewicht]])/(lammering[[#This Row],[Verkoop-datum]]-lammering[[#This Row],[Werp-datum]])) ->  | S125: =IF(lammering[[#This Row],[Verkoop-gewicht]]="","",lammering[[#This Row],[Verkoop-gewicht]]-lammering[[#This Row],[geboorte-gewicht]]) ->  | V125: =Opzoek_ooi[[#This Row],[Ooinummer]] -> 0
A126: =lammering[[#This Row],[Ooi]] -> 0 | B126: 0 | C126: 0 | D126: =IF(lammering[[#This Row],[Lam-nummer]]="",0,1) -> 0 | E126: =IF(lammering[[#This Row],[Dood in geboorte]]="ja",1,0) -> 0 | F126: =IF(lammering[[#This Row],[Ooi]]="",0,IF(Berekeningen!E126=0,1,0)) -> 0 | G126: =IF(D126=0,0,IF(lammering[[#This Row],[Dood in geboorte]]="Ja",0,IF(lammering[[#This Row],[Dood na geboorte]]="ja",0,1))) -> 0 | H126: =IF(lammering[[#This Row],[Opfok met kunstmelk]]="Ja",1,0) -> 0 | I126: =IF(lammering[[#This Row],[geslacht]]="O",1,0) -> 0 | J126: =IF(lammering[[#This Row],[Speen-datum]]="","",(lammering[[#This Row],[Speen-gewicht]]-lammering[[#This Row],[geboorte-gewicht]])/(lammering[[#This Row],[Speen-datum]]-lammering[[#This Row],[Werp-datum]])) ->  | K126: =IF(lammering[[#This Row],[Verkoop-datum]]="","",(lammering[[#This Row],[Verkoop-gewicht]]-lammering[[#This Row],[Speen-gewicht]])/(lammering[[#This Row],[Verkoop-datum]]-lammering[[#This Row],[Speen-datum]])) ->  | L126: =IF(lammering[[#This Row],[Verkoop-datum]]="","",(lammering[[#This Row],[Verkoop-gewicht]]-lammering[[#This Row],[geboorte-gewicht]])/(lammering[[#This Row],[Verkoop-datum]]-lammering[[#This Row],[Werp-datum]])) ->  | S126: =IF(lammering[[#This Row],[Verkoop-gewicht]]="","",lammering[[#This Row],[Verkoop-gewicht]]-lammering[[#This Row],[geboorte-gewicht]]) ->  | V126: =Opzoek_ooi[[#This Row],[Ooinummer]] -> 0
A127: =lammering[[#This Row],[Ooi]] -> 0 | B127: 0 | C127: 0 | D127: =IF(lammering[[#This Row],[Lam-nummer]]="",0,1) -> 0 | E127: =IF(lammering[[#This Row],[Dood in geboorte]]="ja",1,0) -> 0 | F127: =IF(lammering[[#This Row],[Ooi]]="",0,IF(Berekeningen!E127=0,1,0)) -> 0 | G127: =IF(D127=0,0,IF(lammering[[#This Row],[Dood in geboorte]]="Ja",0,IF(lammering[[#This Row],[Dood na geboorte]]="ja",0,1))) -> 0 | H127: =IF(lammering[[#This Row],[Opfok met kunstmelk]]="Ja",1,0) -> 0 | I127: =IF(lammering[[#This Row],[geslacht]]="O",1,0) -> 0 | J127: =IF(lammering[[#This Row],[Speen-datum]]="","",(lammering[[#This Row],[Speen-gewicht]]-lammering[[#This Row],[geboorte-gewicht]])/(lammering[[#This Row],[Speen-datum]]-lammering[[#This Row],[Werp-datum]])) ->  | K127: =IF(lammering[[#This Row],[Verkoop-datum]]="","",(lammering[[#This Row],[Verkoop-gewicht]]-lammering[[#This Row],[Speen-gewicht]])/(lammering[[#This Row],[Verkoop-datum]]-lammering[[#This Row],[Speen-datum]])) ->  | L127: =IF(lammering[[#This Row],[Verkoop-datum]]="","",(lammering[[#This Row],[Verkoop-gewicht]]-lammering[[#This Row],[geboorte-gewicht]])/(lammering[[#This Row],[Verkoop-datum]]-lammering[[#This Row],[Werp-datum]])) ->  | S127: =IF(lammering[[#This Row],[Verkoop-gewicht]]="","",lammering[[#This Row],[Verkoop-gewicht]]-lammering[[#This Row],[geboorte-gewicht]]) ->  | V127: =Opzoek_ooi[[#This Row],[Ooinummer]] -> 0
A128: =lammering[[#This Row],[Ooi]] -> 0 | B128: 0 | C128: 0 | D128: =IF(lammering[[#This Row],[Lam-nummer]]="",0,1) -> 0 | E128: =IF(lammering[[#This Row],[Dood in geboorte]]="ja",1,0) -> 0 | F128: =IF(lammering[[#This Row],[Ooi]]="",0,IF(Berekeningen!E128=0,1,0)) -> 0 | G128: =IF(D128=0,0,IF(lammering[[#This Row],[Dood in geboorte]]="Ja",0,IF(lammering[[#This Row],[Dood na geboorte]]="ja",0,1))) -> 0 | H128: =IF(lammering[[#This Row],[Opfok met kunstmelk]]="Ja",1,0) -> 0 | I128: =IF(lammering[[#This Row],[geslacht]]="O",1,0) -> 0 | J128: =IF(lammering[[#This Row],[Speen-datum]]="","",(lammering[[#This Row],[Speen-gewicht]]-lammering[[#This Row],[geboorte-gewicht]])/(lammering[[#This Row],[Speen-datum]]-lammering[[#This Row],[Werp-datum]])) ->  | K128: =IF(lammering[[#This Row],[Verkoop-datum]]="","",(lammering[[#This Row],[Verkoop-gewicht]]-lammering[[#This Row],[Speen-gewicht]])/(lammering[[#This Row],[Verkoop-datum]]-lammering[[#This Row],[Speen-datum]])) ->  | L128: =IF(lammering[[#This Row],[Verkoop-datum]]="","",(lammering[[#This Row],[Verkoop-gewicht]]-lammering[[#This Row],[geboorte-gewicht]])/(lammering[[#This Row],[Verkoop-datum]]-lammering[[#This Row],[Werp-datum]])) ->  | S128: =IF(lammering[[#This Row],[Verkoop-gewicht]]="","",lammering[[#This Row],[Verkoop-gewicht]]-lammering[[#This Row],[geboorte-gewicht]]) ->  | V128: =Opzoek_ooi[[#This Row],[Ooinummer]] -> 0
A129: =lammering[[#This Row],[Ooi]] -> 0 | B129: 0 | C129: 0 | D129: =IF(lammering[[#This Row],[Lam-nummer]]="",0,1) -> 0 | E129: =IF(lammering[[#This Row],[Dood in geboorte]]="ja",1,0) -> 0 | F129: =IF(lammering[[#This Row],[Ooi]]="",0,IF(Berekeningen!E129=0,1,0)) -> 0 | G129: =IF(D129=0,0,IF(lammering[[#This Row],[Dood in geboorte]]="Ja",0,IF(lammering[[#This Row],[Dood na geboorte]]="ja",0,1))) -> 0 | H129: =IF(lammering[[#This Row],[Opfok met kunstmelk]]="Ja",1,0) -> 0 | I129: =IF(lammering[[#This Row],[geslacht]]="O",1,0) -> 0 | J129: =IF(lammering[[#This Row],[Speen-datum]]="","",(lammering[[#This Row],[Speen-gewicht]]-lammering[[#This Row],[geboorte-gewicht]])/(lammering[[#This Row],[Speen-datum]]-lammering[[#This Row],[Werp-datum]])) ->  | K129: =IF(lammering[[#This Row],[Verkoop-datum]]="","",(lammering[[#This Row],[Verkoop-gewicht]]-lammering[[#This Row],[Speen-gewicht]])/(lammering[[#This Row],[Verkoop-datum]]-lammering[[#This Row],[Speen-datum]])) ->  | L129: =IF(lammering[[#This Row],[Verkoop-datum]]="","",(lammering[[#This Row],[Verkoop-gewicht]]-lammering[[#This Row],[geboorte-gewicht]])/(lammering[[#This Row],[Verkoop-datum]]-lammering[[#This Row],[Werp-datum]])) ->  | S129: =IF(lammering[[#This Row],[Verkoop-gewicht]]="","",lammering[[#This Row],[Verkoop-gewicht]]-lammering[[#This Row],[geboorte-gewicht]]) ->  | V129: =Opzoek_ooi[[#This Row],[Ooinummer]] -> 0
A130: =lammering[[#This Row],[Ooi]] -> 0 | B130: 0 | C130: 0 | D130: =IF(lammering[[#This Row],[Lam-nummer]]="",0,1) -> 0 | E130: =IF(lammering[[#This Row],[Dood in geboorte]]="ja",1,0) -> 0 | F130: =IF(lammering[[#This Row],[Ooi]]="",0,IF(Berekeningen!E130=0,1,0)) -> 0 | G130: =IF(D130=0,0,IF(lammering[[#This Row],[Dood in geboorte]]="Ja",0,IF(lammering[[#This Row],[Dood na geboorte]]="ja",0,1))) -> 0 | H130: =IF(lammering[[#This Row],[Opfok met kunstmelk]]="Ja",1,0) -> 0 | I130: =IF(lammering[[#This Row],[geslacht]]="O",1,0) -> 0 | J130: =IF(lammering[[#This Row],[Speen-datum]]="","",(lammering[[#This Row],[Speen-gewicht]]-lammering[[#This Row],[geboorte-gewicht]])/(lammering[[#This Row],[Speen-datum]]-lammering[[#This Row],[Werp-datum]])) ->  | K130: =IF(lammering[[#This Row],[Verkoop-datum]]="","",(lammering[[#This Row],[Verkoop-gewicht]]-lammering[[#This Row],[Speen-gewicht]])/(lammering[[#This Row],[Verkoop-datum]]-lammering[[#This Row],[Speen-datum]])) ->  | L130: =IF(lammering[[#This Row],[Verkoop-datum]]="","",(lammering[[#This Row],[Verkoop-gewicht]]-lammering[[#This Row],[geboorte-gewicht]])/(lammering[[#This Row],[Verkoop-datum]]-lammering[[#This Row],[Werp-datum]])) ->  | S130: =IF(lammering[[#This Row],[Verkoop-gewicht]]="","",lammering[[#This Row],[Verkoop-gewicht]]-lammering[[#This Row],[geboorte-gewicht]]) ->  | V130: =Opzoek_ooi[[#This Row],[Ooinummer]] -> 0
A131: =lammering[[#This Row],[Ooi]] -> 0 | B131: =IF(A131=0,0,IF(A131=A130,0,1)) -> 0 | C131: =IF(B131=1,A131,0) -> 0 | D131: =IF(lammering[[#This Row],[Lam-nummer]]="",0,1) -> 0 | E131: =IF(lammering[[#This Row],[Dood in geboorte]]="ja",1,0) -> 0 | F131: =IF(lammering[[#This Row],[Ooi]]="",0,IF(Berekeningen!E131=0,1,0)) -> 0 | G131: =IF(D131=0,0,IF(lammering[[#This Row],[Dood in geboorte]]="Ja",0,IF(lammering[[#This Row],[Dood na geboorte]]="ja",0,1))) -> 0 | H131: =IF(lammering[[#This Row],[Opfok met kunstmelk]]="Ja",1,0) -> 0 | I131: =IF(lammering[[#This Row],[geslacht]]="O",1,0) -> 0 | J131: =IF(lammering[[#This Row],[Speen-datum]]="","",(lammering[[#This Row],[Speen-gewicht]]-lammering[[#This Row],[geboorte-gewicht]])/(lammering[[#This Row],[Speen-datum]]-lammering[[#This Row],[Werp-datum]])) ->  | K131: =IF(lammering[[#This Row],[Verkoop-datum]]="","",(lammering[[#This Row],[Verkoop-gewicht]]-lammering[[#This Row],[Speen-gewicht]])/(lammering[[#This Row],[Verkoop-datum]]-lammering[[#This Row],[Speen-datum]])) ->  | L131: =IF(lammering[[#This Row],[Verkoop-datum]]="","",(lammering[[#This Row],[Verkoop-gewicht]]-lammering[[#This Row],[geboorte-gewicht]])/(lammering[[#This Row],[Verkoop-datum]]-lammering[[#This Row],[Werp-datum]])) ->  | S131: =IF(lammering[[#This Row],[Verkoop-gewicht]]="","",lammering[[#This Row],[Verkoop-gewicht]]-lammering[[#This Row],[geboorte-gewicht]]) ->  | V131: =Opzoek_ooi[[#This Row],[Ooinummer]] -> 0 | X131: =IF(W131>0,W131,"") -> 
A132: =lammering[[#This Row],[Ooi]] -> 0 | B132: 0 | C132: 0 | D132: =IF(lammering[[#This Row],[Lam-nummer]]="",0,1) -> 0 | E132: =IF(lammering[[#This Row],[Dood in geboorte]]="ja",1,0) -> 0 | F132: =IF(lammering[[#This Row],[Ooi]]="",0,IF(Berekeningen!E132=0,1,0)) -> 0 | G132: =IF(D132=0,0,IF(lammering[[#This Row],[Dood in geboorte]]="Ja",0,IF(lammering[[#This Row],[Dood na geboorte]]="ja",0,1))) -> 0 | H132: =IF(lammering[[#This Row],[Opfok met kunstmelk]]="Ja",1,0) -> 0 | I132: =IF(lammering[[#This Row],[geslacht]]="O",1,0) -> 0 | J132: =IF(lammering[[#This Row],[Speen-datum]]="","",(lammering[[#This Row],[Speen-gewicht]]-lammering[[#This Row],[geboorte-gewicht]])/(lammering[[#This Row],[Speen-datum]]-lammering[[#This Row],[Werp-datum]])) ->  | K132: =IF(lammering[[#This Row],[Verkoop-datum]]="","",(lammering[[#This Row],[Verkoop-gewicht]]-lammering[[#This Row],[Speen-gewicht]])/(lammering[[#This Row],[Verkoop-datum]]-lammering[[#This Row],[Speen-datum]])) ->  | L132: =IF(lammering[[#This Row],[Verkoop-datum]]="","",(lammering[[#This Row],[Verkoop-gewicht]]-lammering[[#This Row],[geboorte-gewicht]])/(lammering[[#This Row],[Verkoop-datum]]-lammering[[#This Row],[Werp-datum]])) ->  | S132: =IF(lammering[[#This Row],[Verkoop-gewicht]]="","",lammering[[#This Row],[Verkoop-gewicht]]-lammering[[#This Row],[geboorte-gewicht]]) ->  | V132: =Opzoek_ooi[[#This Row],[Ooinummer]] -> 0
A133: =lammering[[#This Row],[Ooi]] -> 0 | B133: 0 | C133: 0 | D133: =IF(lammering[[#This Row],[Lam-nummer]]="",0,1) -> 0 | E133: =IF(lammering[[#This Row],[Dood in geboorte]]="ja",1,0) -> 0 | F133: =IF(lammering[[#This Row],[Ooi]]="",0,IF(Berekeningen!E133=0,1,0)) -> 0 | G133: =IF(D133=0,0,IF(lammering[[#This Row],[Dood in geboorte]]="Ja",0,IF(lammering[[#This Row],[Dood na geboorte]]="ja",0,1))) -> 0 | H133: =IF(lammering[[#This Row],[Opfok met kunstmelk]]="Ja",1,0) -> 0 | I133: =IF(lammering[[#This Row],[geslacht]]="O",1,0) -> 0 | J133: =IF(lammering[[#This Row],[Speen-datum]]="","",(lammering[[#This Row],[Speen-gewicht]]-lammering[[#This Row],[geboorte-gewicht]])/(lammering[[#This Row],[Speen-datum]]-lammering[[#This Row],[Werp-datum]])) ->  | K133: =IF(lammering[[#This Row],[Verkoop-datum]]="","",(lammering[[#This Row],[Verkoop-gewicht]]-lammering[[#This Row],[Speen-gewicht]])/(lammering[[#This Row],[Verkoop-datum]]-lammering[[#This Row],[Speen-datum]])) ->  | L133: =IF(lammering[[#This Row],[Verkoop-datum]]="","",(lammering[[#This Row],[Verkoop-gewicht]]-lammering[[#This Row],[geboorte-gewicht]])/(lammering[[#This Row],[Verkoop-datum]]-lammering[[#This Row],[Werp-datum]])) ->  | S133: =IF(lammering[[#This Row],[Verkoop-gewicht]]="","",lammering[[#This Row],[Verkoop-gewicht]]-lammering[[#This Row],[geboorte-gewicht]]) ->  | V133: =Opzoek_ooi[[#This Row],[Ooinummer]] -> 0
A134: =lammering[[#This Row],[Ooi]] -> 0 | B134: 0 | C134: 0 | D134: =IF(lammering[[#This Row],[Lam-nummer]]="",0,1) -> 0 | E134: =IF(lammering[[#This Row],[Dood in geboorte]]="ja",1,0) -> 0 | F134: =IF(lammering[[#This Row],[Ooi]]="",0,IF(Berekeningen!E134=0,1,0)) -> 0 | G134: =IF(D134=0,0,IF(lammering[[#This Row],[Dood in geboorte]]="Ja",0,IF(lammering[[#This Row],[Dood na geboorte]]="ja",0,1))) -> 0 | H134: =IF(lammering[[#This Row],[Opfok met kunstmelk]]="Ja",1,0) -> 0 | I134: =IF(lammering[[#This Row],[geslacht]]="O",1,0) -> 0 | J134: =IF(lammering[[#This Row],[Speen-datum]]="","",(lammering[[#This Row],[Speen-gewicht]]-lammering[[#This Row],[geboorte-gewicht]])/(lammering[[#This Row],[Speen-datum]]-lammering[[#This Row],[Werp-datum]])) ->  | K134: =IF(lammering[[#This Row],[Verkoop-datum]]="","",(lammering[[#This Row],[Verkoop-gewicht]]-lammering[[#This Row],[Speen-gewicht]])/(lammering[[#This Row],[Verkoop-datum]]-lammering[[#This Row],[Speen-datum]])) ->  | L134: =IF(lammering[[#This Row],[Verkoop-datum]]="","",(lammering[[#This Row],[Verkoop-gewicht]]-lammering[[#This Row],[geboorte-gewicht]])/(lammering[[#This Row],[Verkoop-datum]]-lammering[[#This Row],[Werp-datum]])) ->  | S134: =IF(lammering[[#This Row],[Verkoop-gewicht]]="","",lammering[[#This Row],[Verkoop-gewicht]]-lammering[[#This Row],[geboorte-gewicht]]) ->  | V134: =Opzoek_ooi[[#This Row],[Ooinummer]] -> 0
A135: =lammering[[#This Row],[Ooi]] -> 0 | B135: 0 | C135: 0 | D135: =IF(lammering[[#This Row],[Lam-nummer]]="",0,1) -> 0 | E135: =IF(lammering[[#This Row],[Dood in geboorte]]="ja",1,0) -> 0 | F135: =IF(lammering[[#This Row],[Ooi]]="",0,IF(Berekeningen!E135=0,1,0)) -> 0 | G135: =IF(D135=0,0,IF(lammering[[#This Row],[Dood in geboorte]]="Ja",0,IF(lammering[[#This Row],[Dood na geboorte]]="ja",0,1))) -> 0 | H135: =IF(lammering[[#This Row],[Opfok met kunstmelk]]="Ja",1,0) -> 0 | I135: =IF(lammering[[#This Row],[geslacht]]="O",1,0) -> 0 | J135: =IF(lammering[[#This Row],[Speen-datum]]="","",(lammering[[#This Row],[Speen-gewicht]]-lammering[[#This Row],[geboorte-gewicht]])/(lammering[[#This Row],[Speen-datum]]-lammering[[#This Row],[Werp-datum]])) ->  | K135: =IF(lammering[[#This Row],[Verkoop-datum]]="","",(lammering[[#This Row],[Verkoop-gewicht]]-lammering[[#This Row],[Speen-gewicht]])/(lammering[[#This Row],[Verkoop-datum]]-lammering[[#This Row],[Speen-datum]])) ->  | L135: =IF(lammering[[#This Row],[Verkoop-datum]]="","",(lammering[[#This Row],[Verkoop-gewicht]]-lammering[[#This Row],[geboorte-gewicht]])/(lammering[[#This Row],[Verkoop-datum]]-lammering[[#This Row],[Werp-datum]])) ->  | S135: =IF(lammering[[#This Row],[Verkoop-gewicht]]="","",lammering[[#This Row],[Verkoop-gewicht]]-lammering[[#This Row],[geboorte-gewicht]]) ->  | V135: =Opzoek_ooi[[#This Row],[Ooinummer]] -> 0
A136: =lammering[[#This Row],[Ooi]] -> 0 | B136: 0 | C136: 0 | D136: =IF(lammering[[#This Row],[Lam-nummer]]="",0,1) -> 0 | E136: =IF(lammering[[#This Row],[Dood in geboorte]]="ja",1,0) -> 0 | F136: =IF(lammering[[#This Row],[Ooi]]="",0,IF(Berekeningen!E136=0,1,0)) -> 0 | G136: =IF(D136=0,0,IF(lammering[[#This Row],[Dood in geboorte]]="Ja",0,IF(lammering[[#This Row],[Dood na geboorte]]="ja",0,1))) -> 0 | H136: =IF(lammering[[#This Row],[Opfok met kunstmelk]]="Ja",1,0) -> 0 | I136: =IF(lammering[[#This Row],[geslacht]]="O",1,0) -> 0 | J136: =IF(lammering[[#This Row],[Speen-datum]]="","",(lammering[[#This Row],[Speen-gewicht]]-lammering[[#This Row],[geboorte-gewicht]])/(lammering[[#This Row],[Speen-datum]]-lammering[[#This Row],[Werp-datum]])) ->  | K136: =IF(lammering[[#This Row],[Verkoop-datum]]="","",(lammering[[#This Row],[Verkoop-gewicht]]-lammering[[#This Row],[Speen-gewicht]])/(lammering[[#This Row],[Verkoop-datum]]-lammering[[#This Row],[Speen-datum]])) ->  | L136: =IF(lammering[[#This Row],[Verkoop-datum]]="","",(lammering[[#This Row],[Verkoop-gewicht]]-lammering[[#This Row],[geboorte-gewicht]])/(lammering[[#This Row],[Verkoop-datum]]-lammering[[#This Row],[Werp-datum]])) ->  | S136: =IF(lammering[[#This Row],[Verkoop-gewicht]]="","",lammering[[#This Row],[Verkoop-gewicht]]-lammering[[#This Row],[geboorte-gewicht]]) ->  | V136: =Opzoek_ooi[[#This Row],[Ooinummer]] -> 0
A137: =lammering[[#This Row],[Ooi]] -> 0 | B137: 0 | C137: 0 | D137: =IF(lammering[[#This Row],[Lam-nummer]]="",0,1) -> 0 | E137: =IF(lammering[[#This Row],[Dood in geboorte]]="ja",1,0) -> 0 | F137: =IF(lammering[[#This Row],[Ooi]]="",0,IF(Berekeningen!E137=0,1,0)) -> 0 | G137: =IF(D137=0,0,IF(lammering[[#This Row],[Dood in geboorte]]="Ja",0,IF(lammering[[#This Row],[Dood na geboorte]]="ja",0,1))) -> 0 | H137: =IF(lammering[[#This Row],[Opfok met kunstmelk]]="Ja",1,0) -> 0 | I137: =IF(lammering[[#This Row],[geslacht]]="O",1,0) -> 0 | J137: =IF(lammering[[#This Row],[Speen-datum]]="","",(lammering[[#This Row],[Speen-gewicht]]-lammering[[#This Row],[geboorte-gewicht]])/(lammering[[#This Row],[Speen-datum]]-lammering[[#This Row],[Werp-datum]])) ->  | K137: =IF(lammering[[#This Row],[Verkoop-datum]]="","",(lammering[[#This Row],[Verkoop-gewicht]]-lammering[[#This Row],[Speen-gewicht]])/(lammering[[#This Row],[Verkoop-datum]]-lammering[[#This Row],[Speen-datum]])) ->  | L137: =IF(lammering[[#This Row],[Verkoop-datum]]="","",(lammering[[#This Row],[Verkoop-gewicht]]-lammering[[#This Row],[geboorte-gewicht]])/(lammering[[#This Row],[Verkoop-datum]]-lammering[[#This Row],[Werp-datum]])) ->  | S137: =IF(lammering[[#This Row],[Verkoop-gewicht]]="","",lammering[[#This Row],[Verkoop-gewicht]]-lammering[[#This Row],[geboorte-gewicht]]) ->  | V137: =Opzoek_ooi[[#This Row],[Ooinummer]] -> 0
A138: =lammering[[#This Row],[Ooi]] -> 0 | B138: 0 | C138: 0 | D138: =IF(lammering[[#This Row],[Lam-nummer]]="",0,1) -> 0 | E138: =IF(lammering[[#This Row],[Dood in geboorte]]="ja",1,0) -> 0 | F138: =IF(lammering[[#This Row],[Ooi]]="",0,IF(Berekeningen!E138=0,1,0)) -> 0 | G138: =IF(D138=0,0,IF(lammering[[#This Row],[Dood in geboorte]]="Ja",0,IF(lammering[[#This Row],[Dood na geboorte]]="ja",0,1))) -> 0 | H138: =IF(lammering[[#This Row],[Opfok met kunstmelk]]="Ja",1,0) -> 0 | I138: =IF(lammering[[#This Row],[geslacht]]="O",1,0) -> 0 | J138: =IF(lammering[[#This Row],[Speen-datum]]="","",(lammering[[#This Row],[Speen-gewicht]]-lammering[[#This Row],[geboorte-gewicht]])/(lammering[[#This Row],[Speen-datum]]-lammering[[#This Row],[Werp-datum]])) ->  | K138: =IF(lammering[[#This Row],[Verkoop-datum]]="","",(lammering[[#This Row],[Verkoop-gewicht]]-lammering[[#This Row],[Speen-gewicht]])/(lammering[[#This Row],[Verkoop-datum]]-lammering[[#This Row],[Speen-datum]])) ->  | L138: =IF(lammering[[#This Row],[Verkoop-datum]]="","",(lammering[[#This Row],[Verkoop-gewicht]]-lammering[[#This Row],[geboorte-gewicht]])/(lammering[[#This Row],[Verkoop-datum]]-lammering[[#This Row],[Werp-datum]])) ->  | S138: =IF(lammering[[#This Row],[Verkoop-gewicht]]="","",lammering[[#This Row],[Verkoop-gewicht]]-lammering[[#This Row],[geboorte-gewicht]]) ->  | V138: =Opzoek_ooi[[#This Row],[Ooinummer]] -> 0
A139: =lammering[[#This Row],[Ooi]] -> 0 | B139: 0 | C139: 0 | D139: =IF(lammering[[#This Row],[Lam-nummer]]="",0,1) -> 0 | E139: =IF(lammering[[#This Row],[Dood in geboorte]]="ja",1,0) -> 0 | F139: =IF(lammering[[#This Row],[Ooi]]="",0,IF(Berekeningen!E139=0,1,0)) -> 0 | G139: =IF(D139=0,0,IF(lammering[[#This Row],[Dood in geboorte]]="Ja",0,IF(lammering[[#This Row],[Dood na geboorte]]="ja",0,1))) -> 0 | H139: =IF(lammering[[#This Row],[Opfok met kunstmelk]]="Ja",1,0) -> 0 | I139: =IF(lammering[[#This Row],[geslacht]]="O",1,0) -> 0 | J139: =IF(lammering[[#This Row],[Speen-datum]]="","",(lammering[[#This Row],[Speen-gewicht]]-lammering[[#This Row],[geboorte-gewicht]])/(lammering[[#This Row],[Speen-datum]]-lammering[[#This Row],[Werp-datum]])) ->  | K139: =IF(lammering[[#This Row],[Verkoop-datum]]="","",(lammering[[#This Row],[Verkoop-gewicht]]-lammering[[#This Row],[Speen-gewicht]])/(lammering[[#This Row],[Verkoop-datum]]-lammering[[#This Row],[Speen-datum]])) ->  | L139: =IF(lammering[[#This Row],[Verkoop-datum]]="","",(lammering[[#This Row],[Verkoop-gewicht]]-lammering[[#This Row],[geboorte-gewicht]])/(lammering[[#This Row],[Verkoop-datum]]-lammering[[#This Row],[Werp-datum]])) ->  | S139: =IF(lammering[[#This Row],[Verkoop-gewicht]]="","",lammering[[#This Row],[Verkoop-gewicht]]-lammering[[#This Row],[geboorte-gewicht]]) ->  | V139: =Opzoek_ooi[[#This Row],[Ooinummer]] -> 0
A140: =lammering[[#This Row],[Ooi]] -> 0 | B140: 0 | C140: 0 | D140: =IF(lammering[[#This Row],[Lam-nummer]]="",0,1) -> 0 | E140: =IF(lammering[[#This Row],[Dood in geboorte]]="ja",1,0) -> 0 | F140: =IF(lammering[[#This Row],[Ooi]]="",0,IF(Berekeningen!E140=0,1,0)) -> 0 | G140: =IF(D140=0,0,IF(lammering[[#This Row],[Dood in geboorte]]="Ja",0,IF(lammering[[#This Row],[Dood na geboorte]]="ja",0,1))) -> 0 | H140: =IF(lammering[[#This Row],[Opfok met kunstmelk]]="Ja",1,0) -> 0 | I140: =IF(lammering[[#This Row],[geslacht]]="O",1,0) -> 0 | J140: =IF(lammering[[#This Row],[Speen-datum]]="","",(lammering[[#This Row],[Speen-gewicht]]-lammering[[#This Row],[geboorte-gewicht]])/(lammering[[#This Row],[Speen-datum]]-lammering[[#This Row],[Werp-datum]])) ->  | K140: =IF(lammering[[#This Row],[Verkoop-datum]]="","",(lammering[[#This Row],[Verkoop-gewicht]]-lammering[[#This Row],[Speen-gewicht]])/(lammering[[#This Row],[Verkoop-datum]]-lammering[[#This Row],[Speen-datum]])) ->  | L140: =IF(lammering[[#This Row],[Verkoop-datum]]="","",(lammering[[#This Row],[Verkoop-gewicht]]-lammering[[#This Row],[geboorte-gewicht]])/(lammering[[#This Row],[Verkoop-datum]]-lammering[[#This Row],[Werp-datum]])) ->  | S140: =IF(lammering[[#This Row],[Verkoop-gewicht]]="","",lammering[[#This Row],[Verkoop-gewicht]]-lammering[[#This Row],[geboorte-gewicht]]) ->  | V140: =Opzoek_ooi[[#This Row],[Ooinummer]] -> 0
A141: =lammering[[#This Row],[Ooi]] -> 0 | B141: 0 | C141: 0 | D141: =IF(lammering[[#This Row],[Lam-nummer]]="",0,1) -> 0 | E141: =IF(lammering[[#This Row],[Dood in geboorte]]="ja",1,0) -> 0 | F141: =IF(lammering[[#This Row],[Ooi]]="",0,IF(Berekeningen!E141=0,1,0)) -> 0 | G141: =IF(D141=0,0,IF(lammering[[#This Row],[Dood in geboorte]]="Ja",0,IF(lammering[[#This Row],[Dood na geboorte]]="ja",0,1))) -> 0 | H141: =IF(lammering[[#This Row],[Opfok met kunstmelk]]="Ja",1,0) -> 0 | I141: =IF(lammering[[#This Row],[geslacht]]="O",1,0) -> 0 | J141: =IF(lammering[[#This Row],[Speen-datum]]="","",(lammering[[#This Row],[Speen-gewicht]]-lammering[[#This Row],[geboorte-gewicht]])/(lammering[[#This Row],[Speen-datum]]-lammering[[#This Row],[Werp-datum]])) ->  | K141: =IF(lammering[[#This Row],[Verkoop-datum]]="","",(lammering[[#This Row],[Verkoop-gewicht]]-lammering[[#This Row],[Speen-gewicht]])/(lammering[[#This Row],[Verkoop-datum]]-lammering[[#This Row],[Speen-datum]])) ->  | L141: =IF(lammering[[#This Row],[Verkoop-datum]]="","",(lammering[[#This Row],[Verkoop-gewicht]]-lammering[[#This Row],[geboorte-gewicht]])/(lammering[[#This Row],[Verkoop-datum]]-lammering[[#This Row],[Werp-datum]])) ->  | S141: =IF(lammering[[#This Row],[Verkoop-gewicht]]="","",lammering[[#This Row],[Verkoop-gewicht]]-lammering[[#This Row],[geboorte-gewicht]]) ->  | V141: =Opzoek_ooi[[#This Row],[Ooinummer]] -> 0
A142: =lammering[[#This Row],[Ooi]] -> 0 | B142: 0 | C142: 0 | D142: =IF(lammering[[#This Row],[Lam-nummer]]="",0,1) -> 0 | E142: =IF(lammering[[#This Row],[Dood in geboorte]]="ja",1,0) -> 0 | F142: =IF(lammering[[#This Row],[Ooi]]="",0,IF(Berekeningen!E142=0,1,0)) -> 0 | G142: =IF(D142=0,0,IF(lammering[[#This Row],[Dood in geboorte]]="Ja",0,IF(lammering[[#This Row],[Dood na geboorte]]="ja",0,1))) -> 0 | H142: =IF(lammering[[#This Row],[Opfok met kunstmelk]]="Ja",1,0) -> 0 | I142: =IF(lammering[[#This Row],[geslacht]]="O",1,0) -> 0 | J142: =IF(lammering[[#This Row],[Speen-datum]]="","",(lammering[[#This Row],[Speen-gewicht]]-lammering[[#This Row],[geboorte-gewicht]])/(lammering[[#This Row],[Speen-datum]]-lammering[[#This Row],[Werp-datum]])) ->  | K142: =IF(lammering[[#This Row],[Verkoop-datum]]="","",(lammering[[#This Row],[Verkoop-gewicht]]-lammering[[#This Row],[Speen-gewicht]])/(lammering[[#This Row],[Verkoop-datum]]-lammering[[#This Row],[Speen-datum]])) ->  | L142: =IF(lammering[[#This Row],[Verkoop-datum]]="","",(lammering[[#This Row],[Verkoop-gewicht]]-lammering[[#This Row],[geboorte-gewicht]])/(lammering[[#This Row],[Verkoop-datum]]-lammering[[#This Row],[Werp-datum]])) ->  | S142: =IF(lammering[[#This Row],[Verkoop-gewicht]]="","",lammering[[#This Row],[Verkoop-gewicht]]-lammering[[#This Row],[geboorte-gewicht]]) ->  | V142: =Opzoek_ooi[[#This Row],[Ooinummer]] -> 0
A143: =lammering[[#This Row],[Ooi]] -> 0 | B143: 0 | C143: 0 | D143: =IF(lammering[[#This Row],[Lam-nummer]]="",0,1) -> 0 | E143: =IF(lammering[[#This Row],[Dood in geboorte]]="ja",1,0) -> 0 | F143: =IF(lammering[[#This Row],[Ooi]]="",0,IF(Berekeningen!E143=0,1,0)) -> 0 | G143: =IF(D143=0,0,IF(lammering[[#This Row],[Dood in geboorte]]="Ja",0,IF(lammering[[#This Row],[Dood na geboorte]]="ja",0,1))) -> 0 | H143: =IF(lammering[[#This Row],[Opfok met kunstmelk]]="Ja",1,0) -> 0 | I143: =IF(lammering[[#This Row],[geslacht]]="O",1,0) -> 0 | J143: =IF(lammering[[#This Row],[Speen-datum]]="","",(lammering[[#This Row],[Speen-gewicht]]-lammering[[#This Row],[geboorte-gewicht]])/(lammering[[#This Row],[Speen-datum]]-lammering[[#This Row],[Werp-datum]])) ->  | K143: =IF(lammering[[#This Row],[Verkoop-datum]]="","",(lammering[[#This Row],[Verkoop-gewicht]]-lammering[[#This Row],[Speen-gewicht]])/(lammering[[#This Row],[Verkoop-datum]]-lammering[[#This Row],[Speen-datum]])) ->  | L143: =IF(lammering[[#This Row],[Verkoop-datum]]="","",(lammering[[#This Row],[Verkoop-gewicht]]-lammering[[#This Row],[geboorte-gewicht]])/(lammering[[#This Row],[Verkoop-datum]]-lammering[[#This Row],[Werp-datum]])) ->  | M143: =IF($I143=1,J143,"") ->  | N143: =IF($I143=1,K143,"") ->  | O143: =IF($I143=1,L143,"") ->  | P143: =IF($I143=0,J143,"") ->  | Q143: =IF($I143=0,K143,"") ->  | R143: =IF($I143=0,L143,"") ->  | S143: =IF(lammering[[#This Row],[Verkoop-gewicht]]="","",lammering[[#This Row],[Verkoop-gewicht]]-lammering[[#This Row],[geboorte-gewicht]]) ->  | T143: =IF(I143=1,S143,"") ->  | U143: =IF(I143=0,S143,"") ->  | V143: =Opzoek_ooi[[#This Row],[Ooinummer]] -> 0
A144: =lammering[[#This Row],[Ooi]] -> 0 | B144: 0 | C144: 0 | D144: =IF(lammering[[#This Row],[Lam-nummer]]="",0,1) -> 0 | E144: =IF(lammering[[#This Row],[Dood in geboorte]]="ja",1,0) -> 0 | F144: =IF(lammering[[#This Row],[Ooi]]="",0,IF(Berekeningen!E144=0,1,0)) -> 0 | G144: =IF(D144=0,0,IF(lammering[[#This Row],[Dood in geboorte]]="Ja",0,IF(lammering[[#This Row],[Dood na geboorte]]="ja",0,1))) -> 0 | H144: =IF(lammering[[#This Row],[Opfok met kunstmelk]]="Ja",1,0) -> 0 | I144: =IF(lammering[[#This Row],[geslacht]]="O",1,0) -> 0 | J144: =IF(lammering[[#This Row],[Speen-datum]]="","",(lammering[[#This Row],[Speen-gewicht]]-lammering[[#This Row],[geboorte-gewicht]])/(lammering[[#This Row],[Speen-datum]]-lammering[[#This Row],[Werp-datum]])) ->  | K144: =IF(lammering[[#This Row],[Verkoop-datum]]="","",(lammering[[#This Row],[Verkoop-gewicht]]-lammering[[#This Row],[Speen-gewicht]])/(lammering[[#This Row],[Verkoop-datum]]-lammering[[#This Row],[Speen-datum]])) ->  | L144: =IF(lammering[[#This Row],[Verkoop-datum]]="","",(lammering[[#This Row],[Verkoop-gewicht]]-lammering[[#This Row],[geboorte-gewicht]])/(lammering[[#This Row],[Verkoop-datum]]-lammering[[#This Row],[Werp-datum]])) ->  | S144: =IF(lammering[[#This Row],[Verkoop-gewicht]]="","",lammering[[#This Row],[Verkoop-gewicht]]-lammering[[#This Row],[geboorte-gewicht]]) ->  | V144: =Opzoek_ooi[[#This Row],[Ooinummer]] -> 0 | W144: =IF(V144=0,"",COUNTIF(C$2:C$500,V144)) -> 
A145: =lammering[[#This Row],[Ooi]] -> 0 | B145: 0 | C145: 0 | D145: =IF(lammering[[#This Row],[Lam-nummer]]="",0,1) -> 0 | E145: =IF(lammering[[#This Row],[Dood in geboorte]]="ja",1,0) -> 0 | F145: =IF(lammering[[#This Row],[Ooi]]="",0,IF(Berekeningen!E145=0,1,0)) -> 0 | G145: =IF(D145=0,0,IF(lammering[[#This Row],[Dood in geboorte]]="Ja",0,IF(lammering[[#This Row],[Dood na geboorte]]="ja",0,1))) -> 0 | H145: =IF(lammering[[#This Row],[Opfok met kunstmelk]]="Ja",1,0) -> 0 | I145: =IF(lammering[[#This Row],[geslacht]]="O",1,0) -> 0 | J145: =IF(lammering[[#This Row],[Speen-datum]]="","",(lammering[[#This Row],[Speen-gewicht]]-lammering[[#This Row],[geboorte-gewicht]])/(lammering[[#This Row],[Speen-datum]]-lammering[[#This Row],[Werp-datum]])) ->  | K145: =IF(lammering[[#This Row],[Verkoop-datum]]="","",(lammering[[#This Row],[Verkoop-gewicht]]-lammering[[#This Row],[Speen-gewicht]])/(lammering[[#This Row],[Verkoop-datum]]-lammering[[#This Row],[Speen-datum]])) ->  | L145: =IF(lammering[[#This Row],[Verkoop-datum]]="","",(lammering[[#This Row],[Verkoop-gewicht]]-lammering[[#This Row],[geboorte-gewicht]])/(lammering[[#This Row],[Verkoop-datum]]-lammering[[#This Row],[Werp-datum]])) ->  | S145: =IF(lammering[[#This Row],[Verkoop-gewicht]]="","",lammering[[#This Row],[Verkoop-gewicht]]-lammering[[#This Row],[geboorte-gewicht]]) ->  | V145: =Opzoek_ooi[[#This Row],[Ooinummer]] -> 0
A146: =lammering[[#This Row],[Ooi]] -> 0 | B146: 0 | C146: 0 | D146: =IF(lammering[[#This Row],[Lam-nummer]]="",0,1) -> 0 | E146: =IF(lammering[[#This Row],[Dood in geboorte]]="ja",1,0) -> 0 | F146: =IF(lammering[[#This Row],[Ooi]]="",0,IF(Berekeningen!E146=0,1,0)) -> 0 | G146: =IF(D146=0,0,IF(lammering[[#This Row],[Dood in geboorte]]="Ja",0,IF(lammering[[#This Row],[Dood na geboorte]]="ja",0,1))) -> 0 | H146: =IF(lammering[[#This Row],[Opfok met kunstmelk]]="Ja",1,0) -> 0 | I146: =IF(lammering[[#This Row],[geslacht]]="O",1,0) -> 0 | J146: =IF(lammering[[#This Row],[Speen-datum]]="","",(lammering[[#This Row],[Speen-gewicht]]-lammering[[#This Row],[geboorte-gewicht]])/(lammering[[#This Row],[Speen-datum]]-lammering[[#This Row],[Werp-datum]])) ->  | K146: =IF(lammering[[#This Row],[Verkoop-datum]]="","",(lammering[[#This Row],[Verkoop-gewicht]]-lammering[[#This Row],[Speen-gewicht]])/(lammering[[#This Row],[Verkoop-datum]]-lammering[[#This Row],[Speen-datum]])) ->  | L146: =IF(lammering[[#This Row],[Verkoop-datum]]="","",(lammering[[#This Row],[Verkoop-gewicht]]-lammering[[#This Row],[geboorte-gewicht]])/(lammering[[#This Row],[Verkoop-datum]]-lammering[[#This Row],[Werp-datum]])) ->  | S146: =IF(lammering[[#This Row],[Verkoop-gewicht]]="","",lammering[[#This Row],[Verkoop-gewicht]]-lammering[[#This Row],[geboorte-gewicht]]) ->  | V146: =Opzoek_ooi[[#This Row],[Ooinummer]] -> 0
A147: =lammering[[#This Row],[Ooi]] -> 0 | B147: 0 | C147: 0 | D147: =IF(lammering[[#This Row],[Lam-nummer]]="",0,1) -> 0 | E147: =IF(lammering[[#This Row],[Dood in geboorte]]="ja",1,0) -> 0 | F147: =IF(lammering[[#This Row],[Ooi]]="",0,IF(Berekeningen!E147=0,1,0)) -> 0 | G147: =IF(D147=0,0,IF(lammering[[#This Row],[Dood in geboorte]]="Ja",0,IF(lammering[[#This Row],[Dood na geboorte]]="ja",0,1))) -> 0 | H147: =IF(lammering[[#This Row],[Opfok met kunstmelk]]="Ja",1,0) -> 0 | I147: =IF(lammering[[#This Row],[geslacht]]="O",1,0) -> 0 | J147: =IF(lammering[[#This Row],[Speen-datum]]="","",(lammering[[#This Row],[Speen-gewicht]]-lammering[[#This Row],[geboorte-gewicht]])/(lammering[[#This Row],[Speen-datum]]-lammering[[#This Row],[Werp-datum]])) ->  | K147: =IF(lammering[[#This Row],[Verkoop-datum]]="","",(lammering[[#This Row],[Verkoop-gewicht]]-lammering[[#This Row],[Speen-gewicht]])/(lammering[[#This Row],[Verkoop-datum]]-lammering[[#This Row],[Speen-datum]])) ->  | L147: =IF(lammering[[#This Row],[Verkoop-datum]]="","",(lammering[[#This Row],[Verkoop-gewicht]]-lammering[[#This Row],[geboorte-gewicht]])/(lammering[[#This Row],[Verkoop-datum]]-lammering[[#This Row],[Werp-datum]])) ->  | S147: =IF(lammering[[#This Row],[Verkoop-gewicht]]="","",lammering[[#This Row],[Verkoop-gewicht]]-lammering[[#This Row],[geboorte-gewicht]]) ->  | V147: =Opzoek_ooi[[#This Row],[Ooinummer]] -> 0
A148: =lammering[[#This Row],[Ooi]] -> 0 | B148: 0 | C148: 0 | D148: =IF(lammering[[#This Row],[Lam-nummer]]="",0,1) -> 0 | E148: =IF(lammering[[#This Row],[Dood in geboorte]]="ja",1,0) -> 0 | F148: =IF(lammering[[#This Row],[Ooi]]="",0,IF(Berekeningen!E148=0,1,0)) -> 0 | G148: =IF(D148=0,0,IF(lammering[[#This Row],[Dood in geboorte]]="Ja",0,IF(lammering[[#This Row],[Dood na geboorte]]="ja",0,1))) -> 0 | H148: =IF(lammering[[#This Row],[Opfok met kunstmelk]]="Ja",1,0) -> 0 | I148: =IF(lammering[[#This Row],[geslacht]]="O",1,0) -> 0 | J148: =IF(lammering[[#This Row],[Speen-datum]]="","",(lammering[[#This Row],[Speen-gewicht]]-lammering[[#This Row],[geboorte-gewicht]])/(lammering[[#This Row],[Speen-datum]]-lammering[[#This Row],[Werp-datum]])) ->  | K148: =IF(lammering[[#This Row],[Verkoop-datum]]="","",(lammering[[#This Row],[Verkoop-gewicht]]-lammering[[#This Row],[Speen-gewicht]])/(lammering[[#This Row],[Verkoop-datum]]-lammering[[#This Row],[Speen-datum]])) ->  | L148: =IF(lammering[[#This Row],[Verkoop-datum]]="","",(lammering[[#This Row],[Verkoop-gewicht]]-lammering[[#This Row],[geboorte-gewicht]])/(lammering[[#This Row],[Verkoop-datum]]-lammering[[#This Row],[Werp-datum]])) ->  | S148: =IF(lammering[[#This Row],[Verkoop-gewicht]]="","",lammering[[#This Row],[Verkoop-gewicht]]-lammering[[#This Row],[geboorte-gewicht]]) ->  | V148: =Opzoek_ooi[[#This Row],[Ooinummer]] -> 0
A149: =lammering[[#This Row],[Ooi]] -> 0 | B149: 0 | C149: 0 | D149: =IF(lammering[[#This Row],[Lam-nummer]]="",0,1) -> 0 | E149: =IF(lammering[[#This Row],[Dood in geboorte]]="ja",1,0) -> 0 | F149: =IF(lammering[[#This Row],[Ooi]]="",0,IF(Berekeningen!E149=0,1,0)) -> 0 | G149: =IF(D149=0,0,IF(lammering[[#This Row],[Dood in geboorte]]="Ja",0,IF(lammering[[#This Row],[Dood na geboorte]]="ja",0,1))) -> 0 | H149: =IF(lammering[[#This Row],[Opfok met kunstmelk]]="Ja",1,0) -> 0 | I149: =IF(lammering[[#This Row],[geslacht]]="O",1,0) -> 0 | J149: =IF(lammering[[#This Row],[Speen-datum]]="","",(lammering[[#This Row],[Speen-gewicht]]-lammering[[#This Row],[geboorte-gewicht]])/(lammering[[#This Row],[Speen-datum]]-lammering[[#This Row],[Werp-datum]])) ->  | K149: =IF(lammering[[#This Row],[Verkoop-datum]]="","",(lammering[[#This Row],[Verkoop-gewicht]]-lammering[[#This Row],[Speen-gewicht]])/(lammering[[#This Row],[Verkoop-datum]]-lammering[[#This Row],[Speen-datum]])) ->  | L149: =IF(lammering[[#This Row],[Verkoop-datum]]="","",(lammering[[#This Row],[Verkoop-gewicht]]-lammering[[#This Row],[geboorte-gewicht]])/(lammering[[#This Row],[Verkoop-datum]]-lammering[[#This Row],[Werp-datum]])) ->  | S149: =IF(lammering[[#This Row],[Verkoop-gewicht]]="","",lammering[[#This Row],[Verkoop-gewicht]]-lammering[[#This Row],[geboorte-gewicht]]) ->  | V149: =Opzoek_ooi[[#This Row],[Ooinummer]] -> 0
A150: =lammering[[#This Row],[Ooi]] -> 0 | B150: 0 | C150: 0 | D150: =IF(lammering[[#This Row],[Lam-nummer]]="",0,1) -> 0 | E150: =IF(lammering[[#This Row],[Dood in geboorte]]="ja",1,0) -> 0 | F150: =IF(lammering[[#This Row],[Ooi]]="",0,IF(Berekeningen!E150=0,1,0)) -> 0 | G150: =IF(D150=0,0,IF(lammering[[#This Row],[Dood in geboorte]]="Ja",0,IF(lammering[[#This Row],[Dood na geboorte]]="ja",0,1))) -> 0 | H150: =IF(lammering[[#This Row],[Opfok met kunstmelk]]="Ja",1,0) -> 0 | I150: =IF(lammering[[#This Row],[geslacht]]="O",1,0) -> 0 | J150: =IF(lammering[[#This Row],[Speen-datum]]="","",(lammering[[#This Row],[Speen-gewicht]]-lammering[[#This Row],[geboorte-gewicht]])/(lammering[[#This Row],[Speen-datum]]-lammering[[#This Row],[Werp-datum]])) ->  | K150: =IF(lammering[[#This Row],[Verkoop-datum]]="","",(lammering[[#This Row],[Verkoop-gewicht]]-lammering[[#This Row],[Speen-gewicht]])/(lammering[[#This Row],[Verkoop-datum]]-lammering[[#This Row],[Speen-datum]])) ->  | L150: =IF(lammering[[#This Row],[Verkoop-datum]]="","",(lammering[[#This Row],[Verkoop-gewicht]]-lammering[[#This Row],[geboorte-gewicht]])/(lammering[[#This Row],[Verkoop-datum]]-lammering[[#This Row],[Werp-datum]])) ->  | S150: =IF(lammering[[#This Row],[Verkoop-gewicht]]="","",lammering[[#This Row],[Verkoop-gewicht]]-lammering[[#This Row],[geboorte-gewicht]]) ->  | V150: =Opzoek_ooi[[#This Row],[Ooinummer]] -> 0
A151: =lammering[[#This Row],[Ooi]] -> 0 | B151: 0 | C151: 0 | D151: =IF(lammering[[#This Row],[Lam-nummer]]="",0,1) -> 0 | E151: =IF(lammering[[#This Row],[Dood in geboorte]]="ja",1,0) -> 0 | F151: =IF(lammering[[#This Row],[Ooi]]="",0,IF(Berekeningen!E151=0,1,0)) -> 0 | G151: =IF(D151=0,0,IF(lammering[[#This Row],[Dood in geboorte]]="Ja",0,IF(lammering[[#This Row],[Dood na geboorte]]="ja",0,1))) -> 0 | H151: =IF(lammering[[#This Row],[Opfok met kunstmelk]]="Ja",1,0) -> 0 | I151: =IF(lammering[[#This Row],[geslacht]]="O",1,0) -> 0 | J151: =IF(lammering[[#This Row],[Speen-datum]]="","",(lammering[[#This Row],[Speen-gewicht]]-lammering[[#This Row],[geboorte-gewicht]])/(lammering[[#This Row],[Speen-datum]]-lammering[[#This Row],[Werp-datum]])) ->  | K151: =IF(lammering[[#This Row],[Verkoop-datum]]="","",(lammering[[#This Row],[Verkoop-gewicht]]-lammering[[#This Row],[Speen-gewicht]])/(lammering[[#This Row],[Verkoop-datum]]-lammering[[#This Row],[Speen-datum]])) ->  | L151: =IF(lammering[[#This Row],[Verkoop-datum]]="","",(lammering[[#This Row],[Verkoop-gewicht]]-lammering[[#This Row],[geboorte-gewicht]])/(lammering[[#This Row],[Verkoop-datum]]-lammering[[#This Row],[Werp-datum]])) ->  | S151: =IF(lammering[[#This Row],[Verkoop-gewicht]]="","",lammering[[#This Row],[Verkoop-gewicht]]-lammering[[#This Row],[geboorte-gewicht]]) ->  | V151: =Opzoek_ooi[[#This Row],[Ooinummer]] -> 0
A152: =lammering[[#This Row],[Ooi]] -> 0 | B152: 0 | C152: 0 | D152: =IF(lammering[[#This Row],[Lam-nummer]]="",0,1) -> 0 | E152: =IF(lammering[[#This Row],[Dood in geboorte]]="ja",1,0) -> 0 | F152: =IF(lammering[[#This Row],[Ooi]]="",0,IF(Berekeningen!E152=0,1,0)) -> 0 | G152: =IF(D152=0,0,IF(lammering[[#This Row],[Dood in geboorte]]="Ja",0,IF(lammering[[#This Row],[Dood na geboorte]]="ja",0,1))) -> 0 | H152: =IF(lammering[[#This Row],[Opfok met kunstmelk]]="Ja",1,0) -> 0 | I152: =IF(lammering[[#This Row],[geslacht]]="O",1,0) -> 0 | J152: =IF(lammering[[#This Row],[Speen-datum]]="","",(lammering[[#This Row],[Speen-gewicht]]-lammering[[#This Row],[geboorte-gewicht]])/(lammering[[#This Row],[Speen-datum]]-lammering[[#This Row],[Werp-datum]])) ->  | K152: =IF(lammering[[#This Row],[Verkoop-datum]]="","",(lammering[[#This Row],[Verkoop-gewicht]]-lammering[[#This Row],[Speen-gewicht]])/(lammering[[#This Row],[Verkoop-datum]]-lammering[[#This Row],[Speen-datum]])) ->  | L152: =IF(lammering[[#This Row],[Verkoop-datum]]="","",(lammering[[#This Row],[Verkoop-gewicht]]-lammering[[#This Row],[geboorte-gewicht]])/(lammering[[#This Row],[Verkoop-datum]]-lammering[[#This Row],[Werp-datum]])) ->  | S152: =IF(lammering[[#This Row],[Verkoop-gewicht]]="","",lammering[[#This Row],[Verkoop-gewicht]]-lammering[[#This Row],[geboorte-gewicht]]) ->  | V152: =Opzoek_ooi[[#This Row],[Ooinummer]] -> 0
A153: =lammering[[#This Row],[Ooi]] -> 0 | B153: 0 | C153: 0 | D153: =IF(lammering[[#This Row],[Lam-nummer]]="",0,1) -> 0 | E153: =IF(lammering[[#This Row],[Dood in geboorte]]="ja",1,0) -> 0 | F153: =IF(lammering[[#This Row],[Ooi]]="",0,IF(Berekeningen!E153=0,1,0)) -> 0 | G153: =IF(D153=0,0,IF(lammering[[#This Row],[Dood in geboorte]]="Ja",0,IF(lammering[[#This Row],[Dood na geboorte]]="ja",0,1))) -> 0 | H153: =IF(lammering[[#This Row],[Opfok met kunstmelk]]="Ja",1,0) -> 0 | I153: =IF(lammering[[#This Row],[geslacht]]="O",1,0) -> 0 | J153: =IF(lammering[[#This Row],[Speen-datum]]="","",(lammering[[#This Row],[Speen-gewicht]]-lammering[[#This Row],[geboorte-gewicht]])/(lammering[[#This Row],[Speen-datum]]-lammering[[#This Row],[Werp-datum]])) ->  | K153: =IF(lammering[[#This Row],[Verkoop-datum]]="","",(lammering[[#This Row],[Verkoop-gewicht]]-lammering[[#This Row],[Speen-gewicht]])/(lammering[[#This Row],[Verkoop-datum]]-lammering[[#This Row],[Speen-datum]])) ->  | L153: =IF(lammering[[#This Row],[Verkoop-datum]]="","",(lammering[[#This Row],[Verkoop-gewicht]]-lammering[[#This Row],[geboorte-gewicht]])/(lammering[[#This Row],[Verkoop-datum]]-lammering[[#This Row],[Werp-datum]])) ->  | S153: =IF(lammering[[#This Row],[Verkoop-gewicht]]="","",lammering[[#This Row],[Verkoop-gewicht]]-lammering[[#This Row],[geboorte-gewicht]]) ->  | V153: =Opzoek_ooi[[#This Row],[Ooinummer]] -> 0
A154: =lammering[[#This Row],[Ooi]] -> 0 | B154: 0 | C154: 0 | D154: =IF(lammering[[#This Row],[Lam-nummer]]="",0,1) -> 0 | E154: =IF(lammering[[#This Row],[Dood in geboorte]]="ja",1,0) -> 0 | F154: =IF(lammering[[#This Row],[Ooi]]="",0,IF(Berekeningen!E154=0,1,0)) -> 0 | G154: =IF(D154=0,0,IF(lammering[[#This Row],[Dood in geboorte]]="Ja",0,IF(lammering[[#This Row],[Dood na geboorte]]="ja",0,1))) -> 0 | H154: =IF(lammering[[#This Row],[Opfok met kunstmelk]]="Ja",1,0) -> 0 | I154: =IF(lammering[[#This Row],[geslacht]]="O",1,0) -> 0 | J154: =IF(lammering[[#This Row],[Speen-datum]]="","",(lammering[[#This Row],[Speen-gewicht]]-lammering[[#This Row],[geboorte-gewicht]])/(lammering[[#This Row],[Speen-datum]]-lammering[[#This Row],[Werp-datum]])) ->  | K154: =IF(lammering[[#This Row],[Verkoop-datum]]="","",(lammering[[#This Row],[Verkoop-gewicht]]-lammering[[#This Row],[Speen-gewicht]])/(lammering[[#This Row],[Verkoop-datum]]-lammering[[#This Row],[Speen-datum]])) ->  | L154: =IF(lammering[[#This Row],[Verkoop-datum]]="","",(lammering[[#This Row],[Verkoop-gewicht]]-lammering[[#This Row],[geboorte-gewicht]])/(lammering[[#This Row],[Verkoop-datum]]-lammering[[#This Row],[Werp-datum]])) ->  | S154: =IF(lammering[[#This Row],[Verkoop-gewicht]]="","",lammering[[#This Row],[Verkoop-gewicht]]-lammering[[#This Row],[geboorte-gewicht]]) ->  | V154: =Opzoek_ooi[[#This Row],[Ooinummer]] -> 0
